Workbook

Sheet Vinst variabel (hidden)

Sheet Växtföljd
BJ2: Radetiketter | BK2: Medel av kr
X3: Vinst av att variera PK givan jämfört med rak giva | BJ3: 1 | BK3: 263.2809917
J4: Vinst av behovsanpassad P-giva | O4: Vinst av behovsanpassad K-giva | T4: Total | V4: Vinst av behovsanpassad P-giva | X4: (Vid rätt totalmängd) | AJ4: 5 | BJ4: 2 | BK4: 165.994898
F5: Skördenivå | H5: Normalt spridd mängd P och K /ha och år | J5: Ändrat P-behov | L5: Skördeökning | N5: Summa | O5: Ändrat K-behov | Q5: Skördeökning | S5: Summa | T5: Summa | V5: Ändrat P-behov | X5: Skördeökning P | Z5: Summa | AA5: Ändrat K-behov | AC5: Skördeökning K | AE5: Summa | AF5: Summa | BJ5: 3 | BK5: 180.6666667
E6: Gröda | F6: Ton / ha | G6: Avsalupris | H6: P | I6: K | J6: kg/ha | K6: kr/ha | L6: kg/ha | M6: kr/ha | N6: kr/ha | O6: kg/ha | P6: kr/ha | Q6: kg/ha | R6: kr/ha | S6: kr/ha | T6: kr/ha | V6: Kg/ha | W6: Kr/ha | X6: kg/ha | Y6: kr/ha | Z6: kr/ha | AA6: Kg/ha | AB6: Kr/ha | AC6: kg/ha | AD6: kr/ha | AE6: kr/ha | AF6: kr/ha | BJ6: 4 | BK6: 99.12
C7: 1 | N7: =IF($F7="","",K7+M7) ->  | S7: =IF(F7="","",P7+R7) ->  | T7: =IF(F7="","",N7+S7) ->  | AF7: =IF(F7>0,Y7+AD7,"") ->  | BJ7: 5 | BK7: 144.443787
C8: 2 | N8: =IF(F8="","",K8+M8) ->  | S8: =IF(F8="","",P8+R8) ->  | T8: =IF(F8="","",N8+S8) ->  | AF8: =IF(F8>0,Y8+AD8,"") ->  | BJ8: 6 | BK8: 207.9375
C9: 4 | BJ9: 7 | BK9: 247.9460059
C10: 6 | AE10: =IF($F10="","",AB10+AD10) ->  | BJ10: 8 | BK10: 181.125
C11: 8 | BJ11: 9 | BK11: 128.1606805
C12: 0 | BJ12: 10 | BK12: 153.9375
C13: 0 | BJ13: 11 | BK13: 193.828125
C14: 0 | BJ14: 12 | BK14: 45.75
C15: 0 | BJ15: 13 | BK15: 68.25
S16: Medel vinst kr/ha och år | T16: =AVERAGE(T7:T15) ->  | AD16: Medel kr/ha och år | AE16: Medel vinst kr / ha och år | AF16: =AVERAGE(AF7:AF15) ->  | BJ16: 14 | BK16: 251.48
F17: =+SUM(F7:F15) -> 0 | G17: =+SUM(G7:G15) -> 0 | X17: =+SUM(X7:X15) -> 0 | Y17: =+SUM(Y7:Y15) -> 0 | AC17: =+SUM(AC7:AC15) -> 0 | AD17: 0 | BJ17: 15 | BK17: 146.9387755
A18: 1 | E18: spannmål | F18: =IF(ISNUMBER(AVERAGEIF(A7:A15,"<3",F7:F15))=TRUE,AVERAGEIF(A7:A15,"<3",F7:F15),0) -> 0 | G18: =IF(G17=0,"",AVERAGEIF(A7:A15,"<3",G7:G15)) ->  | H18: =H25/COUNTA(A7:A15) ->  | I18: =+I25/COUNTA(A7:A15) ->  | J18: -7.81621118 | K18: 257.9349689 | L18: 0 | M18: 0 | O18: -31.38722567 | P18: 251.0978054 | Q18: 0 | R18: 0 | X18: =IF(X17=0,0,AVERAGEIF($A$7:$A$15,"<3",X7:X15)) -> 0 | Y18: =IF(Y17=0,0,AVERAGEIF($A$7:$A$15,"<3",Y7:Y15)) -> 0 | AC18: =IF(AC17=0,0,AVERAGEIF($A$7:$A$15,"<3",AC7:AC15)) -> 0 | AD18: 0 | BJ18: 16 | BK18: 133.349481
BJ19: 17 | BK19: 0
G20: Sammanställning PK balans i växtföljden(kg) | X20: Vinst av att anpassa P och K till rätt nivå och sprida varierat | BJ20: (tom)
H21: P | I21: K | AC21: kg/ha | AD21: kr/ha | BJ21: Totalsumma | BK21: 193.4209615
G22: Tillfört i växtföljden | H22: =+SUM(H7:H15) -> 0 | I22: =+SUM(I7:I15) -> 0 | Y22: Ändrat P-behov | AC22: =+J18 -> -7.81621118 | AD22: =+K18 -> 257.9349689
G23: Behov i växtföljden | H23: =SUM(H7:H15,J7:J15) -> 0 | I23: =SUM(I7:I15,O7:O15) -> 0 | Y23: Skördeökning | AC23: =+L18 -> 0 | AD23: =+M18 -> 0
G25: Netto | H25: =H22-H23 -> 0 | I25: =I22-I23 -> 0 | Y25: Ändrat K-behov | AC25: =+O18 -> -31.38722567 | AD25: =+P18 -> 251.0978054
Y26: Skördeökning | AC26: =+Q18 -> 0 | AD26: =+R18 -> 0
Y28: Summa | AD28: =+SUM(AD22:AD26) -> 509.0327743
X46: Diagramet visar vinsten av variation per skifte. Notera att den endast räknar på spannmål och att funktionen räknar på lite
X47: annat sätt än kalkylen ovan. Det är inte absolutbeloppen som är det relevanta det är eventuell skillnad mellan skiftena.

Sheet Nyckeltal
B2: Nyckeltal
B4: Gård / Lantbrukare
B5: Markkartering
B6: Antal prover ≈ areal i hektar | D6: =COUNTIF(Blad4!A:A,">0") -> 0
B7: Gröda | D7: ='PK kalkyl'!AE4 -> Höstsäd
B9: Fosfor | F9: Vinst av behovsanpassad P-giva
B10: Min P-behov | C10: =MIN(Blad4!N:N) ->  | D10: kg P/ha | F10: jämfört med medelgiva.
B11: Medel P-behov | C11: =AVERAGE(Blad4!N:N) ->  | D11: kg P/ha | G11: Vinst
B12: Max P-behov | C12: =MAX(Blad4!N:N) ->  | D12: kg P/ha | F12: =CONCATENATE("Ändrad P behov med ",ROUND('PK kalkyl'!J15,1)," P/ha") -> Ändrad P behov med 0 P/ha | G12: ='PK kalkyl'!K15 -> 0
F13: =CONCATENATE("gäller från normalt spridd ",ROUND('PK kalkyl'!E9,1)," P/ha") -> gäller från normalt spridd 0 P/ha
B14: Medelavvikelse | C14: =AVEDEV(Blad4!N:N) ->  | D14: kg P/ha
B15: Maxavvikelse | C15: =IF((C12-C11)>(C11-C10),C12-C11,C11-C10) ->  | D15: kg P/ha | F15: Möjlig skördeökning | G15: ='PK kalkyl'!K14 -> 
B16: Andel av arealen i klass IVB-V | C16: =(('PK kalkyl'!C18+'PK kalkyl'!C19)/'PK kalkyl'!C20)*100 ->  | D16: %
B17: Mängd P vid medelgiva i klass IVB-V | C17: ='PK kalkyl'!I35 ->  | D17: kg P | F17: Summa vinst av behovsanpassad P-giva | G17: =G12+G15 -> 
B20: Kalium | F20: Vinst av behovsanpassad K-giva
B21: Min K-behov | C21: =MIN(Blad4!O:O) ->  | D21: kg K/ha | F21: jämfört med medelgiva.
B22: Medel K-behov | C22: =AVERAGE(Blad4!O:O) ->  | D22: kg K/ha
B23: Max K-behov | C23: =MAX(Blad4!O:O) ->  | D23: kg K/ha | F23: =CONCATENATE("Ändrad K behov med ",ROUND('PK kalkyl'!J26,1)," K/ha") -> Ändrad K behov med 0 K/ha | G23: ='PK kalkyl'!K26 -> 0
F24: =CONCATENATE("gäller från normalt spridd ",ROUND('PK kalkyl'!F9,1)," K/ha") -> gäller från normalt spridd 0 K/ha
B25: Medelavvikelse | C25: =AVEDEV(Blad4!O:O) ->  | D25: kg K/ha
B26: Maxavvikelse | C26: =IF((C23-C22)>(C22-C21),C23-C22,C22-C21) ->  | D26: kg K/ha | F26: Möjlig skördeökning | G26: ='PK kalkyl'!K25 -> 
B27: Andel av arealen i klass IV-V | C27: =(('PK kalkyl'!C28+'PK kalkyl'!C29)/'PK kalkyl'!C30)*100 ->  | D27: %
B28: Mängd K vid medelgiva i klass IV-V | C28: ='PK kalkyl'!J35 ->  | D28: kg K | F28: Summa vinst av behovsanpassad K-giva | G28: =G26+G23 -> 
B31: Kalk | F31: Vinst med kalkning
B32: Min kalkbehov | C32: =MIN(Blad4!M:M) ->  | D32: ton kalk/ha | F32: =Kalkkalkyl!B25 -> Ditt totalbehov av kalk är ca | G32: =Kalkkalkyl!C25 -> 
B33: Medel kalkbehov | C33: =AVERAGE(Blad4!M:M) ->  | D33: ton kalk/ha | F33: Mål-pH justera mål-pH | G33: =Kalkkalkyl!E20 -> 0
B34: Max kalkbehov | C34: =MAX(Blad4!M:M) ->  | D34: ton kalk/ha
F35: Medelkalkning
B36: Medelavvikelse | C36: =AVEDEV(Blad4!M:M)/Kalkkalkyl!$D$6 ->  | D36: ton kalk/ha | F36: =Kalkkalkyl!B40 -> Vinst med medel kalkning på hela arealen kr/ha & år | G36: =Kalkkalkyl!E40 -> 
B37: Maxavvikelse | C37: =IF((C34-C33)>(C33-C32),C34-C33,C33-C32)/Kalkkalkyl!$D$6 ->  | D37: ton kalk/ha | F37: =Kalkkalkyl!B41 -> Total vinst med medelgiva på del av areal med behov (0 ha) /år | G37: =Kalkkalkyl!E41 -> 
B38: Andel av arealen utan kalk behov | C38: =((Kalkkalkyl!C19)/Kalkkalkyl!D7)*100 ->  | D38: %
B39: Mängd kalk på areal utan behov | C39: =(C33/Kalkkalkyl!D6)*((D6/100)*C38) ->  | D39: ton kalk | F39: GPS-kalkning
F40: Vinst med behovsanpassad kalkning med GPS, kr/ha & år | G40: =Kalkkalkyl!E56 -> 
F41: Total vinst med behovsanpassad kalkning med GPS / år | G41: =Kalkkalkyl!E57 -> 

Sheet pk behov (hidden)
A1: Radetiketter | B1: Medel av P-behov | C1: Medel av K-behov | H1: Radetiketter | I1: Medel av Ton CaO/ha
A2: 1 | B2: 25.075 | C2: 13.8 | H2: 1 | I2: 2.727613017
A3: 2 | B3: 25.06666667 | C3: 22.36666667 | H3: 2 | I3: 2.22213458
A4: 3 | B4: 26.28571429 | C4: 19.32857143 | H4: 3 | I4: 2.128346419
A5: 5 | B5: 25.11818182 | C5: 21.86363636 | H5: 4 | I5: 1.946395048
H6: 5 | I6: 2.182800614
A7: Totalsumma | B7: 25.38275862 | C7: 19.07931034 | H7: 6 | I7: 2.129586456
H8: 7 | I8: 1.028628607
H9: 8 | I9: 4.175498065
H10: 9 | I10: 3.43618578
H11: 10 | I11: 3.913723546
H12: 11 | I12: 5.549703456
H13: 12 | I13: 2.552952548
H14: 13 | I14: 3.900987376
H15: 14 | I15: 1.956900164
H16: 15 | I16: 1.411171566
H17: 16 | I17: 4.500352046
H18: 17 | I18: 2.627780543
H19: 18 | I19: 2.069229178
H20: 19 | I20: 4.891236991
H21: 20 | I21: 3.700748085
H22: 21 | I22: 3.345133382
H23: 22 | I23: 3.017413909
H25: Totalsumma | I25: 2.959277384

Sheet PK kalkyl
AM1: 1 | AS1: Totalt antal importerade prover | AV1: =COUNT(Import!E:E) -> 0 | BF1: Vinst av behovsanpassad P-giva | BK1: Vinst av behovsanpassad K-giva | BP1: Total
B2: PK-kalkyl | C2: Utvärdera den ekonomiska nyttan med behovsanpassad PK gödsling | U2: Grundformler fosforbehov (Rekommendationer för gödsling och kalkning 2020) | AE2: Aktuell formel | AH2: 1 | BA2: Export till växtföljd | BF2: Ändrat P-behov | BH2: Skördeökning | BJ2: Summa | BK2: Ändrat K-behov | BM2: Skördeökning | BO2: Summa | BP2: Summa
B3: Merkalkyl för precisionsspridning av P och K | I3: Gård | J3: =Nyckeltal!C4 -> 0 | AM3: 2 | BA3: Gröda | BB3: Avkastning | BC3: Avsalupris | BD3: P | BE3: K | BF3: Kg/ha | BG3: Kr/ha | BH3: Kg/ha | BI3: Kr/ha | BJ3: Kr/ha | BK3: Kg/ha | BL3: Kr/ha | BM3: Kg/ha | BN3: Kr/ha | BO3: Kr/ha | BP3: Kr/ha | BV3: Eller bara uttryckt i kg P och K /ha
B4: Resultatet i kalkylen är en jämförelse med jämn giva av P och K | I4: Markkartering | J4: =Nyckeltal!C5 -> 0 | M4: Normskörd | T4: P-AL klass | U4: P-AL tal | V4: Vårsäd | W4: Höstsäd | X4: Våroljeväxter | Y4: Höstoljeväxter | Z4: Slåttervall I | AA4: Fodermajs | AB4: Potatis | AC4: Sockerbetor | AD4: Ärt/Åb | AE4: =OFFSET(AM3,AM3,0) -> Höstsäd | AM4: =V4 -> Vårsäd | BA4: + | BB4: =K6 -> 0 | BC4: =+K7 ->  | BD4: =+E8 -> 0 | BF4: =+J15 -> 0
C5: kg/ha | D5: N | E5: P | F5: K | I5: Areal som kalkylen omfattar | K5: =Nyckeltal!D6 -> 0 | M5: =CONCATENATE("för ",AE4," är") -> för Höstsäd är | T5: I 0-2 | U5: 1 | V5: 25 | W5: 25 | X5: 30 | Y5: 40 | Z5: 25 | AA5: 35 | AB5: 70 | AC5: 45 | AD5: 20 | AE5: =OFFSET(U5,0,$AM$3) -> 25 | AF5: =$AE$17*U5+$AE$18 -> 24.94565217 | AM5: =W4 -> Höstsäd | BU5: 9
B6: Normalt spridd NPK | G6: kg/ha | I6: =CONCATENATE("Medelskörd ",AE4) -> Medelskörd Höstsäd | K6: 0 | M6: =AE12 -> 6 | T6: II 2-4 | U6: 3 | V6: 20 | W6: 20 | X6: 25 | Y6: 35 | Z6: 15 | AA6: 30 | AB6: 50 | AC6: 40 | AD6: 15 | AE6: 20 | AF6: =$AE$17*U6+$AE$18 -> 20.59782609 | AM6: =X4 -> Våroljeväxter | BU6: 2
B7: under säsongen | G7: kg/ha | I7: Pris på skörden | T7: III 4-8 | U7: 6 | V7: 15 | W7: 15 | X7: 15 | Y7: 25 | Z7: 10 | AA7: 25 | AB7: 40 | AC7: 30 | AD7: 10 | AE7: 15 | AF7: =$AE$17*U7+$AE$18 -> 14.07608696 | AM7: =Y4 -> Höstoljeväxter
D8: Eller bara uttryckt i kg P och K /ha | G8: kg/ha | I8: Pris per kg P | K8: 33 | T8: IVA 8-12 | U8: 10 | V8: 5 | W8: 5 | X8: 10 | Y8: 15 | AA8: 20 | AB8: 30 | AC8: 20 | AD8: 0 | AE8: 5 | AF8: =IF($AE$17*U8+$AE$18<0,0,$AE$17*U8+$AE$18) -> 5.380434783 | AM8: =Z4 -> Slåttervall I | BU8: 2
C9: Summa medelgiva P och K | D9: =((D7*0.01)*$C$7)+((D6*0.01)*$C$6) -> 0 | E9: =((E7*0.01)*$C$7)+((E6*0.01)*$C$6)+E8 -> 0 | F9: =((F7*0.01)*$C$7)+((F6*0.01)*$C$6)+F8 -> 0 | G9: kg/ha | I9: Pris per kg K | K9: 8 | M9: Välj gröda för kalkylen | T9: IVB 12-16 | U9: 14 | AA9: 15 | AB9: 15 | AC9: 10 | AE9: 0 | AF9: =IF($AE$17*U9+$AE$18<0,0,$AE$17*U9+$AE$18) -> 0 | AM9: =AA4 -> Fodermajs
D10: Normalt medelbehov enligt jordproverna | E10: =E21 -> 0 | F10: =E31 -> 0 | G10: kg/ha | I10: Markkarteringskostnad | K10: 300 | T10: V >16 | U10: 20 | AA10: 15 | AB10: 15 | AE10: 0 | AF10: =IF($AE$17*U10+$AE$18<0,0,$AE$17*U10+$AE$18) -> 0 | AM10: =AB4 -> Potatis
AM11: =AC4 -> Sockerbetor
C12: Antal | D12: Medel | E12: P-behov | F12: P diff mot | G12: Möjlig skörde- | I12: Vinst av behovsanpassad P-giva | T12: Grundavkastning (ton/ha) | U12: GrSkP | V12: 5 | W12: 6 | X12: 2 | Y12: 3.5 | Z12: 6 | AA12: 10 | AB12: 30 | AC12: 60 | AD12: 3.5 | AE12: =OFFSET(U12,0,$AM$3) -> 6 | AM12: =AD4 -> Ärt/Åb
B13: P-AL | C13: prov | D13: P-AL | E13: utifrån jordproverna | F13: medelgivan | G13: ökning | I13: jämfört med enhetlig giva. | T13: För varje tons avvikelse förändras behovet med (kg/ha) | U13: justP | V13: 3 | W13: 3 | X13: 7 | Y13: 7 | Z13: 3 | AA13: 3 | AB13: 0.5 | AC13: 0.5 | AD13: 3 | AE13: =OFFSET(U13,0,$AM$3) -> 3
B14: I 0-2 | C14: =COUNTIF(Blad4!C:C,"<=2")-COUNTIF(Blad4!C:C,"=0") -> 0 | D14: =IF(C14>0,SUMIF(Blad4!C:C,"<=2")/C14,0) -> 0 | E14: =IF(C14>0,SUMIF(Blad4!C:C,"<2,01",Blad4!N:N)/C14,0) -> 0 | F14: =IF(C14=0,0,IF($E$9=0,$E$10-E14,$E$9-E14)) -> 0 | G14: =IF(F14<0,-F14*$AE$15,0) -> 0 | I14: Skördeökning | J14: =G21 ->  | K14: =J14*K7 -> 
B15: II 2-4 | C15: =COUNTIF(Blad4!C:C,"<=4")-C14-COUNTIF(Blad4!C:C,"=0") -> 0 | D15: =IF(C15>0,(SUMIF(Blad4!C:C,"<=4")-SUMIF(Blad4!C:C,"<=2"))/C15,0) -> 0 | E15: =IF(C15>0,(SUMIF(Blad4!C:C,"<4,01",Blad4!N:N)-SUMIF(Blad4!C:C,"<2,01",Blad4!N:N))/C15,0) -> 0 | F15: =IF(C15=0,0,IF($E$9=0,$E$10-E15,$E$9-E15)) -> 0 | G15: =IF(F15<0,-F15*$AE$15,0) -> 0 | I15: Ändrat P-behov | J15: =IF(E9=0,0,E21-E9) -> 0 | K15: =-J15*K8 -> 0 | T15: kg skördeförlust per saknat kg P | U15: SkForP | V15: 30 | W15: 30 | X15: 70 | Y15: 70 | Z15: 30 | AA15: 30 | AB15: 5 | AC15: 5 | AD15: 30 | AE15: =OFFSET(U15,0,$AM$3) -> 30
B16: III 4-8 | C16: =COUNTIF(Blad4!C:C,"<=8")-C15-C14-COUNTIF(Blad4!C:C,"=0") -> 0 | D16: =IF(C16>0,(SUMIF(Blad4!C:C,"<=8")-SUMIF(Blad4!C:C,"<=4"))/C16,0) -> 0 | E16: =IF(C16>0,(SUMIF(Blad4!C:C,"<8,01",Blad4!N:N)-SUMIF(Blad4!C:C,"<4,01",Blad4!N:N))/C16,0) -> 0 | F16: =IF(C16=0,0,IF($E$9=0,$E$10-E16,$E$9-E16)) -> 0 | G16: =IF(F16<0,-F16*$AE$15,0) -> 0 | J16: Summa | K16: =K14+K15 ->  | AE16: Formel (Y=k*x+m) | AF16: R2
B17: IVA 8-12 | C17: =COUNTIF(Blad4!C:C,"<=12")-C16-C15-C14-COUNTIF(Blad4!C:C,"=0") -> 0 | D17: =IF(C17>0,(SUMIF(Blad4!C:C,"<=12")-SUMIF(Blad4!C:C,"<=8"))/C17,0) -> 0 | E17: =IF(C17>0,(SUMIF(Blad4!C:C,"<12,01",Blad4!N:N)-SUMIF(Blad4!C:C,"<8,01",Blad4!N:N))/C17,0) -> 0 | F17: 0 | G17: =IF(F17<0,-F17*$AE$15,0) -> 0 | U17: k | V17: =SLOPE(V5:V9,$U$5:$U$9) -> -2.173913043 | W17: -2.173913043 | X17: -2.282608696 | Y17: -2.826086957 | Z17: -2.894736842 | AA17: -1.489169675 | AB17: -3.826714801 | AC17: -2.716606498 | AD17: -2.173913043 | AE17: =OFFSET(U17,0,$AM$3) -> -2.173913043 | AF17: =CORREL(AE5:AE10,AF5:AF10) -> 0.9988091926
B18: IVB 12-16 | C18: =COUNTIF(Blad4!C:C,"<=16")-C17-C16-C15-C14-COUNTIF(Blad4!C:C,"=0") -> 0 | D18: =IF(C18>0,(SUMIF(Blad4!C:C,"<=16")-SUMIF(Blad4!C:C,"<=12"))/C18,0) -> 0 | E18: =IF(C18>0,(SUMIF(Blad4!C:C,"<16,01",Blad4!N:N)-SUMIF(Blad4!C:C,"<12,01",Blad4!N:N))/C18,0) -> 0 | F18: 0 | G18: 0 | I18: =IF(E9+F9=0,"",CONCATENATE("Notera. Kalkylen jämför med P givan ",E9," kg/ha")) ->  | U18: m | V18: =INTERCEPT(V5:V9,$U$5:$U$9) -> 27.11956522 | W18: 27.11956522 | X18: 31.41304348 | Y18: 42.88043478 | Z18: 26.31578947 | AA18: 35.12635379 | AB18: 67.02166065 | AC18: 47.47292419 | AD18: 22.11956522 | AE18: =OFFSET(U18,0,$AM$3) -> 27.11956522
B19: V >16 | C19: =COUNTIF(Blad4!C:C,">16") -> 0 | D19: =IF(C19>0,SUMIF(Blad4!C:C,">16")/C19,0) -> 0 | E19: =IF(C19>1,(SUMIF(Blad4!C:C,"<100",Blad4!N:N)-SUMIF(Blad4!C:C,"<16,01",Blad4!N:N))/C19,0) -> 0 | F19: 0 | G19: 0 | I19: =IF(E9+F9=0,"",CONCATENATE("och K givan ",F9," kg/ha")) ->  | AD19: Formel (Y=k*x+m)+(Skörd-GrSkP)*justP | AE19: =IF(($AE$17*$U$7)+$AE$18+(($AE$12-$AE$12)*$AE$13)<1,0,ROUND(($AE$17*$U$7)+$AE$18+(($AE$12-$AE$12)*$AE$13),1)) -> 14.1 | AF19: kg P vid klass III
B20: Summa på hela arealen | C20: =SUM(C14:C19) -> 0 | E20: =+SUM(Blad4!N:N) ->  | F20: =SUMPRODUCT($C$14:$C$19,F14:F19) -> 0 | G20: =SUMPRODUCT($C$14:$C$19,G14:G19) -> 0 | I20: =IF(E9+F9=0,"","Vill en se vinsten av att variera ska tillförseln av" ) -> 
B21: Medel | D21: =AVERAGE(Blad4!C:C) -> 0 | E21: =IF(C20=0,0,E20/C20) -> 0 | F21: =SUMPRODUCT($C$14:$C$19,F14:F19)/C20 ->  | G21: =SUMPRODUCT(C14:C19,G14:G19)/C20 ->  | I21: =IF(E9+F9=0,"","P och K vara likamed medelbehovet eller 0.") -> 
C23: Antal | D23: Medel | E23: K-behov | F23: K diff mot | G23: Möjlig skörde- | I23: Vinst av behovsanpassad K-giva | U23: Grundformler kaliumbehov (Rekommendationer för gödsling och kalkning 2020) | AE23: Aktuell formel
B24: K-AL | C24: prov | D24: K-AL | E24: utifrån jordproverna | F24: medelgivan | G24: ökning | I24: jämfört med enhetlig giva.
B25: I 0-4 | C25: =COUNTIF(Blad4!D:D,"<=4")-COUNTIF(Blad4!D:D,"=0") -> 0 | D25: =IF(C25>0,SUMIF(Blad4!D:D,"<=4")/C25,0) -> 0 | E25: =IF(C25>0,SUMIF(Blad4!D:D,"<4,01",Blad4!O:O)/C25,0) -> 0 | F25: =IF(C25=0,0,IF($F$9=0,$F$10-E25,$F$9-E25)) -> 0 | G25: =IF(F25<0,-F25*$AE$35,0) -> 0 | I25: Skördeökning | J25: =G31 ->  | K25: =J25*K7 ->  | T25: K-AL klass | U25: K-AL tal | V25: =V4 -> Vårsäd | W25: =W4 -> Höstsäd | X25: Våroljeväxter | Y25: Höstoljeväxter | Z25: Slåttervall I | AA25: Fodermajs | AB25: Potatis | AC25: Sockerbetor | AD25: Ärt/Åb | AE25: =OFFSET(AM3,AM3,0) -> Höstsäd
B26: II 4-8 | C26: =COUNTIF(Blad4!D:D,"<=8")-C25-COUNTIF(Blad4!D:D,"=0") -> 0 | D26: =IF(C26>0,(SUMIF(Blad4!D:D,"<=8")-SUMIF(Blad4!D:D,"<=4"))/C26,0) -> 0 | E26: =IF(C26>0,(SUMIF(Blad4!D:D,"<8,01",Blad4!O:O)-SUMIF(Blad4!D:D,"<4,01",Blad4!O:O))/C26,0) -> 0 | F26: =IF(C26=0,0,IF($F$9=0,$F$10-E26,$F$9-E26)) -> 0 | G26: =IF(F26<0,-F26*$AE$35,0) -> 0 | I26: Ändrat K-behov | J26: =IF(F9=0,0,E31-F9) -> 0 | K26: =-J26*K9 -> 0 | T26: I 0-4 | U26: 2 | V26: 40 | W26: 40 | X26: 40 | Y26: 55 | Z26: 120 | AA26: 150 | AB26: 260 | AC26: 110 | AD26: 50 | AE26: =OFFSET(U26,0,$AM$3) -> 40 | AF26: =$AE$37*U26+$AE$38 -> 40.78947368
B27: III 8-16 | C27: =COUNTIF(Blad4!D:D,"<=16")-C26-C25-COUNTIF(Blad4!D:D,"=0") -> 0 | D27: =IF(C27>0,(SUMIF(Blad4!D:D,"<=16")-SUMIF(Blad4!D:D,"<=8"))/C27,0) -> 0 | E27: =IF(C27>0,(SUMIF(Blad4!D:D,"<16,01",Blad4!O:O)-SUMIF(Blad4!D:D,"<8,01",Blad4!O:O))/C27,0) -> 0 | F27: 0 | G27: =IF(F27<0,-F27*$AE$35,0) -> 0 | J27: Summa | K27: =K25+K26 ->  | T27: II 4-8 | U27: 6 | V27: 30 | W27: 30 | X27: 30 | Y27: 45 | Z27: 80 | AA27: 120 | AB27: 210 | AC27: 80 | AD27: 40 | AE27: 30 | AF27: =$AE$37*U27+$AE$38 -> 28.68421053
B28: IV 16-32 | C28: =COUNTIF(Blad4!D:D,"<=32")-C27-C26-C25-COUNTIF(Blad4!D:D,"=0") -> 0 | D28: =IF(C28>0,(SUMIF(Blad4!D:D,"<=32")-SUMIF(Blad4!D:D,"<=16"))/C28,0) -> 0 | E28: =IF(C28>0,(SUMIF(Blad4!D:D,"<32,01",Blad4!O:O)-SUMIF(Blad4!D:D,"<16,01",Blad4!O:O))/C28,0) -> 0 | F28: 0 | G28: =IF(F28<0,-F28*$AE$35,0) -> 0 | T28: III 8-16 | U28: 12 | V28: 10 | W28: 10 | X28: 10 | Y28: 25 | Z28: 40 | AA28: 80 | AB28: 160 | AC28: 40 | AD28: 20 | AE28: 10 | AF28: =$AE$37*U28+$AE$38 -> 10.52631579
B29: V >32 | C29: =COUNTIF(Blad4!D:D,">32") -> 0 | D29: =IF(C29>0,SUMIF(Blad4!D:D,">32")/C29,0) -> 0 | E29: =IF(C29>0,(SUMIF(Blad4!D:D,"<100",Blad4!O:O)-SUMIF(Blad4!D:D,"<32,01",Blad4!O:O))/C29,0) -> 0 | F29: 0 | G29: =IF(F29<0,-F29*$AE$35,0) -> 0 | J29: Summa P & K per ha | K29: =K16+K27 ->  | T29: IV 16-32 | U29: 24 | Y29: 10 | AA29: 50 | AB29: 110 | AC29: 20 | AE29: 0 | AF29: =IF($AE$37*U29+$AE$38<0,0,$AE$37*U29+$AE$38) -> 0
B30: Summa på hela arealen | C30: =SUM(C25:C29) -> 0 | E30: =SUM(Blad4!O:O) ->  | F30: =SUMPRODUCT($C$25:$C$29,F25:F29) -> 0 | G30: =SUMPRODUCT($C$25:$C$29,G25:G29) -> 0 | J30: Summa för urvalet | K30: =K29*C30 ->  | T30: V >32 | U30: 40 | AE30: 0 | AF30: =IF($AE$37*U30+$AE$38<0,0,$AE$37*U30+$AE$38) -> 0
B31: Medel | D31: =AVERAGE(Blad4!D:D) -> 0 | E31: =IF(C30=0,0,E30/C30) -> 0 | F31: =SUMPRODUCT($C$25:$C$29,F25:F29)/C30 ->  | G31: =SUMPRODUCT(C25:C29,G25:G29)/C30 -> 
T32: Grundavkastning (ton/ha) | U32: GrSkK | V32: 5 | W32: 5 | X32: 2 | Y32: 3.5 | Z32: 6 | AA32: 10 | AB32: 30 | AC32: 60 | AD32: 3.5 | AE32: 5
H33: Mängd som kan sparas genom att stänga av spridaren på de två högsta klasserna | I33: P | J33: K | T33: För varje tons avvikelse förändras behovet med (kg/ha) | U33: JustK | V33: 5 | W33: 5 | X33: 10 | Y33: 10 | Z33: 20 | AA33: 10 | AB33: 4 | AC33: 2 | AD33: 10 | AE33: 5
H34: Areal i klass IV-V som inte behöver gödslas | I34: =INT(((IF(AE8=0,C17,0)+(IF(AE9=0,C18,0)+IF(AE10=0,C19,0))/C20)*K5)) ->  | J34: =((IF(AE29=0,C28,0)+IF(AE30=0,C29,0))/C30)*K5 ->  | K34: ha
H35: Mängd fosfor och kalium som kan sparas | I35: =I34*E9 ->  | J35: =J34*F9 ->  | K35: kg | T35: kg skördeförlust per saknat kg K | U35: SkForK | V35: 15 | W35: 15 | X35: 15 | Y35: 15 | Z35: 15 | AA35: 15 | AB35: 50 | AC35: 50 | AD35: 15 | AE35: =OFFSET(U35,0,$AM$3) -> 15
H36: Kostnad för den outnyttjade P och K gödningen | I36: =I35*K8 ->  | J36: =J35*K9 ->  | K36: kr | AE36: Formel (Y=k*x+m) | AF36: R2
U37: k | V37: =SLOPE(V26:V29,$U$26:$U$29) -> -3.026315789 | W37: =SLOPE(W26:W29,$U$26:$U$29) -> -3.026315789 | X37: -3.026315789 | Y37: -2.047101449 | Z37: -7.894736842 | AA37: -4.420289855 | AB37: -6.52173913 | AC37: -3.949275362 | AD37: -3.026315789 | AE37: =OFFSET(U37,0,$AM$3) -> -3.026315789 | AF37: =CORREL(AE26:AE30,AF26:AF30) -> 0.9990026925
B38: Kalkyl som inkluderar kostnader för utrustning till GPS-spridning | U38: m | V38: =INTERCEPT(V26:V29,$U$26:$U$29) -> 46.84210526 | W38: =INTERCEPT(W26:W29,$U$26:$U$29) -> 46.84210526 | X38: 46.84210526 | Y38: 56.26811594 | Z38: 132.6315789 | AA38: 148.6231884 | AB38: 256.7391304 | AC38: 105.942029 | AD38: 56.84210526 | AE38: =OFFSET(U38,0,$AM$3) -> 46.84210526
B39: GPS styrning av gödselspridaren | E39: Investering | F39: Kost./år | AD39: Formel (Y=k*x+m)+(Skörd-GrSkK)*justK | AE39: =IF(($AE$37*$U$28)+$AE$38+(($AE$32-$AE$32)*$AE$33)<1,0,ROUND(($AE$37*$U$28)+$AE$38+(($AE$32-$AE$32)*$AE$33),1)) -> 10.5 | AF39: kg K vid klass III
B40: Styrmodul med DGPS delad på 3år | E40: 35000 | F40: =E40/3 -> 11666.66667 | J40: =(-$E40/3/K$5) ->  | K40: kr/ha & år
B41: Underhåll o support på utrustning | F41: 1000 | J41: =(-$F41/K$5) ->  | K41: kr/ha & år
B42: Markkartering
B43: 1/2 markkarteringskostnaden delad på 8 år mellan karteringarna | F43: =K10/2 -> 150 | J43: =-$F$43/8 -> -18.75 | K43: kr/ha & år
B44: Gödslingskartor och styrfiler delad på år | E44: 500 | F44: 5 | J44: =-E44/F44/$K$5/8 ->  | K44: kr/ha & år
B45: Summa vinst för platsanpassad PK-gödsling | J45: =K16+K27 ->  | K45: kr/ha & år
I46: Summa per år & ha inkl GPS-styrning av gödselspridaren: | J46: =SUM(J40:J45) ->  | K46: kr/ha & år
I47: Summa för hela gården/år: | J47: =J46*K5 ->  | K47: kr/år

Sheet Kalkkalkyl
A1: Vad tjänar du på precisionskalkning? | AB1: CaO obehov | AC1: Antal prov | AF1: Medel - delav | AG1: % sk.ökning | AH1: Manganbrist | AI1: Mål pH | AY1: Radetiketter | AZ1: Medel av Ton CaO per ha
Z2: Antal | AA2: inget under 0,25 | AB2: 0 | AC2: =+C19 -> 0 | AF2: 2 | AG2: 5 | AH2: 3 | AI2: 16 | AJ2: =(0.1*AI2)-1.1 -> 0.5 | AY2: 1 | AZ2: 0.7445360807
B3: Medelskörd | D3: 8000 | Z3: Lägst | AA3: låg under | AB3: =AB4/1.5 ->  | AC3: =+D19 -> 1 | AF3: hela arealen | AG3: 0 | AH3: 0 | AI3: -1 | AY3: 2 | AZ3: 3.540344776
B4: Pris på skörden | D4: 1.5 | Z4: Medel | AA4: medel | AB4: =IF(AVERAGE(Blad4!M:M)<1,1,AVERAGE(Blad4!M:M)) ->  | AC4: =+E19 -> 0 | AF4: del av areal med behov | AG4: 0.01 | AH4: 0.01 | AI4: -0.9 | AY4: 3 | AZ4: 0
B5: Kalkningskostnad | D5: 350 | AA5: hög över | AB5: =+AB4*1.5 ->  | AC5: =+F19 -> 1 | AG5: 0.02 | AH5: 0.02 | AI5: -0.8 | AY5: 4 | AZ5: 0.3937542106
B6: CaO innehåll i kalkprodukten | D6: 0.5 | Z6: Högst | AG6: 0.03 | AH6: 0.03 | AI6: -0.7 | AY6: 5 | AZ6: 0.8730207355
B7: Areal | D7: =Nyckeltal!D6 -> 0 | AA7: =STDEV(Blad4!M:M) ->  | AG7: 0.04 | AH7: 0.04 | AI7: -0.6 | AY7: 6 | AZ7: 2.958721484
B8: Merkostnad för kalkning med GPS | D8: 35 | AG8: 0.05 | AH8: 0.05 | AI8: -0.5 | AY8: 7 | AZ8: 1.228543585
AG9: 0.06 | AH9: 0.06 | AI9: -0.4 | AY9: 8 | AZ9: 1.443305445
AI10: -0.3 | AY10: 9 | AZ10: 1.734925851
B11: Fördelning analysresultat på olika delar av fältet | C11: Del av fält utan kalkbehov | D11: Del av fält med låga kalkbehov | E11: Del av fält med medel kalkbehov | F11: Del av fält med höga kalkbehov | AI11: -0.2 | AY11: 10 | AZ11: 2.220830325
B12: pH | C12: =IF(C19>0,C13/C19,0) -> 0 | D12: =IF(D19>0,D13/D19,0) -> 0 | E12: =IF(E19>0,E13/E19,0) -> 0 | F12: =IF(F19>0,SUMIF(Blad4!M:M,CONCATENATE(">",AB5),Blad4!B:B)/F19,0) -> 0 | AI12: -0.1 | AY12: 11 | AZ12: 2.414650582
B13: summapH | C13: =SUMIF(Blad4!M:M,"<0,25",Blad4!B:B) -> 0 | D13: =SUMIF(Blad4!M:M,CONCATENATE("<",AB3),Blad4!B:B)-C13 -> 0 | E13: =SUMIF(Blad4!M:M,CONCATENATE(">",AB3),Blad4!B:B)-F13 -> 0 | F13: =SUMIF(Blad4!M:M,CONCATENATE(">",AB5),Blad4!B:B) -> 0 | AI13: 0 | AY13: 12 | AZ13: 4.113613707
B14: summaler | C14: =SUMIF(Blad4!M:M,"<0,25",Blad4!K:K) -> 0 | D14: =SUMIF(Blad4!M:M,CONCATENATE("<",AB3),Blad4!K:K)-C14 -> 6306.57903 | E14: =SUMIF(Blad4!M:M,CONCATENATE(">",AB3),Blad4!K:K)-F14 -> 0 | F14: =SUMIF(Blad4!M:M,CONCATENATE(">",AB5),Blad4!K:K) -> 6306.57903 | AI14: +0,1 | AY14: 13 | AZ14: 3.905394014
B15: summamull | C15: =SUMIF(Blad4!M:M,"<0,25",Blad4!I:I) -> 0 | D15: =SUMIF(Blad4!M:M,CONCATENATE("<",AB3),Blad4!I:I)-C15 -> 706.4781814 | E15: =SUMIF(Blad4!M:M,CONCATENATE(">",AB3),Blad4!I:I)-F15 -> 0 | F15: =SUMIF(Blad4!M:M,CONCATENATE(">",AB5),Blad4!I:I) -> 706.4781814 | AI15: +0,2 | AY15: 14 | AZ15: 2.987954637
B16: SummamålpH | C16: =SUMIF(Blad4!M:M,"<0,25",Blad4!L:L) -> 0 | D16: =SUMIF(Blad4!M:M,CONCATENATE("<",AB3),Blad4!L:L)-C16 -> 1391.818689 | E16: =SUMIF(Blad4!M:M,CONCATENATE(">",AB3),Blad4!L:L)-F16 -> 0 | F16: =SUMIF(Blad4!M:M,CONCATENATE(">",AB5),Blad4!L:L) -> 1391.818689 | AI16: +0,3 | AY16: 15 | AZ16: 2.310779481
B17: Lerhalt | C17: =+IF(C19>0,C14/C19,0) -> 0 | D17: =+IF(D19>0,D14/D19,0) -> 6306.57903 | E17: =+IF(E19>0,E14/E19,0) -> 0 | F17: =+IF(F19>0,F14/F19,0) -> 6306.57903 | AI17: +0,4 | AY17: 16 | AZ17: 1.478975681
B18: Mullhalt | C18: =+IF(C19>0,C15/C19,0) -> 0 | D18: =+IF(D19>0,D15/D19,0) -> 706.4781814 | E18: =+IF(E19>0,E15/E19,0) -> 0 | F18: =+IF(F19>0,F15/F19,0) -> 706.4781814 | AI18: +0,5 | AY18: 17 | AZ18: 3.310481053
B19: Andel av arealen | C19: =COUNTIF(Blad4!M:M,"<0,25") -> 0 | D19: =COUNTIF(Blad4!M:M,CONCATENATE("<",AB3))-C19 -> 1 | E19: =COUNTIF(Blad4!M:M,CONCATENATE(">",AB3))-F19 -> 0 | F19: =COUNTIF(Blad4!M:M,CONCATENATE(">",AB5)) -> 1 | AI19: +0,6 | AY19: (tom)
B20: Mål-pH Ev. grödjustering av mål-pH. tex. 0.5 till sockerbetor | C20: =IF(C19=0,0,C16/C19) -> 0 | D20: =IF(D19=0,0,D16/D19) -> 1391.818689 | E20: =IF(E19=0,0,E16/E19) -> 0 | F20: =IF(F19=0,0,F16/F19) -> 1391.818689 | AI20: +0,7
B21: summa CaO | D21: =SUMIF(Blad4!M:M,">0,25",Blad4!M:M)-F21-E21 ->  | E21: =SUMIF(Blad4!M:M,CONCATENATE(">",AB3),Blad4!M:M)-F21 ->  | F21: =SUMIF(Blad4!M:M,CONCATENATE(">",AB5),Blad4!M:M) ->  | AI21: +0,8
B22: Kalkbehov ton CaO/ha | D22: =IF(D19=0,0,D21/D19) ->  | E22: =IF(E19=0,0,E21/E19) -> 0 | F22: =IF(F19=0,0,F21/F19) ->  | AI22: +0,9
B23: Kalkbehov på delar av fält, ton kalk/ha | D23: =$D$22/$D$6 ->  | E23: =$E$22/$D$6 -> 0 | F23: =$F$22/$D$6 ->  | AI23: +1
B25: Ditt totalbehov av kalk är ca | C25: =SUM(D21:F21)/D6 -> 
B26: Sammanfattning
B27: Om kalken sprids jämt på hela den valda arealen blir nettot ca | C27: =E41 -> 
B28: Om kalken sprids jämt på den del som har kalkbehov blir nettot ca | C28: =E49 -> 
B29: Om kalken sprids med tilldelningsfil blir nettot ca | C29: =E57 -> 
B32: Denna uträkning är ungefärlig och endast till för att tydliggöra skillnaden mellan att sprida med eller utan tilldelningsfil.
B35: Fördelning av totalbehovet på hela arealen (rak giva) | C35: =E35 ->  | D35: =E35 ->  | E35: =C25/D7 ->  | F35: =E35 -> 
B36: Kostnad för kalk och körning delat på 8 år | C36: =-(C35*$D$5)/8 ->  | D36: =-(D35*$D$5)/8 ->  | E36: =-(E35*$D$5)/8 ->  | F36: =-(F35*$D$5)/8 -> 
B37: Förväntad skördeökning. (ca.4% vid normal effekt) | D37: =IF(D35>D23,$D$3*(D23/3)*(($AG$2-1)/100),$D$3*(D35/3)*(($AG$2-1)/100)) ->  | E37: =IF(E35>E23,$D$3*(E23/3)*(($AG$2-1)/100),$D$3*(E35/3)*(($AG$2-1)/100)) -> 
B38: Skördeökning för kalkningen | C38: =C37*$D$4 -> 0 | D38: =(D37)*$D$4 ->  | E38: =E37*$D$4 ->  | F38: =F37*$D$4 -> 
B39: Netto | C39: =C38+C36 ->  | D39: =D38+D36 ->  | E39: =E38+E36 ->  | F39: =F38+F36 -> 
B40: Vinst med medel kalkning på hela arealen kr/ha & år | E40: =IF(C25=0,0,((C39*C19)+(D39*D19)+(E39*E19)+(F39*F19))/IF(AF2=1,D7,D19+E19+F19)) -> 
B41: Total vinst med medelgiva på del av areal med behov (0 ha) /år | E41: =IF(AF2=1,E40*$D$7,E40*(D19+E19+F19)) -> 
B43: Fördelning av totalbehovet på areal med behov (rak giva) | C43: 0 | D43: =E43 ->  | E43: =C25/(SUM(D19:F19)) ->  | F43: =E43 -> 
B44: Kostnad för kalk och körning delat på 8 år | D44: =-(D43*$D$5)/8 ->  | E44: =-(E43*$D$5)/8 ->  | F44: =-(F43*$D$5)/8 -> 
B45: Förväntad skördeökning. (ca.4% vid normal effekt) | D45: =IF(D43>D23,$D$3*(D23/3)*(($AG$2-1)/100),$D$3*(D43/3)*(($AG$2-1)/100)) ->  | E45: =IF(E43>E23,$D$3*(E23/3)*(($AG$2-1)/100),$D$3*(E43/3)*(($AG$2-1)/100)) ->  | F45: =IF(F43>F23,$D$3*(F23/3)*(($AG$2-1)/100),$D$3*(F43/3)*(($AG$2-1)/100)) -> 
B46: Skördeökning för kalkningen | C46: =C45*$D$4 -> 0 | D46: =(D45)*$D$4 ->  | E46: =E45*$D$4 ->  | F46: =F45*$D$4 -> 
B47: Netto | C47: =C46+C44 -> 0 | D47: =D46+D44 ->  | E47: =E46+E44 ->  | F47: =F46+F44 -> 
B48: Vinst med medel kalkning kr/ha & år | E48: =IF(C25=0,0,((C47*C19)+(D47*D19)+(E47*E19)+(F47*F19))/IF(AF12=1,D8,D19+E19+F19)) -> 
B49: Total vinst med medelgiva på del av areal med behov (0 ha) /år | E49: =IF(AF12=1,E48*$D$7,E48*(D19+E19+F19)) -> 
B51: Fördelning av totalbehovet med tilldelningsfil | C51: 0 | D51: =$D$22/$D$6 ->  | E51: =$E$22/$D$6 -> 0 | F51: =$F$22/$D$6 -> 
B52: Kostnad för kalk och körning med GPS delat på 8 år mellan kalkningarna | C52: 0 | D52: =-(D51*$D$5)/8-(D8*E51)/8 ->  | E52: =-(E51*$D$5)/8-(D8*E51)/8 -> 0 | F52: =-(F51*$D$5)/8-(D8*E51)/8 -> 
B53: Förväntad skördeökning. (ca.4% vid normal effekt) | D53: =IF($AG$2=1,0,IF($E$23=0,0,$D$3*(D$51/3)*(($AG$2-1)/100))) -> 0 | E53: =IF($AG$2=1,0,IF($E$23=0,0,$D$3*(E$51/3)*(($AG$2-1)/100))) -> 0 | F53: =IF($AG$2=1,0,IF($F$23=0,0,$D$3*(F$51/3)*(($AG$2-1)/100))) -> 
B54: Skördeökning i kronor för kalkningen | C54: =C53*$D$4 -> 0 | D54: =D53*$D$4 -> 0 | E54: =E53*$D$4 -> 0 | F54: =F53*$D$4 -> 
B55: Netto | C55: =C54+C52 -> 0 | D55: =D54+D52 ->  | E55: =E54+E52 -> 0 | F55: =F54+F52 -> 
B56: Vinst med behovsannpassad kalkning med GPS, kr/ha & år | E56: =((C55*C19)+(D55*D19)+(E55*E19)+(F55*F19))/D7 -> 
B57: Total vinst med behovsannpassad kalkning med GPS / år | E57: =E56*$D$7 -> 

Sheet Yara N-Sensor
B1: Exempel på gårdskalkyler för Yara N-Sensor
J2: Din kalkyl
B3: Årlig användning, ha | E3: 200 | F3: 500 | G3: 1000 | J3: 100 | K3: hektar
C4: Avskrivningstid, år | E4: 5 | F4: 5 | G4: 5 | J4: 10 | K4: år
B6: Intäkter
B8: Skördeökning | C8: 1.5 | D8: Spannmålspris | E8: =260*C8 -> 390 | F8: =260*C8 -> 390 | G8: =260*C8 -> 390 | J8: =260*C8 -> 390 | K8: kr/ha
B9: Mindre liggsäd | J9: 0 | K9: kr/ha
B10: Jämnare kvalitet | J10: 50 | K10: kr/ha
B11: Ökad tröskkapacitet | J11: 50 | K11: kr/ha
B12: Behovsanpassad P- och K-gödsling | J12: 0 | K12: kr/ha
B13: Information om fältet | J13: 10 | K13: kr/ha
B14: Övrigt | K14: kr/ha
B16: Summa intäkter/ha | E16: =SUM(E8:E14) -> 390 | F16: =SUM(F8:F14) -> 390 | G16: =SUM(G8:G14) -> 390 | J16: =SUM(J8:J14) -> 500 | K16: kr/ha
B18: Kostnader
C19: Kapitalkostnad
B20: N-Sensor och N-tester | D20: 185000 | E20: =$D$20/E$3/E$4 -> 185 | F20: =$D$20/F$3/F$4 -> 74 | G20: =$D$20/G$3/G$4 -> 37 | J20: =$D$20/J$3/J$4 -> 185 | K20: kr/ha
B21: GPS-utrustning (enkel USB-GPS ingår) | D21: 0 | E21: =$D$21/E$3/E$4 -> 0 | F21: =$D$21/F$3/F$4 -> 0 | G21: =$D$21/G$3/G$4 -> 0 | J21: =$D$21/J$3/J$4 -> 0 | K21: kr/ha
B22: Räntekostnad | D22: 0.06 | E22: =$D$22*($D$20+$D$21)/2/E$3 -> 27.75 | F22: =$D$22*($D$20+$D$21)/2/F$3 -> 11.1 | G22: =$D$22*($D$20+$D$21)/2/G$3 -> 5.55 | J22: =$D$22*($D$20+$D$21)/2/J$3 -> 55.5 | K22: kr/ha
B23: N-Sensor Support | D23: 7500 | E23: =$D$23/E$3 -> 37.5 | F23: =$D$23/F$3 -> 15 | G23: =$D$23/G$3 -> 7.5 | J23: =$D$23/J$3 -> 75 | K23: kr/ha
B24: Service, underhåll | D24: 2000 | E24: =$D$24/E$3 -> 10 | F24: =$D$24/F$3 -> 4 | G24: =$D$24/G$3 -> 2 | J24: =$D$24/J$3 -> 20 | K24: kr/ha
B26: Summa kostnader/ha | E26: =SUM(E20:E25) -> 260.25 | F26: =SUM(F20:F25) -> 104.1 | G26: =SUM(G20:G25) -> 52.05 | J26: =SUM(J20:J25) -> 335.5 | K26: kr/ha
B29: Vinst kr/ha | E29: =E16-E26 -> 129.75 | F29: =F16-F26 -> 285.9 | G29: =G16-G26 -> 337.95 | J29: =J16-J26 -> 164.5 | K29: kr/ha
B30: Vinst kr/gård | E30: =E29*E3 -> 25950 | F30: =F29*F3 -> 142950 | G30: =G29*G3 -> 337950 | J30: =J29*J3 -> 16450 | K30: kr/gård
B33: PrecisionSupport
B34: Knud Nissen
B35: Yara AB | E35: 070-537 46 99 | K35: knud.nissen@yara.com

Sheet Import
A1: Skifte | B1: Gröna kolumner är viktiga att importera X | C1: y | D1: År | E1: Provnr | F1: Märkning | G1: pH | H1: P_AL | I1: P_HCl | J1: K_AL | K1: Behövs om ler saknas K_HCl | L1: Mg_AL | M1: Cu_HCl | N1: K_Mg_kvot | O1: Bor | P1: Ca_AL | Q1: Mullhalt | R1: Kan ersättas med K-HCL Total_lerhalt | S1: Sand_grovmo | T1: Volymvikt | U1: T_värde | V1: S_värde | W1: Basmättnadsgrad | X1: Cd_HNO3 | Y1: Kalkbehov | Z1: Jordart | AA1: Fin_lerhalt | AB1: Mineralkväve_Kg_N_ha | AC1: Mineralkväve_NO3_N | AD1: Mineralkväve_NH4_N | AE1: Mineralkväve_djup | AF1: Cystnematoder_potatis | AG1: Cystnematoder_betor | AH1: Cystnematoder_spannmål | AI1: Övrigt

Sheet Blad4 (hidden)
A1: Skifte | B1: (Alla)
A3: Radetiketter | B3: Summa av pH | C3: Summa av P_AL | D3: Summa av K_AL | E3: Summa av K-HCL | F3: Summa av Mullhalt | G3: Summa av Total_lerhalt | H3: Summa av Grid KHCL | I3: Summa av GridMull | J3: Summa av Gridler | K3: Summa av Lerhalt för användning till kalkbehov | L3: Summa av Mål pH | M3: Summa av Ton CaO per ha | N3: Summa av P beh | O3: Summa av K beh | P3: Summa av Pmedelskifte | Q3: Summa av Kmedelskifte | R3: Summa av Pförlustkg | S3: Summa av Kförlustkg
A4: (tom)
B5: 0 | C5: 0 | D5: 0 | E5: 0 | F5: 0 | G5: 0 | H5: 62764.40259 | I5: 706.4781814 | J5: 6306.57903 | K5: 6306.57903 | L5: 1391.818689

Sheet Blad1 (hidden)
A3: Radetiketter | B3: Medel av Pförlustkg | C3: Medel av Kförlustkg | D3: Medel av kr
A4: 1 | B4: 72.61983471 | C4: 59.02066116 | D4: 263.2809917
A5: 2 | B5: 57 | C5: 25.99744898 | D5: 165.994898
A6: 3 | B6: 46.83333333 | C6: 43.5 | D6: 180.6666667
A7: 4 | B7: 15.96 | C7: 33.6 | D7: 99.12
A8: (tom)
A9: 8 | B9: 48.375 | C9: 42.1875 | D9: 181.125
A10: 9 | B10: 19.62759924 | C10: 44.45274102 | D10: 128.1606805
A11: 5 | B11: 27 | C11: 45.22189349 | D11: 144.443787
A12: 6 | B12: 35.71875 | C12: 68.25 | D12: 207.9375
A13: 7 | B13: 74.67159763 | C13: 49.30140533 | D13: 247.9460059
A14: 10 | B14: 45.75 | C14: 31.21875 | D14: 153.9375
A15: 11 | B15: 25.125 | C15: 71.7890625 | D15: 193.828125
A16: 12 | B16: 0 | C16: 22.875 | D16: 45.75
A17: 13 | B17: 11.25 | C17: 22.875 | D17: 68.25
A18: 14 | B18: 80.4 | C18: 45.34 | D18: 251.48
A19: 15 | B19: 32.51020408 | C19: 40.95918367 | D19: 146.9387755
A20: 16 | B20: 46.60899654 | C20: 20.06574394 | D20: 133.349481
A21: 17 | B21: 0 | C21: 0 | D21: 0
A22: Totalsumma | B22: 51.98753001 | C22: 44.72295074 | D22: 193.4209615

Sheet Omräknad kartering (hidden)
A1: Skifte | B1: Gröna kolumner är viktiga att importera X | C1: y | D1: År | E1: Provnr | F1: Märkning | G1: pH | H1: P_AL | I1: K_AL | J1: K-HCL | K1: Mg_AL | L1: Cu_HCl | M1: Ca_AL | N1: Mullhalt | O1: Total_lerhalt | P1: Grid KHCL | Q1: GridMull | R1: Gridler | S1: Lerhalt för användning till kalkbehov | T1: Mål pH | U1: Ton CaO per ha | V1: tom | W1: P beh | X1: K beh | Y1: Pmedelskifte | Z1: Kmedelskifte | AA1: Pförlustkg | AB1: Kförlustkg | AC1: kr | AD1: i
A2: =IF(Import!A2="","",Import!A2) ->  | B2: =IF(Import!B2="","",Import!B2) ->  | C2: =IF(Import!C2="","",Import!C2) ->  | D2: =IF(Import!D2="","",Import!D2) ->  | E2: =IF(Import!E2="","",Import!E2) ->  | F2: =IF(Import!F2="","",Import!F2) ->  | G2: =IF(Import!G2="","",Import!G2) ->  | H2: =IF(Import!H2="","",Import!H2) ->  | I2: =IF(Import!J2="","",Import!J2) ->  | J2: =IF(Import!K2="","",Import!K2) ->  | K2: =IF(Import!L2="","",Import!L2) ->  | L2: =IF(Import!M2="","",Import!M2) ->  | M2: =IF(Import!P2="","",Import!P2) ->  | N2: =IF(Import!Q2="","",Import!Q2) ->  | O2: =IF(Import!R2="","",Import!R2) ->  | P2: 420 | Q2: 4.4 | R2: 29 | S2: =IF(R2="",( 0.0977*P2 )+ 4.135,R2) -> 29 | T2: =IF(Q2="","",(-0.00011*POWER(S2,2))+(0.01417*S2)+((0.00057*POWER(Q2,2))-(0.0529*Q2)+6.2018)+Kalkkalkyl!$AJ$2) -> 6.7984952 | U2: =IF(Q2="","",IF(T2-G2<0,0,(T2-G2)*(1.9+(3.5*Q2+S2)/3.8)/2)) ->  | W2: =IF(('PK kalkyl'!$AE$17*H2)+'PK kalkyl'!$AE$18+(('PK kalkyl'!$K$6-'PK kalkyl'!$AE$12)*'PK kalkyl'!$AE$13)<1,0,ROUND(('PK kalkyl'!$AE$17*H2)+'PK kalkyl'!$AE$18+(('PK kalkyl'!$K$6-'PK kalkyl'!$AE$12)*'PK kalkyl'!$AE$13),1)) ->  | X2: =IF(('PK kalkyl'!$AE$37*I2)+'PK kalkyl'!$AE$38+(('PK kalkyl'!$K$6-'PK kalkyl'!$AE$32)*'PK kalkyl'!$AE$33)<1,0,ROUND(('PK kalkyl'!$AE$37*I2)+'PK kalkyl'!$AE$38+(('PK kalkyl'!$K$6-'PK kalkyl'!$AE$32)*'PK kalkyl'!$AE$33),1)) ->  | Y2: =AVERAGEIF(A:A,A2,W:W) ->  | Z2: =AVERAGEIF(A:A,A2,X:X) ->  | AA2: =IF((Y2<W2),Y2-W2,0)*-'PK kalkyl'!$AE$15 ->  | AB2: =IF((Z2<X2),Z2-X2,0)*-'PK kalkyl'!$AE$35 ->  | AC2: =+AA2*Växtföljd!$G$18+AB2*Växtföljd!$G$18 -> 
A3: =IF(Import!A3="","",Import!A3) ->  | B3: =IF(Import!B3="","",Import!B3) ->  | C3: =IF(Import!C3="","",Import!C3) ->  | D3: =IF(Import!D3="","",Import!D3) ->  | E3: =IF(Import!E3="","",Import!E3) ->  | F3: =IF(Import!F3="","",Import!F3) ->  | G3: =IF(Import!G3="","",Import!G3) ->  | H3: =IF(Import!H3="","",Import!H3) ->  | I3: =IF(Import!J3="","",Import!J3) ->  | J3: =IF(Import!K3="","",Import!K3) ->  | K3: =IF(Import!L3="","",Import!L3) ->  | L3: =IF(Import!M3="","",Import!M3) ->  | M3: =IF(Import!P3="","",Import!P3) ->  | N3: =IF(Import!Q3="","",Import!Q3) ->  | O3: =IF(Import!R3="","",Import!R3) ->  | P3: 414.7873305 | Q3: 4.020316219 | R3: 27.77028958 | S3: =IF(R3="",( 0.0977*P3 )+ 4.135,R3) -> 27.77028958 | T3: =IF(Q3="","",(-0.00011*POWER(S3,2))+(0.01417*S3)+((0.00057*POWER(Q3,2))-(0.0529*Q3)+6.2018)+Kalkkalkyl!$AJ$2) -> 6.807012364 | U3: =IF(Q3="","",IF(T3-G3<0,0,(T3-G3)*(1.9+(3.5*Q3+S3)/3.8)/2)) ->  | W3: =IF(('PK kalkyl'!$AE$17*H3)+'PK kalkyl'!$AE$18+(('PK kalkyl'!$K$6-'PK kalkyl'!$AE$12)*'PK kalkyl'!$AE$13)<1,0,ROUND(('PK kalkyl'!$AE$17*H3)+'PK kalkyl'!$AE$18+(('PK kalkyl'!$K$6-'PK kalkyl'!$AE$12)*'PK kalkyl'!$AE$13),1)) ->  | X3: =IF(('PK kalkyl'!$AE$37*I3)+'PK kalkyl'!$AE$38+(('PK kalkyl'!$K$6-'PK kalkyl'!$AE$32)*'PK kalkyl'!$AE$33)<1,0,ROUND(('PK kalkyl'!$AE$37*I3)+'PK kalkyl'!$AE$38+(('PK kalkyl'!$K$6-'PK kalkyl'!$AE$32)*'PK kalkyl'!$AE$33),1)) ->  | Y3: =AVERAGEIF(A:A,A3,W:W) ->  | Z3: =AVERAGEIF(A:A,A3,X:X) ->  | AA3: =IF((Y3<W3),Y3-W3,0)*-'PK kalkyl'!$AE$15 ->  | AB3: =IF((Z3<X3),Z3-X3,0)*-'PK kalkyl'!$AE$35 ->  | AC3: =+AA3*Växtföljd!$G$18+AB3*Växtföljd!$G$18 -> 
A4: =IF(Import!A4="","",Import!A4) ->  | B4: =IF(Import!B4="","",Import!B4) ->  | C4: =IF(Import!C4="","",Import!C4) ->  | D4: =IF(Import!D4="","",Import!D4) ->  | E4: =IF(Import!E4="","",Import!E4) ->  | F4: =IF(Import!F4="","",Import!F4) ->  | G4: =IF(Import!G4="","",Import!G4) ->  | H4: =IF(Import!H4="","",Import!H4) ->  | I4: =IF(Import!J4="","",Import!J4) ->  | J4: =IF(Import!K4="","",Import!K4) ->  | K4: =IF(Import!L4="","",Import!L4) ->  | L4: =IF(Import!M4="","",Import!M4) ->  | M4: =IF(Import!P4="","",Import!P4) ->  | N4: =IF(Import!Q4="","",Import!Q4) ->  | O4: =IF(Import!R4="","",Import!R4) ->  | P4: 450 | Q4: 3.7 | R4: 27 | S4: 27 | T4: =IF(Q4="","",(-0.00011*POWER(S4,2))+(0.01417*S4)+((0.00057*POWER(Q4,2))-(0.0529*Q4)+6.2018)+Kalkkalkyl!$AJ$2) -> 6.8162733 | W4: =IF(('PK kalkyl'!$AE$17*H4)+'PK kalkyl'!$AE$18+(('PK kalkyl'!$K$6-'PK kalkyl'!$AE$12)*'PK kalkyl'!$AE$13)<1,0,ROUND(('PK kalkyl'!$AE$17*H4)+'PK kalkyl'!$AE$18+(('PK kalkyl'!$K$6-'PK kalkyl'!$AE$12)*'PK kalkyl'!$AE$13),1)) ->  | X4: =IF(('PK kalkyl'!$AE$37*I4)+'PK kalkyl'!$AE$38+(('PK kalkyl'!$K$6-'PK kalkyl'!$AE$32)*'PK kalkyl'!$AE$33)<1,0,ROUND(('PK kalkyl'!$AE$37*I4)+'PK kalkyl'!$AE$38+(('PK kalkyl'!$K$6-'PK kalkyl'!$AE$32)*'PK kalkyl'!$AE$33),1)) ->  | AA4: =IF((Y4<W4),Y4-W4,0)*-'PK kalkyl'!$AE$15 ->  | AB4: =IF((Z4<X4),Z4-X4,0)*-'PK kalkyl'!$AE$35 ->  | AC4: =+AA4*Växtföljd!$G$18+AB4*Växtföljd!$G$18 -> 
A5: =IF(Import!A5="","",Import!A5) ->  | B5: =IF(Import!B5="","",Import!B5) ->  | C5: =IF(Import!C5="","",Import!C5) ->  | D5: =IF(Import!D5="","",Import!D5) ->  | E5: =IF(Import!E5="","",Import!E5) ->  | F5: =IF(Import!F5="","",Import!F5) ->  | G5: =IF(Import!G5="","",Import!G5) ->  | H5: =IF(Import!H5="","",Import!H5) ->  | I5: =IF(Import!J5="","",Import!J5) ->  | J5: =IF(Import!K5="","",Import!K5) ->  | K5: =IF(Import!L5="","",Import!L5) ->  | L5: =IF(Import!M5="","",Import!M5) ->  | M5: =IF(Import!P5="","",Import!P5) ->  | N5: =IF(Import!Q5="","",Import!Q5) ->  | O5: =IF(Import!R5="","",Import!R5) ->  | P5: 391.205006 | Q5: 3.800671178 | R5: 27.45969067 | S5: 27.45969067 | T5: =IF(Q5="","",(-0.00011*POWER(S5,2))+(0.01417*S5)+((0.00057*POWER(Q5,2))-(0.0529*Q5)+6.2018)+Kalkkalkyl!$AJ$2) -> 6.815138212 | W5: =IF(('PK kalkyl'!$AE$17*H5)+'PK kalkyl'!$AE$18+(('PK kalkyl'!$K$6-'PK kalkyl'!$AE$12)*'PK kalkyl'!$AE$13)<1,0,ROUND(('PK kalkyl'!$AE$17*H5)+'PK kalkyl'!$AE$18+(('PK kalkyl'!$K$6-'PK kalkyl'!$AE$12)*'PK kalkyl'!$AE$13),1)) ->  | X5: =IF(('PK kalkyl'!$AE$37*I5)+'PK kalkyl'!$AE$38+(('PK kalkyl'!$K$6-'PK kalkyl'!$AE$32)*'PK kalkyl'!$AE$33)<1,0,ROUND(('PK kalkyl'!$AE$37*I5)+'PK kalkyl'!$AE$38+(('PK kalkyl'!$K$6-'PK kalkyl'!$AE$32)*'PK kalkyl'!$AE$33),1)) ->  | AA5: =IF((Y5<W5),Y5-W5,0)*-'PK kalkyl'!$AE$15 ->  | AB5: =IF((Z5<X5),Z5-X5,0)*-'PK kalkyl'!$AE$35 ->  | AC5: =+AA5*Växtföljd!$G$18+AB5*Växtföljd!$G$18 -> 
A6: =IF(Import!A6="","",Import!A6) ->  | B6: =IF(Import!B6="","",Import!B6) ->  | C6: =IF(Import!C6="","",Import!C6) ->  | D6: =IF(Import!D6="","",Import!D6) ->  | E6: =IF(Import!E6="","",Import!E6) ->  | F6: =IF(Import!F6="","",Import!F6) ->  | G6: =IF(Import!G6="","",Import!G6) ->  | H6: =IF(Import!H6="","",Import!H6) ->  | I6: =IF(Import!J6="","",Import!J6) ->  | J6: =IF(Import!K6="","",Import!K6) ->  | K6: =IF(Import!L6="","",Import!L6) ->  | L6: =IF(Import!M6="","",Import!M6) ->  | M6: =IF(Import!P6="","",Import!P6) ->  | N6: =IF(Import!Q6="","",Import!Q6) ->  | O6: =IF(Import!R6="","",Import!R6) ->  | P6: 350 | Q6: 3.4 | R6: 28 | S6: 28 | T6: =IF(Q6="","",(-0.00011*POWER(S6,2))+(0.01417*S6)+((0.00057*POWER(Q6,2))-(0.0529*Q6)+6.2018)+Kalkkalkyl!$AJ$2) -> 6.8390492 | W6: =IF(('PK kalkyl'!$AE$17*H6)+'PK kalkyl'!$AE$18+(('PK kalkyl'!$K$6-'PK kalkyl'!$AE$12)*'PK kalkyl'!$AE$13)<1,0,ROUND(('PK kalkyl'!$AE$17*H6)+'PK kalkyl'!$AE$18+(('PK kalkyl'!$K$6-'PK kalkyl'!$AE$12)*'PK kalkyl'!$AE$13),1)) ->  | X6: =IF(('PK kalkyl'!$AE$37*I6)+'PK kalkyl'!$AE$38+(('PK kalkyl'!$K$6-'PK kalkyl'!$AE$32)*'PK kalkyl'!$AE$33)<1,0,ROUND(('PK kalkyl'!$AE$37*I6)+'PK kalkyl'!$AE$38+(('PK kalkyl'!$K$6-'PK kalkyl'!$AE$32)*'PK kalkyl'!$AE$33),1)) ->  | AA6: =IF((Y6<W6),Y6-W6,0)*-'PK kalkyl'!$AE$15 ->  | AB6: =IF((Z6<X6),Z6-X6,0)*-'PK kalkyl'!$AE$35 ->  | AC6: =+AA6*Växtföljd!$G$18+AB6*Växtföljd!$G$18 -> 
A7: =IF(Import!A7="","",Import!A7) ->  | B7: =IF(Import!B7="","",Import!B7) ->  | C7: =IF(Import!C7="","",Import!C7) ->  | D7: =IF(Import!D7="","",Import!D7) ->  | E7: =IF(Import!E7="","",Import!E7) ->  | F7: =IF(Import!F7="","",Import!F7) ->  | G7: =IF(Import!G7="","",Import!G7) ->  | H7: =IF(Import!H7="","",Import!H7) ->  | I7: =IF(Import!J7="","",Import!J7) ->  | J7: =IF(Import!K7="","",Import!K7) ->  | K7: =IF(Import!L7="","",Import!L7) ->  | L7: =IF(Import!M7="","",Import!M7) ->  | M7: =IF(Import!P7="","",Import!P7) ->  | N7: =IF(Import!Q7="","",Import!Q7) ->  | O7: =IF(Import!R7="","",Import!R7) ->  | P7: 327.3519702 | Q7: 3.442827927 | R7: 29.16651935 | S7: 29.16651935 | T7: =IF(Q7="","",(-0.00011*POWER(S7,2))+(0.01417*S7)+((0.00057*POWER(Q7,2))-(0.0529*Q7)+6.2018)+Kalkkalkyl!$AJ$2) -> 6.846144785 | W7: =IF(('PK kalkyl'!$AE$17*H7)+'PK kalkyl'!$AE$18+(('PK kalkyl'!$K$6-'PK kalkyl'!$AE$12)*'PK kalkyl'!$AE$13)<1,0,ROUND(('PK kalkyl'!$AE$17*H7)+'PK kalkyl'!$AE$18+(('PK kalkyl'!$K$6-'PK kalkyl'!$AE$12)*'PK kalkyl'!$AE$13),1)) ->  | X7: =IF(('PK kalkyl'!$AE$37*I7)+'PK kalkyl'!$AE$38+(('PK kalkyl'!$K$6-'PK kalkyl'!$AE$32)*'PK kalkyl'!$AE$33)<1,0,ROUND(('PK kalkyl'!$AE$37*I7)+'PK kalkyl'!$AE$38+(('PK kalkyl'!$K$6-'PK kalkyl'!$AE$32)*'PK kalkyl'!$AE$33),1)) ->  | AA7: =IF((Y7<W7),Y7-W7,0)*-'PK kalkyl'!$AE$15 ->  | AB7: =IF((Z7<X7),Z7-X7,0)*-'PK kalkyl'!$AE$35 ->  | AC7: =+AA7*Växtföljd!$G$18+AB7*Växtföljd!$G$18 -> 
A8: =IF(Import!A8="","",Import!A8) ->  | B8: =IF(Import!B8="","",Import!B8) ->  | C8: =IF(Import!C8="","",Import!C8) ->  | D8: =IF(Import!D8="","",Import!D8) ->  | E8: =IF(Import!E8="","",Import!E8) ->  | F8: =IF(Import!F8="","",Import!F8) ->  | G8: =IF(Import!G8="","",Import!G8) ->  | H8: =IF(Import!H8="","",Import!H8) ->  | I8: =IF(Import!J8="","",Import!J8) ->  | J8: =IF(Import!K8="","",Import!K8) ->  | K8: =IF(Import!L8="","",Import!L8) ->  | L8: =IF(Import!M8="","",Import!M8) ->  | M8: =IF(Import!P8="","",Import!P8) ->  | N8: =IF(Import!Q8="","",Import!Q8) ->  | O8: =IF(Import!R8="","",Import!R8) ->  | P8: 320 | Q8: 3 | R8: 33 | S8: 33 | T8: =IF(Q8="","",(-0.00011*POWER(S8,2))+(0.01417*S8)+((0.00057*POWER(Q8,2))-(0.0529*Q8)+6.2018)+Kalkkalkyl!$AJ$2) -> 6.89605 | W8: =IF(('PK kalkyl'!$AE$17*H8)+'PK kalkyl'!$AE$18+(('PK kalkyl'!$K$6-'PK kalkyl'!$AE$12)*'PK kalkyl'!$AE$13)<1,0,ROUND(('PK kalkyl'!$AE$17*H8)+'PK kalkyl'!$AE$18+(('PK kalkyl'!$K$6-'PK kalkyl'!$AE$12)*'PK kalkyl'!$AE$13),1)) ->  | X8: =IF(('PK kalkyl'!$AE$37*I8)+'PK kalkyl'!$AE$38+(('PK kalkyl'!$K$6-'PK kalkyl'!$AE$32)*'PK kalkyl'!$AE$33)<1,0,ROUND(('PK kalkyl'!$AE$37*I8)+'PK kalkyl'!$AE$38+(('PK kalkyl'!$K$6-'PK kalkyl'!$AE$32)*'PK kalkyl'!$AE$33),1)) ->  | AA8: =IF((Y8<W8),Y8-W8,0)*-'PK kalkyl'!$AE$15 ->  | AB8: =IF((Z8<X8),Z8-X8,0)*-'PK kalkyl'!$AE$35 ->  | AC8: =+AA8*Växtföljd!$G$18+AB8*Växtföljd!$G$18 -> 
A9: =IF(Import!A9="","",Import!A9) ->  | B9: =IF(Import!B9="","",Import!B9) ->  | C9: =IF(Import!C9="","",Import!C9) ->  | D9: =IF(Import!D9="","",Import!D9) ->  | E9: =IF(Import!E9="","",Import!E9) ->  | F9: =IF(Import!F9="","",Import!F9) ->  | G9: =IF(Import!G9="","",Import!G9) ->  | H9: =IF(Import!H9="","",Import!H9) ->  | I9: =IF(Import!J9="","",Import!J9) ->  | J9: =IF(Import!K9="","",Import!K9) ->  | K9: =IF(Import!L9="","",Import!L9) ->  | L9: =IF(Import!M9="","",Import!M9) ->  | M9: =IF(Import!P9="","",Import!P9) ->  | N9: =IF(Import!Q9="","",Import!Q9) ->  | O9: =IF(Import!R9="","",Import!R9) ->  | P9: 305.8273564 | Q9: 3.440344758 | R9: 27.82341309 | S9: 27.82341309 | T9: =IF(Q9="","",(-0.00011*POWER(S9,2))+(0.01417*S9)+((0.00057*POWER(Q9,2))-(0.0529*Q9)+6.2018)+Kalkkalkyl!$AJ$2) -> 6.835654375 | W9: =IF(('PK kalkyl'!$AE$17*H9)+'PK kalkyl'!$AE$18+(('PK kalkyl'!$K$6-'PK kalkyl'!$AE$12)*'PK kalkyl'!$AE$13)<1,0,ROUND(('PK kalkyl'!$AE$17*H9)+'PK kalkyl'!$AE$18+(('PK kalkyl'!$K$6-'PK kalkyl'!$AE$12)*'PK kalkyl'!$AE$13),1)) ->  | X9: =IF(('PK kalkyl'!$AE$37*I9)+'PK kalkyl'!$AE$38+(('PK kalkyl'!$K$6-'PK kalkyl'!$AE$32)*'PK kalkyl'!$AE$33)<1,0,ROUND(('PK kalkyl'!$AE$37*I9)+'PK kalkyl'!$AE$38+(('PK kalkyl'!$K$6-'PK kalkyl'!$AE$32)*'PK kalkyl'!$AE$33),1)) ->  | AA9: =IF((Y9<W9),Y9-W9,0)*-'PK kalkyl'!$AE$15 ->  | AB9: =IF((Z9<X9),Z9-X9,0)*-'PK kalkyl'!$AE$35 ->  | AC9: =+AA9*Växtföljd!$G$18+AB9*Växtföljd!$G$18 -> 
A10: =IF(Import!A10="","",Import!A10) ->  | B10: =IF(Import!B10="","",Import!B10) ->  | C10: =IF(Import!C10="","",Import!C10) ->  | D10: =IF(Import!D10="","",Import!D10) ->  | E10: =IF(Import!E10="","",Import!E10) ->  | F10: =IF(Import!F10="","",Import!F10) ->  | G10: =IF(Import!G10="","",Import!G10) ->  | H10: =IF(Import!H10="","",Import!H10) ->  | I10: =IF(Import!J10="","",Import!J10) ->  | J10: =IF(Import!K10="","",Import!K10) ->  | K10: =IF(Import!L10="","",Import!L10) ->  | L10: =IF(Import!M10="","",Import!M10) ->  | M10: =IF(Import!P10="","",Import!P10) ->  | N10: =IF(Import!Q10="","",Import!Q10) ->  | O10: =IF(Import!R10="","",Import!R10) ->  | P10: 280 | Q10: 4 | R10: 21 | S10: 21 | T10: =IF(Q10="","",(-0.00011*POWER(S10,2))+(0.01417*S10)+((0.00057*POWER(Q10,2))-(0.0529*Q10)+6.2018)+Kalkkalkyl!$AJ$2) -> 6.74838 | W10: =IF(('PK kalkyl'!$AE$17*H10)+'PK kalkyl'!$AE$18+(('PK kalkyl'!$K$6-'PK kalkyl'!$AE$12)*'PK kalkyl'!$AE$13)<1,0,ROUND(('PK kalkyl'!$AE$17*H10)+'PK kalkyl'!$AE$18+(('PK kalkyl'!$K$6-'PK kalkyl'!$AE$12)*'PK kalkyl'!$AE$13),1)) ->  | X10: =IF(('PK kalkyl'!$AE$37*I10)+'PK kalkyl'!$AE$38+(('PK kalkyl'!$K$6-'PK kalkyl'!$AE$32)*'PK kalkyl'!$AE$33)<1,0,ROUND(('PK kalkyl'!$AE$37*I10)+'PK kalkyl'!$AE$38+(('PK kalkyl'!$K$6-'PK kalkyl'!$AE$32)*'PK kalkyl'!$AE$33),1)) ->  | AA10: =IF((Y10<W10),Y10-W10,0)*-'PK kalkyl'!$AE$15 ->  | AB10: =IF((Z10<X10),Z10-X10,0)*-'PK kalkyl'!$AE$35 ->  | AC10: =+AA10*Växtföljd!$G$18+AB10*Växtföljd!$G$18 -> 
A11: =IF(Import!A11="","",Import!A11) ->  | B11: =IF(Import!B11="","",Import!B11) ->  | C11: =IF(Import!C11="","",Import!C11) ->  | D11: =IF(Import!D11="","",Import!D11) ->  | E11: =IF(Import!E11="","",Import!E11) ->  | F11: =IF(Import!F11="","",Import!F11) ->  | G11: =IF(Import!G11="","",Import!G11) ->  | H11: =IF(Import!H11="","",Import!H11) ->  | I11: =IF(Import!J11="","",Import!J11) ->  | J11: =IF(Import!K11="","",Import!K11) ->  | K11: =IF(Import!L11="","",Import!L11) ->  | L11: =IF(Import!M11="","",Import!M11) ->  | M11: =IF(Import!P11="","",Import!P11) ->  | N11: =IF(Import!Q11="","",Import!Q11) ->  | O11: =IF(Import!R11="","",Import!R11) ->  | P11: 312.9444409 | Q11: 3.659452535 | R11: 23.63737891 | S11: 23.63737891 | T11: =IF(Q11="","",(-0.00011*POWER(S11,2))+(0.01417*S11)+((0.00057*POWER(Q11,2))-(0.0529*Q11)+6.2018)+Kalkkalkyl!$AJ$2) -> 6.789330003 | W11: =IF(('PK kalkyl'!$AE$17*H11)+'PK kalkyl'!$AE$18+(('PK kalkyl'!$K$6-'PK kalkyl'!$AE$12)*'PK kalkyl'!$AE$13)<1,0,ROUND(('PK kalkyl'!$AE$17*H11)+'PK kalkyl'!$AE$18+(('PK kalkyl'!$K$6-'PK kalkyl'!$AE$12)*'PK kalkyl'!$AE$13),1)) ->  | X11: =IF(('PK kalkyl'!$AE$37*I11)+'PK kalkyl'!$AE$38+(('PK kalkyl'!$K$6-'PK kalkyl'!$AE$32)*'PK kalkyl'!$AE$33)<1,0,ROUND(('PK kalkyl'!$AE$37*I11)+'PK kalkyl'!$AE$38+(('PK kalkyl'!$K$6-'PK kalkyl'!$AE$32)*'PK kalkyl'!$AE$33),1)) ->  | AA11: =IF((Y11<W11),Y11-W11,0)*-'PK kalkyl'!$AE$15 ->  | AB11: =IF((Z11<X11),Z11-X11,0)*-'PK kalkyl'!$AE$35 ->  | AC11: =+AA11*Växtföljd!$G$18+AB11*Växtföljd!$G$18 -> 
A12: =IF(Import!A12="","",Import!A12) ->  | B12: =IF(Import!B12="","",Import!B12) ->  | C12: =IF(Import!C12="","",Import!C12) ->  | D12: =IF(Import!D12="","",Import!D12) ->  | E12: =IF(Import!E12="","",Import!E12) ->  | F12: =IF(Import!F12="","",Import!F12) ->  | G12: =IF(Import!G12="","",Import!G12) ->  | H12: =IF(Import!H12="","",Import!H12) ->  | I12: =IF(Import!J12="","",Import!J12) ->  | J12: =IF(Import!K12="","",Import!K12) ->  | K12: =IF(Import!L12="","",Import!L12) ->  | L12: =IF(Import!M12="","",Import!M12) ->  | M12: =IF(Import!P12="","",Import!P12) ->  | N12: =IF(Import!Q12="","",Import!Q12) ->  | O12: =IF(Import!R12="","",Import!R12) ->  | P12: 360 | Q12: 3.2 | R12: 27 | S12: 27 | T12: =IF(Q12="","",(-0.00011*POWER(S12,2))+(0.01417*S12)+((0.00057*POWER(Q12,2))-(0.0529*Q12)+6.2018)+Kalkkalkyl!$AJ$2) -> 6.8407568 | W12: =IF(('PK kalkyl'!$AE$17*H12)+'PK kalkyl'!$AE$18+(('PK kalkyl'!$K$6-'PK kalkyl'!$AE$12)*'PK kalkyl'!$AE$13)<1,0,ROUND(('PK kalkyl'!$AE$17*H12)+'PK kalkyl'!$AE$18+(('PK kalkyl'!$K$6-'PK kalkyl'!$AE$12)*'PK kalkyl'!$AE$13),1)) ->  | X12: =IF(('PK kalkyl'!$AE$37*I12)+'PK kalkyl'!$AE$38+(('PK kalkyl'!$K$6-'PK kalkyl'!$AE$32)*'PK kalkyl'!$AE$33)<1,0,ROUND(('PK kalkyl'!$AE$37*I12)+'PK kalkyl'!$AE$38+(('PK kalkyl'!$K$6-'PK kalkyl'!$AE$32)*'PK kalkyl'!$AE$33),1)) ->  | AA12: =IF((Y12<W12),Y12-W12,0)*-'PK kalkyl'!$AE$15 ->  | AB12: =IF((Z12<X12),Z12-X12,0)*-'PK kalkyl'!$AE$35 ->  | AC12: =+AA12*Växtföljd!$G$18+AB12*Växtföljd!$G$18 -> 
A13: =IF(Import!A13="","",Import!A13) ->  | B13: =IF(Import!B13="","",Import!B13) ->  | C13: =IF(Import!C13="","",Import!C13) ->  | D13: =IF(Import!D13="","",Import!D13) ->  | E13: =IF(Import!E13="","",Import!E13) ->  | F13: =IF(Import!F13="","",Import!F13) ->  | G13: =IF(Import!G13="","",Import!G13) ->  | H13: =IF(Import!H13="","",Import!H13) ->  | I13: =IF(Import!J13="","",Import!J13) ->  | J13: =IF(Import!K13="","",Import!K13) ->  | K13: =IF(Import!L13="","",Import!L13) ->  | L13: =IF(Import!M13="","",Import!M13) ->  | M13: =IF(Import!P13="","",Import!P13) ->  | N13: =IF(Import!Q13="","",Import!Q13) ->  | O13: =IF(Import!R13="","",Import!R13) ->  | P13: 322.7978569 | Q13: 3.440949046 | R13: 27.35124037 | S13: 27.35124037 | T13: =IF(Q13="","",(-0.00011*POWER(S13,2))+(0.01417*S13)+((0.00057*POWER(Q13,2))-(0.0529*Q13)+6.2018)+Kalkkalkyl!$AJ$2) -> 6.831799807 | W13: =IF(('PK kalkyl'!$AE$17*H13)+'PK kalkyl'!$AE$18+(('PK kalkyl'!$K$6-'PK kalkyl'!$AE$12)*'PK kalkyl'!$AE$13)<1,0,ROUND(('PK kalkyl'!$AE$17*H13)+'PK kalkyl'!$AE$18+(('PK kalkyl'!$K$6-'PK kalkyl'!$AE$12)*'PK kalkyl'!$AE$13),1)) ->  | X13: =IF(('PK kalkyl'!$AE$37*I13)+'PK kalkyl'!$AE$38+(('PK kalkyl'!$K$6-'PK kalkyl'!$AE$32)*'PK kalkyl'!$AE$33)<1,0,ROUND(('PK kalkyl'!$AE$37*I13)+'PK kalkyl'!$AE$38+(('PK kalkyl'!$K$6-'PK kalkyl'!$AE$32)*'PK kalkyl'!$AE$33),1)) ->  | AA13: =IF((Y13<W13),Y13-W13,0)*-'PK kalkyl'!$AE$15 ->  | AB13: =IF((Z13<X13),Z13-X13,0)*-'PK kalkyl'!$AE$35 ->  | AC13: =+AA13*Växtföljd!$G$18+AB13*Växtföljd!$G$18 -> 
A14: =IF(Import!A14="","",Import!A14) ->  | B14: =IF(Import!B14="","",Import!B14) ->  | C14: =IF(Import!C14="","",Import!C14) ->  | D14: =IF(Import!D14="","",Import!D14) ->  | E14: =IF(Import!E14="","",Import!E14) ->  | F14: =IF(Import!F14="","",Import!F14) ->  | G14: =IF(Import!G14="","",Import!G14) ->  | H14: =IF(Import!H14="","",Import!H14) ->  | I14: =IF(Import!J14="","",Import!J14) ->  | J14: =IF(Import!K14="","",Import!K14) ->  | K14: =IF(Import!L14="","",Import!L14) ->  | L14: =IF(Import!M14="","",Import!M14) ->  | M14: =IF(Import!P14="","",Import!P14) ->  | N14: =IF(Import!Q14="","",Import!Q14) ->  | O14: =IF(Import!R14="","",Import!R14) ->  | P14: 310 | Q14: 3.7 | R14: 27 | S14: 27 | T14: =IF(Q14="","",(-0.00011*POWER(S14,2))+(0.01417*S14)+((0.00057*POWER(Q14,2))-(0.0529*Q14)+6.2018)+Kalkkalkyl!$AJ$2) -> 6.8162733 | W14: =IF(('PK kalkyl'!$AE$17*H14)+'PK kalkyl'!$AE$18+(('PK kalkyl'!$K$6-'PK kalkyl'!$AE$12)*'PK kalkyl'!$AE$13)<1,0,ROUND(('PK kalkyl'!$AE$17*H14)+'PK kalkyl'!$AE$18+(('PK kalkyl'!$K$6-'PK kalkyl'!$AE$12)*'PK kalkyl'!$AE$13),1)) ->  | X14: =IF(('PK kalkyl'!$AE$37*I14)+'PK kalkyl'!$AE$38+(('PK kalkyl'!$K$6-'PK kalkyl'!$AE$32)*'PK kalkyl'!$AE$33)<1,0,ROUND(('PK kalkyl'!$AE$37*I14)+'PK kalkyl'!$AE$38+(('PK kalkyl'!$K$6-'PK kalkyl'!$AE$32)*'PK kalkyl'!$AE$33),1)) ->  | AA14: =IF((Y14<W14),Y14-W14,0)*-'PK kalkyl'!$AE$15 ->  | AB14: =IF((Z14<X14),Z14-X14,0)*-'PK kalkyl'!$AE$35 ->  | AC14: =+AA14*Växtföljd!$G$18+AB14*Växtföljd!$G$18 -> 
A15: =IF(Import!A15="","",Import!A15) ->  | B15: =IF(Import!B15="","",Import!B15) ->  | C15: =IF(Import!C15="","",Import!C15) ->  | D15: =IF(Import!D15="","",Import!D15) ->  | E15: =IF(Import!E15="","",Import!E15) ->  | F15: =IF(Import!F15="","",Import!F15) ->  | G15: =IF(Import!G15="","",Import!G15) ->  | H15: =IF(Import!H15="","",Import!H15) ->  | I15: =IF(Import!J15="","",Import!J15) ->  | J15: =IF(Import!K15="","",Import!K15) ->  | K15: =IF(Import!L15="","",Import!L15) ->  | L15: =IF(Import!M15="","",Import!M15) ->  | M15: =IF(Import!P15="","",Import!P15) ->  | N15: =IF(Import!Q15="","",Import!Q15) ->  | O15: =IF(Import!R15="","",Import!R15) ->  | P15: 424.781545 | Q15: 3.268093684 | R15: 30.36509457 | S15: 30.36509457 | T15: =IF(Q15="","",(-0.00011*POWER(S15,2))+(0.01417*S15)+((0.00057*POWER(Q15,2))-(0.0529*Q15)+6.2018)+Kalkkalkyl!$AJ$2) -> 6.863854796 | W15: =IF(('PK kalkyl'!$AE$17*H15)+'PK kalkyl'!$AE$18+(('PK kalkyl'!$K$6-'PK kalkyl'!$AE$12)*'PK kalkyl'!$AE$13)<1,0,ROUND(('PK kalkyl'!$AE$17*H15)+'PK kalkyl'!$AE$18+(('PK kalkyl'!$K$6-'PK kalkyl'!$AE$12)*'PK kalkyl'!$AE$13),1)) ->  | X15: =IF(('PK kalkyl'!$AE$37*I15)+'PK kalkyl'!$AE$38+(('PK kalkyl'!$K$6-'PK kalkyl'!$AE$32)*'PK kalkyl'!$AE$33)<1,0,ROUND(('PK kalkyl'!$AE$37*I15)+'PK kalkyl'!$AE$38+(('PK kalkyl'!$K$6-'PK kalkyl'!$AE$32)*'PK kalkyl'!$AE$33),1)) ->  | AA15: =IF((Y15<W15),Y15-W15,0)*-'PK kalkyl'!$AE$15 ->  | AB15: =IF((Z15<X15),Z15-X15,0)*-'PK kalkyl'!$AE$35 ->  | AC15: =+AA15*Växtföljd!$G$18+AB15*Växtföljd!$G$18 -> 
A16: =IF(Import!A16="","",Import!A16) ->  | B16: =IF(Import!B16="","",Import!B16) ->  | C16: =IF(Import!C16="","",Import!C16) ->  | D16: =IF(Import!D16="","",Import!D16) ->  | E16: =IF(Import!E16="","",Import!E16) ->  | F16: =IF(Import!F16="","",Import!F16) ->  | G16: =IF(Import!G16="","",Import!G16) ->  | H16: =IF(Import!H16="","",Import!H16) ->  | I16: =IF(Import!J16="","",Import!J16) ->  | J16: =IF(Import!K16="","",Import!K16) ->  | K16: =IF(Import!L16="","",Import!L16) ->  | L16: =IF(Import!M16="","",Import!M16) ->  | M16: =IF(Import!P16="","",Import!P16) ->  | N16: =IF(Import!Q16="","",Import!Q16) ->  | O16: =IF(Import!R16="","",Import!R16) ->  | P16: 550 | Q16: 2.7 | R16: 35 | S16: 35 | T16: =IF(Q16="","",(-0.00011*POWER(S16,2))+(0.01417*S16)+((0.00057*POWER(Q16,2))-(0.0529*Q16)+6.2018)+Kalkkalkyl!$AJ$2) -> 6.9243253 | W16: =IF(('PK kalkyl'!$AE$17*H16)+'PK kalkyl'!$AE$18+(('PK kalkyl'!$K$6-'PK kalkyl'!$AE$12)*'PK kalkyl'!$AE$13)<1,0,ROUND(('PK kalkyl'!$AE$17*H16)+'PK kalkyl'!$AE$18+(('PK kalkyl'!$K$6-'PK kalkyl'!$AE$12)*'PK kalkyl'!$AE$13),1)) ->  | X16: =IF(('PK kalkyl'!$AE$37*I16)+'PK kalkyl'!$AE$38+(('PK kalkyl'!$K$6-'PK kalkyl'!$AE$32)*'PK kalkyl'!$AE$33)<1,0,ROUND(('PK kalkyl'!$AE$37*I16)+'PK kalkyl'!$AE$38+(('PK kalkyl'!$K$6-'PK kalkyl'!$AE$32)*'PK kalkyl'!$AE$33),1)) ->  | AA16: =IF((Y16<W16),Y16-W16,0)*-'PK kalkyl'!$AE$15 ->  | AB16: =IF((Z16<X16),Z16-X16,0)*-'PK kalkyl'!$AE$35 ->  | AC16: =+AA16*Växtföljd!$G$18+AB16*Växtföljd!$G$18 -> 
A17: =IF(Import!A17="","",Import!A17) ->  | B17: =IF(Import!B17="","",Import!B17) ->  | C17: =IF(Import!C17="","",Import!C17) ->  | D17: =IF(Import!D17="","",Import!D17) ->  | E17: =IF(Import!E17="","",Import!E17) ->  | F17: =IF(Import!F17="","",Import!F17) ->  | G17: =IF(Import!G17="","",Import!G17) ->  | H17: =IF(Import!H17="","",Import!H17) ->  | I17: =IF(Import!J17="","",Import!J17) ->  | J17: =IF(Import!K17="","",Import!K17) ->  | K17: =IF(Import!L17="","",Import!L17) ->  | L17: =IF(Import!M17="","",Import!M17) ->  | M17: =IF(Import!P17="","",Import!P17) ->  | N17: =IF(Import!Q17="","",Import!Q17) ->  | O17: =IF(Import!R17="","",Import!R17) ->  | P17: 323.1547534 | Q17: 3.50156812 | R17: 29.40387594 | S17: 29.40387594 | T17: =IF(Q17="","",(-0.00011*POWER(S17,2))+(0.01417*S17)+((0.00057*POWER(Q17,2))-(0.0529*Q17)+6.2018)+Kalkkalkyl!$AJ$2) -> 6.845104055 | W17: =IF(('PK kalkyl'!$AE$17*H17)+'PK kalkyl'!$AE$18+(('PK kalkyl'!$K$6-'PK kalkyl'!$AE$12)*'PK kalkyl'!$AE$13)<1,0,ROUND(('PK kalkyl'!$AE$17*H17)+'PK kalkyl'!$AE$18+(('PK kalkyl'!$K$6-'PK kalkyl'!$AE$12)*'PK kalkyl'!$AE$13),1)) ->  | X17: =IF(('PK kalkyl'!$AE$37*I17)+'PK kalkyl'!$AE$38+(('PK kalkyl'!$K$6-'PK kalkyl'!$AE$32)*'PK kalkyl'!$AE$33)<1,0,ROUND(('PK kalkyl'!$AE$37*I17)+'PK kalkyl'!$AE$38+(('PK kalkyl'!$K$6-'PK kalkyl'!$AE$32)*'PK kalkyl'!$AE$33),1)) ->  | AA17: =IF((Y17<W17),Y17-W17,0)*-'PK kalkyl'!$AE$15 ->  | AB17: =IF((Z17<X17),Z17-X17,0)*-'PK kalkyl'!$AE$35 ->  | AC17: =+AA17*Växtföljd!$G$18+AB17*Växtföljd!$G$18 -> 
A18: =IF(Import!A18="","",Import!A18) ->  | B18: =IF(Import!B18="","",Import!B18) ->  | C18: =IF(Import!C18="","",Import!C18) ->  | D18: =IF(Import!D18="","",Import!D18) ->  | E18: =IF(Import!E18="","",Import!E18) ->  | F18: =IF(Import!F18="","",Import!F18) ->  | G18: =IF(Import!G18="","",Import!G18) ->  | H18: =IF(Import!H18="","",Import!H18) ->  | I18: =IF(Import!J18="","",Import!J18) ->  | J18: =IF(Import!K18="","",Import!K18) ->  | K18: =IF(Import!L18="","",Import!L18) ->  | L18: =IF(Import!M18="","",Import!M18) ->  | M18: =IF(Import!P18="","",Import!P18) ->  | N18: =IF(Import!Q18="","",Import!Q18) ->  | O18: =IF(Import!R18="","",Import!R18) ->  | P18: 330 | Q18: 3.9 | R18: 27 | S18: 27 | T18: =IF(Q18="","",(-0.00011*POWER(S18,2))+(0.01417*S18)+((0.00057*POWER(Q18,2))-(0.0529*Q18)+6.2018)+Kalkkalkyl!$AJ$2) -> 6.8065597 | W18: =IF(('PK kalkyl'!$AE$17*H18)+'PK kalkyl'!$AE$18+(('PK kalkyl'!$K$6-'PK kalkyl'!$AE$12)*'PK kalkyl'!$AE$13)<1,0,ROUND(('PK kalkyl'!$AE$17*H18)+'PK kalkyl'!$AE$18+(('PK kalkyl'!$K$6-'PK kalkyl'!$AE$12)*'PK kalkyl'!$AE$13),1)) ->  | X18: =IF(('PK kalkyl'!$AE$37*I18)+'PK kalkyl'!$AE$38+(('PK kalkyl'!$K$6-'PK kalkyl'!$AE$32)*'PK kalkyl'!$AE$33)<1,0,ROUND(('PK kalkyl'!$AE$37*I18)+'PK kalkyl'!$AE$38+(('PK kalkyl'!$K$6-'PK kalkyl'!$AE$32)*'PK kalkyl'!$AE$33),1)) ->  | AA18: =IF((Y18<W18),Y18-W18,0)*-'PK kalkyl'!$AE$15 ->  | AB18: =IF((Z18<X18),Z18-X18,0)*-'PK kalkyl'!$AE$35 ->  | AC18: =+AA18*Växtföljd!$G$18+AB18*Växtföljd!$G$18 -> 
A19: =IF(Import!A19="","",Import!A19) ->  | B19: =IF(Import!B19="","",Import!B19) ->  | C19: =IF(Import!C19="","",Import!C19) ->  | D19: =IF(Import!D19="","",Import!D19) ->  | E19: =IF(Import!E19="","",Import!E19) ->  | F19: =IF(Import!F19="","",Import!F19) ->  | G19: =IF(Import!G19="","",Import!G19) ->  | H19: =IF(Import!H19="","",Import!H19) ->  | I19: =IF(Import!J19="","",Import!J19) ->  | J19: =IF(Import!K19="","",Import!K19) ->  | K19: =IF(Import!L19="","",Import!L19) ->  | L19: =IF(Import!M19="","",Import!M19) ->  | M19: =IF(Import!P19="","",Import!P19) ->  | N19: =IF(Import!Q19="","",Import!Q19) ->  | O19: =IF(Import!R19="","",Import!R19) ->  | P19: 325.2568312 | Q19: 3.903277423 | R19: 26.86346066 | S19: 26.86346066 | T19: =IF(Q19="","",(-0.00011*POWER(S19,2))+(0.01417*S19)+((0.00057*POWER(Q19,2))-(0.0529*Q19)+6.2018)+Kalkkalkyl!$AJ$2) -> 6.805275132 | W19: =IF(('PK kalkyl'!$AE$17*H19)+'PK kalkyl'!$AE$18+(('PK kalkyl'!$K$6-'PK kalkyl'!$AE$12)*'PK kalkyl'!$AE$13)<1,0,ROUND(('PK kalkyl'!$AE$17*H19)+'PK kalkyl'!$AE$18+(('PK kalkyl'!$K$6-'PK kalkyl'!$AE$12)*'PK kalkyl'!$AE$13),1)) ->  | X19: =IF(('PK kalkyl'!$AE$37*I19)+'PK kalkyl'!$AE$38+(('PK kalkyl'!$K$6-'PK kalkyl'!$AE$32)*'PK kalkyl'!$AE$33)<1,0,ROUND(('PK kalkyl'!$AE$37*I19)+'PK kalkyl'!$AE$38+(('PK kalkyl'!$K$6-'PK kalkyl'!$AE$32)*'PK kalkyl'!$AE$33),1)) ->  | AA19: =IF((Y19<W19),Y19-W19,0)*-'PK kalkyl'!$AE$15 ->  | AB19: =IF((Z19<X19),Z19-X19,0)*-'PK kalkyl'!$AE$35 ->  | AC19: =+AA19*Växtföljd!$G$18+AB19*Växtföljd!$G$18 -> 
A20: =IF(Import!A20="","",Import!A20) ->  | B20: =IF(Import!B20="","",Import!B20) ->  | C20: =IF(Import!C20="","",Import!C20) ->  | D20: =IF(Import!D20="","",Import!D20) ->  | E20: =IF(Import!E20="","",Import!E20) ->  | F20: =IF(Import!F20="","",Import!F20) ->  | G20: =IF(Import!G20="","",Import!G20) ->  | H20: =IF(Import!H20="","",Import!H20) ->  | I20: =IF(Import!J20="","",Import!J20) ->  | J20: =IF(Import!K20="","",Import!K20) ->  | K20: =IF(Import!L20="","",Import!L20) ->  | L20: =IF(Import!M20="","",Import!M20) ->  | M20: =IF(Import!P20="","",Import!P20) ->  | N20: =IF(Import!Q20="","",Import!Q20) ->  | O20: =IF(Import!R20="","",Import!R20) ->  | P20: 280 | Q20: 4.9 | R20: 24 | S20: 24 | T20: =IF(Q20="","",(-0.00011*POWER(S20,2))+(0.01417*S20)+((0.00057*POWER(Q20,2))-(0.0529*Q20)+6.2018)+Kalkkalkyl!$AJ$2) -> 6.7329957 | W20: =IF(('PK kalkyl'!$AE$17*H20)+'PK kalkyl'!$AE$18+(('PK kalkyl'!$K$6-'PK kalkyl'!$AE$12)*'PK kalkyl'!$AE$13)<1,0,ROUND(('PK kalkyl'!$AE$17*H20)+'PK kalkyl'!$AE$18+(('PK kalkyl'!$K$6-'PK kalkyl'!$AE$12)*'PK kalkyl'!$AE$13),1)) ->  | X20: =IF(('PK kalkyl'!$AE$37*I20)+'PK kalkyl'!$AE$38+(('PK kalkyl'!$K$6-'PK kalkyl'!$AE$32)*'PK kalkyl'!$AE$33)<1,0,ROUND(('PK kalkyl'!$AE$37*I20)+'PK kalkyl'!$AE$38+(('PK kalkyl'!$K$6-'PK kalkyl'!$AE$32)*'PK kalkyl'!$AE$33),1)) ->  | AA20: =IF((Y20<W20),Y20-W20,0)*-'PK kalkyl'!$AE$15 ->  | AB20: =IF((Z20<X20),Z20-X20,0)*-'PK kalkyl'!$AE$35 ->  | AC20: =+AA20*Växtföljd!$G$18+AB20*Växtföljd!$G$18 -> 
A21: =IF(Import!A21="","",Import!A21) ->  | B21: =IF(Import!B21="","",Import!B21) ->  | C21: =IF(Import!C21="","",Import!C21) ->  | D21: =IF(Import!D21="","",Import!D21) ->  | E21: =IF(Import!E21="","",Import!E21) ->  | F21: =IF(Import!F21="","",Import!F21) ->  | G21: =IF(Import!G21="","",Import!G21) ->  | H21: =IF(Import!H21="","",Import!H21) ->  | I21: =IF(Import!J21="","",Import!J21) ->  | J21: =IF(Import!K21="","",Import!K21) ->  | K21: =IF(Import!L21="","",Import!L21) ->  | L21: =IF(Import!M21="","",Import!M21) ->  | M21: =IF(Import!P21="","",Import!P21) ->  | N21: =IF(Import!Q21="","",Import!Q21) ->  | O21: =IF(Import!R21="","",Import!R21) ->  | P21: 375.5051088 | Q21: 4.099661408 | R21: 24.75284642 | S21: 24.75284642 | T21: =IF(Q21="","",(-0.00011*POWER(S21,2))+(0.01417*S21)+((0.00057*POWER(Q21,2))-(0.0529*Q21)+6.2018)+Kalkkalkyl!$AJ$2) -> 6.777858488 | W21: =IF(('PK kalkyl'!$AE$17*H21)+'PK kalkyl'!$AE$18+(('PK kalkyl'!$K$6-'PK kalkyl'!$AE$12)*'PK kalkyl'!$AE$13)<1,0,ROUND(('PK kalkyl'!$AE$17*H21)+'PK kalkyl'!$AE$18+(('PK kalkyl'!$K$6-'PK kalkyl'!$AE$12)*'PK kalkyl'!$AE$13),1)) ->  | X21: =IF(('PK kalkyl'!$AE$37*I21)+'PK kalkyl'!$AE$38+(('PK kalkyl'!$K$6-'PK kalkyl'!$AE$32)*'PK kalkyl'!$AE$33)<1,0,ROUND(('PK kalkyl'!$AE$37*I21)+'PK kalkyl'!$AE$38+(('PK kalkyl'!$K$6-'PK kalkyl'!$AE$32)*'PK kalkyl'!$AE$33),1)) ->  | AA21: =IF((Y21<W21),Y21-W21,0)*-'PK kalkyl'!$AE$15 ->  | AB21: =IF((Z21<X21),Z21-X21,0)*-'PK kalkyl'!$AE$35 ->  | AC21: =+AA21*Växtföljd!$G$18+AB21*Växtföljd!$G$18 -> 
A22: =IF(Import!A22="","",Import!A22) ->  | B22: =IF(Import!B22="","",Import!B22) ->  | C22: =IF(Import!C22="","",Import!C22) ->  | D22: =IF(Import!D22="","",Import!D22) ->  | E22: =IF(Import!E22="","",Import!E22) ->  | F22: =IF(Import!F22="","",Import!F22) ->  | G22: =IF(Import!G22="","",Import!G22) ->  | H22: =IF(Import!H22="","",Import!H22) ->  | I22: =IF(Import!J22="","",Import!J22) ->  | J22: =IF(Import!K22="","",Import!K22) ->  | K22: =IF(Import!L22="","",Import!L22) ->  | L22: =IF(Import!M22="","",Import!M22) ->  | M22: =IF(Import!P22="","",Import!P22) ->  | N22: =IF(Import!Q22="","",Import!Q22) ->  | O22: =IF(Import!R22="","",Import!R22) ->  | P22: 370 | Q22: 4 | R22: 23 | S22: 23 | T22: =IF(Q22="","",(-0.00011*POWER(S22,2))+(0.01417*S22)+((0.00057*POWER(Q22,2))-(0.0529*Q22)+6.2018)+Kalkkalkyl!$AJ$2) -> 6.76704 | W22: =IF(('PK kalkyl'!$AE$17*H22)+'PK kalkyl'!$AE$18+(('PK kalkyl'!$K$6-'PK kalkyl'!$AE$12)*'PK kalkyl'!$AE$13)<1,0,ROUND(('PK kalkyl'!$AE$17*H22)+'PK kalkyl'!$AE$18+(('PK kalkyl'!$K$6-'PK kalkyl'!$AE$12)*'PK kalkyl'!$AE$13),1)) ->  | X22: =IF(('PK kalkyl'!$AE$37*I22)+'PK kalkyl'!$AE$38+(('PK kalkyl'!$K$6-'PK kalkyl'!$AE$32)*'PK kalkyl'!$AE$33)<1,0,ROUND(('PK kalkyl'!$AE$37*I22)+'PK kalkyl'!$AE$38+(('PK kalkyl'!$K$6-'PK kalkyl'!$AE$32)*'PK kalkyl'!$AE$33),1)) ->  | AA22: =IF((Y22<W22),Y22-W22,0)*-'PK kalkyl'!$AE$15 ->  | AB22: =IF((Z22<X22),Z22-X22,0)*-'PK kalkyl'!$AE$35 ->  | AC22: =+AA22*Växtföljd!$G$18+AB22*Växtföljd!$G$18 -> 
A23: =IF(Import!A23="","",Import!A23) ->  | B23: =IF(Import!B23="","",Import!B23) ->  | C23: =IF(Import!C23="","",Import!C23) ->  | D23: =IF(Import!D23="","",Import!D23) ->  | E23: =IF(Import!E23="","",Import!E23) ->  | F23: =IF(Import!F23="","",Import!F23) ->  | G23: =IF(Import!G23="","",Import!G23) ->  | H23: =IF(Import!H23="","",Import!H23) ->  | I23: =IF(Import!J23="","",Import!J23) ->  | J23: =IF(Import!K23="","",Import!K23) ->  | K23: =IF(Import!L23="","",Import!L23) ->  | L23: =IF(Import!M23="","",Import!M23) ->  | M23: =IF(Import!P23="","",Import!P23) ->  | N23: =IF(Import!Q23="","",Import!Q23) ->  | O23: =IF(Import!R23="","",Import!R23) ->  | P23: 384.5538614 | Q23: 3.895948076 | R23: 28.46605407 | S23: 28.46605407 | T23: =IF(Q23="","",(-0.00011*POWER(S23,2))+(0.01417*S23)+((0.00057*POWER(Q23,2))-(0.0529*Q23)+6.2018)+Kalkkalkyl!$AJ$2) -> 6.818585242 | W23: =IF(('PK kalkyl'!$AE$17*H23)+'PK kalkyl'!$AE$18+(('PK kalkyl'!$K$6-'PK kalkyl'!$AE$12)*'PK kalkyl'!$AE$13)<1,0,ROUND(('PK kalkyl'!$AE$17*H23)+'PK kalkyl'!$AE$18+(('PK kalkyl'!$K$6-'PK kalkyl'!$AE$12)*'PK kalkyl'!$AE$13),1)) ->  | X23: =IF(('PK kalkyl'!$AE$37*I23)+'PK kalkyl'!$AE$38+(('PK kalkyl'!$K$6-'PK kalkyl'!$AE$32)*'PK kalkyl'!$AE$33)<1,0,ROUND(('PK kalkyl'!$AE$37*I23)+'PK kalkyl'!$AE$38+(('PK kalkyl'!$K$6-'PK kalkyl'!$AE$32)*'PK kalkyl'!$AE$33),1)) ->  | AA23: =IF((Y23<W23),Y23-W23,0)*-'PK kalkyl'!$AE$15 ->  | AB23: =IF((Z23<X23),Z23-X23,0)*-'PK kalkyl'!$AE$35 ->  | AC23: =+AA23*Växtföljd!$G$18+AB23*Växtföljd!$G$18 -> 
A24: =IF(Import!A24="","",Import!A24) ->  | B24: =IF(Import!B24="","",Import!B24) ->  | C24: =IF(Import!C24="","",Import!C24) ->  | D24: =IF(Import!D24="","",Import!D24) ->  | E24: =IF(Import!E24="","",Import!E24) ->  | F24: =IF(Import!F24="","",Import!F24) ->  | G24: =IF(Import!G24="","",Import!G24) ->  | H24: =IF(Import!H24="","",Import!H24) ->  | I24: =IF(Import!J24="","",Import!J24) ->  | J24: =IF(Import!K24="","",Import!K24) ->  | K24: =IF(Import!L24="","",Import!L24) ->  | L24: =IF(Import!M24="","",Import!M24) ->  | M24: =IF(Import!P24="","",Import!P24) ->  | N24: =IF(Import!Q24="","",Import!Q24) ->  | O24: =IF(Import!R24="","",Import!R24) ->  | P24: 240 | Q24: 7.3 | R24: 29 | S24: 29 | T24: =IF(Q24="","",(-0.00011*POWER(S24,2))+(0.01417*S24)+((0.00057*POWER(Q24,2))-(0.0529*Q24)+6.2018)+Kalkkalkyl!$AJ$2) -> 6.6644253 | W24: =IF(('PK kalkyl'!$AE$17*H24)+'PK kalkyl'!$AE$18+(('PK kalkyl'!$K$6-'PK kalkyl'!$AE$12)*'PK kalkyl'!$AE$13)<1,0,ROUND(('PK kalkyl'!$AE$17*H24)+'PK kalkyl'!$AE$18+(('PK kalkyl'!$K$6-'PK kalkyl'!$AE$12)*'PK kalkyl'!$AE$13),1)) ->  | X24: =IF(('PK kalkyl'!$AE$37*I24)+'PK kalkyl'!$AE$38+(('PK kalkyl'!$K$6-'PK kalkyl'!$AE$32)*'PK kalkyl'!$AE$33)<1,0,ROUND(('PK kalkyl'!$AE$37*I24)+'PK kalkyl'!$AE$38+(('PK kalkyl'!$K$6-'PK kalkyl'!$AE$32)*'PK kalkyl'!$AE$33),1)) ->  | AA24: =IF((Y24<W24),Y24-W24,0)*-'PK kalkyl'!$AE$15 ->  | AB24: =IF((Z24<X24),Z24-X24,0)*-'PK kalkyl'!$AE$35 ->  | AC24: =+AA24*Växtföljd!$G$18+AB24*Växtföljd!$G$18 -> 
A25: =IF(Import!A25="","",Import!A25) ->  | B25: =IF(Import!B25="","",Import!B25) ->  | C25: =IF(Import!C25="","",Import!C25) ->  | D25: =IF(Import!D25="","",Import!D25) ->  | E25: =IF(Import!E25="","",Import!E25) ->  | F25: =IF(Import!F25="","",Import!F25) ->  | G25: =IF(Import!G25="","",Import!G25) ->  | H25: =IF(Import!H25="","",Import!H25) ->  | I25: =IF(Import!J25="","",Import!J25) ->  | J25: =IF(Import!K25="","",Import!K25) ->  | K25: =IF(Import!L25="","",Import!L25) ->  | L25: =IF(Import!M25="","",Import!M25) ->  | M25: =IF(Import!P25="","",Import!P25) ->  | N25: =IF(Import!Q25="","",Import!Q25) ->  | O25: =IF(Import!R25="","",Import!R25) ->  | P25: 218.8077808 | Q25: 6.322354532 | R25: 27.79060856 | S25: 27.79060856 | T25: =IF(Q25="","",(-0.00011*POWER(S25,2))+(0.01417*S25)+((0.00057*POWER(Q25,2))-(0.0529*Q25)+6.2018)+Kalkkalkyl!$AJ$2) -> 6.698969532 | W25: =IF(('PK kalkyl'!$AE$17*H25)+'PK kalkyl'!$AE$18+(('PK kalkyl'!$K$6-'PK kalkyl'!$AE$12)*'PK kalkyl'!$AE$13)<1,0,ROUND(('PK kalkyl'!$AE$17*H25)+'PK kalkyl'!$AE$18+(('PK kalkyl'!$K$6-'PK kalkyl'!$AE$12)*'PK kalkyl'!$AE$13),1)) ->  | X25: =IF(('PK kalkyl'!$AE$37*I25)+'PK kalkyl'!$AE$38+(('PK kalkyl'!$K$6-'PK kalkyl'!$AE$32)*'PK kalkyl'!$AE$33)<1,0,ROUND(('PK kalkyl'!$AE$37*I25)+'PK kalkyl'!$AE$38+(('PK kalkyl'!$K$6-'PK kalkyl'!$AE$32)*'PK kalkyl'!$AE$33),1)) ->  | AA25: =IF((Y25<W25),Y25-W25,0)*-'PK kalkyl'!$AE$15 ->  | AB25: =IF((Z25<X25),Z25-X25,0)*-'PK kalkyl'!$AE$35 ->  | AC25: =+AA25*Växtföljd!$G$18+AB25*Växtföljd!$G$18 -> 
A26: =IF(Import!A26="","",Import!A26) ->  | B26: =IF(Import!B26="","",Import!B26) ->  | C26: =IF(Import!C26="","",Import!C26) ->  | D26: =IF(Import!D26="","",Import!D26) ->  | E26: =IF(Import!E26="","",Import!E26) ->  | F26: =IF(Import!F26="","",Import!F26) ->  | G26: =IF(Import!G26="","",Import!G26) ->  | H26: =IF(Import!H26="","",Import!H26) ->  | I26: =IF(Import!J26="","",Import!J26) ->  | J26: =IF(Import!K26="","",Import!K26) ->  | K26: =IF(Import!L26="","",Import!L26) ->  | L26: =IF(Import!M26="","",Import!M26) ->  | M26: =IF(Import!P26="","",Import!P26) ->  | N26: =IF(Import!Q26="","",Import!Q26) ->  | O26: =IF(Import!R26="","",Import!R26) ->  | P26: 200 | Q26: 5.7 | R26: 26 | S26: 26 | T26: =IF(Q26="","",(-0.00011*POWER(S26,2))+(0.01417*S26)+((0.00057*POWER(Q26,2))-(0.0529*Q26)+6.2018)+Kalkkalkyl!$AJ$2) -> 6.7128493 | W26: =IF(('PK kalkyl'!$AE$17*H26)+'PK kalkyl'!$AE$18+(('PK kalkyl'!$K$6-'PK kalkyl'!$AE$12)*'PK kalkyl'!$AE$13)<1,0,ROUND(('PK kalkyl'!$AE$17*H26)+'PK kalkyl'!$AE$18+(('PK kalkyl'!$K$6-'PK kalkyl'!$AE$12)*'PK kalkyl'!$AE$13),1)) ->  | X26: =IF(('PK kalkyl'!$AE$37*I26)+'PK kalkyl'!$AE$38+(('PK kalkyl'!$K$6-'PK kalkyl'!$AE$32)*'PK kalkyl'!$AE$33)<1,0,ROUND(('PK kalkyl'!$AE$37*I26)+'PK kalkyl'!$AE$38+(('PK kalkyl'!$K$6-'PK kalkyl'!$AE$32)*'PK kalkyl'!$AE$33),1)) ->  | AA26: =IF((Y26<W26),Y26-W26,0)*-'PK kalkyl'!$AE$15 ->  | AB26: =IF((Z26<X26),Z26-X26,0)*-'PK kalkyl'!$AE$35 ->  | AC26: =+AA26*Växtföljd!$G$18+AB26*Växtföljd!$G$18 -> 
A27: =IF(Import!A27="","",Import!A27) ->  | B27: =IF(Import!B27="","",Import!B27) ->  | C27: =IF(Import!C27="","",Import!C27) ->  | D27: =IF(Import!D27="","",Import!D27) ->  | E27: =IF(Import!E27="","",Import!E27) ->  | F27: =IF(Import!F27="","",Import!F27) ->  | G27: =IF(Import!G27="","",Import!G27) ->  | H27: =IF(Import!H27="","",Import!H27) ->  | I27: =IF(Import!J27="","",Import!J27) ->  | J27: =IF(Import!K27="","",Import!K27) ->  | K27: =IF(Import!L27="","",Import!L27) ->  | L27: =IF(Import!M27="","",Import!M27) ->  | M27: =IF(Import!P27="","",Import!P27) ->  | N27: =IF(Import!Q27="","",Import!Q27) ->  | O27: =IF(Import!R27="","",Import!R27) ->  | P27: 194.67175 | Q27: 5.538643561 | R27: 25.66672452 | S27: 25.66672452 | T27: =IF(Q27="","",(-0.00011*POWER(S27,2))+(0.01417*S27)+((0.00057*POWER(Q27,2))-(0.0529*Q27)+6.2018)+Kalkkalkyl!$AJ$2) -> 6.717523006 | W27: =IF(('PK kalkyl'!$AE$17*H27)+'PK kalkyl'!$AE$18+(('PK kalkyl'!$K$6-'PK kalkyl'!$AE$12)*'PK kalkyl'!$AE$13)<1,0,ROUND(('PK kalkyl'!$AE$17*H27)+'PK kalkyl'!$AE$18+(('PK kalkyl'!$K$6-'PK kalkyl'!$AE$12)*'PK kalkyl'!$AE$13),1)) ->  | X27: =IF(('PK kalkyl'!$AE$37*I27)+'PK kalkyl'!$AE$38+(('PK kalkyl'!$K$6-'PK kalkyl'!$AE$32)*'PK kalkyl'!$AE$33)<1,0,ROUND(('PK kalkyl'!$AE$37*I27)+'PK kalkyl'!$AE$38+(('PK kalkyl'!$K$6-'PK kalkyl'!$AE$32)*'PK kalkyl'!$AE$33),1)) ->  | AA27: =IF((Y27<W27),Y27-W27,0)*-'PK kalkyl'!$AE$15 ->  | AB27: =IF((Z27<X27),Z27-X27,0)*-'PK kalkyl'!$AE$35 ->  | AC27: =+AA27*Växtföljd!$G$18+AB27*Växtföljd!$G$18 -> 
A28: =IF(Import!A28="","",Import!A28) ->  | B28: =IF(Import!B28="","",Import!B28) ->  | C28: =IF(Import!C28="","",Import!C28) ->  | D28: =IF(Import!D28="","",Import!D28) ->  | E28: =IF(Import!E28="","",Import!E28) ->  | F28: =IF(Import!F28="","",Import!F28) ->  | G28: =IF(Import!G28="","",Import!G28) ->  | H28: =IF(Import!H28="","",Import!H28) ->  | I28: =IF(Import!J28="","",Import!J28) ->  | J28: =IF(Import!K28="","",Import!K28) ->  | K28: =IF(Import!L28="","",Import!L28) ->  | L28: =IF(Import!M28="","",Import!M28) ->  | M28: =IF(Import!P28="","",Import!P28) ->  | N28: =IF(Import!Q28="","",Import!Q28) ->  | O28: =IF(Import!R28="","",Import!R28) ->  | P28: 190 | Q28: 5.5 | R28: 25 | S28: 25 | T28: =IF(Q28="","",(-0.00011*POWER(S28,2))+(0.01417*S28)+((0.00057*POWER(Q28,2))-(0.0529*Q28)+6.2018)+Kalkkalkyl!$AJ$2) -> 6.7135925 | W28: =IF(('PK kalkyl'!$AE$17*H28)+'PK kalkyl'!$AE$18+(('PK kalkyl'!$K$6-'PK kalkyl'!$AE$12)*'PK kalkyl'!$AE$13)<1,0,ROUND(('PK kalkyl'!$AE$17*H28)+'PK kalkyl'!$AE$18+(('PK kalkyl'!$K$6-'PK kalkyl'!$AE$12)*'PK kalkyl'!$AE$13),1)) ->  | X28: =IF(('PK kalkyl'!$AE$37*I28)+'PK kalkyl'!$AE$38+(('PK kalkyl'!$K$6-'PK kalkyl'!$AE$32)*'PK kalkyl'!$AE$33)<1,0,ROUND(('PK kalkyl'!$AE$37*I28)+'PK kalkyl'!$AE$38+(('PK kalkyl'!$K$6-'PK kalkyl'!$AE$32)*'PK kalkyl'!$AE$33),1)) ->  | AA28: =IF((Y28<W28),Y28-W28,0)*-'PK kalkyl'!$AE$15 ->  | AB28: =IF((Z28<X28),Z28-X28,0)*-'PK kalkyl'!$AE$35 ->  | AC28: =+AA28*Växtföljd!$G$18+AB28*Växtföljd!$G$18 -> 
A29: =IF(Import!A29="","",Import!A29) ->  | B29: =IF(Import!B29="","",Import!B29) ->  | C29: =IF(Import!C29="","",Import!C29) ->  | D29: =IF(Import!D29="","",Import!D29) ->  | E29: =IF(Import!E29="","",Import!E29) ->  | F29: =IF(Import!F29="","",Import!F29) ->  | G29: =IF(Import!G29="","",Import!G29) ->  | H29: =IF(Import!H29="","",Import!H29) ->  | I29: =IF(Import!J29="","",Import!J29) ->  | J29: =IF(Import!K29="","",Import!K29) ->  | K29: =IF(Import!L29="","",Import!L29) ->  | L29: =IF(Import!M29="","",Import!M29) ->  | M29: =IF(Import!P29="","",Import!P29) ->  | N29: =IF(Import!Q29="","",Import!Q29) ->  | O29: =IF(Import!R29="","",Import!R29) ->  | P29: 181.0538564 | Q29: 5.627690427 | R29: 30.05472594 | S29: 30.05472594 | T29: =IF(Q29="","",(-0.00011*POWER(S29,2))+(0.01417*S29)+((0.00057*POWER(Q29,2))-(0.0529*Q29)+6.2018)+Kalkkalkyl!$AJ$2) -> 6.748661535 | W29: =IF(('PK kalkyl'!$AE$17*H29)+'PK kalkyl'!$AE$18+(('PK kalkyl'!$K$6-'PK kalkyl'!$AE$12)*'PK kalkyl'!$AE$13)<1,0,ROUND(('PK kalkyl'!$AE$17*H29)+'PK kalkyl'!$AE$18+(('PK kalkyl'!$K$6-'PK kalkyl'!$AE$12)*'PK kalkyl'!$AE$13),1)) ->  | X29: =IF(('PK kalkyl'!$AE$37*I29)+'PK kalkyl'!$AE$38+(('PK kalkyl'!$K$6-'PK kalkyl'!$AE$32)*'PK kalkyl'!$AE$33)<1,0,ROUND(('PK kalkyl'!$AE$37*I29)+'PK kalkyl'!$AE$38+(('PK kalkyl'!$K$6-'PK kalkyl'!$AE$32)*'PK kalkyl'!$AE$33),1)) ->  | AA29: =IF((Y29<W29),Y29-W29,0)*-'PK kalkyl'!$AE$15 ->  | AB29: =IF((Z29<X29),Z29-X29,0)*-'PK kalkyl'!$AE$35 ->  | AC29: =+AA29*Växtföljd!$G$18+AB29*Växtföljd!$G$18 -> 
A30: =IF(Import!A30="","",Import!A30) ->  | B30: =IF(Import!B30="","",Import!B30) ->  | C30: =IF(Import!C30="","",Import!C30) ->  | D30: =IF(Import!D30="","",Import!D30) ->  | E30: =IF(Import!E30="","",Import!E30) ->  | F30: =IF(Import!F30="","",Import!F30) ->  | G30: =IF(Import!G30="","",Import!G30) ->  | H30: =IF(Import!H30="","",Import!H30) ->  | I30: =IF(Import!J30="","",Import!J30) ->  | J30: =IF(Import!K30="","",Import!K30) ->  | K30: =IF(Import!L30="","",Import!L30) ->  | L30: =IF(Import!M30="","",Import!M30) ->  | M30: =IF(Import!P30="","",Import!P30) ->  | N30: =IF(Import!Q30="","",Import!Q30) ->  | O30: =IF(Import!R30="","",Import!R30) ->  | P30: 170 | Q30: 5.8 | R30: 34 | S30: 34 | T30: =IF(Q30="","",(-0.00011*POWER(S30,2))+(0.01417*S30)+((0.00057*POWER(Q30,2))-(0.0529*Q30)+6.2018)+Kalkkalkyl!$AJ$2) -> 6.7687748 | W30: =IF(('PK kalkyl'!$AE$17*H30)+'PK kalkyl'!$AE$18+(('PK kalkyl'!$K$6-'PK kalkyl'!$AE$12)*'PK kalkyl'!$AE$13)<1,0,ROUND(('PK kalkyl'!$AE$17*H30)+'PK kalkyl'!$AE$18+(('PK kalkyl'!$K$6-'PK kalkyl'!$AE$12)*'PK kalkyl'!$AE$13),1)) ->  | X30: =IF(('PK kalkyl'!$AE$37*I30)+'PK kalkyl'!$AE$38+(('PK kalkyl'!$K$6-'PK kalkyl'!$AE$32)*'PK kalkyl'!$AE$33)<1,0,ROUND(('PK kalkyl'!$AE$37*I30)+'PK kalkyl'!$AE$38+(('PK kalkyl'!$K$6-'PK kalkyl'!$AE$32)*'PK kalkyl'!$AE$33),1)) ->  | AA30: =IF((Y30<W30),Y30-W30,0)*-'PK kalkyl'!$AE$15 ->  | AB30: =IF((Z30<X30),Z30-X30,0)*-'PK kalkyl'!$AE$35 ->  | AC30: =+AA30*Växtföljd!$G$18+AB30*Växtföljd!$G$18 -> 
A31: =IF(Import!A31="","",Import!A31) ->  | B31: =IF(Import!B31="","",Import!B31) ->  | C31: =IF(Import!C31="","",Import!C31) ->  | D31: =IF(Import!D31="","",Import!D31) ->  | E31: =IF(Import!E31="","",Import!E31) ->  | F31: =IF(Import!F31="","",Import!F31) ->  | G31: =IF(Import!G31="","",Import!G31) ->  | H31: =IF(Import!H31="","",Import!H31) ->  | I31: =IF(Import!J31="","",Import!J31) ->  | J31: =IF(Import!K31="","",Import!K31) ->  | K31: =IF(Import!L31="","",Import!L31) ->  | L31: =IF(Import!M31="","",Import!M31) ->  | M31: =IF(Import!P31="","",Import!P31) ->  | N31: =IF(Import!Q31="","",Import!Q31) ->  | O31: =IF(Import!R31="","",Import!R31) ->  | P31: 226.4292327 | Q31: 5.047346012 | R31: 28.30159078 | S31: 28.30159078 | T31: =IF(Q31="","",(-0.00011*POWER(S31,2))+(0.01417*S31)+((0.00057*POWER(Q31,2))-(0.0529*Q31)+6.2018)+Kalkkalkyl!$AJ$2) -> 6.762242283 | W31: =IF(('PK kalkyl'!$AE$17*H31)+'PK kalkyl'!$AE$18+(('PK kalkyl'!$K$6-'PK kalkyl'!$AE$12)*'PK kalkyl'!$AE$13)<1,0,ROUND(('PK kalkyl'!$AE$17*H31)+'PK kalkyl'!$AE$18+(('PK kalkyl'!$K$6-'PK kalkyl'!$AE$12)*'PK kalkyl'!$AE$13),1)) ->  | X31: =IF(('PK kalkyl'!$AE$37*I31)+'PK kalkyl'!$AE$38+(('PK kalkyl'!$K$6-'PK kalkyl'!$AE$32)*'PK kalkyl'!$AE$33)<1,0,ROUND(('PK kalkyl'!$AE$37*I31)+'PK kalkyl'!$AE$38+(('PK kalkyl'!$K$6-'PK kalkyl'!$AE$32)*'PK kalkyl'!$AE$33),1)) ->  | AA31: =IF((Y31<W31),Y31-W31,0)*-'PK kalkyl'!$AE$15 ->  | AB31: =IF((Z31<X31),Z31-X31,0)*-'PK kalkyl'!$AE$35 ->  | AC31: =+AA31*Växtföljd!$G$18+AB31*Växtföljd!$G$18 -> 
A32: =IF(Import!A32="","",Import!A32) ->  | B32: =IF(Import!B32="","",Import!B32) ->  | C32: =IF(Import!C32="","",Import!C32) ->  | D32: =IF(Import!D32="","",Import!D32) ->  | E32: =IF(Import!E32="","",Import!E32) ->  | F32: =IF(Import!F32="","",Import!F32) ->  | G32: =IF(Import!G32="","",Import!G32) ->  | H32: =IF(Import!H32="","",Import!H32) ->  | I32: =IF(Import!J32="","",Import!J32) ->  | J32: =IF(Import!K32="","",Import!K32) ->  | K32: =IF(Import!L32="","",Import!L32) ->  | L32: =IF(Import!M32="","",Import!M32) ->  | M32: =IF(Import!P32="","",Import!P32) ->  | N32: =IF(Import!Q32="","",Import!Q32) ->  | O32: =IF(Import!R32="","",Import!R32) ->  | P32: 230 | Q32: 5 | R32: 28 | S32: 28 | T32: =IF(Q32="","",(-0.00011*POWER(S32,2))+(0.01417*S32)+((0.00057*POWER(Q32,2))-(0.0529*Q32)+6.2018)+Kalkkalkyl!$AJ$2) -> 6.76207 | W32: =IF(('PK kalkyl'!$AE$17*H32)+'PK kalkyl'!$AE$18+(('PK kalkyl'!$K$6-'PK kalkyl'!$AE$12)*'PK kalkyl'!$AE$13)<1,0,ROUND(('PK kalkyl'!$AE$17*H32)+'PK kalkyl'!$AE$18+(('PK kalkyl'!$K$6-'PK kalkyl'!$AE$12)*'PK kalkyl'!$AE$13),1)) ->  | X32: =IF(('PK kalkyl'!$AE$37*I32)+'PK kalkyl'!$AE$38+(('PK kalkyl'!$K$6-'PK kalkyl'!$AE$32)*'PK kalkyl'!$AE$33)<1,0,ROUND(('PK kalkyl'!$AE$37*I32)+'PK kalkyl'!$AE$38+(('PK kalkyl'!$K$6-'PK kalkyl'!$AE$32)*'PK kalkyl'!$AE$33),1)) ->  | AA32: =IF((Y32<W32),Y32-W32,0)*-'PK kalkyl'!$AE$15 ->  | AB32: =IF((Z32<X32),Z32-X32,0)*-'PK kalkyl'!$AE$35 ->  | AC32: =+AA32*Växtföljd!$G$18+AB32*Växtföljd!$G$18 -> 
A33: =IF(Import!A33="","",Import!A33) ->  | B33: =IF(Import!B33="","",Import!B33) ->  | C33: =IF(Import!C33="","",Import!C33) ->  | D33: =IF(Import!D33="","",Import!D33) ->  | E33: =IF(Import!E33="","",Import!E33) ->  | F33: =IF(Import!F33="","",Import!F33) ->  | G33: =IF(Import!G33="","",Import!G33) ->  | H33: =IF(Import!H33="","",Import!H33) ->  | I33: =IF(Import!J33="","",Import!J33) ->  | J33: =IF(Import!K33="","",Import!K33) ->  | K33: =IF(Import!L33="","",Import!L33) ->  | L33: =IF(Import!M33="","",Import!M33) ->  | M33: =IF(Import!P33="","",Import!P33) ->  | N33: =IF(Import!Q33="","",Import!Q33) ->  | O33: =IF(Import!R33="","",Import!R33) ->  | P33: 209.3292703 | Q33: 4.877157106 | R33: 28.35170154 | S33: 28.35170154 | T33: =IF(Q33="","",(-0.00011*POWER(S33,2))+(0.01417*S33)+((0.00057*POWER(Q33,2))-(0.0529*Q33)+6.2018)+Kalkkalkyl!$AJ$2) -> 6.770680309 | W33: =IF(('PK kalkyl'!$AE$17*H33)+'PK kalkyl'!$AE$18+(('PK kalkyl'!$K$6-'PK kalkyl'!$AE$12)*'PK kalkyl'!$AE$13)<1,0,ROUND(('PK kalkyl'!$AE$17*H33)+'PK kalkyl'!$AE$18+(('PK kalkyl'!$K$6-'PK kalkyl'!$AE$12)*'PK kalkyl'!$AE$13),1)) ->  | X33: =IF(('PK kalkyl'!$AE$37*I33)+'PK kalkyl'!$AE$38+(('PK kalkyl'!$K$6-'PK kalkyl'!$AE$32)*'PK kalkyl'!$AE$33)<1,0,ROUND(('PK kalkyl'!$AE$37*I33)+'PK kalkyl'!$AE$38+(('PK kalkyl'!$K$6-'PK kalkyl'!$AE$32)*'PK kalkyl'!$AE$33),1)) ->  | AA33: =IF((Y33<W33),Y33-W33,0)*-'PK kalkyl'!$AE$15 ->  | AB33: =IF((Z33<X33),Z33-X33,0)*-'PK kalkyl'!$AE$35 ->  | AC33: =+AA33*Växtföljd!$G$18+AB33*Växtföljd!$G$18 -> 
A34: =IF(Import!A34="","",Import!A34) ->  | B34: =IF(Import!B34="","",Import!B34) ->  | C34: =IF(Import!C34="","",Import!C34) ->  | D34: =IF(Import!D34="","",Import!D34) ->  | E34: =IF(Import!E34="","",Import!E34) ->  | F34: =IF(Import!F34="","",Import!F34) ->  | G34: =IF(Import!G34="","",Import!G34) ->  | H34: =IF(Import!H34="","",Import!H34) ->  | I34: =IF(Import!J34="","",Import!J34) ->  | J34: =IF(Import!K34="","",Import!K34) ->  | K34: =IF(Import!L34="","",Import!L34) ->  | L34: =IF(Import!M34="","",Import!M34) ->  | M34: =IF(Import!P34="","",Import!P34) ->  | N34: =IF(Import!Q34="","",Import!Q34) ->  | O34: =IF(Import!R34="","",Import!R34) ->  | P34: 190 | Q34: 4.6 | R34: 29 | S34: 29 | T34: =IF(Q34="","",(-0.00011*POWER(S34,2))+(0.01417*S34)+((0.00057*POWER(Q34,2))-(0.0529*Q34)+6.2018)+Kalkkalkyl!$AJ$2) -> 6.7889412 | W34: =IF(('PK kalkyl'!$AE$17*H34)+'PK kalkyl'!$AE$18+(('PK kalkyl'!$K$6-'PK kalkyl'!$AE$12)*'PK kalkyl'!$AE$13)<1,0,ROUND(('PK kalkyl'!$AE$17*H34)+'PK kalkyl'!$AE$18+(('PK kalkyl'!$K$6-'PK kalkyl'!$AE$12)*'PK kalkyl'!$AE$13),1)) ->  | X34: =IF(('PK kalkyl'!$AE$37*I34)+'PK kalkyl'!$AE$38+(('PK kalkyl'!$K$6-'PK kalkyl'!$AE$32)*'PK kalkyl'!$AE$33)<1,0,ROUND(('PK kalkyl'!$AE$37*I34)+'PK kalkyl'!$AE$38+(('PK kalkyl'!$K$6-'PK kalkyl'!$AE$32)*'PK kalkyl'!$AE$33),1)) ->  | AA34: =IF((Y34<W34),Y34-W34,0)*-'PK kalkyl'!$AE$15 ->  | AB34: =IF((Z34<X34),Z34-X34,0)*-'PK kalkyl'!$AE$35 ->  | AC34: =+AA34*Växtföljd!$G$18+AB34*Växtföljd!$G$18 -> 
A35: =IF(Import!A35="","",Import!A35) ->  | B35: =IF(Import!B35="","",Import!B35) ->  | C35: =IF(Import!C35="","",Import!C35) ->  | D35: =IF(Import!D35="","",Import!D35) ->  | E35: =IF(Import!E35="","",Import!E35) ->  | F35: =IF(Import!F35="","",Import!F35) ->  | G35: =IF(Import!G35="","",Import!G35) ->  | H35: =IF(Import!H35="","",Import!H35) ->  | I35: =IF(Import!J35="","",Import!J35) ->  | J35: =IF(Import!K35="","",Import!K35) ->  | K35: =IF(Import!L35="","",Import!L35) ->  | L35: =IF(Import!M35="","",Import!M35) ->  | M35: =IF(Import!P35="","",Import!P35) ->  | N35: =IF(Import!Q35="","",Import!Q35) ->  | O35: =IF(Import!R35="","",Import!R35) ->  | P35: 199.3508534 | Q35: 4.724784235 | R35: 29.68178214 | S35: 29.68178214 | T35: =IF(Q35="","",(-0.00011*POWER(S35,2))+(0.01417*S35)+((0.00057*POWER(Q35,2))-(0.0529*Q35)+6.2018)+Kalkkalkyl!$AJ$2) -> 6.78826331 | W35: =IF(('PK kalkyl'!$AE$17*H35)+'PK kalkyl'!$AE$18+(('PK kalkyl'!$K$6-'PK kalkyl'!$AE$12)*'PK kalkyl'!$AE$13)<1,0,ROUND(('PK kalkyl'!$AE$17*H35)+'PK kalkyl'!$AE$18+(('PK kalkyl'!$K$6-'PK kalkyl'!$AE$12)*'PK kalkyl'!$AE$13),1)) ->  | X35: =IF(('PK kalkyl'!$AE$37*I35)+'PK kalkyl'!$AE$38+(('PK kalkyl'!$K$6-'PK kalkyl'!$AE$32)*'PK kalkyl'!$AE$33)<1,0,ROUND(('PK kalkyl'!$AE$37*I35)+'PK kalkyl'!$AE$38+(('PK kalkyl'!$K$6-'PK kalkyl'!$AE$32)*'PK kalkyl'!$AE$33),1)) ->  | AA35: =IF((Y35<W35),Y35-W35,0)*-'PK kalkyl'!$AE$15 ->  | AB35: =IF((Z35<X35),Z35-X35,0)*-'PK kalkyl'!$AE$35 ->  | AC35: =+AA35*Växtföljd!$G$18+AB35*Växtföljd!$G$18 -> 
A36: =IF(Import!A36="","",Import!A36) ->  | B36: =IF(Import!B36="","",Import!B36) ->  | C36: =IF(Import!C36="","",Import!C36) ->  | D36: =IF(Import!D36="","",Import!D36) ->  | E36: =IF(Import!E36="","",Import!E36) ->  | F36: =IF(Import!F36="","",Import!F36) ->  | G36: =IF(Import!G36="","",Import!G36) ->  | H36: =IF(Import!H36="","",Import!H36) ->  | I36: =IF(Import!J36="","",Import!J36) ->  | J36: =IF(Import!K36="","",Import!K36) ->  | K36: =IF(Import!L36="","",Import!L36) ->  | L36: =IF(Import!M36="","",Import!M36) ->  | M36: =IF(Import!P36="","",Import!P36) ->  | N36: =IF(Import!Q36="","",Import!Q36) ->  | O36: =IF(Import!R36="","",Import!R36) ->  | P36: 220 | Q36: 4.2 | R36: 34 | S36: 34 | T36: =IF(Q36="","",(-0.00011*POWER(S36,2))+(0.01417*S36)+((0.00057*POWER(Q36,2))-(0.0529*Q36)+6.2018)+Kalkkalkyl!$AJ$2) -> 6.8442948 | W36: =IF(('PK kalkyl'!$AE$17*H36)+'PK kalkyl'!$AE$18+(('PK kalkyl'!$K$6-'PK kalkyl'!$AE$12)*'PK kalkyl'!$AE$13)<1,0,ROUND(('PK kalkyl'!$AE$17*H36)+'PK kalkyl'!$AE$18+(('PK kalkyl'!$K$6-'PK kalkyl'!$AE$12)*'PK kalkyl'!$AE$13),1)) ->  | X36: =IF(('PK kalkyl'!$AE$37*I36)+'PK kalkyl'!$AE$38+(('PK kalkyl'!$K$6-'PK kalkyl'!$AE$32)*'PK kalkyl'!$AE$33)<1,0,ROUND(('PK kalkyl'!$AE$37*I36)+'PK kalkyl'!$AE$38+(('PK kalkyl'!$K$6-'PK kalkyl'!$AE$32)*'PK kalkyl'!$AE$33),1)) ->  | AA36: =IF((Y36<W36),Y36-W36,0)*-'PK kalkyl'!$AE$15 ->  | AB36: =IF((Z36<X36),Z36-X36,0)*-'PK kalkyl'!$AE$35 ->  | AC36: =+AA36*Växtföljd!$G$18+AB36*Växtföljd!$G$18 -> 
A37: =IF(Import!A37="","",Import!A37) ->  | B37: =IF(Import!B37="","",Import!B37) ->  | C37: =IF(Import!C37="","",Import!C37) ->  | D37: =IF(Import!D37="","",Import!D37) ->  | E37: =IF(Import!E37="","",Import!E37) ->  | F37: =IF(Import!F37="","",Import!F37) ->  | G37: =IF(Import!G37="","",Import!G37) ->  | H37: =IF(Import!H37="","",Import!H37) ->  | I37: =IF(Import!J37="","",Import!J37) ->  | J37: =IF(Import!K37="","",Import!K37) ->  | K37: =IF(Import!L37="","",Import!L37) ->  | L37: =IF(Import!M37="","",Import!M37) ->  | M37: =IF(Import!P37="","",Import!P37) ->  | N37: =IF(Import!Q37="","",Import!Q37) ->  | O37: =IF(Import!R37="","",Import!R37) ->  | P37: 223.6551287 | Q37: 4.766544953 | R37: 33.08621782 | S37: 33.08621782 | T37: =IF(Q37="","",(-0.00011*POWER(S37,2))+(0.01417*S37)+((0.00057*POWER(Q37,2))-(0.0529*Q37)+6.2018)+Kalkkalkyl!$AJ$2) -> 6.811015091 | W37: =IF(('PK kalkyl'!$AE$17*H37)+'PK kalkyl'!$AE$18+(('PK kalkyl'!$K$6-'PK kalkyl'!$AE$12)*'PK kalkyl'!$AE$13)<1,0,ROUND(('PK kalkyl'!$AE$17*H37)+'PK kalkyl'!$AE$18+(('PK kalkyl'!$K$6-'PK kalkyl'!$AE$12)*'PK kalkyl'!$AE$13),1)) ->  | X37: =IF(('PK kalkyl'!$AE$37*I37)+'PK kalkyl'!$AE$38+(('PK kalkyl'!$K$6-'PK kalkyl'!$AE$32)*'PK kalkyl'!$AE$33)<1,0,ROUND(('PK kalkyl'!$AE$37*I37)+'PK kalkyl'!$AE$38+(('PK kalkyl'!$K$6-'PK kalkyl'!$AE$32)*'PK kalkyl'!$AE$33),1)) ->  | AA37: =IF((Y37<W37),Y37-W37,0)*-'PK kalkyl'!$AE$15 ->  | AB37: =IF((Z37<X37),Z37-X37,0)*-'PK kalkyl'!$AE$35 ->  | AC37: =+AA37*Växtföljd!$G$18+AB37*Växtföljd!$G$18 -> 
A38: =IF(Import!A38="","",Import!A38) ->  | B38: =IF(Import!B38="","",Import!B38) ->  | C38: =IF(Import!C38="","",Import!C38) ->  | D38: =IF(Import!D38="","",Import!D38) ->  | E38: =IF(Import!E38="","",Import!E38) ->  | F38: =IF(Import!F38="","",Import!F38) ->  | G38: =IF(Import!G38="","",Import!G38) ->  | H38: =IF(Import!H38="","",Import!H38) ->  | I38: =IF(Import!J38="","",Import!J38) ->  | J38: =IF(Import!K38="","",Import!K38) ->  | K38: =IF(Import!L38="","",Import!L38) ->  | L38: =IF(Import!M38="","",Import!M38) ->  | M38: =IF(Import!P38="","",Import!P38) ->  | N38: =IF(Import!Q38="","",Import!Q38) ->  | O38: =IF(Import!R38="","",Import!R38) ->  | P38: 290 | Q38: 2.7 | R38: 22 | S38: 22 | T38: =IF(Q38="","",(-0.00011*POWER(S38,2))+(0.01417*S38)+((0.00057*POWER(Q38,2))-(0.0529*Q38)+6.2018)+Kalkkalkyl!$AJ$2) -> 6.8216253 | W38: =IF(('PK kalkyl'!$AE$17*H38)+'PK kalkyl'!$AE$18+(('PK kalkyl'!$K$6-'PK kalkyl'!$AE$12)*'PK kalkyl'!$AE$13)<1,0,ROUND(('PK kalkyl'!$AE$17*H38)+'PK kalkyl'!$AE$18+(('PK kalkyl'!$K$6-'PK kalkyl'!$AE$12)*'PK kalkyl'!$AE$13),1)) ->  | X38: =IF(('PK kalkyl'!$AE$37*I38)+'PK kalkyl'!$AE$38+(('PK kalkyl'!$K$6-'PK kalkyl'!$AE$32)*'PK kalkyl'!$AE$33)<1,0,ROUND(('PK kalkyl'!$AE$37*I38)+'PK kalkyl'!$AE$38+(('PK kalkyl'!$K$6-'PK kalkyl'!$AE$32)*'PK kalkyl'!$AE$33),1)) ->  | AA38: =IF((Y38<W38),Y38-W38,0)*-'PK kalkyl'!$AE$15 ->  | AB38: =IF((Z38<X38),Z38-X38,0)*-'PK kalkyl'!$AE$35 ->  | AC38: =+AA38*Växtföljd!$G$18+AB38*Växtföljd!$G$18 -> 
A39: =IF(Import!A39="","",Import!A39) ->  | B39: =IF(Import!B39="","",Import!B39) ->  | C39: =IF(Import!C39="","",Import!C39) ->  | D39: =IF(Import!D39="","",Import!D39) ->  | E39: =IF(Import!E39="","",Import!E39) ->  | F39: =IF(Import!F39="","",Import!F39) ->  | G39: =IF(Import!G39="","",Import!G39) ->  | H39: =IF(Import!H39="","",Import!H39) ->  | I39: =IF(Import!J39="","",Import!J39) ->  | J39: =IF(Import!K39="","",Import!K39) ->  | K39: =IF(Import!L39="","",Import!L39) ->  | L39: =IF(Import!M39="","",Import!M39) ->  | M39: =IF(Import!P39="","",Import!P39) ->  | N39: =IF(Import!Q39="","",Import!Q39) ->  | O39: =IF(Import!R39="","",Import!R39) ->  | P39: 268.7233947 | Q39: 2.337162411 | R39: 20.27637076 | S39: 20.27637076 | T39: =IF(Q39="","",(-0.00011*POWER(S39,2))+(0.01417*S39)+((0.00057*POWER(Q39,2))-(0.0529*Q39)+6.2018)+Kalkkalkyl!$AJ$2) -> 6.823369376 | W39: =IF(('PK kalkyl'!$AE$17*H39)+'PK kalkyl'!$AE$18+(('PK kalkyl'!$K$6-'PK kalkyl'!$AE$12)*'PK kalkyl'!$AE$13)<1,0,ROUND(('PK kalkyl'!$AE$17*H39)+'PK kalkyl'!$AE$18+(('PK kalkyl'!$K$6-'PK kalkyl'!$AE$12)*'PK kalkyl'!$AE$13),1)) ->  | X39: =IF(('PK kalkyl'!$AE$37*I39)+'PK kalkyl'!$AE$38+(('PK kalkyl'!$K$6-'PK kalkyl'!$AE$32)*'PK kalkyl'!$AE$33)<1,0,ROUND(('PK kalkyl'!$AE$37*I39)+'PK kalkyl'!$AE$38+(('PK kalkyl'!$K$6-'PK kalkyl'!$AE$32)*'PK kalkyl'!$AE$33),1)) ->  | AA39: =IF((Y39<W39),Y39-W39,0)*-'PK kalkyl'!$AE$15 ->  | AB39: =IF((Z39<X39),Z39-X39,0)*-'PK kalkyl'!$AE$35 ->  | AC39: =+AA39*Växtföljd!$G$18+AB39*Växtföljd!$G$18 -> 
A40: =IF(Import!A40="","",Import!A40) ->  | B40: =IF(Import!B40="","",Import!B40) ->  | C40: =IF(Import!C40="","",Import!C40) ->  | D40: =IF(Import!D40="","",Import!D40) ->  | E40: =IF(Import!E40="","",Import!E40) ->  | F40: =IF(Import!F40="","",Import!F40) ->  | G40: =IF(Import!G40="","",Import!G40) ->  | H40: =IF(Import!H40="","",Import!H40) ->  | I40: =IF(Import!J40="","",Import!J40) ->  | J40: =IF(Import!K40="","",Import!K40) ->  | K40: =IF(Import!L40="","",Import!L40) ->  | L40: =IF(Import!M40="","",Import!M40) ->  | M40: =IF(Import!P40="","",Import!P40) ->  | N40: =IF(Import!Q40="","",Import!Q40) ->  | O40: =IF(Import!R40="","",Import!R40) ->  | P40: 260 | Q40: 2.3 | R40: 19 | S40: 19 | T40: =IF(Q40="","",(-0.00011*POWER(S40,2))+(0.01417*S40)+((0.00057*POWER(Q40,2))-(0.0529*Q40)+6.2018)+Kalkkalkyl!$AJ$2) -> 6.8126653 | W40: =IF(('PK kalkyl'!$AE$17*H40)+'PK kalkyl'!$AE$18+(('PK kalkyl'!$K$6-'PK kalkyl'!$AE$12)*'PK kalkyl'!$AE$13)<1,0,ROUND(('PK kalkyl'!$AE$17*H40)+'PK kalkyl'!$AE$18+(('PK kalkyl'!$K$6-'PK kalkyl'!$AE$12)*'PK kalkyl'!$AE$13),1)) ->  | X40: =IF(('PK kalkyl'!$AE$37*I40)+'PK kalkyl'!$AE$38+(('PK kalkyl'!$K$6-'PK kalkyl'!$AE$32)*'PK kalkyl'!$AE$33)<1,0,ROUND(('PK kalkyl'!$AE$37*I40)+'PK kalkyl'!$AE$38+(('PK kalkyl'!$K$6-'PK kalkyl'!$AE$32)*'PK kalkyl'!$AE$33),1)) ->  | AA40: =IF((Y40<W40),Y40-W40,0)*-'PK kalkyl'!$AE$15 ->  | AB40: =IF((Z40<X40),Z40-X40,0)*-'PK kalkyl'!$AE$35 ->  | AC40: =+AA40*Växtföljd!$G$18+AB40*Växtföljd!$G$18 -> 
A41: =IF(Import!A41="","",Import!A41) ->  | B41: =IF(Import!B41="","",Import!B41) ->  | C41: =IF(Import!C41="","",Import!C41) ->  | D41: =IF(Import!D41="","",Import!D41) ->  | E41: =IF(Import!E41="","",Import!E41) ->  | F41: =IF(Import!F41="","",Import!F41) ->  | G41: =IF(Import!G41="","",Import!G41) ->  | H41: =IF(Import!H41="","",Import!H41) ->  | I41: =IF(Import!J41="","",Import!J41) ->  | J41: =IF(Import!K41="","",Import!K41) ->  | K41: =IF(Import!L41="","",Import!L41) ->  | L41: =IF(Import!M41="","",Import!M41) ->  | M41: =IF(Import!P41="","",Import!P41) ->  | N41: =IF(Import!Q41="","",Import!Q41) ->  | O41: =IF(Import!R41="","",Import!R41) ->  | P41: 176.8403449 | Q41: 2.236371759 | R41: 14.77381903 | S41: 14.77381903 | T41: =IF(Q41="","",(-0.00011*POWER(S41,2))+(0.01417*S41)+((0.00057*POWER(Q41,2))-(0.0529*Q41)+6.2018)+Kalkkalkyl!$AJ$2) -> 6.771682494 | W41: =IF(('PK kalkyl'!$AE$17*H41)+'PK kalkyl'!$AE$18+(('PK kalkyl'!$K$6-'PK kalkyl'!$AE$12)*'PK kalkyl'!$AE$13)<1,0,ROUND(('PK kalkyl'!$AE$17*H41)+'PK kalkyl'!$AE$18+(('PK kalkyl'!$K$6-'PK kalkyl'!$AE$12)*'PK kalkyl'!$AE$13),1)) ->  | X41: =IF(('PK kalkyl'!$AE$37*I41)+'PK kalkyl'!$AE$38+(('PK kalkyl'!$K$6-'PK kalkyl'!$AE$32)*'PK kalkyl'!$AE$33)<1,0,ROUND(('PK kalkyl'!$AE$37*I41)+'PK kalkyl'!$AE$38+(('PK kalkyl'!$K$6-'PK kalkyl'!$AE$32)*'PK kalkyl'!$AE$33),1)) ->  | AA41: =IF((Y41<W41),Y41-W41,0)*-'PK kalkyl'!$AE$15 ->  | AB41: =IF((Z41<X41),Z41-X41,0)*-'PK kalkyl'!$AE$35 ->  | AC41: =+AA41*Växtföljd!$G$18+AB41*Växtföljd!$G$18 -> 
A42: =IF(Import!A42="","",Import!A42) ->  | B42: =IF(Import!B42="","",Import!B42) ->  | C42: =IF(Import!C42="","",Import!C42) ->  | D42: =IF(Import!D42="","",Import!D42) ->  | E42: =IF(Import!E42="","",Import!E42) ->  | F42: =IF(Import!F42="","",Import!F42) ->  | G42: =IF(Import!G42="","",Import!G42) ->  | H42: =IF(Import!H42="","",Import!H42) ->  | I42: =IF(Import!J42="","",Import!J42) ->  | J42: =IF(Import!K42="","",Import!K42) ->  | K42: =IF(Import!L42="","",Import!L42) ->  | L42: =IF(Import!M42="","",Import!M42) ->  | M42: =IF(Import!P42="","",Import!P42) ->  | N42: =IF(Import!Q42="","",Import!Q42) ->  | O42: =IF(Import!R42="","",Import!R42) ->  | P42: 130 | Q42: 2.1 | R42: 12 | S42: 12 | T42: =IF(Q42="","",(-0.00011*POWER(S42,2))+(0.01417*S42)+((0.00057*POWER(Q42,2))-(0.0529*Q42)+6.2018)+Kalkkalkyl!$AJ$2) -> 6.7474237 | W42: =IF(('PK kalkyl'!$AE$17*H42)+'PK kalkyl'!$AE$18+(('PK kalkyl'!$K$6-'PK kalkyl'!$AE$12)*'PK kalkyl'!$AE$13)<1,0,ROUND(('PK kalkyl'!$AE$17*H42)+'PK kalkyl'!$AE$18+(('PK kalkyl'!$K$6-'PK kalkyl'!$AE$12)*'PK kalkyl'!$AE$13),1)) ->  | X42: =IF(('PK kalkyl'!$AE$37*I42)+'PK kalkyl'!$AE$38+(('PK kalkyl'!$K$6-'PK kalkyl'!$AE$32)*'PK kalkyl'!$AE$33)<1,0,ROUND(('PK kalkyl'!$AE$37*I42)+'PK kalkyl'!$AE$38+(('PK kalkyl'!$K$6-'PK kalkyl'!$AE$32)*'PK kalkyl'!$AE$33),1)) ->  | AA42: =IF((Y42<W42),Y42-W42,0)*-'PK kalkyl'!$AE$15 ->  | AB42: =IF((Z42<X42),Z42-X42,0)*-'PK kalkyl'!$AE$35 ->  | AC42: =+AA42*Växtföljd!$G$18+AB42*Växtföljd!$G$18 -> 
A43: =IF(Import!A43="","",Import!A43) ->  | B43: =IF(Import!B43="","",Import!B43) ->  | C43: =IF(Import!C43="","",Import!C43) ->  | D43: =IF(Import!D43="","",Import!D43) ->  | E43: =IF(Import!E43="","",Import!E43) ->  | F43: =IF(Import!F43="","",Import!F43) ->  | G43: =IF(Import!G43="","",Import!G43) ->  | H43: =IF(Import!H43="","",Import!H43) ->  | I43: =IF(Import!J43="","",Import!J43) ->  | J43: =IF(Import!K43="","",Import!K43) ->  | K43: =IF(Import!L43="","",Import!L43) ->  | L43: =IF(Import!M43="","",Import!M43) ->  | M43: =IF(Import!P43="","",Import!P43) ->  | N43: =IF(Import!Q43="","",Import!Q43) ->  | O43: =IF(Import!R43="","",Import!R43) ->  | P43: 207.5400037 | Q43: 2.219950756 | R43: 16.58346537 | S43: 16.58346537 | T43: =IF(Q43="","",(-0.00011*POWER(S43,2))+(0.01417*S43)+((0.00057*POWER(Q43,2))-(0.0529*Q43)+6.2018)+Kalkkalkyl!$AJ$2) -> 6.791910127 | W43: =IF(('PK kalkyl'!$AE$17*H43)+'PK kalkyl'!$AE$18+(('PK kalkyl'!$K$6-'PK kalkyl'!$AE$12)*'PK kalkyl'!$AE$13)<1,0,ROUND(('PK kalkyl'!$AE$17*H43)+'PK kalkyl'!$AE$18+(('PK kalkyl'!$K$6-'PK kalkyl'!$AE$12)*'PK kalkyl'!$AE$13),1)) ->  | X43: =IF(('PK kalkyl'!$AE$37*I43)+'PK kalkyl'!$AE$38+(('PK kalkyl'!$K$6-'PK kalkyl'!$AE$32)*'PK kalkyl'!$AE$33)<1,0,ROUND(('PK kalkyl'!$AE$37*I43)+'PK kalkyl'!$AE$38+(('PK kalkyl'!$K$6-'PK kalkyl'!$AE$32)*'PK kalkyl'!$AE$33),1)) ->  | AA43: =IF((Y43<W43),Y43-W43,0)*-'PK kalkyl'!$AE$15 ->  | AB43: =IF((Z43<X43),Z43-X43,0)*-'PK kalkyl'!$AE$35 ->  | AC43: =+AA43*Växtföljd!$G$18+AB43*Växtföljd!$G$18 -> 
A44: =IF(Import!A44="","",Import!A44) ->  | B44: =IF(Import!B44="","",Import!B44) ->  | C44: =IF(Import!C44="","",Import!C44) ->  | D44: =IF(Import!D44="","",Import!D44) ->  | E44: =IF(Import!E44="","",Import!E44) ->  | F44: =IF(Import!F44="","",Import!F44) ->  | G44: =IF(Import!G44="","",Import!G44) ->  | H44: =IF(Import!H44="","",Import!H44) ->  | I44: =IF(Import!J44="","",Import!J44) ->  | J44: =IF(Import!K44="","",Import!K44) ->  | K44: =IF(Import!L44="","",Import!L44) ->  | L44: =IF(Import!M44="","",Import!M44) ->  | M44: =IF(Import!P44="","",Import!P44) ->  | N44: =IF(Import!Q44="","",Import!Q44) ->  | O44: =IF(Import!R44="","",Import!R44) ->  | P44: 260 | Q44: 1.8 | R44: 20 | S44: 20 | T44: =IF(Q44="","",(-0.00011*POWER(S44,2))+(0.01417*S44)+((0.00057*POWER(Q44,2))-(0.0529*Q44)+6.2018)+Kalkkalkyl!$AJ$2) -> 6.8478268 | W44: =IF(('PK kalkyl'!$AE$17*H44)+'PK kalkyl'!$AE$18+(('PK kalkyl'!$K$6-'PK kalkyl'!$AE$12)*'PK kalkyl'!$AE$13)<1,0,ROUND(('PK kalkyl'!$AE$17*H44)+'PK kalkyl'!$AE$18+(('PK kalkyl'!$K$6-'PK kalkyl'!$AE$12)*'PK kalkyl'!$AE$13),1)) ->  | X44: =IF(('PK kalkyl'!$AE$37*I44)+'PK kalkyl'!$AE$38+(('PK kalkyl'!$K$6-'PK kalkyl'!$AE$32)*'PK kalkyl'!$AE$33)<1,0,ROUND(('PK kalkyl'!$AE$37*I44)+'PK kalkyl'!$AE$38+(('PK kalkyl'!$K$6-'PK kalkyl'!$AE$32)*'PK kalkyl'!$AE$33),1)) ->  | AA44: =IF((Y44<W44),Y44-W44,0)*-'PK kalkyl'!$AE$15 ->  | AB44: =IF((Z44<X44),Z44-X44,0)*-'PK kalkyl'!$AE$35 ->  | AC44: =+AA44*Växtföljd!$G$18+AB44*Växtföljd!$G$18 -> 
A45: =IF(Import!A45="","",Import!A45) ->  | B45: =IF(Import!B45="","",Import!B45) ->  | C45: =IF(Import!C45="","",Import!C45) ->  | D45: =IF(Import!D45="","",Import!D45) ->  | E45: =IF(Import!E45="","",Import!E45) ->  | F45: =IF(Import!F45="","",Import!F45) ->  | G45: =IF(Import!G45="","",Import!G45) ->  | H45: =IF(Import!H45="","",Import!H45) ->  | I45: =IF(Import!J45="","",Import!J45) ->  | J45: =IF(Import!K45="","",Import!K45) ->  | K45: =IF(Import!L45="","",Import!L45) ->  | L45: =IF(Import!M45="","",Import!M45) ->  | M45: =IF(Import!P45="","",Import!P45) ->  | N45: =IF(Import!Q45="","",Import!Q45) ->  | O45: =IF(Import!R45="","",Import!R45) ->  | P45: 303.1265143 | Q45: 2.32613389 | R45: 24.63311093 | S45: 24.63311093 | T45: =IF(Q45="","",(-0.00011*POWER(S45,2))+(0.01417*S45)+((0.00057*POWER(Q45,2))-(0.0529*Q45)+6.2018)+Kalkkalkyl!$AJ$2) -> 6.864135995 | W45: =IF(('PK kalkyl'!$AE$17*H45)+'PK kalkyl'!$AE$18+(('PK kalkyl'!$K$6-'PK kalkyl'!$AE$12)*'PK kalkyl'!$AE$13)<1,0,ROUND(('PK kalkyl'!$AE$17*H45)+'PK kalkyl'!$AE$18+(('PK kalkyl'!$K$6-'PK kalkyl'!$AE$12)*'PK kalkyl'!$AE$13),1)) ->  | X45: =IF(('PK kalkyl'!$AE$37*I45)+'PK kalkyl'!$AE$38+(('PK kalkyl'!$K$6-'PK kalkyl'!$AE$32)*'PK kalkyl'!$AE$33)<1,0,ROUND(('PK kalkyl'!$AE$37*I45)+'PK kalkyl'!$AE$38+(('PK kalkyl'!$K$6-'PK kalkyl'!$AE$32)*'PK kalkyl'!$AE$33),1)) ->  | AA45: =IF((Y45<W45),Y45-W45,0)*-'PK kalkyl'!$AE$15 ->  | AB45: =IF((Z45<X45),Z45-X45,0)*-'PK kalkyl'!$AE$35 ->  | AC45: =+AA45*Växtföljd!$G$18+AB45*Växtföljd!$G$18 -> 
A46: =IF(Import!A46="","",Import!A46) ->  | B46: =IF(Import!B46="","",Import!B46) ->  | C46: =IF(Import!C46="","",Import!C46) ->  | D46: =IF(Import!D46="","",Import!D46) ->  | E46: =IF(Import!E46="","",Import!E46) ->  | F46: =IF(Import!F46="","",Import!F46) ->  | G46: =IF(Import!G46="","",Import!G46) ->  | H46: =IF(Import!H46="","",Import!H46) ->  | I46: =IF(Import!J46="","",Import!J46) ->  | J46: =IF(Import!K46="","",Import!K46) ->  | K46: =IF(Import!L46="","",Import!L46) ->  | L46: =IF(Import!M46="","",Import!M46) ->  | M46: =IF(Import!P46="","",Import!P46) ->  | N46: =IF(Import!Q46="","",Import!Q46) ->  | O46: =IF(Import!R46="","",Import!R46) ->  | P46: 320 | Q46: 2.4 | R46: 27 | S46: 27 | T46: =IF(Q46="","",(-0.00011*POWER(S46,2))+(0.01417*S46)+((0.00057*POWER(Q46,2))-(0.0529*Q46)+6.2018)+Kalkkalkyl!$AJ$2) -> 6.8805232 | W46: =IF(('PK kalkyl'!$AE$17*H46)+'PK kalkyl'!$AE$18+(('PK kalkyl'!$K$6-'PK kalkyl'!$AE$12)*'PK kalkyl'!$AE$13)<1,0,ROUND(('PK kalkyl'!$AE$17*H46)+'PK kalkyl'!$AE$18+(('PK kalkyl'!$K$6-'PK kalkyl'!$AE$12)*'PK kalkyl'!$AE$13),1)) ->  | X46: =IF(('PK kalkyl'!$AE$37*I46)+'PK kalkyl'!$AE$38+(('PK kalkyl'!$K$6-'PK kalkyl'!$AE$32)*'PK kalkyl'!$AE$33)<1,0,ROUND(('PK kalkyl'!$AE$37*I46)+'PK kalkyl'!$AE$38+(('PK kalkyl'!$K$6-'PK kalkyl'!$AE$32)*'PK kalkyl'!$AE$33),1)) ->  | AA46: =IF((Y46<W46),Y46-W46,0)*-'PK kalkyl'!$AE$15 ->  | AB46: =IF((Z46<X46),Z46-X46,0)*-'PK kalkyl'!$AE$35 ->  | AC46: =+AA46*Växtföljd!$G$18+AB46*Växtföljd!$G$18 -> 
A47: =IF(Import!A47="","",Import!A47) ->  | B47: =IF(Import!B47="","",Import!B47) ->  | C47: =IF(Import!C47="","",Import!C47) ->  | D47: =IF(Import!D47="","",Import!D47) ->  | E47: =IF(Import!E47="","",Import!E47) ->  | F47: =IF(Import!F47="","",Import!F47) ->  | G47: =IF(Import!G47="","",Import!G47) ->  | H47: =IF(Import!H47="","",Import!H47) ->  | I47: =IF(Import!J47="","",Import!J47) ->  | J47: =IF(Import!K47="","",Import!K47) ->  | K47: =IF(Import!L47="","",Import!L47) ->  | L47: =IF(Import!M47="","",Import!M47) ->  | M47: =IF(Import!P47="","",Import!P47) ->  | N47: =IF(Import!Q47="","",Import!Q47) ->  | O47: =IF(Import!R47="","",Import!R47) ->  | P47: 332.1835709 | Q47: 2.491376782 | R47: 28.21835709 | S47: 28.21835709 | T47: =IF(Q47="","",(-0.00011*POWER(S47,2))+(0.01417*S47)+((0.00057*POWER(Q47,2))-(0.0529*Q47)+6.2018)+Kalkkalkyl!$AJ$2) -> 6.88580793 | W47: =IF(('PK kalkyl'!$AE$17*H47)+'PK kalkyl'!$AE$18+(('PK kalkyl'!$K$6-'PK kalkyl'!$AE$12)*'PK kalkyl'!$AE$13)<1,0,ROUND(('PK kalkyl'!$AE$17*H47)+'PK kalkyl'!$AE$18+(('PK kalkyl'!$K$6-'PK kalkyl'!$AE$12)*'PK kalkyl'!$AE$13),1)) ->  | X47: =IF(('PK kalkyl'!$AE$37*I47)+'PK kalkyl'!$AE$38+(('PK kalkyl'!$K$6-'PK kalkyl'!$AE$32)*'PK kalkyl'!$AE$33)<1,0,ROUND(('PK kalkyl'!$AE$37*I47)+'PK kalkyl'!$AE$38+(('PK kalkyl'!$K$6-'PK kalkyl'!$AE$32)*'PK kalkyl'!$AE$33),1)) ->  | AA47: =IF((Y47<W47),Y47-W47,0)*-'PK kalkyl'!$AE$15 ->  | AB47: =IF((Z47<X47),Z47-X47,0)*-'PK kalkyl'!$AE$35 ->  | AC47: =+AA47*Växtföljd!$G$18+AB47*Växtföljd!$G$18 -> 
A48: =IF(Import!A48="","",Import!A48) ->  | B48: =IF(Import!B48="","",Import!B48) ->  | C48: =IF(Import!C48="","",Import!C48) ->  | D48: =IF(Import!D48="","",Import!D48) ->  | E48: =IF(Import!E48="","",Import!E48) ->  | F48: =IF(Import!F48="","",Import!F48) ->  | G48: =IF(Import!G48="","",Import!G48) ->  | H48: =IF(Import!H48="","",Import!H48) ->  | I48: =IF(Import!J48="","",Import!J48) ->  | J48: =IF(Import!K48="","",Import!K48) ->  | K48: =IF(Import!L48="","",Import!L48) ->  | L48: =IF(Import!M48="","",Import!M48) ->  | M48: =IF(Import!P48="","",Import!P48) ->  | N48: =IF(Import!Q48="","",Import!Q48) ->  | O48: =IF(Import!R48="","",Import!R48) ->  | P48: 360 | Q48: 2.7 | R48: 31 | S48: 31 | T48: =IF(Q48="","",(-0.00011*POWER(S48,2))+(0.01417*S48)+((0.00057*POWER(Q48,2))-(0.0529*Q48)+6.2018)+Kalkkalkyl!$AJ$2) -> 6.8966853 | W48: =IF(('PK kalkyl'!$AE$17*H48)+'PK kalkyl'!$AE$18+(('PK kalkyl'!$K$6-'PK kalkyl'!$AE$12)*'PK kalkyl'!$AE$13)<1,0,ROUND(('PK kalkyl'!$AE$17*H48)+'PK kalkyl'!$AE$18+(('PK kalkyl'!$K$6-'PK kalkyl'!$AE$12)*'PK kalkyl'!$AE$13),1)) ->  | X48: =IF(('PK kalkyl'!$AE$37*I48)+'PK kalkyl'!$AE$38+(('PK kalkyl'!$K$6-'PK kalkyl'!$AE$32)*'PK kalkyl'!$AE$33)<1,0,ROUND(('PK kalkyl'!$AE$37*I48)+'PK kalkyl'!$AE$38+(('PK kalkyl'!$K$6-'PK kalkyl'!$AE$32)*'PK kalkyl'!$AE$33),1)) ->  | AA48: =IF((Y48<W48),Y48-W48,0)*-'PK kalkyl'!$AE$15 ->  | AB48: =IF((Z48<X48),Z48-X48,0)*-'PK kalkyl'!$AE$35 ->  | AC48: =+AA48*Växtföljd!$G$18+AB48*Växtföljd!$G$18 -> 
A49: =IF(Import!A49="","",Import!A49) ->  | B49: =IF(Import!B49="","",Import!B49) ->  | C49: =IF(Import!C49="","",Import!C49) ->  | D49: =IF(Import!D49="","",Import!D49) ->  | E49: =IF(Import!E49="","",Import!E49) ->  | F49: =IF(Import!F49="","",Import!F49) ->  | G49: =IF(Import!G49="","",Import!G49) ->  | H49: =IF(Import!H49="","",Import!H49) ->  | I49: =IF(Import!J49="","",Import!J49) ->  | J49: =IF(Import!K49="","",Import!K49) ->  | K49: =IF(Import!L49="","",Import!L49) ->  | L49: =IF(Import!M49="","",Import!M49) ->  | M49: =IF(Import!P49="","",Import!P49) ->  | N49: =IF(Import!Q49="","",Import!Q49) ->  | O49: =IF(Import!R49="","",Import!R49) ->  | P49: 274.964902 | Q49: 4.43844791 | R49: 28.41678654 | S49: 28.41678654 | T49: =IF(Q49="","",(-0.00011*POWER(S49,2))+(0.01417*S49)+((0.00057*POWER(Q49,2))-(0.0529*Q49)+6.2018)+Kalkkalkyl!$AJ$2) -> 6.792074355 | W49: =IF(('PK kalkyl'!$AE$17*H49)+'PK kalkyl'!$AE$18+(('PK kalkyl'!$K$6-'PK kalkyl'!$AE$12)*'PK kalkyl'!$AE$13)<1,0,ROUND(('PK kalkyl'!$AE$17*H49)+'PK kalkyl'!$AE$18+(('PK kalkyl'!$K$6-'PK kalkyl'!$AE$12)*'PK kalkyl'!$AE$13),1)) ->  | X49: =IF(('PK kalkyl'!$AE$37*I49)+'PK kalkyl'!$AE$38+(('PK kalkyl'!$K$6-'PK kalkyl'!$AE$32)*'PK kalkyl'!$AE$33)<1,0,ROUND(('PK kalkyl'!$AE$37*I49)+'PK kalkyl'!$AE$38+(('PK kalkyl'!$K$6-'PK kalkyl'!$AE$32)*'PK kalkyl'!$AE$33),1)) ->  | AA49: =IF((Y49<W49),Y49-W49,0)*-'PK kalkyl'!$AE$15 ->  | AB49: =IF((Z49<X49),Z49-X49,0)*-'PK kalkyl'!$AE$35 ->  | AC49: =+AA49*Växtföljd!$G$18+AB49*Växtföljd!$G$18 -> 
A50: =IF(Import!A50="","",Import!A50) ->  | B50: =IF(Import!B50="","",Import!B50) ->  | C50: =IF(Import!C50="","",Import!C50) ->  | D50: =IF(Import!D50="","",Import!D50) ->  | E50: =IF(Import!E50="","",Import!E50) ->  | F50: =IF(Import!F50="","",Import!F50) ->  | G50: =IF(Import!G50="","",Import!G50) ->  | H50: =IF(Import!H50="","",Import!H50) ->  | I50: =IF(Import!J50="","",Import!J50) ->  | J50: =IF(Import!K50="","",Import!K50) ->  | K50: =IF(Import!L50="","",Import!L50) ->  | L50: =IF(Import!M50="","",Import!M50) ->  | M50: =IF(Import!P50="","",Import!P50) ->  | N50: =IF(Import!Q50="","",Import!Q50) ->  | O50: =IF(Import!R50="","",Import!R50) ->  | P50: 280 | Q50: 4.6 | R50: 29 | S50: 29 | T50: =IF(Q50="","",(-0.00011*POWER(S50,2))+(0.01417*S50)+((0.00057*POWER(Q50,2))-(0.0529*Q50)+6.2018)+Kalkkalkyl!$AJ$2) -> 6.7889412 | W50: =IF(('PK kalkyl'!$AE$17*H50)+'PK kalkyl'!$AE$18+(('PK kalkyl'!$K$6-'PK kalkyl'!$AE$12)*'PK kalkyl'!$AE$13)<1,0,ROUND(('PK kalkyl'!$AE$17*H50)+'PK kalkyl'!$AE$18+(('PK kalkyl'!$K$6-'PK kalkyl'!$AE$12)*'PK kalkyl'!$AE$13),1)) ->  | X50: =IF(('PK kalkyl'!$AE$37*I50)+'PK kalkyl'!$AE$38+(('PK kalkyl'!$K$6-'PK kalkyl'!$AE$32)*'PK kalkyl'!$AE$33)<1,0,ROUND(('PK kalkyl'!$AE$37*I50)+'PK kalkyl'!$AE$38+(('PK kalkyl'!$K$6-'PK kalkyl'!$AE$32)*'PK kalkyl'!$AE$33),1)) ->  | AA50: =IF((Y50<W50),Y50-W50,0)*-'PK kalkyl'!$AE$15 ->  | AB50: =IF((Z50<X50),Z50-X50,0)*-'PK kalkyl'!$AE$35 ->  | AC50: =+AA50*Växtföljd!$G$18+AB50*Växtföljd!$G$18 -> 
A51: =IF(Import!A51="","",Import!A51) ->  | B51: =IF(Import!B51="","",Import!B51) ->  | C51: =IF(Import!C51="","",Import!C51) ->  | D51: =IF(Import!D51="","",Import!D51) ->  | E51: =IF(Import!E51="","",Import!E51) ->  | F51: =IF(Import!F51="","",Import!F51) ->  | G51: =IF(Import!G51="","",Import!G51) ->  | H51: =IF(Import!H51="","",Import!H51) ->  | I51: =IF(Import!J51="","",Import!J51) ->  | J51: =IF(Import!K51="","",Import!K51) ->  | K51: =IF(Import!L51="","",Import!L51) ->  | L51: =IF(Import!M51="","",Import!M51) ->  | M51: =IF(Import!P51="","",Import!P51) ->  | N51: =IF(Import!Q51="","",Import!Q51) ->  | O51: =IF(Import!R51="","",Import!R51) ->  | P51: 278.7186345 | Q51: 4.548745382 | R51: 28.87186345 | S51: 28.87186345 | T51: =IF(Q51="","",(-0.00011*POWER(S51,2))+(0.01417*S51)+((0.00057*POWER(Q51,2))-(0.0529*Q51)+6.2018)+Kalkkalkyl!$AJ$2) -> 6.790385298 | W51: =IF(('PK kalkyl'!$AE$17*H51)+'PK kalkyl'!$AE$18+(('PK kalkyl'!$K$6-'PK kalkyl'!$AE$12)*'PK kalkyl'!$AE$13)<1,0,ROUND(('PK kalkyl'!$AE$17*H51)+'PK kalkyl'!$AE$18+(('PK kalkyl'!$K$6-'PK kalkyl'!$AE$12)*'PK kalkyl'!$AE$13),1)) ->  | X51: =IF(('PK kalkyl'!$AE$37*I51)+'PK kalkyl'!$AE$38+(('PK kalkyl'!$K$6-'PK kalkyl'!$AE$32)*'PK kalkyl'!$AE$33)<1,0,ROUND(('PK kalkyl'!$AE$37*I51)+'PK kalkyl'!$AE$38+(('PK kalkyl'!$K$6-'PK kalkyl'!$AE$32)*'PK kalkyl'!$AE$33),1)) ->  | AA51: =IF((Y51<W51),Y51-W51,0)*-'PK kalkyl'!$AE$15 ->  | AB51: =IF((Z51<X51),Z51-X51,0)*-'PK kalkyl'!$AE$35 ->  | AC51: =+AA51*Växtföljd!$G$18+AB51*Växtföljd!$G$18 -> 
A52: =IF(Import!A52="","",Import!A52) ->  | B52: =IF(Import!B52="","",Import!B52) ->  | C52: =IF(Import!C52="","",Import!C52) ->  | D52: =IF(Import!D52="","",Import!D52) ->  | E52: =IF(Import!E52="","",Import!E52) ->  | F52: =IF(Import!F52="","",Import!F52) ->  | G52: =IF(Import!G52="","",Import!G52) ->  | H52: =IF(Import!H52="","",Import!H52) ->  | I52: =IF(Import!J52="","",Import!J52) ->  | J52: =IF(Import!K52="","",Import!K52) ->  | K52: =IF(Import!L52="","",Import!L52) ->  | L52: =IF(Import!M52="","",Import!M52) ->  | M52: =IF(Import!P52="","",Import!P52) ->  | N52: =IF(Import!Q52="","",Import!Q52) ->  | O52: =IF(Import!R52="","",Import!R52) ->  | P52: 270 | Q52: 4.2 | R52: 28 | S52: 28 | T52: =IF(Q52="","",(-0.00011*POWER(S52,2))+(0.01417*S52)+((0.00057*POWER(Q52,2))-(0.0529*Q52)+6.2018)+Kalkkalkyl!$AJ$2) -> 6.8001948 | W52: =IF(('PK kalkyl'!$AE$17*H52)+'PK kalkyl'!$AE$18+(('PK kalkyl'!$K$6-'PK kalkyl'!$AE$12)*'PK kalkyl'!$AE$13)<1,0,ROUND(('PK kalkyl'!$AE$17*H52)+'PK kalkyl'!$AE$18+(('PK kalkyl'!$K$6-'PK kalkyl'!$AE$12)*'PK kalkyl'!$AE$13),1)) ->  | X52: =IF(('PK kalkyl'!$AE$37*I52)+'PK kalkyl'!$AE$38+(('PK kalkyl'!$K$6-'PK kalkyl'!$AE$32)*'PK kalkyl'!$AE$33)<1,0,ROUND(('PK kalkyl'!$AE$37*I52)+'PK kalkyl'!$AE$38+(('PK kalkyl'!$K$6-'PK kalkyl'!$AE$32)*'PK kalkyl'!$AE$33),1)) ->  | AA52: =IF((Y52<W52),Y52-W52,0)*-'PK kalkyl'!$AE$15 ->  | AB52: =IF((Z52<X52),Z52-X52,0)*-'PK kalkyl'!$AE$35 ->  | AC52: =+AA52*Växtföljd!$G$18+AB52*Växtföljd!$G$18 -> 
A53: =IF(Import!A53="","",Import!A53) ->  | B53: =IF(Import!B53="","",Import!B53) ->  | C53: =IF(Import!C53="","",Import!C53) ->  | D53: =IF(Import!D53="","",Import!D53) ->  | E53: =IF(Import!E53="","",Import!E53) ->  | F53: =IF(Import!F53="","",Import!F53) ->  | G53: =IF(Import!G53="","",Import!G53) ->  | H53: =IF(Import!H53="","",Import!H53) ->  | I53: =IF(Import!J53="","",Import!J53) ->  | J53: =IF(Import!K53="","",Import!K53) ->  | K53: =IF(Import!L53="","",Import!L53) ->  | L53: =IF(Import!M53="","",Import!M53) ->  | M53: =IF(Import!P53="","",Import!P53) ->  | N53: =IF(Import!Q53="","",Import!Q53) ->  | O53: =IF(Import!R53="","",Import!R53) ->  | P53: 254.5360077 | Q53: 4.112964254 | R53: 25.56297823 | S53: 25.56297823 | T53: =IF(Q53="","",(-0.00011*POWER(S53,2))+(0.01417*S53)+((0.00057*POWER(Q53,2))-(0.0529*Q53)+6.2018)+Kalkkalkyl!$AJ$2) -> 6.784212739 | W53: =IF(('PK kalkyl'!$AE$17*H53)+'PK kalkyl'!$AE$18+(('PK kalkyl'!$K$6-'PK kalkyl'!$AE$12)*'PK kalkyl'!$AE$13)<1,0,ROUND(('PK kalkyl'!$AE$17*H53)+'PK kalkyl'!$AE$18+(('PK kalkyl'!$K$6-'PK kalkyl'!$AE$12)*'PK kalkyl'!$AE$13),1)) ->  | X53: =IF(('PK kalkyl'!$AE$37*I53)+'PK kalkyl'!$AE$38+(('PK kalkyl'!$K$6-'PK kalkyl'!$AE$32)*'PK kalkyl'!$AE$33)<1,0,ROUND(('PK kalkyl'!$AE$37*I53)+'PK kalkyl'!$AE$38+(('PK kalkyl'!$K$6-'PK kalkyl'!$AE$32)*'PK kalkyl'!$AE$33),1)) ->  | AA53: =IF((Y53<W53),Y53-W53,0)*-'PK kalkyl'!$AE$15 ->  | AB53: =IF((Z53<X53),Z53-X53,0)*-'PK kalkyl'!$AE$35 ->  | AC53: =+AA53*Växtföljd!$G$18+AB53*Växtföljd!$G$18 -> 
A54: =IF(Import!A54="","",Import!A54) ->  | B54: =IF(Import!B54="","",Import!B54) ->  | C54: =IF(Import!C54="","",Import!C54) ->  | D54: =IF(Import!D54="","",Import!D54) ->  | E54: =IF(Import!E54="","",Import!E54) ->  | F54: =IF(Import!F54="","",Import!F54) ->  | G54: =IF(Import!G54="","",Import!G54) ->  | H54: =IF(Import!H54="","",Import!H54) ->  | I54: =IF(Import!J54="","",Import!J54) ->  | J54: =IF(Import!K54="","",Import!K54) ->  | K54: =IF(Import!L54="","",Import!L54) ->  | L54: =IF(Import!M54="","",Import!M54) ->  | M54: =IF(Import!P54="","",Import!P54) ->  | N54: =IF(Import!Q54="","",Import!Q54) ->  | O54: =IF(Import!R54="","",Import!R54) ->  | P54: 240 | Q54: 4 | R54: 23 | S54: 23 | T54: =IF(Q54="","",(-0.00011*POWER(S54,2))+(0.01417*S54)+((0.00057*POWER(Q54,2))-(0.0529*Q54)+6.2018)+Kalkkalkyl!$AJ$2) -> 6.76704 | W54: =IF(('PK kalkyl'!$AE$17*H54)+'PK kalkyl'!$AE$18+(('PK kalkyl'!$K$6-'PK kalkyl'!$AE$12)*'PK kalkyl'!$AE$13)<1,0,ROUND(('PK kalkyl'!$AE$17*H54)+'PK kalkyl'!$AE$18+(('PK kalkyl'!$K$6-'PK kalkyl'!$AE$12)*'PK kalkyl'!$AE$13),1)) ->  | X54: =IF(('PK kalkyl'!$AE$37*I54)+'PK kalkyl'!$AE$38+(('PK kalkyl'!$K$6-'PK kalkyl'!$AE$32)*'PK kalkyl'!$AE$33)<1,0,ROUND(('PK kalkyl'!$AE$37*I54)+'PK kalkyl'!$AE$38+(('PK kalkyl'!$K$6-'PK kalkyl'!$AE$32)*'PK kalkyl'!$AE$33),1)) ->  | AA54: =IF((Y54<W54),Y54-W54,0)*-'PK kalkyl'!$AE$15 ->  | AB54: =IF((Z54<X54),Z54-X54,0)*-'PK kalkyl'!$AE$35 ->  | AC54: =+AA54*Växtföljd!$G$18+AB54*Växtföljd!$G$18 -> 
A55: =IF(Import!A55="","",Import!A55) ->  | B55: =IF(Import!B55="","",Import!B55) ->  | C55: =IF(Import!C55="","",Import!C55) ->  | D55: =IF(Import!D55="","",Import!D55) ->  | E55: =IF(Import!E55="","",Import!E55) ->  | F55: =IF(Import!F55="","",Import!F55) ->  | G55: =IF(Import!G55="","",Import!G55) ->  | H55: =IF(Import!H55="","",Import!H55) ->  | I55: =IF(Import!J55="","",Import!J55) ->  | J55: =IF(Import!K55="","",Import!K55) ->  | K55: =IF(Import!L55="","",Import!L55) ->  | L55: =IF(Import!M55="","",Import!M55) ->  | M55: =IF(Import!P55="","",Import!P55) ->  | N55: =IF(Import!Q55="","",Import!Q55) ->  | O55: =IF(Import!R55="","",Import!R55) ->  | P55: 278.6446622 | Q55: 4.172444287 | R55: 28.60292302 | S55: 28.60292302 | T55: =IF(Q55="","",(-0.00011*POWER(S55,2))+(0.01417*S55)+((0.00057*POWER(Q55,2))-(0.0529*Q55)+6.2018)+Kalkkalkyl!$AJ$2) -> 6.80631042 | W55: =IF(('PK kalkyl'!$AE$17*H55)+'PK kalkyl'!$AE$18+(('PK kalkyl'!$K$6-'PK kalkyl'!$AE$12)*'PK kalkyl'!$AE$13)<1,0,ROUND(('PK kalkyl'!$AE$17*H55)+'PK kalkyl'!$AE$18+(('PK kalkyl'!$K$6-'PK kalkyl'!$AE$12)*'PK kalkyl'!$AE$13),1)) ->  | X55: =IF(('PK kalkyl'!$AE$37*I55)+'PK kalkyl'!$AE$38+(('PK kalkyl'!$K$6-'PK kalkyl'!$AE$32)*'PK kalkyl'!$AE$33)<1,0,ROUND(('PK kalkyl'!$AE$37*I55)+'PK kalkyl'!$AE$38+(('PK kalkyl'!$K$6-'PK kalkyl'!$AE$32)*'PK kalkyl'!$AE$33),1)) ->  | AA55: =IF((Y55<W55),Y55-W55,0)*-'PK kalkyl'!$AE$15 ->  | AB55: =IF((Z55<X55),Z55-X55,0)*-'PK kalkyl'!$AE$35 ->  | AC55: =+AA55*Växtföljd!$G$18+AB55*Växtföljd!$G$18 -> 
A56: =IF(Import!A56="","",Import!A56) ->  | B56: =IF(Import!B56="","",Import!B56) ->  | C56: =IF(Import!C56="","",Import!C56) ->  | D56: =IF(Import!D56="","",Import!D56) ->  | E56: =IF(Import!E56="","",Import!E56) ->  | F56: =IF(Import!F56="","",Import!F56) ->  | G56: =IF(Import!G56="","",Import!G56) ->  | H56: =IF(Import!H56="","",Import!H56) ->  | I56: =IF(Import!J56="","",Import!J56) ->  | J56: =IF(Import!K56="","",Import!K56) ->  | K56: =IF(Import!L56="","",Import!L56) ->  | L56: =IF(Import!M56="","",Import!M56) ->  | M56: =IF(Import!P56="","",Import!P56) ->  | N56: =IF(Import!Q56="","",Import!Q56) ->  | O56: =IF(Import!R56="","",Import!R56) ->  | P56: 310 | Q56: 4.3 | R56: 33 | S56: 33 | T56: =IF(Q56="","",(-0.00011*POWER(S56,2))+(0.01417*S56)+((0.00057*POWER(Q56,2))-(0.0529*Q56)+6.2018)+Kalkkalkyl!$AJ$2) -> 6.8326893 | W56: =IF(('PK kalkyl'!$AE$17*H56)+'PK kalkyl'!$AE$18+(('PK kalkyl'!$K$6-'PK kalkyl'!$AE$12)*'PK kalkyl'!$AE$13)<1,0,ROUND(('PK kalkyl'!$AE$17*H56)+'PK kalkyl'!$AE$18+(('PK kalkyl'!$K$6-'PK kalkyl'!$AE$12)*'PK kalkyl'!$AE$13),1)) ->  | X56: =IF(('PK kalkyl'!$AE$37*I56)+'PK kalkyl'!$AE$38+(('PK kalkyl'!$K$6-'PK kalkyl'!$AE$32)*'PK kalkyl'!$AE$33)<1,0,ROUND(('PK kalkyl'!$AE$37*I56)+'PK kalkyl'!$AE$38+(('PK kalkyl'!$K$6-'PK kalkyl'!$AE$32)*'PK kalkyl'!$AE$33),1)) ->  | AA56: =IF((Y56<W56),Y56-W56,0)*-'PK kalkyl'!$AE$15 ->  | AB56: =IF((Z56<X56),Z56-X56,0)*-'PK kalkyl'!$AE$35 ->  | AC56: =+AA56*Växtföljd!$G$18+AB56*Växtföljd!$G$18 -> 
A57: =IF(Import!A57="","",Import!A57) ->  | B57: =IF(Import!B57="","",Import!B57) ->  | C57: =IF(Import!C57="","",Import!C57) ->  | D57: =IF(Import!D57="","",Import!D57) ->  | E57: =IF(Import!E57="","",Import!E57) ->  | F57: =IF(Import!F57="","",Import!F57) ->  | G57: =IF(Import!G57="","",Import!G57) ->  | H57: =IF(Import!H57="","",Import!H57) ->  | I57: =IF(Import!J57="","",Import!J57) ->  | J57: =IF(Import!K57="","",Import!K57) ->  | K57: =IF(Import!L57="","",Import!L57) ->  | L57: =IF(Import!M57="","",Import!M57) ->  | M57: =IF(Import!P57="","",Import!P57) ->  | N57: =IF(Import!Q57="","",Import!Q57) ->  | O57: =IF(Import!R57="","",Import!R57) ->  | P57: 286.5507139 | Q57: 3.987802872 | R57: 27.6884335 | S57: 27.6884335 | T57: =IF(Q57="","",(-0.00011*POWER(S57,2))+(0.01417*S57)+((0.00057*POWER(Q57,2))-(0.0529*Q57)+6.2018)+Kalkkalkyl!$AJ$2) -> 6.807923368 | W57: =IF(('PK kalkyl'!$AE$17*H57)+'PK kalkyl'!$AE$18+(('PK kalkyl'!$K$6-'PK kalkyl'!$AE$12)*'PK kalkyl'!$AE$13)<1,0,ROUND(('PK kalkyl'!$AE$17*H57)+'PK kalkyl'!$AE$18+(('PK kalkyl'!$K$6-'PK kalkyl'!$AE$12)*'PK kalkyl'!$AE$13),1)) ->  | X57: =IF(('PK kalkyl'!$AE$37*I57)+'PK kalkyl'!$AE$38+(('PK kalkyl'!$K$6-'PK kalkyl'!$AE$32)*'PK kalkyl'!$AE$33)<1,0,ROUND(('PK kalkyl'!$AE$37*I57)+'PK kalkyl'!$AE$38+(('PK kalkyl'!$K$6-'PK kalkyl'!$AE$32)*'PK kalkyl'!$AE$33),1)) ->  | AA57: =IF((Y57<W57),Y57-W57,0)*-'PK kalkyl'!$AE$15 ->  | AB57: =IF((Z57<X57),Z57-X57,0)*-'PK kalkyl'!$AE$35 ->  | AC57: =+AA57*Växtföljd!$G$18+AB57*Växtföljd!$G$18 -> 
A58: =IF(Import!A58="","",Import!A58) ->  | B58: =IF(Import!B58="","",Import!B58) ->  | C58: =IF(Import!C58="","",Import!C58) ->  | D58: =IF(Import!D58="","",Import!D58) ->  | E58: =IF(Import!E58="","",Import!E58) ->  | F58: =IF(Import!F58="","",Import!F58) ->  | G58: =IF(Import!G58="","",Import!G58) ->  | H58: =IF(Import!H58="","",Import!H58) ->  | I58: =IF(Import!J58="","",Import!J58) ->  | J58: =IF(Import!K58="","",Import!K58) ->  | K58: =IF(Import!L58="","",Import!L58) ->  | L58: =IF(Import!M58="","",Import!M58) ->  | M58: =IF(Import!P58="","",Import!P58) ->  | N58: =IF(Import!Q58="","",Import!Q58) ->  | O58: =IF(Import!R58="","",Import!R58) ->  | P58: 210 | Q58: 3.7 | R58: 23 | S58: 23 | T58: =IF(Q58="","",(-0.00011*POWER(S58,2))+(0.01417*S58)+((0.00057*POWER(Q58,2))-(0.0529*Q58)+6.2018)+Kalkkalkyl!$AJ$2) -> 6.7815933 | W58: =IF(('PK kalkyl'!$AE$17*H58)+'PK kalkyl'!$AE$18+(('PK kalkyl'!$K$6-'PK kalkyl'!$AE$12)*'PK kalkyl'!$AE$13)<1,0,ROUND(('PK kalkyl'!$AE$17*H58)+'PK kalkyl'!$AE$18+(('PK kalkyl'!$K$6-'PK kalkyl'!$AE$12)*'PK kalkyl'!$AE$13),1)) ->  | X58: =IF(('PK kalkyl'!$AE$37*I58)+'PK kalkyl'!$AE$38+(('PK kalkyl'!$K$6-'PK kalkyl'!$AE$32)*'PK kalkyl'!$AE$33)<1,0,ROUND(('PK kalkyl'!$AE$37*I58)+'PK kalkyl'!$AE$38+(('PK kalkyl'!$K$6-'PK kalkyl'!$AE$32)*'PK kalkyl'!$AE$33),1)) ->  | AA58: =IF((Y58<W58),Y58-W58,0)*-'PK kalkyl'!$AE$15 ->  | AB58: =IF((Z58<X58),Z58-X58,0)*-'PK kalkyl'!$AE$35 ->  | AC58: =+AA58*Växtföljd!$G$18+AB58*Växtföljd!$G$18 -> 
A59: =IF(Import!A59="","",Import!A59) ->  | B59: =IF(Import!B59="","",Import!B59) ->  | C59: =IF(Import!C59="","",Import!C59) ->  | D59: =IF(Import!D59="","",Import!D59) ->  | E59: =IF(Import!E59="","",Import!E59) ->  | F59: =IF(Import!F59="","",Import!F59) ->  | G59: =IF(Import!G59="","",Import!G59) ->  | H59: =IF(Import!H59="","",Import!H59) ->  | I59: =IF(Import!J59="","",Import!J59) ->  | J59: =IF(Import!K59="","",Import!K59) ->  | K59: =IF(Import!L59="","",Import!L59) ->  | L59: =IF(Import!M59="","",Import!M59) ->  | M59: =IF(Import!P59="","",Import!P59) ->  | N59: =IF(Import!Q59="","",Import!Q59) ->  | O59: =IF(Import!R59="","",Import!R59) ->  | P59: 317.6555355 | Q59: 4.227759173 | R59: 32.58381315 | S59: 32.58381315 | T59: =IF(Q59="","",(-0.00011*POWER(S59,2))+(0.01417*S59)+((0.00057*POWER(Q59,2))-(0.0529*Q59)+6.2018)+Kalkkalkyl!$AJ$2) -> 6.833264785 | W59: =IF(('PK kalkyl'!$AE$17*H59)+'PK kalkyl'!$AE$18+(('PK kalkyl'!$K$6-'PK kalkyl'!$AE$12)*'PK kalkyl'!$AE$13)<1,0,ROUND(('PK kalkyl'!$AE$17*H59)+'PK kalkyl'!$AE$18+(('PK kalkyl'!$K$6-'PK kalkyl'!$AE$12)*'PK kalkyl'!$AE$13),1)) ->  | X59: =IF(('PK kalkyl'!$AE$37*I59)+'PK kalkyl'!$AE$38+(('PK kalkyl'!$K$6-'PK kalkyl'!$AE$32)*'PK kalkyl'!$AE$33)<1,0,ROUND(('PK kalkyl'!$AE$37*I59)+'PK kalkyl'!$AE$38+(('PK kalkyl'!$K$6-'PK kalkyl'!$AE$32)*'PK kalkyl'!$AE$33),1)) ->  | AA59: =IF((Y59<W59),Y59-W59,0)*-'PK kalkyl'!$AE$15 ->  | AB59: =IF((Z59<X59),Z59-X59,0)*-'PK kalkyl'!$AE$35 ->  | AC59: =+AA59*Växtföljd!$G$18+AB59*Växtföljd!$G$18 -> 
A60: =IF(Import!A60="","",Import!A60) ->  | B60: =IF(Import!B60="","",Import!B60) ->  | C60: =IF(Import!C60="","",Import!C60) ->  | D60: =IF(Import!D60="","",Import!D60) ->  | E60: =IF(Import!E60="","",Import!E60) ->  | F60: =IF(Import!F60="","",Import!F60) ->  | G60: =IF(Import!G60="","",Import!G60) ->  | H60: =IF(Import!H60="","",Import!H60) ->  | I60: =IF(Import!J60="","",Import!J60) ->  | J60: =IF(Import!K60="","",Import!K60) ->  | K60: =IF(Import!L60="","",Import!L60) ->  | L60: =IF(Import!M60="","",Import!M60) ->  | M60: =IF(Import!P60="","",Import!P60) ->  | N60: =IF(Import!Q60="","",Import!Q60) ->  | O60: =IF(Import!R60="","",Import!R60) ->  | P60: 360 | Q60: 3.9 | R60: 31 | S60: 31 | T60: =IF(Q60="","",(-0.00011*POWER(S60,2))+(0.01417*S60)+((0.00057*POWER(Q60,2))-(0.0529*Q60)+6.2018)+Kalkkalkyl!$AJ$2) -> 6.8377197 | W60: =IF(('PK kalkyl'!$AE$17*H60)+'PK kalkyl'!$AE$18+(('PK kalkyl'!$K$6-'PK kalkyl'!$AE$12)*'PK kalkyl'!$AE$13)<1,0,ROUND(('PK kalkyl'!$AE$17*H60)+'PK kalkyl'!$AE$18+(('PK kalkyl'!$K$6-'PK kalkyl'!$AE$12)*'PK kalkyl'!$AE$13),1)) ->  | X60: =IF(('PK kalkyl'!$AE$37*I60)+'PK kalkyl'!$AE$38+(('PK kalkyl'!$K$6-'PK kalkyl'!$AE$32)*'PK kalkyl'!$AE$33)<1,0,ROUND(('PK kalkyl'!$AE$37*I60)+'PK kalkyl'!$AE$38+(('PK kalkyl'!$K$6-'PK kalkyl'!$AE$32)*'PK kalkyl'!$AE$33),1)) ->  | AA60: =IF((Y60<W60),Y60-W60,0)*-'PK kalkyl'!$AE$15 ->  | AB60: =IF((Z60<X60),Z60-X60,0)*-'PK kalkyl'!$AE$35 ->  | AC60: =+AA60*Växtföljd!$G$18+AB60*Växtföljd!$G$18 -> 
A61: =IF(Import!A61="","",Import!A61) ->  | B61: =IF(Import!B61="","",Import!B61) ->  | C61: =IF(Import!C61="","",Import!C61) ->  | D61: =IF(Import!D61="","",Import!D61) ->  | E61: =IF(Import!E61="","",Import!E61) ->  | F61: =IF(Import!F61="","",Import!F61) ->  | G61: =IF(Import!G61="","",Import!G61) ->  | H61: =IF(Import!H61="","",Import!H61) ->  | I61: =IF(Import!J61="","",Import!J61) ->  | J61: =IF(Import!K61="","",Import!K61) ->  | K61: =IF(Import!L61="","",Import!L61) ->  | L61: =IF(Import!M61="","",Import!M61) ->  | M61: =IF(Import!P61="","",Import!P61) ->  | N61: =IF(Import!Q61="","",Import!Q61) ->  | O61: =IF(Import!R61="","",Import!R61) ->  | P61: 296.4917785 | Q61: 4.136724055 | R61: 28.40775328 | S61: 28.40775328 | T61: =IF(Q61="","",(-0.00011*POWER(S61,2))+(0.01417*S61)+((0.00057*POWER(Q61,2))-(0.0529*Q61)+6.2018)+Kalkkalkyl!$AJ$2) -> 6.806489229 | W61: =IF(('PK kalkyl'!$AE$17*H61)+'PK kalkyl'!$AE$18+(('PK kalkyl'!$K$6-'PK kalkyl'!$AE$12)*'PK kalkyl'!$AE$13)<1,0,ROUND(('PK kalkyl'!$AE$17*H61)+'PK kalkyl'!$AE$18+(('PK kalkyl'!$K$6-'PK kalkyl'!$AE$12)*'PK kalkyl'!$AE$13),1)) ->  | X61: =IF(('PK kalkyl'!$AE$37*I61)+'PK kalkyl'!$AE$38+(('PK kalkyl'!$K$6-'PK kalkyl'!$AE$32)*'PK kalkyl'!$AE$33)<1,0,ROUND(('PK kalkyl'!$AE$37*I61)+'PK kalkyl'!$AE$38+(('PK kalkyl'!$K$6-'PK kalkyl'!$AE$32)*'PK kalkyl'!$AE$33),1)) ->  | AA61: =IF((Y61<W61),Y61-W61,0)*-'PK kalkyl'!$AE$15 ->  | AB61: =IF((Z61<X61),Z61-X61,0)*-'PK kalkyl'!$AE$35 ->  | AC61: =+AA61*Växtföljd!$G$18+AB61*Växtföljd!$G$18 -> 
A62: =IF(Import!A62="","",Import!A62) ->  | B62: =IF(Import!B62="","",Import!B62) ->  | C62: =IF(Import!C62="","",Import!C62) ->  | D62: =IF(Import!D62="","",Import!D62) ->  | E62: =IF(Import!E62="","",Import!E62) ->  | F62: =IF(Import!F62="","",Import!F62) ->  | G62: =IF(Import!G62="","",Import!G62) ->  | H62: =IF(Import!H62="","",Import!H62) ->  | I62: =IF(Import!J62="","",Import!J62) ->  | J62: =IF(Import!K62="","",Import!K62) ->  | K62: =IF(Import!L62="","",Import!L62) ->  | L62: =IF(Import!M62="","",Import!M62) ->  | M62: =IF(Import!P62="","",Import!P62) ->  | N62: =IF(Import!Q62="","",Import!Q62) ->  | O62: =IF(Import!R62="","",Import!R62) ->  | P62: 310 | Q62: 4.9 | R62: 31 | S62: 31 | T62: =IF(Q62="","",(-0.00011*POWER(S62,2))+(0.01417*S62)+((0.00057*POWER(Q62,2))-(0.0529*Q62)+6.2018)+Kalkkalkyl!$AJ$2) -> 6.7898357 | W62: =IF(('PK kalkyl'!$AE$17*H62)+'PK kalkyl'!$AE$18+(('PK kalkyl'!$K$6-'PK kalkyl'!$AE$12)*'PK kalkyl'!$AE$13)<1,0,ROUND(('PK kalkyl'!$AE$17*H62)+'PK kalkyl'!$AE$18+(('PK kalkyl'!$K$6-'PK kalkyl'!$AE$12)*'PK kalkyl'!$AE$13),1)) ->  | X62: =IF(('PK kalkyl'!$AE$37*I62)+'PK kalkyl'!$AE$38+(('PK kalkyl'!$K$6-'PK kalkyl'!$AE$32)*'PK kalkyl'!$AE$33)<1,0,ROUND(('PK kalkyl'!$AE$37*I62)+'PK kalkyl'!$AE$38+(('PK kalkyl'!$K$6-'PK kalkyl'!$AE$32)*'PK kalkyl'!$AE$33),1)) ->  | AA62: =IF((Y62<W62),Y62-W62,0)*-'PK kalkyl'!$AE$15 ->  | AB62: =IF((Z62<X62),Z62-X62,0)*-'PK kalkyl'!$AE$35 ->  | AC62: =+AA62*Växtföljd!$G$18+AB62*Växtföljd!$G$18 -> 
A63: =IF(Import!A63="","",Import!A63) ->  | B63: =IF(Import!B63="","",Import!B63) ->  | C63: =IF(Import!C63="","",Import!C63) ->  | D63: =IF(Import!D63="","",Import!D63) ->  | E63: =IF(Import!E63="","",Import!E63) ->  | F63: =IF(Import!F63="","",Import!F63) ->  | G63: =IF(Import!G63="","",Import!G63) ->  | H63: =IF(Import!H63="","",Import!H63) ->  | I63: =IF(Import!J63="","",Import!J63) ->  | J63: =IF(Import!K63="","",Import!K63) ->  | K63: =IF(Import!L63="","",Import!L63) ->  | L63: =IF(Import!M63="","",Import!M63) ->  | M63: =IF(Import!P63="","",Import!P63) ->  | N63: =IF(Import!Q63="","",Import!Q63) ->  | O63: =IF(Import!R63="","",Import!R63) ->  | P63: 260.8942841 | Q63: 4.628672569 | R63: 28.17213166 | S63: 28.17213166 | T63: =IF(Q63="","",(-0.00011*POWER(S63,2))+(0.01417*S63)+((0.00057*POWER(Q63,2))-(0.0529*Q63)+6.2018)+Kalkkalkyl!$AJ$2) -> 6.781050764 | W63: =IF(('PK kalkyl'!$AE$17*H63)+'PK kalkyl'!$AE$18+(('PK kalkyl'!$K$6-'PK kalkyl'!$AE$12)*'PK kalkyl'!$AE$13)<1,0,ROUND(('PK kalkyl'!$AE$17*H63)+'PK kalkyl'!$AE$18+(('PK kalkyl'!$K$6-'PK kalkyl'!$AE$12)*'PK kalkyl'!$AE$13),1)) ->  | X63: =IF(('PK kalkyl'!$AE$37*I63)+'PK kalkyl'!$AE$38+(('PK kalkyl'!$K$6-'PK kalkyl'!$AE$32)*'PK kalkyl'!$AE$33)<1,0,ROUND(('PK kalkyl'!$AE$37*I63)+'PK kalkyl'!$AE$38+(('PK kalkyl'!$K$6-'PK kalkyl'!$AE$32)*'PK kalkyl'!$AE$33),1)) ->  | AA63: =IF((Y63<W63),Y63-W63,0)*-'PK kalkyl'!$AE$15 ->  | AB63: =IF((Z63<X63),Z63-X63,0)*-'PK kalkyl'!$AE$35 ->  | AC63: =+AA63*Växtföljd!$G$18+AB63*Växtföljd!$G$18 -> 
A64: =IF(Import!A64="","",Import!A64) ->  | B64: =IF(Import!B64="","",Import!B64) ->  | C64: =IF(Import!C64="","",Import!C64) ->  | D64: =IF(Import!D64="","",Import!D64) ->  | E64: =IF(Import!E64="","",Import!E64) ->  | F64: =IF(Import!F64="","",Import!F64) ->  | G64: =IF(Import!G64="","",Import!G64) ->  | H64: =IF(Import!H64="","",Import!H64) ->  | I64: =IF(Import!J64="","",Import!J64) ->  | J64: =IF(Import!K64="","",Import!K64) ->  | K64: =IF(Import!L64="","",Import!L64) ->  | L64: =IF(Import!M64="","",Import!M64) ->  | M64: =IF(Import!P64="","",Import!P64) ->  | N64: =IF(Import!Q64="","",Import!Q64) ->  | O64: =IF(Import!R64="","",Import!R64) ->  | P64: 230 | Q64: 4.2 | R64: 27 | S64: 27 | T64: =IF(Q64="","",(-0.00011*POWER(S64,2))+(0.01417*S64)+((0.00057*POWER(Q64,2))-(0.0529*Q64)+6.2018)+Kalkkalkyl!$AJ$2) -> 6.7920748 | W64: =IF(('PK kalkyl'!$AE$17*H64)+'PK kalkyl'!$AE$18+(('PK kalkyl'!$K$6-'PK kalkyl'!$AE$12)*'PK kalkyl'!$AE$13)<1,0,ROUND(('PK kalkyl'!$AE$17*H64)+'PK kalkyl'!$AE$18+(('PK kalkyl'!$K$6-'PK kalkyl'!$AE$12)*'PK kalkyl'!$AE$13),1)) ->  | X64: =IF(('PK kalkyl'!$AE$37*I64)+'PK kalkyl'!$AE$38+(('PK kalkyl'!$K$6-'PK kalkyl'!$AE$32)*'PK kalkyl'!$AE$33)<1,0,ROUND(('PK kalkyl'!$AE$37*I64)+'PK kalkyl'!$AE$38+(('PK kalkyl'!$K$6-'PK kalkyl'!$AE$32)*'PK kalkyl'!$AE$33),1)) ->  | AA64: =IF((Y64<W64),Y64-W64,0)*-'PK kalkyl'!$AE$15 ->  | AB64: =IF((Z64<X64),Z64-X64,0)*-'PK kalkyl'!$AE$35 ->  | AC64: =+AA64*Växtföljd!$G$18+AB64*Växtföljd!$G$18 -> 
A65: =IF(Import!A65="","",Import!A65) ->  | B65: =IF(Import!B65="","",Import!B65) ->  | C65: =IF(Import!C65="","",Import!C65) ->  | D65: =IF(Import!D65="","",Import!D65) ->  | E65: =IF(Import!E65="","",Import!E65) ->  | F65: =IF(Import!F65="","",Import!F65) ->  | G65: =IF(Import!G65="","",Import!G65) ->  | H65: =IF(Import!H65="","",Import!H65) ->  | I65: =IF(Import!J65="","",Import!J65) ->  | J65: =IF(Import!K65="","",Import!K65) ->  | K65: =IF(Import!L65="","",Import!L65) ->  | L65: =IF(Import!M65="","",Import!M65) ->  | M65: =IF(Import!P65="","",Import!P65) ->  | N65: =IF(Import!Q65="","",Import!Q65) ->  | O65: =IF(Import!R65="","",Import!R65) ->  | P65: 160.2607259 | Q65: 4.093527826 | R65: 21.67639129 | S65: 21.67639129 | T65: =IF(Q65="","",(-0.00011*POWER(S65,2))+(0.01417*S65)+((0.00057*POWER(Q65,2))-(0.0529*Q65)+6.2018)+Kalkkalkyl!$AJ$2) -> 6.750273062 | W65: =IF(('PK kalkyl'!$AE$17*H65)+'PK kalkyl'!$AE$18+(('PK kalkyl'!$K$6-'PK kalkyl'!$AE$12)*'PK kalkyl'!$AE$13)<1,0,ROUND(('PK kalkyl'!$AE$17*H65)+'PK kalkyl'!$AE$18+(('PK kalkyl'!$K$6-'PK kalkyl'!$AE$12)*'PK kalkyl'!$AE$13),1)) ->  | X65: =IF(('PK kalkyl'!$AE$37*I65)+'PK kalkyl'!$AE$38+(('PK kalkyl'!$K$6-'PK kalkyl'!$AE$32)*'PK kalkyl'!$AE$33)<1,0,ROUND(('PK kalkyl'!$AE$37*I65)+'PK kalkyl'!$AE$38+(('PK kalkyl'!$K$6-'PK kalkyl'!$AE$32)*'PK kalkyl'!$AE$33),1)) ->  | AA65: =IF((Y65<W65),Y65-W65,0)*-'PK kalkyl'!$AE$15 ->  | AB65: =IF((Z65<X65),Z65-X65,0)*-'PK kalkyl'!$AE$35 ->  | AC65: =+AA65*Växtföljd!$G$18+AB65*Växtföljd!$G$18 -> 
A66: =IF(Import!A66="","",Import!A66) ->  | B66: =IF(Import!B66="","",Import!B66) ->  | C66: =IF(Import!C66="","",Import!C66) ->  | D66: =IF(Import!D66="","",Import!D66) ->  | E66: =IF(Import!E66="","",Import!E66) ->  | F66: =IF(Import!F66="","",Import!F66) ->  | G66: =IF(Import!G66="","",Import!G66) ->  | H66: =IF(Import!H66="","",Import!H66) ->  | I66: =IF(Import!J66="","",Import!J66) ->  | J66: =IF(Import!K66="","",Import!K66) ->  | K66: =IF(Import!L66="","",Import!L66) ->  | L66: =IF(Import!M66="","",Import!M66) ->  | M66: =IF(Import!P66="","",Import!P66) ->  | N66: =IF(Import!Q66="","",Import!Q66) ->  | O66: =IF(Import!R66="","",Import!R66) ->  | P66: 99 | Q66: 4 | R66: 17 | S66: 17 | T66: =IF(Q66="","",(-0.00011*POWER(S66,2))+(0.01417*S66)+((0.00057*POWER(Q66,2))-(0.0529*Q66)+6.2018)+Kalkkalkyl!$AJ$2) -> 6.70842 | W66: =IF(('PK kalkyl'!$AE$17*H66)+'PK kalkyl'!$AE$18+(('PK kalkyl'!$K$6-'PK kalkyl'!$AE$12)*'PK kalkyl'!$AE$13)<1,0,ROUND(('PK kalkyl'!$AE$17*H66)+'PK kalkyl'!$AE$18+(('PK kalkyl'!$K$6-'PK kalkyl'!$AE$12)*'PK kalkyl'!$AE$13),1)) ->  | X66: =IF(('PK kalkyl'!$AE$37*I66)+'PK kalkyl'!$AE$38+(('PK kalkyl'!$K$6-'PK kalkyl'!$AE$32)*'PK kalkyl'!$AE$33)<1,0,ROUND(('PK kalkyl'!$AE$37*I66)+'PK kalkyl'!$AE$38+(('PK kalkyl'!$K$6-'PK kalkyl'!$AE$32)*'PK kalkyl'!$AE$33),1)) ->  | AA66: =IF((Y66<W66),Y66-W66,0)*-'PK kalkyl'!$AE$15 ->  | AB66: =IF((Z66<X66),Z66-X66,0)*-'PK kalkyl'!$AE$35 ->  | AC66: =+AA66*Växtföljd!$G$18+AB66*Växtföljd!$G$18 -> 
A67: =IF(Import!A67="","",Import!A67) ->  | B67: =IF(Import!B67="","",Import!B67) ->  | C67: =IF(Import!C67="","",Import!C67) ->  | D67: =IF(Import!D67="","",Import!D67) ->  | E67: =IF(Import!E67="","",Import!E67) ->  | F67: =IF(Import!F67="","",Import!F67) ->  | G67: =IF(Import!G67="","",Import!G67) ->  | H67: =IF(Import!H67="","",Import!H67) ->  | I67: =IF(Import!J67="","",Import!J67) ->  | J67: =IF(Import!K67="","",Import!K67) ->  | K67: =IF(Import!L67="","",Import!L67) ->  | L67: =IF(Import!M67="","",Import!M67) ->  | M67: =IF(Import!P67="","",Import!P67) ->  | N67: =IF(Import!Q67="","",Import!Q67) ->  | O67: =IF(Import!R67="","",Import!R67) ->  | P67: 145.7155687 | Q67: 4.596356867 | R67: 19.57468863 | S67: =IF(R67="",( 0.0977*P67 )+ 4.135,R67) -> 19.57468863 | T67: =IF(Q67="","",(-0.00011*POWER(S67,2))+(0.01417*S67)+((0.00057*POWER(Q67,2))-(0.0529*Q67)+6.2018)+Kalkkalkyl!$AJ$2) -> 6.705919635 | U67: =IF(Q67="","",IF(T67-G67<0,0,(T67-G67)*(1.9+(3.5*Q67+S67)/3.8)/2)) ->  | W67: =IF(('PK kalkyl'!$AE$17*H67)+'PK kalkyl'!$AE$18+(('PK kalkyl'!$K$6-'PK kalkyl'!$AE$12)*'PK kalkyl'!$AE$13)<1,0,ROUND(('PK kalkyl'!$AE$17*H67)+'PK kalkyl'!$AE$18+(('PK kalkyl'!$K$6-'PK kalkyl'!$AE$12)*'PK kalkyl'!$AE$13),1)) ->  | X67: =IF(('PK kalkyl'!$AE$37*I67)+'PK kalkyl'!$AE$38+(('PK kalkyl'!$K$6-'PK kalkyl'!$AE$32)*'PK kalkyl'!$AE$33)<1,0,ROUND(('PK kalkyl'!$AE$37*I67)+'PK kalkyl'!$AE$38+(('PK kalkyl'!$K$6-'PK kalkyl'!$AE$32)*'PK kalkyl'!$AE$33),1)) ->  | Y67: =AVERAGEIF(A:A,A67,W:W) ->  | Z67: =AVERAGEIF(A:A,A67,X:X) ->  | AA67: =IF((Y67<W67),Y67-W67,0)*-'PK kalkyl'!$AE$15 ->  | AB67: =IF((Z67<X67),Z67-X67,0)*-'PK kalkyl'!$AE$35 ->  | AC67: =+AA67*Växtföljd!$G$18+AB67*Växtföljd!$G$18 -> 
A68: =IF(Import!A68="","",Import!A68) ->  | B68: =IF(Import!B68="","",Import!B68) ->  | C68: =IF(Import!C68="","",Import!C68) ->  | D68: =IF(Import!D68="","",Import!D68) ->  | E68: =IF(Import!E68="","",Import!E68) ->  | F68: =IF(Import!F68="","",Import!F68) ->  | G68: =IF(Import!G68="","",Import!G68) ->  | H68: =IF(Import!H68="","",Import!H68) ->  | I68: =IF(Import!J68="","",Import!J68) ->  | J68: =IF(Import!K68="","",Import!K68) ->  | K68: =IF(Import!L68="","",Import!L68) ->  | L68: =IF(Import!M68="","",Import!M68) ->  | M68: =IF(Import!P68="","",Import!P68) ->  | N68: =IF(Import!Q68="","",Import!Q68) ->  | O68: =IF(Import!R68="","",Import!R68) ->  | P68: 160 | Q68: 5.5 | R68: 19 | S68: 19 | T68: =IF(Q68="","",(-0.00011*POWER(S68,2))+(0.01417*S68)+((0.00057*POWER(Q68,2))-(0.0529*Q68)+6.2018)+Kalkkalkyl!$AJ$2) -> 6.6576125 | W68: =IF(('PK kalkyl'!$AE$17*H68)+'PK kalkyl'!$AE$18+(('PK kalkyl'!$K$6-'PK kalkyl'!$AE$12)*'PK kalkyl'!$AE$13)<1,0,ROUND(('PK kalkyl'!$AE$17*H68)+'PK kalkyl'!$AE$18+(('PK kalkyl'!$K$6-'PK kalkyl'!$AE$12)*'PK kalkyl'!$AE$13),1)) ->  | X68: =IF(('PK kalkyl'!$AE$37*I68)+'PK kalkyl'!$AE$38+(('PK kalkyl'!$K$6-'PK kalkyl'!$AE$32)*'PK kalkyl'!$AE$33)<1,0,ROUND(('PK kalkyl'!$AE$37*I68)+'PK kalkyl'!$AE$38+(('PK kalkyl'!$K$6-'PK kalkyl'!$AE$32)*'PK kalkyl'!$AE$33),1)) ->  | AA68: =IF((Y68<W68),Y68-W68,0)*-'PK kalkyl'!$AE$15 ->  | AB68: =IF((Z68<X68),Z68-X68,0)*-'PK kalkyl'!$AE$35 ->  | AC68: =+AA68*Växtföljd!$G$18+AB68*Växtföljd!$G$18 -> 
A69: =IF(Import!A69="","",Import!A69) ->  | B69: =IF(Import!B69="","",Import!B69) ->  | C69: =IF(Import!C69="","",Import!C69) ->  | D69: =IF(Import!D69="","",Import!D69) ->  | E69: =IF(Import!E69="","",Import!E69) ->  | F69: =IF(Import!F69="","",Import!F69) ->  | G69: =IF(Import!G69="","",Import!G69) ->  | H69: =IF(Import!H69="","",Import!H69) ->  | I69: =IF(Import!J69="","",Import!J69) ->  | J69: =IF(Import!K69="","",Import!K69) ->  | K69: =IF(Import!L69="","",Import!L69) ->  | L69: =IF(Import!M69="","",Import!M69) ->  | M69: =IF(Import!P69="","",Import!P69) ->  | N69: =IF(Import!Q69="","",Import!Q69) ->  | O69: =IF(Import!R69="","",Import!R69) ->  | P69: 202.8859338 | Q69: 5.173292426 | R69: 22.49894736 | S69: 22.49894736 | T69: =IF(Q69="","",(-0.00011*POWER(S69,2))+(0.01417*S69)+((0.00057*POWER(Q69,2))-(0.0529*Q69)+6.2018)+Kalkkalkyl!$AJ$2) -> 6.706515509 | W69: =IF(('PK kalkyl'!$AE$17*H69)+'PK kalkyl'!$AE$18+(('PK kalkyl'!$K$6-'PK kalkyl'!$AE$12)*'PK kalkyl'!$AE$13)<1,0,ROUND(('PK kalkyl'!$AE$17*H69)+'PK kalkyl'!$AE$18+(('PK kalkyl'!$K$6-'PK kalkyl'!$AE$12)*'PK kalkyl'!$AE$13),1)) ->  | X69: =IF(('PK kalkyl'!$AE$37*I69)+'PK kalkyl'!$AE$38+(('PK kalkyl'!$K$6-'PK kalkyl'!$AE$32)*'PK kalkyl'!$AE$33)<1,0,ROUND(('PK kalkyl'!$AE$37*I69)+'PK kalkyl'!$AE$38+(('PK kalkyl'!$K$6-'PK kalkyl'!$AE$32)*'PK kalkyl'!$AE$33),1)) ->  | AA69: =IF((Y69<W69),Y69-W69,0)*-'PK kalkyl'!$AE$15 ->  | AB69: =IF((Z69<X69),Z69-X69,0)*-'PK kalkyl'!$AE$35 ->  | AC69: =+AA69*Växtföljd!$G$18+AB69*Växtföljd!$G$18 -> 
A70: =IF(Import!A70="","",Import!A70) ->  | B70: =IF(Import!B70="","",Import!B70) ->  | C70: =IF(Import!C70="","",Import!C70) ->  | D70: =IF(Import!D70="","",Import!D70) ->  | E70: =IF(Import!E70="","",Import!E70) ->  | F70: =IF(Import!F70="","",Import!F70) ->  | G70: =IF(Import!G70="","",Import!G70) ->  | H70: =IF(Import!H70="","",Import!H70) ->  | I70: =IF(Import!J70="","",Import!J70) ->  | J70: =IF(Import!K70="","",Import!K70) ->  | K70: =IF(Import!L70="","",Import!L70) ->  | L70: =IF(Import!M70="","",Import!M70) ->  | M70: =IF(Import!P70="","",Import!P70) ->  | N70: =IF(Import!Q70="","",Import!Q70) ->  | O70: =IF(Import!R70="","",Import!R70) ->  | P70: 310 | Q70: 3.5 | R70: 29 | S70: 29 | T70: =IF(Q70="","",(-0.00011*POWER(S70,2))+(0.01417*S70)+((0.00057*POWER(Q70,2))-(0.0529*Q70)+6.2018)+Kalkkalkyl!$AJ$2) -> 6.8420525 | W70: =IF(('PK kalkyl'!$AE$17*H70)+'PK kalkyl'!$AE$18+(('PK kalkyl'!$K$6-'PK kalkyl'!$AE$12)*'PK kalkyl'!$AE$13)<1,0,ROUND(('PK kalkyl'!$AE$17*H70)+'PK kalkyl'!$AE$18+(('PK kalkyl'!$K$6-'PK kalkyl'!$AE$12)*'PK kalkyl'!$AE$13),1)) ->  | X70: =IF(('PK kalkyl'!$AE$37*I70)+'PK kalkyl'!$AE$38+(('PK kalkyl'!$K$6-'PK kalkyl'!$AE$32)*'PK kalkyl'!$AE$33)<1,0,ROUND(('PK kalkyl'!$AE$37*I70)+'PK kalkyl'!$AE$38+(('PK kalkyl'!$K$6-'PK kalkyl'!$AE$32)*'PK kalkyl'!$AE$33),1)) ->  | AA70: =IF((Y70<W70),Y70-W70,0)*-'PK kalkyl'!$AE$15 ->  | AB70: =IF((Z70<X70),Z70-X70,0)*-'PK kalkyl'!$AE$35 ->  | AC70: =+AA70*Växtföljd!$G$18+AB70*Växtföljd!$G$18 -> 
A71: =IF(Import!A71="","",Import!A71) ->  | B71: =IF(Import!B71="","",Import!B71) ->  | C71: =IF(Import!C71="","",Import!C71) ->  | D71: =IF(Import!D71="","",Import!D71) ->  | E71: =IF(Import!E71="","",Import!E71) ->  | F71: =IF(Import!F71="","",Import!F71) ->  | G71: =IF(Import!G71="","",Import!G71) ->  | H71: =IF(Import!H71="","",Import!H71) ->  | I71: =IF(Import!J71="","",Import!J71) ->  | J71: =IF(Import!K71="","",Import!K71) ->  | K71: =IF(Import!L71="","",Import!L71) ->  | L71: =IF(Import!M71="","",Import!M71) ->  | M71: =IF(Import!P71="","",Import!P71) ->  | N71: =IF(Import!Q71="","",Import!Q71) ->  | O71: =IF(Import!R71="","",Import!R71) ->  | P71: 278.22366 | Q71: 3.736869825 | R71: 34.8519941 | S71: 34.8519941 | T71: =IF(Q71="","",(-0.00011*POWER(S71,2))+(0.01417*S71)+((0.00057*POWER(Q71,2))-(0.0529*Q71)+6.2018)+Kalkkalkyl!$AJ$2) -> 6.87231917 | W71: =IF(('PK kalkyl'!$AE$17*H71)+'PK kalkyl'!$AE$18+(('PK kalkyl'!$K$6-'PK kalkyl'!$AE$12)*'PK kalkyl'!$AE$13)<1,0,ROUND(('PK kalkyl'!$AE$17*H71)+'PK kalkyl'!$AE$18+(('PK kalkyl'!$K$6-'PK kalkyl'!$AE$12)*'PK kalkyl'!$AE$13),1)) ->  | X71: =IF(('PK kalkyl'!$AE$37*I71)+'PK kalkyl'!$AE$38+(('PK kalkyl'!$K$6-'PK kalkyl'!$AE$32)*'PK kalkyl'!$AE$33)<1,0,ROUND(('PK kalkyl'!$AE$37*I71)+'PK kalkyl'!$AE$38+(('PK kalkyl'!$K$6-'PK kalkyl'!$AE$32)*'PK kalkyl'!$AE$33),1)) ->  | AA71: =IF((Y71<W71),Y71-W71,0)*-'PK kalkyl'!$AE$15 ->  | AB71: =IF((Z71<X71),Z71-X71,0)*-'PK kalkyl'!$AE$35 ->  | AC71: =+AA71*Växtföljd!$G$18+AB71*Växtföljd!$G$18 -> 
A72: =IF(Import!A72="","",Import!A72) ->  | B72: =IF(Import!B72="","",Import!B72) ->  | C72: =IF(Import!C72="","",Import!C72) ->  | D72: =IF(Import!D72="","",Import!D72) ->  | E72: =IF(Import!E72="","",Import!E72) ->  | F72: =IF(Import!F72="","",Import!F72) ->  | G72: =IF(Import!G72="","",Import!G72) ->  | H72: =IF(Import!H72="","",Import!H72) ->  | I72: =IF(Import!J72="","",Import!J72) ->  | J72: =IF(Import!K72="","",Import!K72) ->  | K72: =IF(Import!L72="","",Import!L72) ->  | L72: =IF(Import!M72="","",Import!M72) ->  | M72: =IF(Import!P72="","",Import!P72) ->  | N72: =IF(Import!Q72="","",Import!Q72) ->  | O72: =IF(Import!R72="","",Import!R72) ->  | P72: 310 | Q72: 3.1 | R72: 34 | S72: 34 | T72: =IF(Q72="","",(-0.00011*POWER(S72,2))+(0.01417*S72)+((0.00057*POWER(Q72,2))-(0.0529*Q72)+6.2018)+Kalkkalkyl!$AJ$2) -> 6.8979077 | W72: =IF(('PK kalkyl'!$AE$17*H72)+'PK kalkyl'!$AE$18+(('PK kalkyl'!$K$6-'PK kalkyl'!$AE$12)*'PK kalkyl'!$AE$13)<1,0,ROUND(('PK kalkyl'!$AE$17*H72)+'PK kalkyl'!$AE$18+(('PK kalkyl'!$K$6-'PK kalkyl'!$AE$12)*'PK kalkyl'!$AE$13),1)) ->  | X72: =IF(('PK kalkyl'!$AE$37*I72)+'PK kalkyl'!$AE$38+(('PK kalkyl'!$K$6-'PK kalkyl'!$AE$32)*'PK kalkyl'!$AE$33)<1,0,ROUND(('PK kalkyl'!$AE$37*I72)+'PK kalkyl'!$AE$38+(('PK kalkyl'!$K$6-'PK kalkyl'!$AE$32)*'PK kalkyl'!$AE$33),1)) ->  | AA72: =IF((Y72<W72),Y72-W72,0)*-'PK kalkyl'!$AE$15 ->  | AB72: =IF((Z72<X72),Z72-X72,0)*-'PK kalkyl'!$AE$35 ->  | AC72: =+AA72*Växtföljd!$G$18+AB72*Växtföljd!$G$18 -> 
A73: =IF(Import!A73="","",Import!A73) ->  | B73: =IF(Import!B73="","",Import!B73) ->  | C73: =IF(Import!C73="","",Import!C73) ->  | D73: =IF(Import!D73="","",Import!D73) ->  | E73: =IF(Import!E73="","",Import!E73) ->  | F73: =IF(Import!F73="","",Import!F73) ->  | G73: =IF(Import!G73="","",Import!G73) ->  | H73: =IF(Import!H73="","",Import!H73) ->  | I73: =IF(Import!J73="","",Import!J73) ->  | J73: =IF(Import!K73="","",Import!K73) ->  | K73: =IF(Import!L73="","",Import!L73) ->  | L73: =IF(Import!M73="","",Import!M73) ->  | M73: =IF(Import!P73="","",Import!P73) ->  | N73: =IF(Import!Q73="","",Import!Q73) ->  | O73: =IF(Import!R73="","",Import!R73) ->  | P73: 287.5200842 | Q73: 3.25306478 | R73: 34.01746238 | S73: 34.01746238 | T73: =IF(Q73="","",(-0.00011*POWER(S73,2))+(0.01417*S73)+((0.00057*POWER(Q73,2))-(0.0529*Q73)+6.2018)+Kalkkalkyl!$AJ$2) -> 6.890481648 | W73: =IF(('PK kalkyl'!$AE$17*H73)+'PK kalkyl'!$AE$18+(('PK kalkyl'!$K$6-'PK kalkyl'!$AE$12)*'PK kalkyl'!$AE$13)<1,0,ROUND(('PK kalkyl'!$AE$17*H73)+'PK kalkyl'!$AE$18+(('PK kalkyl'!$K$6-'PK kalkyl'!$AE$12)*'PK kalkyl'!$AE$13),1)) ->  | X73: =IF(('PK kalkyl'!$AE$37*I73)+'PK kalkyl'!$AE$38+(('PK kalkyl'!$K$6-'PK kalkyl'!$AE$32)*'PK kalkyl'!$AE$33)<1,0,ROUND(('PK kalkyl'!$AE$37*I73)+'PK kalkyl'!$AE$38+(('PK kalkyl'!$K$6-'PK kalkyl'!$AE$32)*'PK kalkyl'!$AE$33),1)) ->  | AA73: =IF((Y73<W73),Y73-W73,0)*-'PK kalkyl'!$AE$15 ->  | AB73: =IF((Z73<X73),Z73-X73,0)*-'PK kalkyl'!$AE$35 ->  | AC73: =+AA73*Växtföljd!$G$18+AB73*Växtföljd!$G$18 -> 
A74: =IF(Import!A74="","",Import!A74) ->  | B74: =IF(Import!B74="","",Import!B74) ->  | C74: =IF(Import!C74="","",Import!C74) ->  | D74: =IF(Import!D74="","",Import!D74) ->  | E74: =IF(Import!E74="","",Import!E74) ->  | F74: =IF(Import!F74="","",Import!F74) ->  | G74: =IF(Import!G74="","",Import!G74) ->  | H74: =IF(Import!H74="","",Import!H74) ->  | I74: =IF(Import!J74="","",Import!J74) ->  | J74: =IF(Import!K74="","",Import!K74) ->  | K74: =IF(Import!L74="","",Import!L74) ->  | L74: =IF(Import!M74="","",Import!M74) ->  | M74: =IF(Import!P74="","",Import!P74) ->  | N74: =IF(Import!Q74="","",Import!Q74) ->  | O74: =IF(Import!R74="","",Import!R74) ->  | P74: 270 | Q74: 3.4 | R74: 34 | S74: 34 | T74: =IF(Q74="","",(-0.00011*POWER(S74,2))+(0.01417*S74)+((0.00057*POWER(Q74,2))-(0.0529*Q74)+6.2018)+Kalkkalkyl!$AJ$2) -> 6.8831492 | W74: =IF(('PK kalkyl'!$AE$17*H74)+'PK kalkyl'!$AE$18+(('PK kalkyl'!$K$6-'PK kalkyl'!$AE$12)*'PK kalkyl'!$AE$13)<1,0,ROUND(('PK kalkyl'!$AE$17*H74)+'PK kalkyl'!$AE$18+(('PK kalkyl'!$K$6-'PK kalkyl'!$AE$12)*'PK kalkyl'!$AE$13),1)) ->  | X74: =IF(('PK kalkyl'!$AE$37*I74)+'PK kalkyl'!$AE$38+(('PK kalkyl'!$K$6-'PK kalkyl'!$AE$32)*'PK kalkyl'!$AE$33)<1,0,ROUND(('PK kalkyl'!$AE$37*I74)+'PK kalkyl'!$AE$38+(('PK kalkyl'!$K$6-'PK kalkyl'!$AE$32)*'PK kalkyl'!$AE$33),1)) ->  | AA74: =IF((Y74<W74),Y74-W74,0)*-'PK kalkyl'!$AE$15 ->  | AB74: =IF((Z74<X74),Z74-X74,0)*-'PK kalkyl'!$AE$35 ->  | AC74: =+AA74*Växtföljd!$G$18+AB74*Växtföljd!$G$18 -> 
A75: =IF(Import!A75="","",Import!A75) ->  | B75: =IF(Import!B75="","",Import!B75) ->  | C75: =IF(Import!C75="","",Import!C75) ->  | D75: =IF(Import!D75="","",Import!D75) ->  | E75: =IF(Import!E75="","",Import!E75) ->  | F75: =IF(Import!F75="","",Import!F75) ->  | G75: =IF(Import!G75="","",Import!G75) ->  | H75: =IF(Import!H75="","",Import!H75) ->  | I75: =IF(Import!J75="","",Import!J75) ->  | J75: =IF(Import!K75="","",Import!K75) ->  | K75: =IF(Import!L75="","",Import!L75) ->  | L75: =IF(Import!M75="","",Import!M75) ->  | M75: =IF(Import!P75="","",Import!P75) ->  | N75: =IF(Import!Q75="","",Import!Q75) ->  | O75: =IF(Import!R75="","",Import!R75) ->  | P75: 317.8543299 | Q75: 3.218095972 | R75: 33.12492916 | S75: 33.12492916 | T75: =IF(Q75="","",(-0.00011*POWER(S75,2))+(0.01417*S75)+((0.00057*POWER(Q75,2))-(0.0529*Q75)+6.2018)+Kalkkalkyl!$AJ$2) -> 6.886147268 | W75: =IF(('PK kalkyl'!$AE$17*H75)+'PK kalkyl'!$AE$18+(('PK kalkyl'!$K$6-'PK kalkyl'!$AE$12)*'PK kalkyl'!$AE$13)<1,0,ROUND(('PK kalkyl'!$AE$17*H75)+'PK kalkyl'!$AE$18+(('PK kalkyl'!$K$6-'PK kalkyl'!$AE$12)*'PK kalkyl'!$AE$13),1)) ->  | X75: =IF(('PK kalkyl'!$AE$37*I75)+'PK kalkyl'!$AE$38+(('PK kalkyl'!$K$6-'PK kalkyl'!$AE$32)*'PK kalkyl'!$AE$33)<1,0,ROUND(('PK kalkyl'!$AE$37*I75)+'PK kalkyl'!$AE$38+(('PK kalkyl'!$K$6-'PK kalkyl'!$AE$32)*'PK kalkyl'!$AE$33),1)) ->  | AA75: =IF((Y75<W75),Y75-W75,0)*-'PK kalkyl'!$AE$15 ->  | AB75: =IF((Z75<X75),Z75-X75,0)*-'PK kalkyl'!$AE$35 ->  | AC75: =+AA75*Växtföljd!$G$18+AB75*Växtföljd!$G$18 -> 
A76: =IF(Import!A76="","",Import!A76) ->  | B76: =IF(Import!B76="","",Import!B76) ->  | C76: =IF(Import!C76="","",Import!C76) ->  | D76: =IF(Import!D76="","",Import!D76) ->  | E76: =IF(Import!E76="","",Import!E76) ->  | F76: =IF(Import!F76="","",Import!F76) ->  | G76: =IF(Import!G76="","",Import!G76) ->  | H76: =IF(Import!H76="","",Import!H76) ->  | I76: =IF(Import!J76="","",Import!J76) ->  | J76: =IF(Import!K76="","",Import!K76) ->  | K76: =IF(Import!L76="","",Import!L76) ->  | L76: =IF(Import!M76="","",Import!M76) ->  | M76: =IF(Import!P76="","",Import!P76) ->  | N76: =IF(Import!Q76="","",Import!Q76) ->  | O76: =IF(Import!R76="","",Import!R76) ->  | P76: 380 | Q76: 3.1 | R76: 34 | S76: 34 | T76: =IF(Q76="","",(-0.00011*POWER(S76,2))+(0.01417*S76)+((0.00057*POWER(Q76,2))-(0.0529*Q76)+6.2018)+Kalkkalkyl!$AJ$2) -> 6.8979077 | W76: =IF(('PK kalkyl'!$AE$17*H76)+'PK kalkyl'!$AE$18+(('PK kalkyl'!$K$6-'PK kalkyl'!$AE$12)*'PK kalkyl'!$AE$13)<1,0,ROUND(('PK kalkyl'!$AE$17*H76)+'PK kalkyl'!$AE$18+(('PK kalkyl'!$K$6-'PK kalkyl'!$AE$12)*'PK kalkyl'!$AE$13),1)) ->  | X76: =IF(('PK kalkyl'!$AE$37*I76)+'PK kalkyl'!$AE$38+(('PK kalkyl'!$K$6-'PK kalkyl'!$AE$32)*'PK kalkyl'!$AE$33)<1,0,ROUND(('PK kalkyl'!$AE$37*I76)+'PK kalkyl'!$AE$38+(('PK kalkyl'!$K$6-'PK kalkyl'!$AE$32)*'PK kalkyl'!$AE$33),1)) ->  | AA76: =IF((Y76<W76),Y76-W76,0)*-'PK kalkyl'!$AE$15 ->  | AB76: =IF((Z76<X76),Z76-X76,0)*-'PK kalkyl'!$AE$35 ->  | AC76: =+AA76*Växtföljd!$G$18+AB76*Växtföljd!$G$18 -> 
A77: =IF(Import!A77="","",Import!A77) ->  | B77: =IF(Import!B77="","",Import!B77) ->  | C77: =IF(Import!C77="","",Import!C77) ->  | D77: =IF(Import!D77="","",Import!D77) ->  | E77: =IF(Import!E77="","",Import!E77) ->  | F77: =IF(Import!F77="","",Import!F77) ->  | G77: =IF(Import!G77="","",Import!G77) ->  | H77: =IF(Import!H77="","",Import!H77) ->  | I77: =IF(Import!J77="","",Import!J77) ->  | J77: =IF(Import!K77="","",Import!K77) ->  | K77: =IF(Import!L77="","",Import!L77) ->  | L77: =IF(Import!M77="","",Import!M77) ->  | M77: =IF(Import!P77="","",Import!P77) ->  | N77: =IF(Import!Q77="","",Import!Q77) ->  | O77: =IF(Import!R77="","",Import!R77) ->  | P77: 271.2269863 | Q77: 3.144945343 | R77: 32.51145232 | S77: 32.51145232 | T77: =IF(Q77="","",(-0.00011*POWER(S77,2))+(0.01417*S77)+((0.00057*POWER(Q77,2))-(0.0529*Q77)+6.2018)+Kalkkalkyl!$AJ$2) -> 6.885487961 | W77: =IF(('PK kalkyl'!$AE$17*H77)+'PK kalkyl'!$AE$18+(('PK kalkyl'!$K$6-'PK kalkyl'!$AE$12)*'PK kalkyl'!$AE$13)<1,0,ROUND(('PK kalkyl'!$AE$17*H77)+'PK kalkyl'!$AE$18+(('PK kalkyl'!$K$6-'PK kalkyl'!$AE$12)*'PK kalkyl'!$AE$13),1)) ->  | X77: =IF(('PK kalkyl'!$AE$37*I77)+'PK kalkyl'!$AE$38+(('PK kalkyl'!$K$6-'PK kalkyl'!$AE$32)*'PK kalkyl'!$AE$33)<1,0,ROUND(('PK kalkyl'!$AE$37*I77)+'PK kalkyl'!$AE$38+(('PK kalkyl'!$K$6-'PK kalkyl'!$AE$32)*'PK kalkyl'!$AE$33),1)) ->  | AA77: =IF((Y77<W77),Y77-W77,0)*-'PK kalkyl'!$AE$15 ->  | AB77: =IF((Z77<X77),Z77-X77,0)*-'PK kalkyl'!$AE$35 ->  | AC77: =+AA77*Växtföljd!$G$18+AB77*Växtföljd!$G$18 -> 
A78: =IF(Import!A78="","",Import!A78) ->  | B78: =IF(Import!B78="","",Import!B78) ->  | C78: =IF(Import!C78="","",Import!C78) ->  | D78: =IF(Import!D78="","",Import!D78) ->  | E78: =IF(Import!E78="","",Import!E78) ->  | F78: =IF(Import!F78="","",Import!F78) ->  | G78: =IF(Import!G78="","",Import!G78) ->  | H78: =IF(Import!H78="","",Import!H78) ->  | I78: =IF(Import!J78="","",Import!J78) ->  | J78: =IF(Import!K78="","",Import!K78) ->  | K78: =IF(Import!L78="","",Import!L78) ->  | L78: =IF(Import!M78="","",Import!M78) ->  | M78: =IF(Import!P78="","",Import!P78) ->  | N78: =IF(Import!Q78="","",Import!Q78) ->  | O78: =IF(Import!R78="","",Import!R78) ->  | P78: 310 | Q78: 2.7 | R78: 35 | S78: 35 | T78: =IF(Q78="","",(-0.00011*POWER(S78,2))+(0.01417*S78)+((0.00057*POWER(Q78,2))-(0.0529*Q78)+6.2018)+Kalkkalkyl!$AJ$2) -> 6.9243253 | W78: =IF(('PK kalkyl'!$AE$17*H78)+'PK kalkyl'!$AE$18+(('PK kalkyl'!$K$6-'PK kalkyl'!$AE$12)*'PK kalkyl'!$AE$13)<1,0,ROUND(('PK kalkyl'!$AE$17*H78)+'PK kalkyl'!$AE$18+(('PK kalkyl'!$K$6-'PK kalkyl'!$AE$12)*'PK kalkyl'!$AE$13),1)) ->  | X78: =IF(('PK kalkyl'!$AE$37*I78)+'PK kalkyl'!$AE$38+(('PK kalkyl'!$K$6-'PK kalkyl'!$AE$32)*'PK kalkyl'!$AE$33)<1,0,ROUND(('PK kalkyl'!$AE$37*I78)+'PK kalkyl'!$AE$38+(('PK kalkyl'!$K$6-'PK kalkyl'!$AE$32)*'PK kalkyl'!$AE$33),1)) ->  | AA78: =IF((Y78<W78),Y78-W78,0)*-'PK kalkyl'!$AE$15 ->  | AB78: =IF((Z78<X78),Z78-X78,0)*-'PK kalkyl'!$AE$35 ->  | AC78: =+AA78*Växtföljd!$G$18+AB78*Växtföljd!$G$18 -> 
A79: =IF(Import!A79="","",Import!A79) ->  | B79: =IF(Import!B79="","",Import!B79) ->  | C79: =IF(Import!C79="","",Import!C79) ->  | D79: =IF(Import!D79="","",Import!D79) ->  | E79: =IF(Import!E79="","",Import!E79) ->  | F79: =IF(Import!F79="","",Import!F79) ->  | G79: =IF(Import!G79="","",Import!G79) ->  | H79: =IF(Import!H79="","",Import!H79) ->  | I79: =IF(Import!J79="","",Import!J79) ->  | J79: =IF(Import!K79="","",Import!K79) ->  | K79: =IF(Import!L79="","",Import!L79) ->  | L79: =IF(Import!M79="","",Import!M79) ->  | M79: =IF(Import!P79="","",Import!P79) ->  | N79: =IF(Import!Q79="","",Import!Q79) ->  | O79: =IF(Import!R79="","",Import!R79) ->  | P79: 298.5478621 | Q79: 2.975128113 | R79: 33.10629986 | S79: 33.10629986 | T79: =IF(Q79="","",(-0.00011*POWER(S79,2))+(0.01417*S79)+((0.00057*POWER(Q79,2))-(0.0529*Q79)+6.2018)+Kalkkalkyl!$AJ$2) -> 6.898014303 | W79: =IF(('PK kalkyl'!$AE$17*H79)+'PK kalkyl'!$AE$18+(('PK kalkyl'!$K$6-'PK kalkyl'!$AE$12)*'PK kalkyl'!$AE$13)<1,0,ROUND(('PK kalkyl'!$AE$17*H79)+'PK kalkyl'!$AE$18+(('PK kalkyl'!$K$6-'PK kalkyl'!$AE$12)*'PK kalkyl'!$AE$13),1)) ->  | X79: =IF(('PK kalkyl'!$AE$37*I79)+'PK kalkyl'!$AE$38+(('PK kalkyl'!$K$6-'PK kalkyl'!$AE$32)*'PK kalkyl'!$AE$33)<1,0,ROUND(('PK kalkyl'!$AE$37*I79)+'PK kalkyl'!$AE$38+(('PK kalkyl'!$K$6-'PK kalkyl'!$AE$32)*'PK kalkyl'!$AE$33),1)) ->  | AA79: =IF((Y79<W79),Y79-W79,0)*-'PK kalkyl'!$AE$15 ->  | AB79: =IF((Z79<X79),Z79-X79,0)*-'PK kalkyl'!$AE$35 ->  | AC79: =+AA79*Växtföljd!$G$18+AB79*Växtföljd!$G$18 -> 
A80: =IF(Import!A80="","",Import!A80) ->  | B80: =IF(Import!B80="","",Import!B80) ->  | C80: =IF(Import!C80="","",Import!C80) ->  | D80: =IF(Import!D80="","",Import!D80) ->  | E80: =IF(Import!E80="","",Import!E80) ->  | F80: =IF(Import!F80="","",Import!F80) ->  | G80: =IF(Import!G80="","",Import!G80) ->  | H80: =IF(Import!H80="","",Import!H80) ->  | I80: =IF(Import!J80="","",Import!J80) ->  | J80: =IF(Import!K80="","",Import!K80) ->  | K80: =IF(Import!L80="","",Import!L80) ->  | L80: =IF(Import!M80="","",Import!M80) ->  | M80: =IF(Import!P80="","",Import!P80) ->  | N80: =IF(Import!Q80="","",Import!Q80) ->  | O80: =IF(Import!R80="","",Import!R80) ->  | P80: 250 | Q80: 3.2 | R80: 30 | S80: 30 | T80: =IF(Q80="","",(-0.00011*POWER(S80,2))+(0.01417*S80)+((0.00057*POWER(Q80,2))-(0.0529*Q80)+6.2018)+Kalkkalkyl!$AJ$2) -> 6.8644568 | W80: =IF(('PK kalkyl'!$AE$17*H80)+'PK kalkyl'!$AE$18+(('PK kalkyl'!$K$6-'PK kalkyl'!$AE$12)*'PK kalkyl'!$AE$13)<1,0,ROUND(('PK kalkyl'!$AE$17*H80)+'PK kalkyl'!$AE$18+(('PK kalkyl'!$K$6-'PK kalkyl'!$AE$12)*'PK kalkyl'!$AE$13),1)) ->  | X80: =IF(('PK kalkyl'!$AE$37*I80)+'PK kalkyl'!$AE$38+(('PK kalkyl'!$K$6-'PK kalkyl'!$AE$32)*'PK kalkyl'!$AE$33)<1,0,ROUND(('PK kalkyl'!$AE$37*I80)+'PK kalkyl'!$AE$38+(('PK kalkyl'!$K$6-'PK kalkyl'!$AE$32)*'PK kalkyl'!$AE$33),1)) ->  | AA80: =IF((Y80<W80),Y80-W80,0)*-'PK kalkyl'!$AE$15 ->  | AB80: =IF((Z80<X80),Z80-X80,0)*-'PK kalkyl'!$AE$35 ->  | AC80: =+AA80*Växtföljd!$G$18+AB80*Växtföljd!$G$18 -> 
A81: =IF(Import!A81="","",Import!A81) ->  | B81: =IF(Import!B81="","",Import!B81) ->  | C81: =IF(Import!C81="","",Import!C81) ->  | D81: =IF(Import!D81="","",Import!D81) ->  | E81: =IF(Import!E81="","",Import!E81) ->  | F81: =IF(Import!F81="","",Import!F81) ->  | G81: =IF(Import!G81="","",Import!G81) ->  | H81: =IF(Import!H81="","",Import!H81) ->  | I81: =IF(Import!J81="","",Import!J81) ->  | J81: =IF(Import!K81="","",Import!K81) ->  | K81: =IF(Import!L81="","",Import!L81) ->  | L81: =IF(Import!M81="","",Import!M81) ->  | M81: =IF(Import!P81="","",Import!P81) ->  | N81: =IF(Import!Q81="","",Import!Q81) ->  | O81: =IF(Import!R81="","",Import!R81) ->  | P81: 339.416745 | Q81: 3.12095609 | R81: 32.01637288 | S81: 32.01637288 | T81: =IF(Q81="","",(-0.00011*POWER(S81,2))+(0.01417*S81)+((0.00057*POWER(Q81,2))-(0.0529*Q81)+6.2018)+Kalkkalkyl!$AJ$2) -> 6.883170141 | W81: =IF(('PK kalkyl'!$AE$17*H81)+'PK kalkyl'!$AE$18+(('PK kalkyl'!$K$6-'PK kalkyl'!$AE$12)*'PK kalkyl'!$AE$13)<1,0,ROUND(('PK kalkyl'!$AE$17*H81)+'PK kalkyl'!$AE$18+(('PK kalkyl'!$K$6-'PK kalkyl'!$AE$12)*'PK kalkyl'!$AE$13),1)) ->  | X81: =IF(('PK kalkyl'!$AE$37*I81)+'PK kalkyl'!$AE$38+(('PK kalkyl'!$K$6-'PK kalkyl'!$AE$32)*'PK kalkyl'!$AE$33)<1,0,ROUND(('PK kalkyl'!$AE$37*I81)+'PK kalkyl'!$AE$38+(('PK kalkyl'!$K$6-'PK kalkyl'!$AE$32)*'PK kalkyl'!$AE$33),1)) ->  | AA81: =IF((Y81<W81),Y81-W81,0)*-'PK kalkyl'!$AE$15 ->  | AB81: =IF((Z81<X81),Z81-X81,0)*-'PK kalkyl'!$AE$35 ->  | AC81: =+AA81*Växtföljd!$G$18+AB81*Växtföljd!$G$18 -> 
A82: =IF(Import!A82="","",Import!A82) ->  | B82: =IF(Import!B82="","",Import!B82) ->  | C82: =IF(Import!C82="","",Import!C82) ->  | D82: =IF(Import!D82="","",Import!D82) ->  | E82: =IF(Import!E82="","",Import!E82) ->  | F82: =IF(Import!F82="","",Import!F82) ->  | G82: =IF(Import!G82="","",Import!G82) ->  | H82: =IF(Import!H82="","",Import!H82) ->  | I82: =IF(Import!J82="","",Import!J82) ->  | J82: =IF(Import!K82="","",Import!K82) ->  | K82: =IF(Import!L82="","",Import!L82) ->  | L82: =IF(Import!M82="","",Import!M82) ->  | M82: =IF(Import!P82="","",Import!P82) ->  | N82: =IF(Import!Q82="","",Import!Q82) ->  | O82: =IF(Import!R82="","",Import!R82) ->  | P82: 390 | Q82: 3 | R82: 35 | S82: 35 | T82: =IF(Q82="","",(-0.00011*POWER(S82,2))+(0.01417*S82)+((0.00057*POWER(Q82,2))-(0.0529*Q82)+6.2018)+Kalkkalkyl!$AJ$2) -> 6.90943 | W82: =IF(('PK kalkyl'!$AE$17*H82)+'PK kalkyl'!$AE$18+(('PK kalkyl'!$K$6-'PK kalkyl'!$AE$12)*'PK kalkyl'!$AE$13)<1,0,ROUND(('PK kalkyl'!$AE$17*H82)+'PK kalkyl'!$AE$18+(('PK kalkyl'!$K$6-'PK kalkyl'!$AE$12)*'PK kalkyl'!$AE$13),1)) ->  | X82: =IF(('PK kalkyl'!$AE$37*I82)+'PK kalkyl'!$AE$38+(('PK kalkyl'!$K$6-'PK kalkyl'!$AE$32)*'PK kalkyl'!$AE$33)<1,0,ROUND(('PK kalkyl'!$AE$37*I82)+'PK kalkyl'!$AE$38+(('PK kalkyl'!$K$6-'PK kalkyl'!$AE$32)*'PK kalkyl'!$AE$33),1)) ->  | AA82: =IF((Y82<W82),Y82-W82,0)*-'PK kalkyl'!$AE$15 ->  | AB82: =IF((Z82<X82),Z82-X82,0)*-'PK kalkyl'!$AE$35 ->  | AC82: =+AA82*Växtföljd!$G$18+AB82*Växtföljd!$G$18 -> 
A83: =IF(Import!A83="","",Import!A83) ->  | B83: =IF(Import!B83="","",Import!B83) ->  | C83: =IF(Import!C83="","",Import!C83) ->  | D83: =IF(Import!D83="","",Import!D83) ->  | E83: =IF(Import!E83="","",Import!E83) ->  | F83: =IF(Import!F83="","",Import!F83) ->  | G83: =IF(Import!G83="","",Import!G83) ->  | H83: =IF(Import!H83="","",Import!H83) ->  | I83: =IF(Import!J83="","",Import!J83) ->  | J83: =IF(Import!K83="","",Import!K83) ->  | K83: =IF(Import!L83="","",Import!L83) ->  | L83: =IF(Import!M83="","",Import!M83) ->  | M83: =IF(Import!P83="","",Import!P83) ->  | N83: =IF(Import!Q83="","",Import!Q83) ->  | O83: =IF(Import!R83="","",Import!R83) ->  | P83: 306.1079131 | Q83: 3.730318344 | R83: 29.45302749 | S83: 29.45302749 | T83: =IF(Q83="","",(-0.00011*POWER(S83,2))+(0.01417*S83)+((0.00057*POWER(Q83,2))-(0.0529*Q83)+6.2018)+Kalkkalkyl!$AJ$2) -> 6.834324375 | W83: =IF(('PK kalkyl'!$AE$17*H83)+'PK kalkyl'!$AE$18+(('PK kalkyl'!$K$6-'PK kalkyl'!$AE$12)*'PK kalkyl'!$AE$13)<1,0,ROUND(('PK kalkyl'!$AE$17*H83)+'PK kalkyl'!$AE$18+(('PK kalkyl'!$K$6-'PK kalkyl'!$AE$12)*'PK kalkyl'!$AE$13),1)) ->  | X83: =IF(('PK kalkyl'!$AE$37*I83)+'PK kalkyl'!$AE$38+(('PK kalkyl'!$K$6-'PK kalkyl'!$AE$32)*'PK kalkyl'!$AE$33)<1,0,ROUND(('PK kalkyl'!$AE$37*I83)+'PK kalkyl'!$AE$38+(('PK kalkyl'!$K$6-'PK kalkyl'!$AE$32)*'PK kalkyl'!$AE$33),1)) ->  | AA83: =IF((Y83<W83),Y83-W83,0)*-'PK kalkyl'!$AE$15 ->  | AB83: =IF((Z83<X83),Z83-X83,0)*-'PK kalkyl'!$AE$35 ->  | AC83: =+AA83*Växtföljd!$G$18+AB83*Växtföljd!$G$18 -> 
A84: =IF(Import!A84="","",Import!A84) ->  | B84: =IF(Import!B84="","",Import!B84) ->  | C84: =IF(Import!C84="","",Import!C84) ->  | D84: =IF(Import!D84="","",Import!D84) ->  | E84: =IF(Import!E84="","",Import!E84) ->  | F84: =IF(Import!F84="","",Import!F84) ->  | G84: =IF(Import!G84="","",Import!G84) ->  | H84: =IF(Import!H84="","",Import!H84) ->  | I84: =IF(Import!J84="","",Import!J84) ->  | J84: =IF(Import!K84="","",Import!K84) ->  | K84: =IF(Import!L84="","",Import!L84) ->  | L84: =IF(Import!M84="","",Import!M84) ->  | M84: =IF(Import!P84="","",Import!P84) ->  | N84: =IF(Import!Q84="","",Import!Q84) ->  | O84: =IF(Import!R84="","",Import!R84) ->  | P84: 300 | Q84: 2.7 | R84: 35 | S84: 35 | T84: =IF(Q84="","",(-0.00011*POWER(S84,2))+(0.01417*S84)+((0.00057*POWER(Q84,2))-(0.0529*Q84)+6.2018)+Kalkkalkyl!$AJ$2) -> 6.9243253 | W84: =IF(('PK kalkyl'!$AE$17*H84)+'PK kalkyl'!$AE$18+(('PK kalkyl'!$K$6-'PK kalkyl'!$AE$12)*'PK kalkyl'!$AE$13)<1,0,ROUND(('PK kalkyl'!$AE$17*H84)+'PK kalkyl'!$AE$18+(('PK kalkyl'!$K$6-'PK kalkyl'!$AE$12)*'PK kalkyl'!$AE$13),1)) ->  | X84: =IF(('PK kalkyl'!$AE$37*I84)+'PK kalkyl'!$AE$38+(('PK kalkyl'!$K$6-'PK kalkyl'!$AE$32)*'PK kalkyl'!$AE$33)<1,0,ROUND(('PK kalkyl'!$AE$37*I84)+'PK kalkyl'!$AE$38+(('PK kalkyl'!$K$6-'PK kalkyl'!$AE$32)*'PK kalkyl'!$AE$33),1)) ->  | AA84: =IF((Y84<W84),Y84-W84,0)*-'PK kalkyl'!$AE$15 ->  | AB84: =IF((Z84<X84),Z84-X84,0)*-'PK kalkyl'!$AE$35 ->  | AC84: =+AA84*Växtföljd!$G$18+AB84*Växtföljd!$G$18 -> 
A85: =IF(Import!A85="","",Import!A85) ->  | B85: =IF(Import!B85="","",Import!B85) ->  | C85: =IF(Import!C85="","",Import!C85) ->  | D85: =IF(Import!D85="","",Import!D85) ->  | E85: =IF(Import!E85="","",Import!E85) ->  | F85: =IF(Import!F85="","",Import!F85) ->  | G85: =IF(Import!G85="","",Import!G85) ->  | H85: =IF(Import!H85="","",Import!H85) ->  | I85: =IF(Import!J85="","",Import!J85) ->  | J85: =IF(Import!K85="","",Import!K85) ->  | K85: =IF(Import!L85="","",Import!L85) ->  | L85: =IF(Import!M85="","",Import!M85) ->  | M85: =IF(Import!P85="","",Import!P85) ->  | N85: =IF(Import!Q85="","",Import!Q85) ->  | O85: =IF(Import!R85="","",Import!R85) ->  | P85: 267.1033795 | Q85: 3.183592856 | R85: 33.0957457 | S85: 33.0957457 | T85: =IF(Q85="","",(-0.00011*POWER(S85,2))+(0.01417*S85)+((0.00057*POWER(Q85,2))-(0.0529*Q85)+6.2018)+Kalkkalkyl!$AJ$2) -> 6.887645632 | W85: =IF(('PK kalkyl'!$AE$17*H85)+'PK kalkyl'!$AE$18+(('PK kalkyl'!$K$6-'PK kalkyl'!$AE$12)*'PK kalkyl'!$AE$13)<1,0,ROUND(('PK kalkyl'!$AE$17*H85)+'PK kalkyl'!$AE$18+(('PK kalkyl'!$K$6-'PK kalkyl'!$AE$12)*'PK kalkyl'!$AE$13),1)) ->  | X85: =IF(('PK kalkyl'!$AE$37*I85)+'PK kalkyl'!$AE$38+(('PK kalkyl'!$K$6-'PK kalkyl'!$AE$32)*'PK kalkyl'!$AE$33)<1,0,ROUND(('PK kalkyl'!$AE$37*I85)+'PK kalkyl'!$AE$38+(('PK kalkyl'!$K$6-'PK kalkyl'!$AE$32)*'PK kalkyl'!$AE$33),1)) ->  | AA85: =IF((Y85<W85),Y85-W85,0)*-'PK kalkyl'!$AE$15 ->  | AB85: =IF((Z85<X85),Z85-X85,0)*-'PK kalkyl'!$AE$35 ->  | AC85: =+AA85*Växtföljd!$G$18+AB85*Växtföljd!$G$18 -> 
A86: =IF(Import!A86="","",Import!A86) ->  | B86: =IF(Import!B86="","",Import!B86) ->  | C86: =IF(Import!C86="","",Import!C86) ->  | D86: =IF(Import!D86="","",Import!D86) ->  | E86: =IF(Import!E86="","",Import!E86) ->  | F86: =IF(Import!F86="","",Import!F86) ->  | G86: =IF(Import!G86="","",Import!G86) ->  | H86: =IF(Import!H86="","",Import!H86) ->  | I86: =IF(Import!J86="","",Import!J86) ->  | J86: =IF(Import!K86="","",Import!K86) ->  | K86: =IF(Import!L86="","",Import!L86) ->  | L86: =IF(Import!M86="","",Import!M86) ->  | M86: =IF(Import!P86="","",Import!P86) ->  | N86: =IF(Import!Q86="","",Import!Q86) ->  | O86: =IF(Import!R86="","",Import!R86) ->  | P86: 240 | Q86: 3.3 | R86: 30 | S86: 30 | T86: =IF(Q86="","",(-0.00011*POWER(S86,2))+(0.01417*S86)+((0.00057*POWER(Q86,2))-(0.0529*Q86)+6.2018)+Kalkkalkyl!$AJ$2) -> 6.8595373 | W86: =IF(('PK kalkyl'!$AE$17*H86)+'PK kalkyl'!$AE$18+(('PK kalkyl'!$K$6-'PK kalkyl'!$AE$12)*'PK kalkyl'!$AE$13)<1,0,ROUND(('PK kalkyl'!$AE$17*H86)+'PK kalkyl'!$AE$18+(('PK kalkyl'!$K$6-'PK kalkyl'!$AE$12)*'PK kalkyl'!$AE$13),1)) ->  | X86: =IF(('PK kalkyl'!$AE$37*I86)+'PK kalkyl'!$AE$38+(('PK kalkyl'!$K$6-'PK kalkyl'!$AE$32)*'PK kalkyl'!$AE$33)<1,0,ROUND(('PK kalkyl'!$AE$37*I86)+'PK kalkyl'!$AE$38+(('PK kalkyl'!$K$6-'PK kalkyl'!$AE$32)*'PK kalkyl'!$AE$33),1)) ->  | AA86: =IF((Y86<W86),Y86-W86,0)*-'PK kalkyl'!$AE$15 ->  | AB86: =IF((Z86<X86),Z86-X86,0)*-'PK kalkyl'!$AE$35 ->  | AC86: =+AA86*Växtföljd!$G$18+AB86*Växtföljd!$G$18 -> 
A87: =IF(Import!A87="","",Import!A87) ->  | B87: =IF(Import!B87="","",Import!B87) ->  | C87: =IF(Import!C87="","",Import!C87) ->  | D87: =IF(Import!D87="","",Import!D87) ->  | E87: =IF(Import!E87="","",Import!E87) ->  | F87: =IF(Import!F87="","",Import!F87) ->  | G87: =IF(Import!G87="","",Import!G87) ->  | H87: =IF(Import!H87="","",Import!H87) ->  | I87: =IF(Import!J87="","",Import!J87) ->  | J87: =IF(Import!K87="","",Import!K87) ->  | K87: =IF(Import!L87="","",Import!L87) ->  | L87: =IF(Import!M87="","",Import!M87) ->  | M87: =IF(Import!P87="","",Import!P87) ->  | N87: =IF(Import!Q87="","",Import!Q87) ->  | O87: =IF(Import!R87="","",Import!R87) ->  | P87: 274.1041412 | Q87: 3.164928936 | R87: 30.20339347 | S87: 30.20339347 | T87: =IF(Q87="","",(-0.00011*POWER(S87,2))+(0.01417*S87)+((0.00057*POWER(Q87,2))-(0.0529*Q87)+6.2018)+Kalkkalkyl!$AJ$2) -> 6.867719959 | W87: =IF(('PK kalkyl'!$AE$17*H87)+'PK kalkyl'!$AE$18+(('PK kalkyl'!$K$6-'PK kalkyl'!$AE$12)*'PK kalkyl'!$AE$13)<1,0,ROUND(('PK kalkyl'!$AE$17*H87)+'PK kalkyl'!$AE$18+(('PK kalkyl'!$K$6-'PK kalkyl'!$AE$12)*'PK kalkyl'!$AE$13),1)) ->  | X87: =IF(('PK kalkyl'!$AE$37*I87)+'PK kalkyl'!$AE$38+(('PK kalkyl'!$K$6-'PK kalkyl'!$AE$32)*'PK kalkyl'!$AE$33)<1,0,ROUND(('PK kalkyl'!$AE$37*I87)+'PK kalkyl'!$AE$38+(('PK kalkyl'!$K$6-'PK kalkyl'!$AE$32)*'PK kalkyl'!$AE$33),1)) ->  | AA87: =IF((Y87<W87),Y87-W87,0)*-'PK kalkyl'!$AE$15 ->  | AB87: =IF((Z87<X87),Z87-X87,0)*-'PK kalkyl'!$AE$35 ->  | AC87: =+AA87*Växtföljd!$G$18+AB87*Växtföljd!$G$18 -> 
A88: =IF(Import!A88="","",Import!A88) ->  | B88: =IF(Import!B88="","",Import!B88) ->  | C88: =IF(Import!C88="","",Import!C88) ->  | D88: =IF(Import!D88="","",Import!D88) ->  | E88: =IF(Import!E88="","",Import!E88) ->  | F88: =IF(Import!F88="","",Import!F88) ->  | G88: =IF(Import!G88="","",Import!G88) ->  | H88: =IF(Import!H88="","",Import!H88) ->  | I88: =IF(Import!J88="","",Import!J88) ->  | J88: =IF(Import!K88="","",Import!K88) ->  | K88: =IF(Import!L88="","",Import!L88) ->  | L88: =IF(Import!M88="","",Import!M88) ->  | M88: =IF(Import!P88="","",Import!P88) ->  | N88: =IF(Import!Q88="","",Import!Q88) ->  | O88: =IF(Import!R88="","",Import!R88) ->  | P88: 290 | Q88: 3.1 | R88: 30 | S88: 30 | T88: =IF(Q88="","",(-0.00011*POWER(S88,2))+(0.01417*S88)+((0.00057*POWER(Q88,2))-(0.0529*Q88)+6.2018)+Kalkkalkyl!$AJ$2) -> 6.8693877 | W88: =IF(('PK kalkyl'!$AE$17*H88)+'PK kalkyl'!$AE$18+(('PK kalkyl'!$K$6-'PK kalkyl'!$AE$12)*'PK kalkyl'!$AE$13)<1,0,ROUND(('PK kalkyl'!$AE$17*H88)+'PK kalkyl'!$AE$18+(('PK kalkyl'!$K$6-'PK kalkyl'!$AE$12)*'PK kalkyl'!$AE$13),1)) ->  | X88: =IF(('PK kalkyl'!$AE$37*I88)+'PK kalkyl'!$AE$38+(('PK kalkyl'!$K$6-'PK kalkyl'!$AE$32)*'PK kalkyl'!$AE$33)<1,0,ROUND(('PK kalkyl'!$AE$37*I88)+'PK kalkyl'!$AE$38+(('PK kalkyl'!$K$6-'PK kalkyl'!$AE$32)*'PK kalkyl'!$AE$33),1)) ->  | AA88: =IF((Y88<W88),Y88-W88,0)*-'PK kalkyl'!$AE$15 ->  | AB88: =IF((Z88<X88),Z88-X88,0)*-'PK kalkyl'!$AE$35 ->  | AC88: =+AA88*Växtföljd!$G$18+AB88*Växtföljd!$G$18 -> 
A89: =IF(Import!A89="","",Import!A89) ->  | B89: =IF(Import!B89="","",Import!B89) ->  | C89: =IF(Import!C89="","",Import!C89) ->  | D89: =IF(Import!D89="","",Import!D89) ->  | E89: =IF(Import!E89="","",Import!E89) ->  | F89: =IF(Import!F89="","",Import!F89) ->  | G89: =IF(Import!G89="","",Import!G89) ->  | H89: =IF(Import!H89="","",Import!H89) ->  | I89: =IF(Import!J89="","",Import!J89) ->  | J89: =IF(Import!K89="","",Import!K89) ->  | K89: =IF(Import!L89="","",Import!L89) ->  | L89: =IF(Import!M89="","",Import!M89) ->  | M89: =IF(Import!P89="","",Import!P89) ->  | N89: =IF(Import!Q89="","",Import!Q89) ->  | O89: =IF(Import!R89="","",Import!R89) ->  | P89: 254.7038854 | Q89: 3.294582653 | R89: 30.9534893 | S89: 30.9534893 | T89: =IF(Q89="","",(-0.00011*POWER(S89,2))+(0.01417*S89)+((0.00057*POWER(Q89,2))-(0.0529*Q89)+6.2018)+Kalkkalkyl!$AJ$2) -> 6.866921423 | W89: =IF(('PK kalkyl'!$AE$17*H89)+'PK kalkyl'!$AE$18+(('PK kalkyl'!$K$6-'PK kalkyl'!$AE$12)*'PK kalkyl'!$AE$13)<1,0,ROUND(('PK kalkyl'!$AE$17*H89)+'PK kalkyl'!$AE$18+(('PK kalkyl'!$K$6-'PK kalkyl'!$AE$12)*'PK kalkyl'!$AE$13),1)) ->  | X89: =IF(('PK kalkyl'!$AE$37*I89)+'PK kalkyl'!$AE$38+(('PK kalkyl'!$K$6-'PK kalkyl'!$AE$32)*'PK kalkyl'!$AE$33)<1,0,ROUND(('PK kalkyl'!$AE$37*I89)+'PK kalkyl'!$AE$38+(('PK kalkyl'!$K$6-'PK kalkyl'!$AE$32)*'PK kalkyl'!$AE$33),1)) ->  | AA89: =IF((Y89<W89),Y89-W89,0)*-'PK kalkyl'!$AE$15 ->  | AB89: =IF((Z89<X89),Z89-X89,0)*-'PK kalkyl'!$AE$35 ->  | AC89: =+AA89*Växtföljd!$G$18+AB89*Växtföljd!$G$18 -> 
A90: =IF(Import!A90="","",Import!A90) ->  | B90: =IF(Import!B90="","",Import!B90) ->  | C90: =IF(Import!C90="","",Import!C90) ->  | D90: =IF(Import!D90="","",Import!D90) ->  | E90: =IF(Import!E90="","",Import!E90) ->  | F90: =IF(Import!F90="","",Import!F90) ->  | G90: =IF(Import!G90="","",Import!G90) ->  | H90: =IF(Import!H90="","",Import!H90) ->  | I90: =IF(Import!J90="","",Import!J90) ->  | J90: =IF(Import!K90="","",Import!K90) ->  | K90: =IF(Import!L90="","",Import!L90) ->  | L90: =IF(Import!M90="","",Import!M90) ->  | M90: =IF(Import!P90="","",Import!P90) ->  | N90: =IF(Import!Q90="","",Import!Q90) ->  | O90: =IF(Import!R90="","",Import!R90) ->  | P90: 260 | Q90: 3.4 | R90: 34 | S90: 34 | T90: =IF(Q90="","",(-0.00011*POWER(S90,2))+(0.01417*S90)+((0.00057*POWER(Q90,2))-(0.0529*Q90)+6.2018)+Kalkkalkyl!$AJ$2) -> 6.8831492 | W90: =IF(('PK kalkyl'!$AE$17*H90)+'PK kalkyl'!$AE$18+(('PK kalkyl'!$K$6-'PK kalkyl'!$AE$12)*'PK kalkyl'!$AE$13)<1,0,ROUND(('PK kalkyl'!$AE$17*H90)+'PK kalkyl'!$AE$18+(('PK kalkyl'!$K$6-'PK kalkyl'!$AE$12)*'PK kalkyl'!$AE$13),1)) ->  | X90: =IF(('PK kalkyl'!$AE$37*I90)+'PK kalkyl'!$AE$38+(('PK kalkyl'!$K$6-'PK kalkyl'!$AE$32)*'PK kalkyl'!$AE$33)<1,0,ROUND(('PK kalkyl'!$AE$37*I90)+'PK kalkyl'!$AE$38+(('PK kalkyl'!$K$6-'PK kalkyl'!$AE$32)*'PK kalkyl'!$AE$33),1)) ->  | AA90: =IF((Y90<W90),Y90-W90,0)*-'PK kalkyl'!$AE$15 ->  | AB90: =IF((Z90<X90),Z90-X90,0)*-'PK kalkyl'!$AE$35 ->  | AC90: =+AA90*Växtföljd!$G$18+AB90*Växtföljd!$G$18 -> 
A91: =IF(Import!A91="","",Import!A91) ->  | B91: =IF(Import!B91="","",Import!B91) ->  | C91: =IF(Import!C91="","",Import!C91) ->  | D91: =IF(Import!D91="","",Import!D91) ->  | E91: =IF(Import!E91="","",Import!E91) ->  | F91: =IF(Import!F91="","",Import!F91) ->  | G91: =IF(Import!G91="","",Import!G91) ->  | H91: =IF(Import!H91="","",Import!H91) ->  | I91: =IF(Import!J91="","",Import!J91) ->  | J91: =IF(Import!K91="","",Import!K91) ->  | K91: =IF(Import!L91="","",Import!L91) ->  | L91: =IF(Import!M91="","",Import!M91) ->  | M91: =IF(Import!P91="","",Import!P91) ->  | N91: =IF(Import!Q91="","",Import!Q91) ->  | O91: =IF(Import!R91="","",Import!R91) ->  | P91: 291.3702103 | Q91: 3.061867312 | R91: 33.55896421 | S91: 33.55896421 | T91: =IF(Q91="","",(-0.00011*POWER(S91,2))+(0.01417*S91)+((0.00057*POWER(Q91,2))-(0.0529*Q91)+6.2018)+Kalkkalkyl!$AJ$2) -> 6.896819061 | W91: =IF(('PK kalkyl'!$AE$17*H91)+'PK kalkyl'!$AE$18+(('PK kalkyl'!$K$6-'PK kalkyl'!$AE$12)*'PK kalkyl'!$AE$13)<1,0,ROUND(('PK kalkyl'!$AE$17*H91)+'PK kalkyl'!$AE$18+(('PK kalkyl'!$K$6-'PK kalkyl'!$AE$12)*'PK kalkyl'!$AE$13),1)) ->  | X91: =IF(('PK kalkyl'!$AE$37*I91)+'PK kalkyl'!$AE$38+(('PK kalkyl'!$K$6-'PK kalkyl'!$AE$32)*'PK kalkyl'!$AE$33)<1,0,ROUND(('PK kalkyl'!$AE$37*I91)+'PK kalkyl'!$AE$38+(('PK kalkyl'!$K$6-'PK kalkyl'!$AE$32)*'PK kalkyl'!$AE$33),1)) ->  | AA91: =IF((Y91<W91),Y91-W91,0)*-'PK kalkyl'!$AE$15 ->  | AB91: =IF((Z91<X91),Z91-X91,0)*-'PK kalkyl'!$AE$35 ->  | AC91: =+AA91*Växtföljd!$G$18+AB91*Växtföljd!$G$18 -> 
A92: =IF(Import!A92="","",Import!A92) ->  | B92: =IF(Import!B92="","",Import!B92) ->  | C92: =IF(Import!C92="","",Import!C92) ->  | D92: =IF(Import!D92="","",Import!D92) ->  | E92: =IF(Import!E92="","",Import!E92) ->  | F92: =IF(Import!F92="","",Import!F92) ->  | G92: =IF(Import!G92="","",Import!G92) ->  | H92: =IF(Import!H92="","",Import!H92) ->  | I92: =IF(Import!J92="","",Import!J92) ->  | J92: =IF(Import!K92="","",Import!K92) ->  | K92: =IF(Import!L92="","",Import!L92) ->  | L92: =IF(Import!M92="","",Import!M92) ->  | M92: =IF(Import!P92="","",Import!P92) ->  | N92: =IF(Import!Q92="","",Import!Q92) ->  | O92: =IF(Import!R92="","",Import!R92) ->  | P92: 310 | Q92: 4.1 | R92: 29 | S92: 29 | T92: =IF(Q92="","",(-0.00011*POWER(S92,2))+(0.01417*S92)+((0.00057*POWER(Q92,2))-(0.0529*Q92)+6.2018)+Kalkkalkyl!$AJ$2) -> 6.8129117 | W92: =IF(('PK kalkyl'!$AE$17*H92)+'PK kalkyl'!$AE$18+(('PK kalkyl'!$K$6-'PK kalkyl'!$AE$12)*'PK kalkyl'!$AE$13)<1,0,ROUND(('PK kalkyl'!$AE$17*H92)+'PK kalkyl'!$AE$18+(('PK kalkyl'!$K$6-'PK kalkyl'!$AE$12)*'PK kalkyl'!$AE$13),1)) ->  | X92: =IF(('PK kalkyl'!$AE$37*I92)+'PK kalkyl'!$AE$38+(('PK kalkyl'!$K$6-'PK kalkyl'!$AE$32)*'PK kalkyl'!$AE$33)<1,0,ROUND(('PK kalkyl'!$AE$37*I92)+'PK kalkyl'!$AE$38+(('PK kalkyl'!$K$6-'PK kalkyl'!$AE$32)*'PK kalkyl'!$AE$33),1)) ->  | AA92: =IF((Y92<W92),Y92-W92,0)*-'PK kalkyl'!$AE$15 ->  | AB92: =IF((Z92<X92),Z92-X92,0)*-'PK kalkyl'!$AE$35 ->  | AC92: =+AA92*Växtföljd!$G$18+AB92*Växtföljd!$G$18 -> 
A93: =IF(Import!A93="","",Import!A93) ->  | B93: =IF(Import!B93="","",Import!B93) ->  | C93: =IF(Import!C93="","",Import!C93) ->  | D93: =IF(Import!D93="","",Import!D93) ->  | E93: =IF(Import!E93="","",Import!E93) ->  | F93: =IF(Import!F93="","",Import!F93) ->  | G93: =IF(Import!G93="","",Import!G93) ->  | H93: =IF(Import!H93="","",Import!H93) ->  | I93: =IF(Import!J93="","",Import!J93) ->  | J93: =IF(Import!K93="","",Import!K93) ->  | K93: =IF(Import!L93="","",Import!L93) ->  | L93: =IF(Import!M93="","",Import!M93) ->  | M93: =IF(Import!P93="","",Import!P93) ->  | N93: =IF(Import!Q93="","",Import!Q93) ->  | O93: =IF(Import!R93="","",Import!R93) ->  | P93: 254.234251 | Q93: 3.804733673 | R93: 28.70391476 | S93: 28.70391476 | T93: =IF(Q93="","",(-0.00011*POWER(S93,2))+(0.01417*S93)+((0.00057*POWER(Q93,2))-(0.0529*Q93)+6.2018)+Kalkkalkyl!$AJ$2) -> 6.82488476 | W93: =IF(('PK kalkyl'!$AE$17*H93)+'PK kalkyl'!$AE$18+(('PK kalkyl'!$K$6-'PK kalkyl'!$AE$12)*'PK kalkyl'!$AE$13)<1,0,ROUND(('PK kalkyl'!$AE$17*H93)+'PK kalkyl'!$AE$18+(('PK kalkyl'!$K$6-'PK kalkyl'!$AE$12)*'PK kalkyl'!$AE$13),1)) ->  | X93: =IF(('PK kalkyl'!$AE$37*I93)+'PK kalkyl'!$AE$38+(('PK kalkyl'!$K$6-'PK kalkyl'!$AE$32)*'PK kalkyl'!$AE$33)<1,0,ROUND(('PK kalkyl'!$AE$37*I93)+'PK kalkyl'!$AE$38+(('PK kalkyl'!$K$6-'PK kalkyl'!$AE$32)*'PK kalkyl'!$AE$33),1)) ->  | AA93: =IF((Y93<W93),Y93-W93,0)*-'PK kalkyl'!$AE$15 ->  | AB93: =IF((Z93<X93),Z93-X93,0)*-'PK kalkyl'!$AE$35 ->  | AC93: =+AA93*Växtföljd!$G$18+AB93*Växtföljd!$G$18 -> 
A94: =IF(Import!A94="","",Import!A94) ->  | B94: =IF(Import!B94="","",Import!B94) ->  | C94: =IF(Import!C94="","",Import!C94) ->  | D94: =IF(Import!D94="","",Import!D94) ->  | E94: =IF(Import!E94="","",Import!E94) ->  | F94: =IF(Import!F94="","",Import!F94) ->  | G94: =IF(Import!G94="","",Import!G94) ->  | H94: =IF(Import!H94="","",Import!H94) ->  | I94: =IF(Import!J94="","",Import!J94) ->  | J94: =IF(Import!K94="","",Import!K94) ->  | K94: =IF(Import!L94="","",Import!L94) ->  | L94: =IF(Import!M94="","",Import!M94) ->  | M94: =IF(Import!P94="","",Import!P94) ->  | N94: =IF(Import!Q94="","",Import!Q94) ->  | O94: =IF(Import!R94="","",Import!R94) ->  | P94: 270 | Q94: 3.5 | R94: 31 | S94: 31 | T94: =IF(Q94="","",(-0.00011*POWER(S94,2))+(0.01417*S94)+((0.00057*POWER(Q94,2))-(0.0529*Q94)+6.2018)+Kalkkalkyl!$AJ$2) -> 6.8571925 | W94: =IF(('PK kalkyl'!$AE$17*H94)+'PK kalkyl'!$AE$18+(('PK kalkyl'!$K$6-'PK kalkyl'!$AE$12)*'PK kalkyl'!$AE$13)<1,0,ROUND(('PK kalkyl'!$AE$17*H94)+'PK kalkyl'!$AE$18+(('PK kalkyl'!$K$6-'PK kalkyl'!$AE$12)*'PK kalkyl'!$AE$13),1)) ->  | X94: =IF(('PK kalkyl'!$AE$37*I94)+'PK kalkyl'!$AE$38+(('PK kalkyl'!$K$6-'PK kalkyl'!$AE$32)*'PK kalkyl'!$AE$33)<1,0,ROUND(('PK kalkyl'!$AE$37*I94)+'PK kalkyl'!$AE$38+(('PK kalkyl'!$K$6-'PK kalkyl'!$AE$32)*'PK kalkyl'!$AE$33),1)) ->  | AA94: =IF((Y94<W94),Y94-W94,0)*-'PK kalkyl'!$AE$15 ->  | AB94: =IF((Z94<X94),Z94-X94,0)*-'PK kalkyl'!$AE$35 ->  | AC94: =+AA94*Växtföljd!$G$18+AB94*Växtföljd!$G$18 -> 
A95: =IF(Import!A95="","",Import!A95) ->  | B95: =IF(Import!B95="","",Import!B95) ->  | C95: =IF(Import!C95="","",Import!C95) ->  | D95: =IF(Import!D95="","",Import!D95) ->  | E95: =IF(Import!E95="","",Import!E95) ->  | F95: =IF(Import!F95="","",Import!F95) ->  | G95: =IF(Import!G95="","",Import!G95) ->  | H95: =IF(Import!H95="","",Import!H95) ->  | I95: =IF(Import!J95="","",Import!J95) ->  | J95: =IF(Import!K95="","",Import!K95) ->  | K95: =IF(Import!L95="","",Import!L95) ->  | L95: =IF(Import!M95="","",Import!M95) ->  | M95: =IF(Import!P95="","",Import!P95) ->  | N95: =IF(Import!Q95="","",Import!Q95) ->  | O95: =IF(Import!R95="","",Import!R95) ->  | P95: 267.2825778 | Q95: 3.421984964 | R95: 31.79583143 | S95: 31.79583143 | T95: =IF(Q95="","",(-0.00011*POWER(S95,2))+(0.01417*S95)+((0.00057*POWER(Q95,2))-(0.0529*Q95)+6.2018)+Kalkkalkyl!$AJ$2) -> 6.866791377 | W95: =IF(('PK kalkyl'!$AE$17*H95)+'PK kalkyl'!$AE$18+(('PK kalkyl'!$K$6-'PK kalkyl'!$AE$12)*'PK kalkyl'!$AE$13)<1,0,ROUND(('PK kalkyl'!$AE$17*H95)+'PK kalkyl'!$AE$18+(('PK kalkyl'!$K$6-'PK kalkyl'!$AE$12)*'PK kalkyl'!$AE$13),1)) ->  | X95: =IF(('PK kalkyl'!$AE$37*I95)+'PK kalkyl'!$AE$38+(('PK kalkyl'!$K$6-'PK kalkyl'!$AE$32)*'PK kalkyl'!$AE$33)<1,0,ROUND(('PK kalkyl'!$AE$37*I95)+'PK kalkyl'!$AE$38+(('PK kalkyl'!$K$6-'PK kalkyl'!$AE$32)*'PK kalkyl'!$AE$33),1)) ->  | AA95: =IF((Y95<W95),Y95-W95,0)*-'PK kalkyl'!$AE$15 ->  | AB95: =IF((Z95<X95),Z95-X95,0)*-'PK kalkyl'!$AE$35 ->  | AC95: =+AA95*Växtföljd!$G$18+AB95*Växtföljd!$G$18 -> 
A96: =IF(Import!A96="","",Import!A96) ->  | B96: =IF(Import!B96="","",Import!B96) ->  | C96: =IF(Import!C96="","",Import!C96) ->  | D96: =IF(Import!D96="","",Import!D96) ->  | E96: =IF(Import!E96="","",Import!E96) ->  | F96: =IF(Import!F96="","",Import!F96) ->  | G96: =IF(Import!G96="","",Import!G96) ->  | H96: =IF(Import!H96="","",Import!H96) ->  | I96: =IF(Import!J96="","",Import!J96) ->  | J96: =IF(Import!K96="","",Import!K96) ->  | K96: =IF(Import!L96="","",Import!L96) ->  | L96: =IF(Import!M96="","",Import!M96) ->  | M96: =IF(Import!P96="","",Import!P96) ->  | N96: =IF(Import!Q96="","",Import!Q96) ->  | O96: =IF(Import!R96="","",Import!R96) ->  | P96: 260 | Q96: 3.4 | R96: 32 | S96: 32 | T96: =IF(Q96="","",(-0.00011*POWER(S96,2))+(0.01417*S96)+((0.00057*POWER(Q96,2))-(0.0529*Q96)+6.2018)+Kalkkalkyl!$AJ$2) -> 6.8693292 | W96: =IF(('PK kalkyl'!$AE$17*H96)+'PK kalkyl'!$AE$18+(('PK kalkyl'!$K$6-'PK kalkyl'!$AE$12)*'PK kalkyl'!$AE$13)<1,0,ROUND(('PK kalkyl'!$AE$17*H96)+'PK kalkyl'!$AE$18+(('PK kalkyl'!$K$6-'PK kalkyl'!$AE$12)*'PK kalkyl'!$AE$13),1)) ->  | X96: =IF(('PK kalkyl'!$AE$37*I96)+'PK kalkyl'!$AE$38+(('PK kalkyl'!$K$6-'PK kalkyl'!$AE$32)*'PK kalkyl'!$AE$33)<1,0,ROUND(('PK kalkyl'!$AE$37*I96)+'PK kalkyl'!$AE$38+(('PK kalkyl'!$K$6-'PK kalkyl'!$AE$32)*'PK kalkyl'!$AE$33),1)) ->  | AA96: =IF((Y96<W96),Y96-W96,0)*-'PK kalkyl'!$AE$15 ->  | AB96: =IF((Z96<X96),Z96-X96,0)*-'PK kalkyl'!$AE$35 ->  | AC96: =+AA96*Växtföljd!$G$18+AB96*Växtföljd!$G$18 -> 
A97: =IF(Import!A97="","",Import!A97) ->  | B97: =IF(Import!B97="","",Import!B97) ->  | C97: =IF(Import!C97="","",Import!C97) ->  | D97: =IF(Import!D97="","",Import!D97) ->  | E97: =IF(Import!E97="","",Import!E97) ->  | F97: =IF(Import!F97="","",Import!F97) ->  | G97: =IF(Import!G97="","",Import!G97) ->  | H97: =IF(Import!H97="","",Import!H97) ->  | I97: =IF(Import!J97="","",Import!J97) ->  | J97: =IF(Import!K97="","",Import!K97) ->  | K97: =IF(Import!L97="","",Import!L97) ->  | L97: =IF(Import!M97="","",Import!M97) ->  | M97: =IF(Import!P97="","",Import!P97) ->  | N97: =IF(Import!Q97="","",Import!Q97) ->  | O97: =IF(Import!R97="","",Import!R97) ->  | P97: 278.8292726 | Q97: 3.082475385 | R97: 32.95933848 | S97: 32.95933848 | T97: =IF(Q97="","",(-0.00011*POWER(S97,2))+(0.01417*S97)+((0.00057*POWER(Q97,2))-(0.0529*Q97)+6.2018)+Kalkkalkyl!$AJ$2) -> 6.891691842 | W97: =IF(('PK kalkyl'!$AE$17*H97)+'PK kalkyl'!$AE$18+(('PK kalkyl'!$K$6-'PK kalkyl'!$AE$12)*'PK kalkyl'!$AE$13)<1,0,ROUND(('PK kalkyl'!$AE$17*H97)+'PK kalkyl'!$AE$18+(('PK kalkyl'!$K$6-'PK kalkyl'!$AE$12)*'PK kalkyl'!$AE$13),1)) ->  | X97: =IF(('PK kalkyl'!$AE$37*I97)+'PK kalkyl'!$AE$38+(('PK kalkyl'!$K$6-'PK kalkyl'!$AE$32)*'PK kalkyl'!$AE$33)<1,0,ROUND(('PK kalkyl'!$AE$37*I97)+'PK kalkyl'!$AE$38+(('PK kalkyl'!$K$6-'PK kalkyl'!$AE$32)*'PK kalkyl'!$AE$33),1)) ->  | AA97: =IF((Y97<W97),Y97-W97,0)*-'PK kalkyl'!$AE$15 ->  | AB97: =IF((Z97<X97),Z97-X97,0)*-'PK kalkyl'!$AE$35 ->  | AC97: =+AA97*Växtföljd!$G$18+AB97*Växtföljd!$G$18 -> 
A98: =IF(Import!A98="","",Import!A98) ->  | B98: =IF(Import!B98="","",Import!B98) ->  | C98: =IF(Import!C98="","",Import!C98) ->  | D98: =IF(Import!D98="","",Import!D98) ->  | E98: =IF(Import!E98="","",Import!E98) ->  | F98: =IF(Import!F98="","",Import!F98) ->  | G98: =IF(Import!G98="","",Import!G98) ->  | H98: =IF(Import!H98="","",Import!H98) ->  | I98: =IF(Import!J98="","",Import!J98) ->  | J98: =IF(Import!K98="","",Import!K98) ->  | K98: =IF(Import!L98="","",Import!L98) ->  | L98: =IF(Import!M98="","",Import!M98) ->  | M98: =IF(Import!P98="","",Import!P98) ->  | N98: =IF(Import!Q98="","",Import!Q98) ->  | O98: =IF(Import!R98="","",Import!R98) ->  | P98: 270 | Q98: 3.6 | R98: 33 | S98: 33 | T98: =IF(Q98="","",(-0.00011*POWER(S98,2))+(0.01417*S98)+((0.00057*POWER(Q98,2))-(0.0529*Q98)+6.2018)+Kalkkalkyl!$AJ$2) -> 6.8665672 | W98: =IF(('PK kalkyl'!$AE$17*H98)+'PK kalkyl'!$AE$18+(('PK kalkyl'!$K$6-'PK kalkyl'!$AE$12)*'PK kalkyl'!$AE$13)<1,0,ROUND(('PK kalkyl'!$AE$17*H98)+'PK kalkyl'!$AE$18+(('PK kalkyl'!$K$6-'PK kalkyl'!$AE$12)*'PK kalkyl'!$AE$13),1)) ->  | X98: =IF(('PK kalkyl'!$AE$37*I98)+'PK kalkyl'!$AE$38+(('PK kalkyl'!$K$6-'PK kalkyl'!$AE$32)*'PK kalkyl'!$AE$33)<1,0,ROUND(('PK kalkyl'!$AE$37*I98)+'PK kalkyl'!$AE$38+(('PK kalkyl'!$K$6-'PK kalkyl'!$AE$32)*'PK kalkyl'!$AE$33),1)) ->  | AA98: =IF((Y98<W98),Y98-W98,0)*-'PK kalkyl'!$AE$15 ->  | AB98: =IF((Z98<X98),Z98-X98,0)*-'PK kalkyl'!$AE$35 ->  | AC98: =+AA98*Växtföljd!$G$18+AB98*Växtföljd!$G$18 -> 
A99: =IF(Import!A99="","",Import!A99) ->  | B99: =IF(Import!B99="","",Import!B99) ->  | C99: =IF(Import!C99="","",Import!C99) ->  | D99: =IF(Import!D99="","",Import!D99) ->  | E99: =IF(Import!E99="","",Import!E99) ->  | F99: =IF(Import!F99="","",Import!F99) ->  | G99: =IF(Import!G99="","",Import!G99) ->  | H99: =IF(Import!H99="","",Import!H99) ->  | I99: =IF(Import!J99="","",Import!J99) ->  | J99: =IF(Import!K99="","",Import!K99) ->  | K99: =IF(Import!L99="","",Import!L99) ->  | L99: =IF(Import!M99="","",Import!M99) ->  | M99: =IF(Import!P99="","",Import!P99) ->  | N99: =IF(Import!Q99="","",Import!Q99) ->  | O99: =IF(Import!R99="","",Import!R99) ->  | P99: 254.4245763 | Q99: 3.588773633 | R99: 30.35837469 | S99: 30.35837469 | T99: =IF(Q99="","",(-0.00011*POWER(S99,2))+(0.01417*S99)+((0.00057*POWER(Q99,2))-(0.0529*Q99)+6.2018)+Kalkkalkyl!$AJ$2) -> 6.848093842 | W99: =IF(('PK kalkyl'!$AE$17*H99)+'PK kalkyl'!$AE$18+(('PK kalkyl'!$K$6-'PK kalkyl'!$AE$12)*'PK kalkyl'!$AE$13)<1,0,ROUND(('PK kalkyl'!$AE$17*H99)+'PK kalkyl'!$AE$18+(('PK kalkyl'!$K$6-'PK kalkyl'!$AE$12)*'PK kalkyl'!$AE$13),1)) ->  | X99: =IF(('PK kalkyl'!$AE$37*I99)+'PK kalkyl'!$AE$38+(('PK kalkyl'!$K$6-'PK kalkyl'!$AE$32)*'PK kalkyl'!$AE$33)<1,0,ROUND(('PK kalkyl'!$AE$37*I99)+'PK kalkyl'!$AE$38+(('PK kalkyl'!$K$6-'PK kalkyl'!$AE$32)*'PK kalkyl'!$AE$33),1)) ->  | AA99: =IF((Y99<W99),Y99-W99,0)*-'PK kalkyl'!$AE$15 ->  | AB99: =IF((Z99<X99),Z99-X99,0)*-'PK kalkyl'!$AE$35 ->  | AC99: =+AA99*Växtföljd!$G$18+AB99*Växtföljd!$G$18 -> 
A100: =IF(Import!A100="","",Import!A100) ->  | B100: =IF(Import!B100="","",Import!B100) ->  | C100: =IF(Import!C100="","",Import!C100) ->  | D100: =IF(Import!D100="","",Import!D100) ->  | E100: =IF(Import!E100="","",Import!E100) ->  | F100: =IF(Import!F100="","",Import!F100) ->  | G100: =IF(Import!G100="","",Import!G100) ->  | H100: =IF(Import!H100="","",Import!H100) ->  | I100: =IF(Import!J100="","",Import!J100) ->  | J100: =IF(Import!K100="","",Import!K100) ->  | K100: =IF(Import!L100="","",Import!L100) ->  | L100: =IF(Import!M100="","",Import!M100) ->  | M100: =IF(Import!P100="","",Import!P100) ->  | N100: =IF(Import!Q100="","",Import!Q100) ->  | O100: =IF(Import!R100="","",Import!R100) ->  | P100: 210 | Q100: 4.3 | R100: 24 | S100: 24 | T100: =IF(Q100="","",(-0.00011*POWER(S100,2))+(0.01417*S100)+((0.00057*POWER(Q100,2))-(0.0529*Q100)+6.2018)+Kalkkalkyl!$AJ$2) -> 6.7615893 | W100: =IF(('PK kalkyl'!$AE$17*H100)+'PK kalkyl'!$AE$18+(('PK kalkyl'!$K$6-'PK kalkyl'!$AE$12)*'PK kalkyl'!$AE$13)<1,0,ROUND(('PK kalkyl'!$AE$17*H100)+'PK kalkyl'!$AE$18+(('PK kalkyl'!$K$6-'PK kalkyl'!$AE$12)*'PK kalkyl'!$AE$13),1)) ->  | X100: =IF(('PK kalkyl'!$AE$37*I100)+'PK kalkyl'!$AE$38+(('PK kalkyl'!$K$6-'PK kalkyl'!$AE$32)*'PK kalkyl'!$AE$33)<1,0,ROUND(('PK kalkyl'!$AE$37*I100)+'PK kalkyl'!$AE$38+(('PK kalkyl'!$K$6-'PK kalkyl'!$AE$32)*'PK kalkyl'!$AE$33),1)) ->  | AA100: =IF((Y100<W100),Y100-W100,0)*-'PK kalkyl'!$AE$15 ->  | AB100: =IF((Z100<X100),Z100-X100,0)*-'PK kalkyl'!$AE$35 ->  | AC100: =+AA100*Växtföljd!$G$18+AB100*Växtföljd!$G$18 -> 
A101: =IF(Import!A101="","",Import!A101) ->  | B101: =IF(Import!B101="","",Import!B101) ->  | C101: =IF(Import!C101="","",Import!C101) ->  | D101: =IF(Import!D101="","",Import!D101) ->  | E101: =IF(Import!E101="","",Import!E101) ->  | F101: =IF(Import!F101="","",Import!F101) ->  | G101: =IF(Import!G101="","",Import!G101) ->  | H101: =IF(Import!H101="","",Import!H101) ->  | I101: =IF(Import!J101="","",Import!J101) ->  | J101: =IF(Import!K101="","",Import!K101) ->  | K101: =IF(Import!L101="","",Import!L101) ->  | L101: =IF(Import!M101="","",Import!M101) ->  | M101: =IF(Import!P101="","",Import!P101) ->  | N101: =IF(Import!Q101="","",Import!Q101) ->  | O101: =IF(Import!R101="","",Import!R101) ->  | P101: 224.556259 | Q101: 3.984727784 | R101: 26.46861961 | S101: 26.46861961 | T101: =IF(Q101="","",(-0.00011*POWER(S101,2))+(0.01417*S101)+((0.00057*POWER(Q101,2))-(0.0529*Q101)+6.2018)+Kalkkalkyl!$AJ$2) -> 6.798054071 | W101: =IF(('PK kalkyl'!$AE$17*H101)+'PK kalkyl'!$AE$18+(('PK kalkyl'!$K$6-'PK kalkyl'!$AE$12)*'PK kalkyl'!$AE$13)<1,0,ROUND(('PK kalkyl'!$AE$17*H101)+'PK kalkyl'!$AE$18+(('PK kalkyl'!$K$6-'PK kalkyl'!$AE$12)*'PK kalkyl'!$AE$13),1)) ->  | X101: =IF(('PK kalkyl'!$AE$37*I101)+'PK kalkyl'!$AE$38+(('PK kalkyl'!$K$6-'PK kalkyl'!$AE$32)*'PK kalkyl'!$AE$33)<1,0,ROUND(('PK kalkyl'!$AE$37*I101)+'PK kalkyl'!$AE$38+(('PK kalkyl'!$K$6-'PK kalkyl'!$AE$32)*'PK kalkyl'!$AE$33),1)) ->  | AA101: =IF((Y101<W101),Y101-W101,0)*-'PK kalkyl'!$AE$15 ->  | AB101: =IF((Z101<X101),Z101-X101,0)*-'PK kalkyl'!$AE$35 ->  | AC101: =+AA101*Växtföljd!$G$18+AB101*Växtföljd!$G$18 -> 
A102: =IF(Import!A102="","",Import!A102) ->  | B102: =IF(Import!B102="","",Import!B102) ->  | C102: =IF(Import!C102="","",Import!C102) ->  | D102: =IF(Import!D102="","",Import!D102) ->  | E102: =IF(Import!E102="","",Import!E102) ->  | F102: =IF(Import!F102="","",Import!F102) ->  | G102: =IF(Import!G102="","",Import!G102) ->  | H102: =IF(Import!H102="","",Import!H102) ->  | I102: =IF(Import!J102="","",Import!J102) ->  | J102: =IF(Import!K102="","",Import!K102) ->  | K102: =IF(Import!L102="","",Import!L102) ->  | L102: =IF(Import!M102="","",Import!M102) ->  | M102: =IF(Import!P102="","",Import!P102) ->  | N102: =IF(Import!Q102="","",Import!Q102) ->  | O102: =IF(Import!R102="","",Import!R102) ->  | P102: 260 | Q102: 2.9 | R102: 32 | S102: 32 | T102: =IF(Q102="","",(-0.00011*POWER(S102,2))+(0.01417*S102)+((0.00057*POWER(Q102,2))-(0.0529*Q102)+6.2018)+Kalkkalkyl!$AJ$2) -> 6.8939837 | W102: =IF(('PK kalkyl'!$AE$17*H102)+'PK kalkyl'!$AE$18+(('PK kalkyl'!$K$6-'PK kalkyl'!$AE$12)*'PK kalkyl'!$AE$13)<1,0,ROUND(('PK kalkyl'!$AE$17*H102)+'PK kalkyl'!$AE$18+(('PK kalkyl'!$K$6-'PK kalkyl'!$AE$12)*'PK kalkyl'!$AE$13),1)) ->  | X102: =IF(('PK kalkyl'!$AE$37*I102)+'PK kalkyl'!$AE$38+(('PK kalkyl'!$K$6-'PK kalkyl'!$AE$32)*'PK kalkyl'!$AE$33)<1,0,ROUND(('PK kalkyl'!$AE$37*I102)+'PK kalkyl'!$AE$38+(('PK kalkyl'!$K$6-'PK kalkyl'!$AE$32)*'PK kalkyl'!$AE$33),1)) ->  | AA102: =IF((Y102<W102),Y102-W102,0)*-'PK kalkyl'!$AE$15 ->  | AB102: =IF((Z102<X102),Z102-X102,0)*-'PK kalkyl'!$AE$35 ->  | AC102: =+AA102*Växtföljd!$G$18+AB102*Växtföljd!$G$18 -> 
A103: =IF(Import!A103="","",Import!A103) ->  | B103: =IF(Import!B103="","",Import!B103) ->  | C103: =IF(Import!C103="","",Import!C103) ->  | D103: =IF(Import!D103="","",Import!D103) ->  | E103: =IF(Import!E103="","",Import!E103) ->  | F103: =IF(Import!F103="","",Import!F103) ->  | G103: =IF(Import!G103="","",Import!G103) ->  | H103: =IF(Import!H103="","",Import!H103) ->  | I103: =IF(Import!J103="","",Import!J103) ->  | J103: =IF(Import!K103="","",Import!K103) ->  | K103: =IF(Import!L103="","",Import!L103) ->  | L103: =IF(Import!M103="","",Import!M103) ->  | M103: =IF(Import!P103="","",Import!P103) ->  | N103: =IF(Import!Q103="","",Import!Q103) ->  | O103: =IF(Import!R103="","",Import!R103) ->  | P103: 277.6109983 | Q103: 2.925897605 | R103: 33.17950805 | S103: 33.17950805 | T103: =IF(Q103="","",(-0.00011*POWER(S103,2))+(0.01417*S103)+((0.00057*POWER(Q103,2))-(0.0529*Q103)+6.2018)+Kalkkalkyl!$AJ$2) -> 6.900956573 | W103: =IF(('PK kalkyl'!$AE$17*H103)+'PK kalkyl'!$AE$18+(('PK kalkyl'!$K$6-'PK kalkyl'!$AE$12)*'PK kalkyl'!$AE$13)<1,0,ROUND(('PK kalkyl'!$AE$17*H103)+'PK kalkyl'!$AE$18+(('PK kalkyl'!$K$6-'PK kalkyl'!$AE$12)*'PK kalkyl'!$AE$13),1)) ->  | X103: =IF(('PK kalkyl'!$AE$37*I103)+'PK kalkyl'!$AE$38+(('PK kalkyl'!$K$6-'PK kalkyl'!$AE$32)*'PK kalkyl'!$AE$33)<1,0,ROUND(('PK kalkyl'!$AE$37*I103)+'PK kalkyl'!$AE$38+(('PK kalkyl'!$K$6-'PK kalkyl'!$AE$32)*'PK kalkyl'!$AE$33),1)) ->  | AA103: =IF((Y103<W103),Y103-W103,0)*-'PK kalkyl'!$AE$15 ->  | AB103: =IF((Z103<X103),Z103-X103,0)*-'PK kalkyl'!$AE$35 ->  | AC103: =+AA103*Växtföljd!$G$18+AB103*Växtföljd!$G$18 -> 
A104: =IF(Import!A104="","",Import!A104) ->  | B104: =IF(Import!B104="","",Import!B104) ->  | C104: =IF(Import!C104="","",Import!C104) ->  | D104: =IF(Import!D104="","",Import!D104) ->  | E104: =IF(Import!E104="","",Import!E104) ->  | F104: =IF(Import!F104="","",Import!F104) ->  | G104: =IF(Import!G104="","",Import!G104) ->  | H104: =IF(Import!H104="","",Import!H104) ->  | I104: =IF(Import!J104="","",Import!J104) ->  | J104: =IF(Import!K104="","",Import!K104) ->  | K104: =IF(Import!L104="","",Import!L104) ->  | L104: =IF(Import!M104="","",Import!M104) ->  | M104: =IF(Import!P104="","",Import!P104) ->  | N104: =IF(Import!Q104="","",Import!Q104) ->  | O104: =IF(Import!R104="","",Import!R104) ->  | P104: 300 | Q104: 2.6 | R104: 34 | S104: 34 | T104: =IF(Q104="","",(-0.00011*POWER(S104,2))+(0.01417*S104)+((0.00057*POWER(Q104,2))-(0.0529*Q104)+6.2018)+Kalkkalkyl!$AJ$2) -> 6.9227332 | W104: =IF(('PK kalkyl'!$AE$17*H104)+'PK kalkyl'!$AE$18+(('PK kalkyl'!$K$6-'PK kalkyl'!$AE$12)*'PK kalkyl'!$AE$13)<1,0,ROUND(('PK kalkyl'!$AE$17*H104)+'PK kalkyl'!$AE$18+(('PK kalkyl'!$K$6-'PK kalkyl'!$AE$12)*'PK kalkyl'!$AE$13),1)) ->  | X104: =IF(('PK kalkyl'!$AE$37*I104)+'PK kalkyl'!$AE$38+(('PK kalkyl'!$K$6-'PK kalkyl'!$AE$32)*'PK kalkyl'!$AE$33)<1,0,ROUND(('PK kalkyl'!$AE$37*I104)+'PK kalkyl'!$AE$38+(('PK kalkyl'!$K$6-'PK kalkyl'!$AE$32)*'PK kalkyl'!$AE$33),1)) ->  | AA104: =IF((Y104<W104),Y104-W104,0)*-'PK kalkyl'!$AE$15 ->  | AB104: =IF((Z104<X104),Z104-X104,0)*-'PK kalkyl'!$AE$35 ->  | AC104: =+AA104*Växtföljd!$G$18+AB104*Växtföljd!$G$18 -> 
A105: =IF(Import!A105="","",Import!A105) ->  | B105: =IF(Import!B105="","",Import!B105) ->  | C105: =IF(Import!C105="","",Import!C105) ->  | D105: =IF(Import!D105="","",Import!D105) ->  | E105: =IF(Import!E105="","",Import!E105) ->  | F105: =IF(Import!F105="","",Import!F105) ->  | G105: =IF(Import!G105="","",Import!G105) ->  | H105: =IF(Import!H105="","",Import!H105) ->  | I105: =IF(Import!J105="","",Import!J105) ->  | J105: =IF(Import!K105="","",Import!K105) ->  | K105: =IF(Import!L105="","",Import!L105) ->  | L105: =IF(Import!M105="","",Import!M105) ->  | M105: =IF(Import!P105="","",Import!P105) ->  | N105: =IF(Import!Q105="","",Import!Q105) ->  | O105: =IF(Import!R105="","",Import!R105) ->  | P105: 331.2387054 | Q105: 2.734176855 | R105: 35.61894048 | S105: 35.61894048 | T105: =IF(Q105="","",(-0.00011*POWER(S105,2))+(0.01417*S105)+((0.00057*POWER(Q105,2))-(0.0529*Q105)+6.2018)+Kalkkalkyl!$AJ$2) -> 6.926585612 | W105: =IF(('PK kalkyl'!$AE$17*H105)+'PK kalkyl'!$AE$18+(('PK kalkyl'!$K$6-'PK kalkyl'!$AE$12)*'PK kalkyl'!$AE$13)<1,0,ROUND(('PK kalkyl'!$AE$17*H105)+'PK kalkyl'!$AE$18+(('PK kalkyl'!$K$6-'PK kalkyl'!$AE$12)*'PK kalkyl'!$AE$13),1)) ->  | X105: =IF(('PK kalkyl'!$AE$37*I105)+'PK kalkyl'!$AE$38+(('PK kalkyl'!$K$6-'PK kalkyl'!$AE$32)*'PK kalkyl'!$AE$33)<1,0,ROUND(('PK kalkyl'!$AE$37*I105)+'PK kalkyl'!$AE$38+(('PK kalkyl'!$K$6-'PK kalkyl'!$AE$32)*'PK kalkyl'!$AE$33),1)) ->  | AA105: =IF((Y105<W105),Y105-W105,0)*-'PK kalkyl'!$AE$15 ->  | AB105: =IF((Z105<X105),Z105-X105,0)*-'PK kalkyl'!$AE$35 ->  | AC105: =+AA105*Växtföljd!$G$18+AB105*Växtföljd!$G$18 -> 
A106: =IF(Import!A106="","",Import!A106) ->  | B106: =IF(Import!B106="","",Import!B106) ->  | C106: =IF(Import!C106="","",Import!C106) ->  | D106: =IF(Import!D106="","",Import!D106) ->  | E106: =IF(Import!E106="","",Import!E106) ->  | F106: =IF(Import!F106="","",Import!F106) ->  | G106: =IF(Import!G106="","",Import!G106) ->  | H106: =IF(Import!H106="","",Import!H106) ->  | I106: =IF(Import!J106="","",Import!J106) ->  | J106: =IF(Import!K106="","",Import!K106) ->  | K106: =IF(Import!L106="","",Import!L106) ->  | L106: =IF(Import!M106="","",Import!M106) ->  | M106: =IF(Import!P106="","",Import!P106) ->  | N106: =IF(Import!Q106="","",Import!Q106) ->  | O106: =IF(Import!R106="","",Import!R106) ->  | P106: 230 | Q106: 3.5 | R106: 32 | S106: 32 | T106: =IF(Q106="","",(-0.00011*POWER(S106,2))+(0.01417*S106)+((0.00057*POWER(Q106,2))-(0.0529*Q106)+6.2018)+Kalkkalkyl!$AJ$2) -> 6.8644325 | W106: =IF(('PK kalkyl'!$AE$17*H106)+'PK kalkyl'!$AE$18+(('PK kalkyl'!$K$6-'PK kalkyl'!$AE$12)*'PK kalkyl'!$AE$13)<1,0,ROUND(('PK kalkyl'!$AE$17*H106)+'PK kalkyl'!$AE$18+(('PK kalkyl'!$K$6-'PK kalkyl'!$AE$12)*'PK kalkyl'!$AE$13),1)) ->  | X106: =IF(('PK kalkyl'!$AE$37*I106)+'PK kalkyl'!$AE$38+(('PK kalkyl'!$K$6-'PK kalkyl'!$AE$32)*'PK kalkyl'!$AE$33)<1,0,ROUND(('PK kalkyl'!$AE$37*I106)+'PK kalkyl'!$AE$38+(('PK kalkyl'!$K$6-'PK kalkyl'!$AE$32)*'PK kalkyl'!$AE$33),1)) ->  | AA106: =IF((Y106<W106),Y106-W106,0)*-'PK kalkyl'!$AE$15 ->  | AB106: =IF((Z106<X106),Z106-X106,0)*-'PK kalkyl'!$AE$35 ->  | AC106: =+AA106*Växtföljd!$G$18+AB106*Växtföljd!$G$18 -> 
A107: =IF(Import!A107="","",Import!A107) ->  | B107: =IF(Import!B107="","",Import!B107) ->  | C107: =IF(Import!C107="","",Import!C107) ->  | D107: =IF(Import!D107="","",Import!D107) ->  | E107: =IF(Import!E107="","",Import!E107) ->  | F107: =IF(Import!F107="","",Import!F107) ->  | G107: =IF(Import!G107="","",Import!G107) ->  | H107: =IF(Import!H107="","",Import!H107) ->  | I107: =IF(Import!J107="","",Import!J107) ->  | J107: =IF(Import!K107="","",Import!K107) ->  | K107: =IF(Import!L107="","",Import!L107) ->  | L107: =IF(Import!M107="","",Import!M107) ->  | M107: =IF(Import!P107="","",Import!P107) ->  | N107: =IF(Import!Q107="","",Import!Q107) ->  | O107: =IF(Import!R107="","",Import!R107) ->  | P107: 295.1039455 | Q107: 3.380995791 | R107: 34.62224919 | S107: 34.62224919 | T107: =IF(Q107="","",(-0.00011*POWER(S107,2))+(0.01417*S107)+((0.00057*POWER(Q107,2))-(0.0529*Q107)+6.2018)+Kalkkalkyl!$AJ$2) -> 6.888201324 | W107: =IF(('PK kalkyl'!$AE$17*H107)+'PK kalkyl'!$AE$18+(('PK kalkyl'!$K$6-'PK kalkyl'!$AE$12)*'PK kalkyl'!$AE$13)<1,0,ROUND(('PK kalkyl'!$AE$17*H107)+'PK kalkyl'!$AE$18+(('PK kalkyl'!$K$6-'PK kalkyl'!$AE$12)*'PK kalkyl'!$AE$13),1)) ->  | X107: =IF(('PK kalkyl'!$AE$37*I107)+'PK kalkyl'!$AE$38+(('PK kalkyl'!$K$6-'PK kalkyl'!$AE$32)*'PK kalkyl'!$AE$33)<1,0,ROUND(('PK kalkyl'!$AE$37*I107)+'PK kalkyl'!$AE$38+(('PK kalkyl'!$K$6-'PK kalkyl'!$AE$32)*'PK kalkyl'!$AE$33),1)) ->  | AA107: =IF((Y107<W107),Y107-W107,0)*-'PK kalkyl'!$AE$15 ->  | AB107: =IF((Z107<X107),Z107-X107,0)*-'PK kalkyl'!$AE$35 ->  | AC107: =+AA107*Växtföljd!$G$18+AB107*Växtföljd!$G$18 -> 
A108: =IF(Import!A108="","",Import!A108) ->  | B108: =IF(Import!B108="","",Import!B108) ->  | C108: =IF(Import!C108="","",Import!C108) ->  | D108: =IF(Import!D108="","",Import!D108) ->  | E108: =IF(Import!E108="","",Import!E108) ->  | F108: =IF(Import!F108="","",Import!F108) ->  | G108: =IF(Import!G108="","",Import!G108) ->  | H108: =IF(Import!H108="","",Import!H108) ->  | I108: =IF(Import!J108="","",Import!J108) ->  | J108: =IF(Import!K108="","",Import!K108) ->  | K108: =IF(Import!L108="","",Import!L108) ->  | L108: =IF(Import!M108="","",Import!M108) ->  | M108: =IF(Import!P108="","",Import!P108) ->  | N108: =IF(Import!Q108="","",Import!Q108) ->  | O108: =IF(Import!R108="","",Import!R108) ->  | P108: 410 | Q108: 2.5 | R108: 39 | S108: 39 | T108: =IF(Q108="","",(-0.00011*POWER(S108,2))+(0.01417*S108)+((0.00057*POWER(Q108,2))-(0.0529*Q108)+6.2018)+Kalkkalkyl!$AJ$2) -> 6.9584325 | W108: =IF(('PK kalkyl'!$AE$17*H108)+'PK kalkyl'!$AE$18+(('PK kalkyl'!$K$6-'PK kalkyl'!$AE$12)*'PK kalkyl'!$AE$13)<1,0,ROUND(('PK kalkyl'!$AE$17*H108)+'PK kalkyl'!$AE$18+(('PK kalkyl'!$K$6-'PK kalkyl'!$AE$12)*'PK kalkyl'!$AE$13),1)) ->  | X108: =IF(('PK kalkyl'!$AE$37*I108)+'PK kalkyl'!$AE$38+(('PK kalkyl'!$K$6-'PK kalkyl'!$AE$32)*'PK kalkyl'!$AE$33)<1,0,ROUND(('PK kalkyl'!$AE$37*I108)+'PK kalkyl'!$AE$38+(('PK kalkyl'!$K$6-'PK kalkyl'!$AE$32)*'PK kalkyl'!$AE$33),1)) ->  | AA108: =IF((Y108<W108),Y108-W108,0)*-'PK kalkyl'!$AE$15 ->  | AB108: =IF((Z108<X108),Z108-X108,0)*-'PK kalkyl'!$AE$35 ->  | AC108: =+AA108*Växtföljd!$G$18+AB108*Växtföljd!$G$18 -> 
A109: =IF(Import!A109="","",Import!A109) ->  | B109: =IF(Import!B109="","",Import!B109) ->  | C109: =IF(Import!C109="","",Import!C109) ->  | D109: =IF(Import!D109="","",Import!D109) ->  | E109: =IF(Import!E109="","",Import!E109) ->  | F109: =IF(Import!F109="","",Import!F109) ->  | G109: =IF(Import!G109="","",Import!G109) ->  | H109: =IF(Import!H109="","",Import!H109) ->  | I109: =IF(Import!J109="","",Import!J109) ->  | J109: =IF(Import!K109="","",Import!K109) ->  | K109: =IF(Import!L109="","",Import!L109) ->  | L109: =IF(Import!M109="","",Import!M109) ->  | M109: =IF(Import!P109="","",Import!P109) ->  | N109: =IF(Import!Q109="","",Import!Q109) ->  | O109: =IF(Import!R109="","",Import!R109) ->  | P109: 392.3766224 | Q109: 2.58843286 | R109: 38.05650499 | S109: 38.05650499 | T109: =IF(Q109="","",(-0.00011*POWER(S109,2))+(0.01417*S109)+((0.00057*POWER(Q109,2))-(0.0529*Q109)+6.2018)+Kalkkalkyl!$AJ$2) -> 6.948638836 | W109: =IF(('PK kalkyl'!$AE$17*H109)+'PK kalkyl'!$AE$18+(('PK kalkyl'!$K$6-'PK kalkyl'!$AE$12)*'PK kalkyl'!$AE$13)<1,0,ROUND(('PK kalkyl'!$AE$17*H109)+'PK kalkyl'!$AE$18+(('PK kalkyl'!$K$6-'PK kalkyl'!$AE$12)*'PK kalkyl'!$AE$13),1)) ->  | X109: =IF(('PK kalkyl'!$AE$37*I109)+'PK kalkyl'!$AE$38+(('PK kalkyl'!$K$6-'PK kalkyl'!$AE$32)*'PK kalkyl'!$AE$33)<1,0,ROUND(('PK kalkyl'!$AE$37*I109)+'PK kalkyl'!$AE$38+(('PK kalkyl'!$K$6-'PK kalkyl'!$AE$32)*'PK kalkyl'!$AE$33),1)) ->  | AA109: =IF((Y109<W109),Y109-W109,0)*-'PK kalkyl'!$AE$15 ->  | AB109: =IF((Z109<X109),Z109-X109,0)*-'PK kalkyl'!$AE$35 ->  | AC109: =+AA109*Växtföljd!$G$18+AB109*Växtföljd!$G$18 -> 
A110: =IF(Import!A110="","",Import!A110) ->  | B110: =IF(Import!B110="","",Import!B110) ->  | C110: =IF(Import!C110="","",Import!C110) ->  | D110: =IF(Import!D110="","",Import!D110) ->  | E110: =IF(Import!E110="","",Import!E110) ->  | F110: =IF(Import!F110="","",Import!F110) ->  | G110: =IF(Import!G110="","",Import!G110) ->  | H110: =IF(Import!H110="","",Import!H110) ->  | I110: =IF(Import!J110="","",Import!J110) ->  | J110: =IF(Import!K110="","",Import!K110) ->  | K110: =IF(Import!L110="","",Import!L110) ->  | L110: =IF(Import!M110="","",Import!M110) ->  | M110: =IF(Import!P110="","",Import!P110) ->  | N110: =IF(Import!Q110="","",Import!Q110) ->  | O110: =IF(Import!R110="","",Import!R110) ->  | P110: 250 | Q110: 3 | R110: 30 | S110: 30 | T110: =IF(Q110="","",(-0.00011*POWER(S110,2))+(0.01417*S110)+((0.00057*POWER(Q110,2))-(0.0529*Q110)+6.2018)+Kalkkalkyl!$AJ$2) -> 6.87433 | W110: =IF(('PK kalkyl'!$AE$17*H110)+'PK kalkyl'!$AE$18+(('PK kalkyl'!$K$6-'PK kalkyl'!$AE$12)*'PK kalkyl'!$AE$13)<1,0,ROUND(('PK kalkyl'!$AE$17*H110)+'PK kalkyl'!$AE$18+(('PK kalkyl'!$K$6-'PK kalkyl'!$AE$12)*'PK kalkyl'!$AE$13),1)) ->  | X110: =IF(('PK kalkyl'!$AE$37*I110)+'PK kalkyl'!$AE$38+(('PK kalkyl'!$K$6-'PK kalkyl'!$AE$32)*'PK kalkyl'!$AE$33)<1,0,ROUND(('PK kalkyl'!$AE$37*I110)+'PK kalkyl'!$AE$38+(('PK kalkyl'!$K$6-'PK kalkyl'!$AE$32)*'PK kalkyl'!$AE$33),1)) ->  | AA110: =IF((Y110<W110),Y110-W110,0)*-'PK kalkyl'!$AE$15 ->  | AB110: =IF((Z110<X110),Z110-X110,0)*-'PK kalkyl'!$AE$35 ->  | AC110: =+AA110*Växtföljd!$G$18+AB110*Växtföljd!$G$18 -> 
A111: =IF(Import!A111="","",Import!A111) ->  | B111: =IF(Import!B111="","",Import!B111) ->  | C111: =IF(Import!C111="","",Import!C111) ->  | D111: =IF(Import!D111="","",Import!D111) ->  | E111: =IF(Import!E111="","",Import!E111) ->  | F111: =IF(Import!F111="","",Import!F111) ->  | G111: =IF(Import!G111="","",Import!G111) ->  | H111: =IF(Import!H111="","",Import!H111) ->  | I111: =IF(Import!J111="","",Import!J111) ->  | J111: =IF(Import!K111="","",Import!K111) ->  | K111: =IF(Import!L111="","",Import!L111) ->  | L111: =IF(Import!M111="","",Import!M111) ->  | M111: =IF(Import!P111="","",Import!P111) ->  | N111: =IF(Import!Q111="","",Import!Q111) ->  | O111: =IF(Import!R111="","",Import!R111) ->  | P111: 271.834223 | Q111: 3.515820176 | R111: 31.74208977 | S111: 31.74208977 | T111: =IF(Q111="","",(-0.00011*POWER(S111,2))+(0.01417*S111)+((0.00057*POWER(Q111,2))-(0.0529*Q111)+6.2018)+Kalkkalkyl!$AJ$2) -> 6.861812661 | W111: =IF(('PK kalkyl'!$AE$17*H111)+'PK kalkyl'!$AE$18+(('PK kalkyl'!$K$6-'PK kalkyl'!$AE$12)*'PK kalkyl'!$AE$13)<1,0,ROUND(('PK kalkyl'!$AE$17*H111)+'PK kalkyl'!$AE$18+(('PK kalkyl'!$K$6-'PK kalkyl'!$AE$12)*'PK kalkyl'!$AE$13),1)) ->  | X111: =IF(('PK kalkyl'!$AE$37*I111)+'PK kalkyl'!$AE$38+(('PK kalkyl'!$K$6-'PK kalkyl'!$AE$32)*'PK kalkyl'!$AE$33)<1,0,ROUND(('PK kalkyl'!$AE$37*I111)+'PK kalkyl'!$AE$38+(('PK kalkyl'!$K$6-'PK kalkyl'!$AE$32)*'PK kalkyl'!$AE$33),1)) ->  | AA111: =IF((Y111<W111),Y111-W111,0)*-'PK kalkyl'!$AE$15 ->  | AB111: =IF((Z111<X111),Z111-X111,0)*-'PK kalkyl'!$AE$35 ->  | AC111: =+AA111*Växtföljd!$G$18+AB111*Växtföljd!$G$18 -> 
A112: =IF(Import!A112="","",Import!A112) ->  | B112: =IF(Import!B112="","",Import!B112) ->  | C112: =IF(Import!C112="","",Import!C112) ->  | D112: =IF(Import!D112="","",Import!D112) ->  | E112: =IF(Import!E112="","",Import!E112) ->  | F112: =IF(Import!F112="","",Import!F112) ->  | G112: =IF(Import!G112="","",Import!G112) ->  | H112: =IF(Import!H112="","",Import!H112) ->  | I112: =IF(Import!J112="","",Import!J112) ->  | J112: =IF(Import!K112="","",Import!K112) ->  | K112: =IF(Import!L112="","",Import!L112) ->  | L112: =IF(Import!M112="","",Import!M112) ->  | M112: =IF(Import!P112="","",Import!P112) ->  | N112: =IF(Import!Q112="","",Import!Q112) ->  | O112: =IF(Import!R112="","",Import!R112) ->  | P112: 270 | Q112: 3.9 | R112: 34 | S112: 34 | T112: =IF(Q112="","",(-0.00011*POWER(S112,2))+(0.01417*S112)+((0.00057*POWER(Q112,2))-(0.0529*Q112)+6.2018)+Kalkkalkyl!$AJ$2) -> 6.8587797 | W112: =IF(('PK kalkyl'!$AE$17*H112)+'PK kalkyl'!$AE$18+(('PK kalkyl'!$K$6-'PK kalkyl'!$AE$12)*'PK kalkyl'!$AE$13)<1,0,ROUND(('PK kalkyl'!$AE$17*H112)+'PK kalkyl'!$AE$18+(('PK kalkyl'!$K$6-'PK kalkyl'!$AE$12)*'PK kalkyl'!$AE$13),1)) ->  | X112: =IF(('PK kalkyl'!$AE$37*I112)+'PK kalkyl'!$AE$38+(('PK kalkyl'!$K$6-'PK kalkyl'!$AE$32)*'PK kalkyl'!$AE$33)<1,0,ROUND(('PK kalkyl'!$AE$37*I112)+'PK kalkyl'!$AE$38+(('PK kalkyl'!$K$6-'PK kalkyl'!$AE$32)*'PK kalkyl'!$AE$33),1)) ->  | AA112: =IF((Y112<W112),Y112-W112,0)*-'PK kalkyl'!$AE$15 ->  | AB112: =IF((Z112<X112),Z112-X112,0)*-'PK kalkyl'!$AE$35 ->  | AC112: =+AA112*Växtföljd!$G$18+AB112*Växtföljd!$G$18 -> 
A113: =IF(Import!A113="","",Import!A113) ->  | B113: =IF(Import!B113="","",Import!B113) ->  | C113: =IF(Import!C113="","",Import!C113) ->  | D113: =IF(Import!D113="","",Import!D113) ->  | E113: =IF(Import!E113="","",Import!E113) ->  | F113: =IF(Import!F113="","",Import!F113) ->  | G113: =IF(Import!G113="","",Import!G113) ->  | H113: =IF(Import!H113="","",Import!H113) ->  | I113: =IF(Import!J113="","",Import!J113) ->  | J113: =IF(Import!K113="","",Import!K113) ->  | K113: =IF(Import!L113="","",Import!L113) ->  | L113: =IF(Import!M113="","",Import!M113) ->  | M113: =IF(Import!P113="","",Import!P113) ->  | N113: =IF(Import!Q113="","",Import!Q113) ->  | O113: =IF(Import!R113="","",Import!R113) ->  | P113: 247.2330186 | Q113: 3.451589131 | R113: 32.0414061 | S113: 32.0414061 | T113: =IF(Q113="","",(-0.00011*POWER(S113,2))+(0.01417*S113)+((0.00057*POWER(Q113,2))-(0.0529*Q113)+6.2018)+Kalkkalkyl!$AJ$2) -> 6.867096648 | W113: =IF(('PK kalkyl'!$AE$17*H113)+'PK kalkyl'!$AE$18+(('PK kalkyl'!$K$6-'PK kalkyl'!$AE$12)*'PK kalkyl'!$AE$13)<1,0,ROUND(('PK kalkyl'!$AE$17*H113)+'PK kalkyl'!$AE$18+(('PK kalkyl'!$K$6-'PK kalkyl'!$AE$12)*'PK kalkyl'!$AE$13),1)) ->  | X113: =IF(('PK kalkyl'!$AE$37*I113)+'PK kalkyl'!$AE$38+(('PK kalkyl'!$K$6-'PK kalkyl'!$AE$32)*'PK kalkyl'!$AE$33)<1,0,ROUND(('PK kalkyl'!$AE$37*I113)+'PK kalkyl'!$AE$38+(('PK kalkyl'!$K$6-'PK kalkyl'!$AE$32)*'PK kalkyl'!$AE$33),1)) ->  | AA113: =IF((Y113<W113),Y113-W113,0)*-'PK kalkyl'!$AE$15 ->  | AB113: =IF((Z113<X113),Z113-X113,0)*-'PK kalkyl'!$AE$35 ->  | AC113: =+AA113*Växtföljd!$G$18+AB113*Växtföljd!$G$18 -> 
A114: =IF(Import!A114="","",Import!A114) ->  | B114: =IF(Import!B114="","",Import!B114) ->  | C114: =IF(Import!C114="","",Import!C114) ->  | D114: =IF(Import!D114="","",Import!D114) ->  | E114: =IF(Import!E114="","",Import!E114) ->  | F114: =IF(Import!F114="","",Import!F114) ->  | G114: =IF(Import!G114="","",Import!G114) ->  | H114: =IF(Import!H114="","",Import!H114) ->  | I114: =IF(Import!J114="","",Import!J114) ->  | J114: =IF(Import!K114="","",Import!K114) ->  | K114: =IF(Import!L114="","",Import!L114) ->  | L114: =IF(Import!M114="","",Import!M114) ->  | M114: =IF(Import!P114="","",Import!P114) ->  | N114: =IF(Import!Q114="","",Import!Q114) ->  | O114: =IF(Import!R114="","",Import!R114) ->  | P114: 240 | Q114: 3.6 | R114: 32 | S114: 32 | T114: =IF(Q114="","",(-0.00011*POWER(S114,2))+(0.01417*S114)+((0.00057*POWER(Q114,2))-(0.0529*Q114)+6.2018)+Kalkkalkyl!$AJ$2) -> 6.8595472 | W114: =IF(('PK kalkyl'!$AE$17*H114)+'PK kalkyl'!$AE$18+(('PK kalkyl'!$K$6-'PK kalkyl'!$AE$12)*'PK kalkyl'!$AE$13)<1,0,ROUND(('PK kalkyl'!$AE$17*H114)+'PK kalkyl'!$AE$18+(('PK kalkyl'!$K$6-'PK kalkyl'!$AE$12)*'PK kalkyl'!$AE$13),1)) ->  | X114: =IF(('PK kalkyl'!$AE$37*I114)+'PK kalkyl'!$AE$38+(('PK kalkyl'!$K$6-'PK kalkyl'!$AE$32)*'PK kalkyl'!$AE$33)<1,0,ROUND(('PK kalkyl'!$AE$37*I114)+'PK kalkyl'!$AE$38+(('PK kalkyl'!$K$6-'PK kalkyl'!$AE$32)*'PK kalkyl'!$AE$33),1)) ->  | AA114: =IF((Y114<W114),Y114-W114,0)*-'PK kalkyl'!$AE$15 ->  | AB114: =IF((Z114<X114),Z114-X114,0)*-'PK kalkyl'!$AE$35 ->  | AC114: =+AA114*Växtföljd!$G$18+AB114*Växtföljd!$G$18 -> 
A115: =IF(Import!A115="","",Import!A115) ->  | B115: =IF(Import!B115="","",Import!B115) ->  | C115: =IF(Import!C115="","",Import!C115) ->  | D115: =IF(Import!D115="","",Import!D115) ->  | E115: =IF(Import!E115="","",Import!E115) ->  | F115: =IF(Import!F115="","",Import!F115) ->  | G115: =IF(Import!G115="","",Import!G115) ->  | H115: =IF(Import!H115="","",Import!H115) ->  | I115: =IF(Import!J115="","",Import!J115) ->  | J115: =IF(Import!K115="","",Import!K115) ->  | K115: =IF(Import!L115="","",Import!L115) ->  | L115: =IF(Import!M115="","",Import!M115) ->  | M115: =IF(Import!P115="","",Import!P115) ->  | N115: =IF(Import!Q115="","",Import!Q115) ->  | O115: =IF(Import!R115="","",Import!R115) ->  | P115: 254.3777003 | Q115: 3.832123936 | R115: 31.97051413 | S115: 31.97051413 | T115: =IF(Q115="","",(-0.00011*POWER(S115,2))+(0.01417*S115)+((0.00057*POWER(Q115,2))-(0.0529*Q115)+6.2018)+Kalkkalkyl!$AJ$2) -> 6.848040863 | W115: =IF(('PK kalkyl'!$AE$17*H115)+'PK kalkyl'!$AE$18+(('PK kalkyl'!$K$6-'PK kalkyl'!$AE$12)*'PK kalkyl'!$AE$13)<1,0,ROUND(('PK kalkyl'!$AE$17*H115)+'PK kalkyl'!$AE$18+(('PK kalkyl'!$K$6-'PK kalkyl'!$AE$12)*'PK kalkyl'!$AE$13),1)) ->  | X115: =IF(('PK kalkyl'!$AE$37*I115)+'PK kalkyl'!$AE$38+(('PK kalkyl'!$K$6-'PK kalkyl'!$AE$32)*'PK kalkyl'!$AE$33)<1,0,ROUND(('PK kalkyl'!$AE$37*I115)+'PK kalkyl'!$AE$38+(('PK kalkyl'!$K$6-'PK kalkyl'!$AE$32)*'PK kalkyl'!$AE$33),1)) ->  | AA115: =IF((Y115<W115),Y115-W115,0)*-'PK kalkyl'!$AE$15 ->  | AB115: =IF((Z115<X115),Z115-X115,0)*-'PK kalkyl'!$AE$35 ->  | AC115: =+AA115*Växtföljd!$G$18+AB115*Växtföljd!$G$18 -> 
A116: =IF(Import!A116="","",Import!A116) ->  | B116: =IF(Import!B116="","",Import!B116) ->  | C116: =IF(Import!C116="","",Import!C116) ->  | D116: =IF(Import!D116="","",Import!D116) ->  | E116: =IF(Import!E116="","",Import!E116) ->  | F116: =IF(Import!F116="","",Import!F116) ->  | G116: =IF(Import!G116="","",Import!G116) ->  | H116: =IF(Import!H116="","",Import!H116) ->  | I116: =IF(Import!J116="","",Import!J116) ->  | J116: =IF(Import!K116="","",Import!K116) ->  | K116: =IF(Import!L116="","",Import!L116) ->  | L116: =IF(Import!M116="","",Import!M116) ->  | M116: =IF(Import!P116="","",Import!P116) ->  | N116: =IF(Import!Q116="","",Import!Q116) ->  | O116: =IF(Import!R116="","",Import!R116) ->  | P116: 270 | Q116: 3.6 | R116: 31 | S116: 31 | T116: =IF(Q116="","",(-0.00011*POWER(S116,2))+(0.01417*S116)+((0.00057*POWER(Q116,2))-(0.0529*Q116)+6.2018)+Kalkkalkyl!$AJ$2) -> 6.8523072 | W116: =IF(('PK kalkyl'!$AE$17*H116)+'PK kalkyl'!$AE$18+(('PK kalkyl'!$K$6-'PK kalkyl'!$AE$12)*'PK kalkyl'!$AE$13)<1,0,ROUND(('PK kalkyl'!$AE$17*H116)+'PK kalkyl'!$AE$18+(('PK kalkyl'!$K$6-'PK kalkyl'!$AE$12)*'PK kalkyl'!$AE$13),1)) ->  | X116: =IF(('PK kalkyl'!$AE$37*I116)+'PK kalkyl'!$AE$38+(('PK kalkyl'!$K$6-'PK kalkyl'!$AE$32)*'PK kalkyl'!$AE$33)<1,0,ROUND(('PK kalkyl'!$AE$37*I116)+'PK kalkyl'!$AE$38+(('PK kalkyl'!$K$6-'PK kalkyl'!$AE$32)*'PK kalkyl'!$AE$33),1)) ->  | AA116: =IF((Y116<W116),Y116-W116,0)*-'PK kalkyl'!$AE$15 ->  | AB116: =IF((Z116<X116),Z116-X116,0)*-'PK kalkyl'!$AE$35 ->  | AC116: =+AA116*Växtföljd!$G$18+AB116*Växtföljd!$G$18 -> 
A117: =IF(Import!A117="","",Import!A117) ->  | B117: =IF(Import!B117="","",Import!B117) ->  | C117: =IF(Import!C117="","",Import!C117) ->  | D117: =IF(Import!D117="","",Import!D117) ->  | E117: =IF(Import!E117="","",Import!E117) ->  | F117: =IF(Import!F117="","",Import!F117) ->  | G117: =IF(Import!G117="","",Import!G117) ->  | H117: =IF(Import!H117="","",Import!H117) ->  | I117: =IF(Import!J117="","",Import!J117) ->  | J117: =IF(Import!K117="","",Import!K117) ->  | K117: =IF(Import!L117="","",Import!L117) ->  | L117: =IF(Import!M117="","",Import!M117) ->  | M117: =IF(Import!P117="","",Import!P117) ->  | N117: =IF(Import!Q117="","",Import!Q117) ->  | O117: =IF(Import!R117="","",Import!R117) ->  | P117: 261.0166652 | Q117: 3.510724827 | R117: 30.55083326 | S117: 30.55083326 | T117: =IF(Q117="","",(-0.00011*POWER(S117,2))+(0.01417*S117)+((0.00057*POWER(Q117,2))-(0.0529*Q117)+6.2018)+Kalkkalkyl!$AJ$2) -> 6.853344446 | W117: =IF(('PK kalkyl'!$AE$17*H117)+'PK kalkyl'!$AE$18+(('PK kalkyl'!$K$6-'PK kalkyl'!$AE$12)*'PK kalkyl'!$AE$13)<1,0,ROUND(('PK kalkyl'!$AE$17*H117)+'PK kalkyl'!$AE$18+(('PK kalkyl'!$K$6-'PK kalkyl'!$AE$12)*'PK kalkyl'!$AE$13),1)) ->  | X117: =IF(('PK kalkyl'!$AE$37*I117)+'PK kalkyl'!$AE$38+(('PK kalkyl'!$K$6-'PK kalkyl'!$AE$32)*'PK kalkyl'!$AE$33)<1,0,ROUND(('PK kalkyl'!$AE$37*I117)+'PK kalkyl'!$AE$38+(('PK kalkyl'!$K$6-'PK kalkyl'!$AE$32)*'PK kalkyl'!$AE$33),1)) ->  | AA117: =IF((Y117<W117),Y117-W117,0)*-'PK kalkyl'!$AE$15 ->  | AB117: =IF((Z117<X117),Z117-X117,0)*-'PK kalkyl'!$AE$35 ->  | AC117: =+AA117*Växtföljd!$G$18+AB117*Växtföljd!$G$18 -> 
A118: =IF(Import!A118="","",Import!A118) ->  | B118: =IF(Import!B118="","",Import!B118) ->  | C118: =IF(Import!C118="","",Import!C118) ->  | D118: =IF(Import!D118="","",Import!D118) ->  | E118: =IF(Import!E118="","",Import!E118) ->  | F118: =IF(Import!F118="","",Import!F118) ->  | G118: =IF(Import!G118="","",Import!G118) ->  | H118: =IF(Import!H118="","",Import!H118) ->  | I118: =IF(Import!J118="","",Import!J118) ->  | J118: =IF(Import!K118="","",Import!K118) ->  | K118: =IF(Import!L118="","",Import!L118) ->  | L118: =IF(Import!M118="","",Import!M118) ->  | M118: =IF(Import!P118="","",Import!P118) ->  | N118: =IF(Import!Q118="","",Import!Q118) ->  | O118: =IF(Import!R118="","",Import!R118) ->  | P118: 270 | Q118: 4.1 | R118: 31 | S118: 31 | T118: =IF(Q118="","",(-0.00011*POWER(S118,2))+(0.01417*S118)+((0.00057*POWER(Q118,2))-(0.0529*Q118)+6.2018)+Kalkkalkyl!$AJ$2) -> 6.8280517 | W118: =IF(('PK kalkyl'!$AE$17*H118)+'PK kalkyl'!$AE$18+(('PK kalkyl'!$K$6-'PK kalkyl'!$AE$12)*'PK kalkyl'!$AE$13)<1,0,ROUND(('PK kalkyl'!$AE$17*H118)+'PK kalkyl'!$AE$18+(('PK kalkyl'!$K$6-'PK kalkyl'!$AE$12)*'PK kalkyl'!$AE$13),1)) ->  | X118: =IF(('PK kalkyl'!$AE$37*I118)+'PK kalkyl'!$AE$38+(('PK kalkyl'!$K$6-'PK kalkyl'!$AE$32)*'PK kalkyl'!$AE$33)<1,0,ROUND(('PK kalkyl'!$AE$37*I118)+'PK kalkyl'!$AE$38+(('PK kalkyl'!$K$6-'PK kalkyl'!$AE$32)*'PK kalkyl'!$AE$33),1)) ->  | AA118: =IF((Y118<W118),Y118-W118,0)*-'PK kalkyl'!$AE$15 ->  | AB118: =IF((Z118<X118),Z118-X118,0)*-'PK kalkyl'!$AE$35 ->  | AC118: =+AA118*Växtföljd!$G$18+AB118*Växtföljd!$G$18 -> 
A119: =IF(Import!A119="","",Import!A119) ->  | B119: =IF(Import!B119="","",Import!B119) ->  | C119: =IF(Import!C119="","",Import!C119) ->  | D119: =IF(Import!D119="","",Import!D119) ->  | E119: =IF(Import!E119="","",Import!E119) ->  | F119: =IF(Import!F119="","",Import!F119) ->  | G119: =IF(Import!G119="","",Import!G119) ->  | H119: =IF(Import!H119="","",Import!H119) ->  | I119: =IF(Import!J119="","",Import!J119) ->  | J119: =IF(Import!K119="","",Import!K119) ->  | K119: =IF(Import!L119="","",Import!L119) ->  | L119: =IF(Import!M119="","",Import!M119) ->  | M119: =IF(Import!P119="","",Import!P119) ->  | N119: =IF(Import!Q119="","",Import!Q119) ->  | O119: =IF(Import!R119="","",Import!R119) ->  | P119: 257.3047844 | Q119: 3.858447082 | R119: 31.04835718 | S119: 31.04835718 | T119: =IF(Q119="","",(-0.00011*POWER(S119,2))+(0.01417*S119)+((0.00057*POWER(Q119,2))-(0.0529*Q119)+6.2018)+Kalkkalkyl!$AJ$2) -> 6.840089257 | W119: =IF(('PK kalkyl'!$AE$17*H119)+'PK kalkyl'!$AE$18+(('PK kalkyl'!$K$6-'PK kalkyl'!$AE$12)*'PK kalkyl'!$AE$13)<1,0,ROUND(('PK kalkyl'!$AE$17*H119)+'PK kalkyl'!$AE$18+(('PK kalkyl'!$K$6-'PK kalkyl'!$AE$12)*'PK kalkyl'!$AE$13),1)) ->  | X119: =IF(('PK kalkyl'!$AE$37*I119)+'PK kalkyl'!$AE$38+(('PK kalkyl'!$K$6-'PK kalkyl'!$AE$32)*'PK kalkyl'!$AE$33)<1,0,ROUND(('PK kalkyl'!$AE$37*I119)+'PK kalkyl'!$AE$38+(('PK kalkyl'!$K$6-'PK kalkyl'!$AE$32)*'PK kalkyl'!$AE$33),1)) ->  | AA119: =IF((Y119<W119),Y119-W119,0)*-'PK kalkyl'!$AE$15 ->  | AB119: =IF((Z119<X119),Z119-X119,0)*-'PK kalkyl'!$AE$35 ->  | AC119: =+AA119*Växtföljd!$G$18+AB119*Växtföljd!$G$18 -> 
A120: =IF(Import!A120="","",Import!A120) ->  | B120: =IF(Import!B120="","",Import!B120) ->  | C120: =IF(Import!C120="","",Import!C120) ->  | D120: =IF(Import!D120="","",Import!D120) ->  | E120: =IF(Import!E120="","",Import!E120) ->  | F120: =IF(Import!F120="","",Import!F120) ->  | G120: =IF(Import!G120="","",Import!G120) ->  | H120: =IF(Import!H120="","",Import!H120) ->  | I120: =IF(Import!J120="","",Import!J120) ->  | J120: =IF(Import!K120="","",Import!K120) ->  | K120: =IF(Import!L120="","",Import!L120) ->  | L120: =IF(Import!M120="","",Import!M120) ->  | M120: =IF(Import!P120="","",Import!P120) ->  | N120: =IF(Import!Q120="","",Import!Q120) ->  | O120: =IF(Import!R120="","",Import!R120) ->  | P120: 230 | Q120: 4.3 | R120: 30 | S120: 30 | T120: =IF(Q120="","",(-0.00011*POWER(S120,2))+(0.01417*S120)+((0.00057*POWER(Q120,2))-(0.0529*Q120)+6.2018)+Kalkkalkyl!$AJ$2) -> 6.8109693 | W120: =IF(('PK kalkyl'!$AE$17*H120)+'PK kalkyl'!$AE$18+(('PK kalkyl'!$K$6-'PK kalkyl'!$AE$12)*'PK kalkyl'!$AE$13)<1,0,ROUND(('PK kalkyl'!$AE$17*H120)+'PK kalkyl'!$AE$18+(('PK kalkyl'!$K$6-'PK kalkyl'!$AE$12)*'PK kalkyl'!$AE$13),1)) ->  | X120: =IF(('PK kalkyl'!$AE$37*I120)+'PK kalkyl'!$AE$38+(('PK kalkyl'!$K$6-'PK kalkyl'!$AE$32)*'PK kalkyl'!$AE$33)<1,0,ROUND(('PK kalkyl'!$AE$37*I120)+'PK kalkyl'!$AE$38+(('PK kalkyl'!$K$6-'PK kalkyl'!$AE$32)*'PK kalkyl'!$AE$33),1)) ->  | AA120: =IF((Y120<W120),Y120-W120,0)*-'PK kalkyl'!$AE$15 ->  | AB120: =IF((Z120<X120),Z120-X120,0)*-'PK kalkyl'!$AE$35 ->  | AC120: =+AA120*Växtföljd!$G$18+AB120*Växtföljd!$G$18 -> 
A121: =IF(Import!A121="","",Import!A121) ->  | B121: =IF(Import!B121="","",Import!B121) ->  | C121: =IF(Import!C121="","",Import!C121) ->  | D121: =IF(Import!D121="","",Import!D121) ->  | E121: =IF(Import!E121="","",Import!E121) ->  | F121: =IF(Import!F121="","",Import!F121) ->  | G121: =IF(Import!G121="","",Import!G121) ->  | H121: =IF(Import!H121="","",Import!H121) ->  | I121: =IF(Import!J121="","",Import!J121) ->  | J121: =IF(Import!K121="","",Import!K121) ->  | K121: =IF(Import!L121="","",Import!L121) ->  | L121: =IF(Import!M121="","",Import!M121) ->  | M121: =IF(Import!P121="","",Import!P121) ->  | N121: =IF(Import!Q121="","",Import!Q121) ->  | O121: =IF(Import!R121="","",Import!R121) ->  | P121: 257.8424945 | Q121: 3.783479178 | R121: 30.78865595 | S121: 30.78865595 | T121: =IF(Q121="","",(-0.00011*POWER(S121,2))+(0.01417*S121)+((0.00057*POWER(Q121,2))-(0.0529*Q121)+6.2018)+Kalkkalkyl!$AJ$2) -> 6.841815047 | W121: =IF(('PK kalkyl'!$AE$17*H121)+'PK kalkyl'!$AE$18+(('PK kalkyl'!$K$6-'PK kalkyl'!$AE$12)*'PK kalkyl'!$AE$13)<1,0,ROUND(('PK kalkyl'!$AE$17*H121)+'PK kalkyl'!$AE$18+(('PK kalkyl'!$K$6-'PK kalkyl'!$AE$12)*'PK kalkyl'!$AE$13),1)) ->  | X121: =IF(('PK kalkyl'!$AE$37*I121)+'PK kalkyl'!$AE$38+(('PK kalkyl'!$K$6-'PK kalkyl'!$AE$32)*'PK kalkyl'!$AE$33)<1,0,ROUND(('PK kalkyl'!$AE$37*I121)+'PK kalkyl'!$AE$38+(('PK kalkyl'!$K$6-'PK kalkyl'!$AE$32)*'PK kalkyl'!$AE$33),1)) ->  | AA121: =IF((Y121<W121),Y121-W121,0)*-'PK kalkyl'!$AE$15 ->  | AB121: =IF((Z121<X121),Z121-X121,0)*-'PK kalkyl'!$AE$35 ->  | AC121: =+AA121*Växtföljd!$G$18+AB121*Växtföljd!$G$18 -> 
A122: =IF(Import!A122="","",Import!A122) ->  | B122: =IF(Import!B122="","",Import!B122) ->  | C122: =IF(Import!C122="","",Import!C122) ->  | D122: =IF(Import!D122="","",Import!D122) ->  | E122: =IF(Import!E122="","",Import!E122) ->  | F122: =IF(Import!F122="","",Import!F122) ->  | G122: =IF(Import!G122="","",Import!G122) ->  | H122: =IF(Import!H122="","",Import!H122) ->  | I122: =IF(Import!J122="","",Import!J122) ->  | J122: =IF(Import!K122="","",Import!K122) ->  | K122: =IF(Import!L122="","",Import!L122) ->  | L122: =IF(Import!M122="","",Import!M122) ->  | M122: =IF(Import!P122="","",Import!P122) ->  | N122: =IF(Import!Q122="","",Import!Q122) ->  | O122: =IF(Import!R122="","",Import!R122) ->  | P122: 290 | Q122: 3.5 | R122: 31 | S122: 31 | T122: =IF(Q122="","",(-0.00011*POWER(S122,2))+(0.01417*S122)+((0.00057*POWER(Q122,2))-(0.0529*Q122)+6.2018)+Kalkkalkyl!$AJ$2) -> 6.8571925 | W122: =IF(('PK kalkyl'!$AE$17*H122)+'PK kalkyl'!$AE$18+(('PK kalkyl'!$K$6-'PK kalkyl'!$AE$12)*'PK kalkyl'!$AE$13)<1,0,ROUND(('PK kalkyl'!$AE$17*H122)+'PK kalkyl'!$AE$18+(('PK kalkyl'!$K$6-'PK kalkyl'!$AE$12)*'PK kalkyl'!$AE$13),1)) ->  | X122: =IF(('PK kalkyl'!$AE$37*I122)+'PK kalkyl'!$AE$38+(('PK kalkyl'!$K$6-'PK kalkyl'!$AE$32)*'PK kalkyl'!$AE$33)<1,0,ROUND(('PK kalkyl'!$AE$37*I122)+'PK kalkyl'!$AE$38+(('PK kalkyl'!$K$6-'PK kalkyl'!$AE$32)*'PK kalkyl'!$AE$33),1)) ->  | AA122: =IF((Y122<W122),Y122-W122,0)*-'PK kalkyl'!$AE$15 ->  | AB122: =IF((Z122<X122),Z122-X122,0)*-'PK kalkyl'!$AE$35 ->  | AC122: =+AA122*Växtföljd!$G$18+AB122*Växtföljd!$G$18 -> 
A123: =IF(Import!A123="","",Import!A123) ->  | B123: =IF(Import!B123="","",Import!B123) ->  | C123: =IF(Import!C123="","",Import!C123) ->  | D123: =IF(Import!D123="","",Import!D123) ->  | E123: =IF(Import!E123="","",Import!E123) ->  | F123: =IF(Import!F123="","",Import!F123) ->  | G123: =IF(Import!G123="","",Import!G123) ->  | H123: =IF(Import!H123="","",Import!H123) ->  | I123: =IF(Import!J123="","",Import!J123) ->  | J123: =IF(Import!K123="","",Import!K123) ->  | K123: =IF(Import!L123="","",Import!L123) ->  | L123: =IF(Import!M123="","",Import!M123) ->  | M123: =IF(Import!P123="","",Import!P123) ->  | N123: =IF(Import!Q123="","",Import!Q123) ->  | O123: =IF(Import!R123="","",Import!R123) ->  | P123: 339.7363649 | Q123: 3.301908263 | R123: 34.37775522 | S123: 34.37775522 | T123: =IF(Q123="","",(-0.00011*POWER(S123,2))+(0.01417*S123)+((0.00057*POWER(Q123,2))-(0.0529*Q123)+6.2018)+Kalkkalkyl!$AJ$2) -> 6.890475019 | W123: =IF(('PK kalkyl'!$AE$17*H123)+'PK kalkyl'!$AE$18+(('PK kalkyl'!$K$6-'PK kalkyl'!$AE$12)*'PK kalkyl'!$AE$13)<1,0,ROUND(('PK kalkyl'!$AE$17*H123)+'PK kalkyl'!$AE$18+(('PK kalkyl'!$K$6-'PK kalkyl'!$AE$12)*'PK kalkyl'!$AE$13),1)) ->  | X123: =IF(('PK kalkyl'!$AE$37*I123)+'PK kalkyl'!$AE$38+(('PK kalkyl'!$K$6-'PK kalkyl'!$AE$32)*'PK kalkyl'!$AE$33)<1,0,ROUND(('PK kalkyl'!$AE$37*I123)+'PK kalkyl'!$AE$38+(('PK kalkyl'!$K$6-'PK kalkyl'!$AE$32)*'PK kalkyl'!$AE$33),1)) ->  | AA123: =IF((Y123<W123),Y123-W123,0)*-'PK kalkyl'!$AE$15 ->  | AB123: =IF((Z123<X123),Z123-X123,0)*-'PK kalkyl'!$AE$35 ->  | AC123: =+AA123*Växtföljd!$G$18+AB123*Växtföljd!$G$18 -> 
A124: =IF(Import!A124="","",Import!A124) ->  | B124: =IF(Import!B124="","",Import!B124) ->  | C124: =IF(Import!C124="","",Import!C124) ->  | D124: =IF(Import!D124="","",Import!D124) ->  | E124: =IF(Import!E124="","",Import!E124) ->  | F124: =IF(Import!F124="","",Import!F124) ->  | G124: =IF(Import!G124="","",Import!G124) ->  | H124: =IF(Import!H124="","",Import!H124) ->  | I124: =IF(Import!J124="","",Import!J124) ->  | J124: =IF(Import!K124="","",Import!K124) ->  | K124: =IF(Import!L124="","",Import!L124) ->  | L124: =IF(Import!M124="","",Import!M124) ->  | M124: =IF(Import!P124="","",Import!P124) ->  | N124: =IF(Import!Q124="","",Import!Q124) ->  | O124: =IF(Import!R124="","",Import!R124) ->  | P124: 450 | Q124: 2.4 | R124: 40 | S124: 40 | T124: =IF(Q124="","",(-0.00011*POWER(S124,2))+(0.01417*S124)+((0.00057*POWER(Q124,2))-(0.0529*Q124)+6.2018)+Kalkkalkyl!$AJ$2) -> 6.9689232 | W124: =IF(('PK kalkyl'!$AE$17*H124)+'PK kalkyl'!$AE$18+(('PK kalkyl'!$K$6-'PK kalkyl'!$AE$12)*'PK kalkyl'!$AE$13)<1,0,ROUND(('PK kalkyl'!$AE$17*H124)+'PK kalkyl'!$AE$18+(('PK kalkyl'!$K$6-'PK kalkyl'!$AE$12)*'PK kalkyl'!$AE$13),1)) ->  | X124: =IF(('PK kalkyl'!$AE$37*I124)+'PK kalkyl'!$AE$38+(('PK kalkyl'!$K$6-'PK kalkyl'!$AE$32)*'PK kalkyl'!$AE$33)<1,0,ROUND(('PK kalkyl'!$AE$37*I124)+'PK kalkyl'!$AE$38+(('PK kalkyl'!$K$6-'PK kalkyl'!$AE$32)*'PK kalkyl'!$AE$33),1)) ->  | AA124: =IF((Y124<W124),Y124-W124,0)*-'PK kalkyl'!$AE$15 ->  | AB124: =IF((Z124<X124),Z124-X124,0)*-'PK kalkyl'!$AE$35 ->  | AC124: =+AA124*Växtföljd!$G$18+AB124*Växtföljd!$G$18 -> 
A125: =IF(Import!A125="","",Import!A125) ->  | B125: =IF(Import!B125="","",Import!B125) ->  | C125: =IF(Import!C125="","",Import!C125) ->  | D125: =IF(Import!D125="","",Import!D125) ->  | E125: =IF(Import!E125="","",Import!E125) ->  | F125: =IF(Import!F125="","",Import!F125) ->  | G125: =IF(Import!G125="","",Import!G125) ->  | H125: =IF(Import!H125="","",Import!H125) ->  | I125: =IF(Import!J125="","",Import!J125) ->  | J125: =IF(Import!K125="","",Import!K125) ->  | K125: =IF(Import!L125="","",Import!L125) ->  | L125: =IF(Import!M125="","",Import!M125) ->  | M125: =IF(Import!P125="","",Import!P125) ->  | N125: =IF(Import!Q125="","",Import!Q125) ->  | O125: =IF(Import!R125="","",Import!R125) ->  | P125: 478.6954534 | Q125: 2.371351126 | R125: 42.22969224 | S125: 42.22969224 | T125: =IF(Q125="","",(-0.00011*POWER(S125,2))+(0.01417*S125)+((0.00057*POWER(Q125,2))-(0.0529*Q125)+6.2018)+Kalkkalkyl!$AJ$2) -> 6.981787389 | W125: =IF(('PK kalkyl'!$AE$17*H125)+'PK kalkyl'!$AE$18+(('PK kalkyl'!$K$6-'PK kalkyl'!$AE$12)*'PK kalkyl'!$AE$13)<1,0,ROUND(('PK kalkyl'!$AE$17*H125)+'PK kalkyl'!$AE$18+(('PK kalkyl'!$K$6-'PK kalkyl'!$AE$12)*'PK kalkyl'!$AE$13),1)) ->  | X125: =IF(('PK kalkyl'!$AE$37*I125)+'PK kalkyl'!$AE$38+(('PK kalkyl'!$K$6-'PK kalkyl'!$AE$32)*'PK kalkyl'!$AE$33)<1,0,ROUND(('PK kalkyl'!$AE$37*I125)+'PK kalkyl'!$AE$38+(('PK kalkyl'!$K$6-'PK kalkyl'!$AE$32)*'PK kalkyl'!$AE$33),1)) ->  | AA125: =IF((Y125<W125),Y125-W125,0)*-'PK kalkyl'!$AE$15 ->  | AB125: =IF((Z125<X125),Z125-X125,0)*-'PK kalkyl'!$AE$35 ->  | AC125: =+AA125*Växtföljd!$G$18+AB125*Växtföljd!$G$18 -> 
A126: =IF(Import!A126="","",Import!A126) ->  | B126: =IF(Import!B126="","",Import!B126) ->  | C126: =IF(Import!C126="","",Import!C126) ->  | D126: =IF(Import!D126="","",Import!D126) ->  | E126: =IF(Import!E126="","",Import!E126) ->  | F126: =IF(Import!F126="","",Import!F126) ->  | G126: =IF(Import!G126="","",Import!G126) ->  | H126: =IF(Import!H126="","",Import!H126) ->  | I126: =IF(Import!J126="","",Import!J126) ->  | J126: =IF(Import!K126="","",Import!K126) ->  | K126: =IF(Import!L126="","",Import!L126) ->  | L126: =IF(Import!M126="","",Import!M126) ->  | M126: =IF(Import!P126="","",Import!P126) ->  | N126: =IF(Import!Q126="","",Import!Q126) ->  | O126: =IF(Import!R126="","",Import!R126) ->  | P126: 500 | Q126: 2.2 | R126: 44 | S126: 44 | T126: =IF(Q126="","",(-0.00011*POWER(S126,2))+(0.01417*S126)+((0.00057*POWER(Q126,2))-(0.0529*Q126)+6.2018)+Kalkkalkyl!$AJ$2) -> 6.9986988 | W126: =IF(('PK kalkyl'!$AE$17*H126)+'PK kalkyl'!$AE$18+(('PK kalkyl'!$K$6-'PK kalkyl'!$AE$12)*'PK kalkyl'!$AE$13)<1,0,ROUND(('PK kalkyl'!$AE$17*H126)+'PK kalkyl'!$AE$18+(('PK kalkyl'!$K$6-'PK kalkyl'!$AE$12)*'PK kalkyl'!$AE$13),1)) ->  | X126: =IF(('PK kalkyl'!$AE$37*I126)+'PK kalkyl'!$AE$38+(('PK kalkyl'!$K$6-'PK kalkyl'!$AE$32)*'PK kalkyl'!$AE$33)<1,0,ROUND(('PK kalkyl'!$AE$37*I126)+'PK kalkyl'!$AE$38+(('PK kalkyl'!$K$6-'PK kalkyl'!$AE$32)*'PK kalkyl'!$AE$33),1)) ->  | AA126: =IF((Y126<W126),Y126-W126,0)*-'PK kalkyl'!$AE$15 ->  | AB126: =IF((Z126<X126),Z126-X126,0)*-'PK kalkyl'!$AE$35 ->  | AC126: =+AA126*Växtföljd!$G$18+AB126*Växtföljd!$G$18 -> 
A127: =IF(Import!A127="","",Import!A127) ->  | B127: =IF(Import!B127="","",Import!B127) ->  | C127: =IF(Import!C127="","",Import!C127) ->  | D127: =IF(Import!D127="","",Import!D127) ->  | E127: =IF(Import!E127="","",Import!E127) ->  | F127: =IF(Import!F127="","",Import!F127) ->  | G127: =IF(Import!G127="","",Import!G127) ->  | H127: =IF(Import!H127="","",Import!H127) ->  | I127: =IF(Import!J127="","",Import!J127) ->  | J127: =IF(Import!K127="","",Import!K127) ->  | K127: =IF(Import!L127="","",Import!L127) ->  | L127: =IF(Import!M127="","",Import!M127) ->  | M127: =IF(Import!P127="","",Import!P127) ->  | N127: =IF(Import!Q127="","",Import!Q127) ->  | O127: =IF(Import!R127="","",Import!R127) ->  | P127: 376.6095607 | Q127: 3.072996474 | R127: 36.83250929 | S127: 36.83250929 | T127: =IF(Q127="","",(-0.00011*POWER(S127,2))+(0.01417*S127)+((0.00057*POWER(Q127,2))-(0.0529*Q127)+6.2018)+Kalkkalkyl!$AJ$2) -> 6.917308117 | W127: =IF(('PK kalkyl'!$AE$17*H127)+'PK kalkyl'!$AE$18+(('PK kalkyl'!$K$6-'PK kalkyl'!$AE$12)*'PK kalkyl'!$AE$13)<1,0,ROUND(('PK kalkyl'!$AE$17*H127)+'PK kalkyl'!$AE$18+(('PK kalkyl'!$K$6-'PK kalkyl'!$AE$12)*'PK kalkyl'!$AE$13),1)) ->  | X127: =IF(('PK kalkyl'!$AE$37*I127)+'PK kalkyl'!$AE$38+(('PK kalkyl'!$K$6-'PK kalkyl'!$AE$32)*'PK kalkyl'!$AE$33)<1,0,ROUND(('PK kalkyl'!$AE$37*I127)+'PK kalkyl'!$AE$38+(('PK kalkyl'!$K$6-'PK kalkyl'!$AE$32)*'PK kalkyl'!$AE$33),1)) ->  | AA127: =IF((Y127<W127),Y127-W127,0)*-'PK kalkyl'!$AE$15 ->  | AB127: =IF((Z127<X127),Z127-X127,0)*-'PK kalkyl'!$AE$35 ->  | AC127: =+AA127*Växtföljd!$G$18+AB127*Växtföljd!$G$18 -> 
A128: =IF(Import!A128="","",Import!A128) ->  | B128: =IF(Import!B128="","",Import!B128) ->  | C128: =IF(Import!C128="","",Import!C128) ->  | D128: =IF(Import!D128="","",Import!D128) ->  | E128: =IF(Import!E128="","",Import!E128) ->  | F128: =IF(Import!F128="","",Import!F128) ->  | G128: =IF(Import!G128="","",Import!G128) ->  | H128: =IF(Import!H128="","",Import!H128) ->  | I128: =IF(Import!J128="","",Import!J128) ->  | J128: =IF(Import!K128="","",Import!K128) ->  | K128: =IF(Import!L128="","",Import!L128) ->  | L128: =IF(Import!M128="","",Import!M128) ->  | M128: =IF(Import!P128="","",Import!P128) ->  | N128: =IF(Import!Q128="","",Import!Q128) ->  | O128: =IF(Import!R128="","",Import!R128) ->  | P128: 290 | Q128: 4.3 | R128: 34 | S128: 34 | T128: =IF(Q128="","",(-0.00011*POWER(S128,2))+(0.01417*S128)+((0.00057*POWER(Q128,2))-(0.0529*Q128)+6.2018)+Kalkkalkyl!$AJ$2) -> 6.8394893 | W128: =IF(('PK kalkyl'!$AE$17*H128)+'PK kalkyl'!$AE$18+(('PK kalkyl'!$K$6-'PK kalkyl'!$AE$12)*'PK kalkyl'!$AE$13)<1,0,ROUND(('PK kalkyl'!$AE$17*H128)+'PK kalkyl'!$AE$18+(('PK kalkyl'!$K$6-'PK kalkyl'!$AE$12)*'PK kalkyl'!$AE$13),1)) ->  | X128: =IF(('PK kalkyl'!$AE$37*I128)+'PK kalkyl'!$AE$38+(('PK kalkyl'!$K$6-'PK kalkyl'!$AE$32)*'PK kalkyl'!$AE$33)<1,0,ROUND(('PK kalkyl'!$AE$37*I128)+'PK kalkyl'!$AE$38+(('PK kalkyl'!$K$6-'PK kalkyl'!$AE$32)*'PK kalkyl'!$AE$33),1)) ->  | AA128: =IF((Y128<W128),Y128-W128,0)*-'PK kalkyl'!$AE$15 ->  | AB128: =IF((Z128<X128),Z128-X128,0)*-'PK kalkyl'!$AE$35 ->  | AC128: =+AA128*Växtföljd!$G$18+AB128*Växtföljd!$G$18 -> 
A129: =IF(Import!A129="","",Import!A129) ->  | B129: =IF(Import!B129="","",Import!B129) ->  | C129: =IF(Import!C129="","",Import!C129) ->  | D129: =IF(Import!D129="","",Import!D129) ->  | E129: =IF(Import!E129="","",Import!E129) ->  | F129: =IF(Import!F129="","",Import!F129) ->  | G129: =IF(Import!G129="","",Import!G129) ->  | H129: =IF(Import!H129="","",Import!H129) ->  | I129: =IF(Import!J129="","",Import!J129) ->  | J129: =IF(Import!K129="","",Import!K129) ->  | K129: =IF(Import!L129="","",Import!L129) ->  | L129: =IF(Import!M129="","",Import!M129) ->  | M129: =IF(Import!P129="","",Import!P129) ->  | N129: =IF(Import!Q129="","",Import!Q129) ->  | O129: =IF(Import!R129="","",Import!R129) ->  | P129: 271.3901931 | Q129: 3.803725213 | R129: 29.62629195 | S129: 29.62629195 | T129: =IF(Q129="","",(-0.00011*POWER(S129,2))+(0.01417*S129)+((0.00057*POWER(Q129,2))-(0.0529*Q129)+6.2018)+Kalkkalkyl!$AJ$2) -> 6.83208555 | W129: =IF(('PK kalkyl'!$AE$17*H129)+'PK kalkyl'!$AE$18+(('PK kalkyl'!$K$6-'PK kalkyl'!$AE$12)*'PK kalkyl'!$AE$13)<1,0,ROUND(('PK kalkyl'!$AE$17*H129)+'PK kalkyl'!$AE$18+(('PK kalkyl'!$K$6-'PK kalkyl'!$AE$12)*'PK kalkyl'!$AE$13),1)) ->  | X129: =IF(('PK kalkyl'!$AE$37*I129)+'PK kalkyl'!$AE$38+(('PK kalkyl'!$K$6-'PK kalkyl'!$AE$32)*'PK kalkyl'!$AE$33)<1,0,ROUND(('PK kalkyl'!$AE$37*I129)+'PK kalkyl'!$AE$38+(('PK kalkyl'!$K$6-'PK kalkyl'!$AE$32)*'PK kalkyl'!$AE$33),1)) ->  | AA129: =IF((Y129<W129),Y129-W129,0)*-'PK kalkyl'!$AE$15 ->  | AB129: =IF((Z129<X129),Z129-X129,0)*-'PK kalkyl'!$AE$35 ->  | AC129: =+AA129*Växtföljd!$G$18+AB129*Växtföljd!$G$18 -> 
A130: =IF(Import!A130="","",Import!A130) ->  | B130: =IF(Import!B130="","",Import!B130) ->  | C130: =IF(Import!C130="","",Import!C130) ->  | D130: =IF(Import!D130="","",Import!D130) ->  | E130: =IF(Import!E130="","",Import!E130) ->  | F130: =IF(Import!F130="","",Import!F130) ->  | G130: =IF(Import!G130="","",Import!G130) ->  | H130: =IF(Import!H130="","",Import!H130) ->  | I130: =IF(Import!J130="","",Import!J130) ->  | J130: =IF(Import!K130="","",Import!K130) ->  | K130: =IF(Import!L130="","",Import!L130) ->  | L130: =IF(Import!M130="","",Import!M130) ->  | M130: =IF(Import!P130="","",Import!P130) ->  | N130: =IF(Import!Q130="","",Import!Q130) ->  | O130: =IF(Import!R130="","",Import!R130) ->  | P130: 270 | Q130: 3.1 | R130: 31 | S130: 31 | T130: =IF(Q130="","",(-0.00011*POWER(S130,2))+(0.01417*S130)+((0.00057*POWER(Q130,2))-(0.0529*Q130)+6.2018)+Kalkkalkyl!$AJ$2) -> 6.8768477 | W130: =IF(('PK kalkyl'!$AE$17*H130)+'PK kalkyl'!$AE$18+(('PK kalkyl'!$K$6-'PK kalkyl'!$AE$12)*'PK kalkyl'!$AE$13)<1,0,ROUND(('PK kalkyl'!$AE$17*H130)+'PK kalkyl'!$AE$18+(('PK kalkyl'!$K$6-'PK kalkyl'!$AE$12)*'PK kalkyl'!$AE$13),1)) ->  | X130: =IF(('PK kalkyl'!$AE$37*I130)+'PK kalkyl'!$AE$38+(('PK kalkyl'!$K$6-'PK kalkyl'!$AE$32)*'PK kalkyl'!$AE$33)<1,0,ROUND(('PK kalkyl'!$AE$37*I130)+'PK kalkyl'!$AE$38+(('PK kalkyl'!$K$6-'PK kalkyl'!$AE$32)*'PK kalkyl'!$AE$33),1)) ->  | AA130: =IF((Y130<W130),Y130-W130,0)*-'PK kalkyl'!$AE$15 ->  | AB130: =IF((Z130<X130),Z130-X130,0)*-'PK kalkyl'!$AE$35 ->  | AC130: =+AA130*Växtföljd!$G$18+AB130*Växtföljd!$G$18 -> 
A131: =IF(Import!A131="","",Import!A131) ->  | B131: =IF(Import!B131="","",Import!B131) ->  | C131: =IF(Import!C131="","",Import!C131) ->  | D131: =IF(Import!D131="","",Import!D131) ->  | E131: =IF(Import!E131="","",Import!E131) ->  | F131: =IF(Import!F131="","",Import!F131) ->  | G131: =IF(Import!G131="","",Import!G131) ->  | H131: =IF(Import!H131="","",Import!H131) ->  | I131: =IF(Import!J131="","",Import!J131) ->  | J131: =IF(Import!K131="","",Import!K131) ->  | K131: =IF(Import!L131="","",Import!L131) ->  | L131: =IF(Import!M131="","",Import!M131) ->  | M131: =IF(Import!P131="","",Import!P131) ->  | N131: =IF(Import!Q131="","",Import!Q131) ->  | O131: =IF(Import!R131="","",Import!R131) ->  | P131: 392.4798348 | Q131: 3.031174196 | R131: 30.60812475 | S131: =IF(R131="",( 0.0977*P131 )+ 4.135,R131) -> 30.60812475 | T131: =IF(Q131="","",(-0.00011*POWER(S131,2))+(0.01417*S131)+((0.00057*POWER(Q131,2))-(0.0529*Q131)+6.2018)+Kalkkalkyl!$AJ$2) -> 6.877350879 | U131: =IF(Q131="","",IF(T131-G131<0,0,(T131-G131)*(1.9+(3.5*Q131+S131)/3.8)/2)) ->  | W131: =IF(('PK kalkyl'!$AE$17*H131)+'PK kalkyl'!$AE$18+(('PK kalkyl'!$K$6-'PK kalkyl'!$AE$12)*'PK kalkyl'!$AE$13)<1,0,ROUND(('PK kalkyl'!$AE$17*H131)+'PK kalkyl'!$AE$18+(('PK kalkyl'!$K$6-'PK kalkyl'!$AE$12)*'PK kalkyl'!$AE$13),1)) ->  | X131: =IF(('PK kalkyl'!$AE$37*I131)+'PK kalkyl'!$AE$38+(('PK kalkyl'!$K$6-'PK kalkyl'!$AE$32)*'PK kalkyl'!$AE$33)<1,0,ROUND(('PK kalkyl'!$AE$37*I131)+'PK kalkyl'!$AE$38+(('PK kalkyl'!$K$6-'PK kalkyl'!$AE$32)*'PK kalkyl'!$AE$33),1)) ->  | Y131: =AVERAGEIF(A:A,A131,W:W) ->  | Z131: =AVERAGEIF(A:A,A131,X:X) ->  | AA131: =IF((Y131<W131),Y131-W131,0)*-'PK kalkyl'!$AE$15 ->  | AB131: =IF((Z131<X131),Z131-X131,0)*-'PK kalkyl'!$AE$35 ->  | AC131: =+AA131*Växtföljd!$G$18+AB131*Växtföljd!$G$18 -> 
A132: =IF(Import!A132="","",Import!A132) ->  | B132: =IF(Import!B132="","",Import!B132) ->  | C132: =IF(Import!C132="","",Import!C132) ->  | D132: =IF(Import!D132="","",Import!D132) ->  | E132: =IF(Import!E132="","",Import!E132) ->  | F132: =IF(Import!F132="","",Import!F132) ->  | G132: =IF(Import!G132="","",Import!G132) ->  | H132: =IF(Import!H132="","",Import!H132) ->  | I132: =IF(Import!J132="","",Import!J132) ->  | J132: =IF(Import!K132="","",Import!K132) ->  | K132: =IF(Import!L132="","",Import!L132) ->  | L132: =IF(Import!M132="","",Import!M132) ->  | M132: =IF(Import!P132="","",Import!P132) ->  | N132: =IF(Import!Q132="","",Import!Q132) ->  | O132: =IF(Import!R132="","",Import!R132) ->  | P132: 360 | Q132: 3.3 | R132: 25 | S132: 25 | T132: =IF(Q132="","",(-0.00011*POWER(S132,2))+(0.01417*S132)+((0.00057*POWER(Q132,2))-(0.0529*Q132)+6.2018)+Kalkkalkyl!$AJ$2) -> 6.8189373 | W132: =IF(('PK kalkyl'!$AE$17*H132)+'PK kalkyl'!$AE$18+(('PK kalkyl'!$K$6-'PK kalkyl'!$AE$12)*'PK kalkyl'!$AE$13)<1,0,ROUND(('PK kalkyl'!$AE$17*H132)+'PK kalkyl'!$AE$18+(('PK kalkyl'!$K$6-'PK kalkyl'!$AE$12)*'PK kalkyl'!$AE$13),1)) ->  | X132: =IF(('PK kalkyl'!$AE$37*I132)+'PK kalkyl'!$AE$38+(('PK kalkyl'!$K$6-'PK kalkyl'!$AE$32)*'PK kalkyl'!$AE$33)<1,0,ROUND(('PK kalkyl'!$AE$37*I132)+'PK kalkyl'!$AE$38+(('PK kalkyl'!$K$6-'PK kalkyl'!$AE$32)*'PK kalkyl'!$AE$33),1)) ->  | AA132: =IF((Y132<W132),Y132-W132,0)*-'PK kalkyl'!$AE$15 ->  | AB132: =IF((Z132<X132),Z132-X132,0)*-'PK kalkyl'!$AE$35 ->  | AC132: =+AA132*Växtföljd!$G$18+AB132*Växtföljd!$G$18 -> 
A133: =IF(Import!A133="","",Import!A133) ->  | B133: =IF(Import!B133="","",Import!B133) ->  | C133: =IF(Import!C133="","",Import!C133) ->  | D133: =IF(Import!D133="","",Import!D133) ->  | E133: =IF(Import!E133="","",Import!E133) ->  | F133: =IF(Import!F133="","",Import!F133) ->  | G133: =IF(Import!G133="","",Import!G133) ->  | H133: =IF(Import!H133="","",Import!H133) ->  | I133: =IF(Import!J133="","",Import!J133) ->  | J133: =IF(Import!K133="","",Import!K133) ->  | K133: =IF(Import!L133="","",Import!L133) ->  | L133: =IF(Import!M133="","",Import!M133) ->  | M133: =IF(Import!P133="","",Import!P133) ->  | N133: =IF(Import!Q133="","",Import!Q133) ->  | O133: =IF(Import!R133="","",Import!R133) ->  | P133: 518.9898166 | Q133: 2.246624725 | R133: 40.53565149 | S133: 40.53565149 | T133: =IF(Q133="","",(-0.00011*POWER(S133,2))+(0.01417*S133)+((0.00057*POWER(Q133,2))-(0.0529*Q133)+6.2018)+Kalkkalkyl!$AJ$2) -> 6.979475413 | W133: =IF(('PK kalkyl'!$AE$17*H133)+'PK kalkyl'!$AE$18+(('PK kalkyl'!$K$6-'PK kalkyl'!$AE$12)*'PK kalkyl'!$AE$13)<1,0,ROUND(('PK kalkyl'!$AE$17*H133)+'PK kalkyl'!$AE$18+(('PK kalkyl'!$K$6-'PK kalkyl'!$AE$12)*'PK kalkyl'!$AE$13),1)) ->  | X133: =IF(('PK kalkyl'!$AE$37*I133)+'PK kalkyl'!$AE$38+(('PK kalkyl'!$K$6-'PK kalkyl'!$AE$32)*'PK kalkyl'!$AE$33)<1,0,ROUND(('PK kalkyl'!$AE$37*I133)+'PK kalkyl'!$AE$38+(('PK kalkyl'!$K$6-'PK kalkyl'!$AE$32)*'PK kalkyl'!$AE$33),1)) ->  | AA133: =IF((Y133<W133),Y133-W133,0)*-'PK kalkyl'!$AE$15 ->  | AB133: =IF((Z133<X133),Z133-X133,0)*-'PK kalkyl'!$AE$35 ->  | AC133: =+AA133*Växtföljd!$G$18+AB133*Växtföljd!$G$18 -> 
A134: =IF(Import!A134="","",Import!A134) ->  | B134: =IF(Import!B134="","",Import!B134) ->  | C134: =IF(Import!C134="","",Import!C134) ->  | D134: =IF(Import!D134="","",Import!D134) ->  | E134: =IF(Import!E134="","",Import!E134) ->  | F134: =IF(Import!F134="","",Import!F134) ->  | G134: =IF(Import!G134="","",Import!G134) ->  | H134: =IF(Import!H134="","",Import!H134) ->  | I134: =IF(Import!J134="","",Import!J134) ->  | J134: =IF(Import!K134="","",Import!K134) ->  | K134: =IF(Import!L134="","",Import!L134) ->  | L134: =IF(Import!M134="","",Import!M134) ->  | M134: =IF(Import!P134="","",Import!P134) ->  | N134: =IF(Import!Q134="","",Import!Q134) ->  | O134: =IF(Import!R134="","",Import!R134) ->  | P134: 500 | Q134: 2.5 | R134: 40 | S134: 40 | T134: =IF(Q134="","",(-0.00011*POWER(S134,2))+(0.01417*S134)+((0.00057*POWER(Q134,2))-(0.0529*Q134)+6.2018)+Kalkkalkyl!$AJ$2) -> 6.9639125 | W134: =IF(('PK kalkyl'!$AE$17*H134)+'PK kalkyl'!$AE$18+(('PK kalkyl'!$K$6-'PK kalkyl'!$AE$12)*'PK kalkyl'!$AE$13)<1,0,ROUND(('PK kalkyl'!$AE$17*H134)+'PK kalkyl'!$AE$18+(('PK kalkyl'!$K$6-'PK kalkyl'!$AE$12)*'PK kalkyl'!$AE$13),1)) ->  | X134: =IF(('PK kalkyl'!$AE$37*I134)+'PK kalkyl'!$AE$38+(('PK kalkyl'!$K$6-'PK kalkyl'!$AE$32)*'PK kalkyl'!$AE$33)<1,0,ROUND(('PK kalkyl'!$AE$37*I134)+'PK kalkyl'!$AE$38+(('PK kalkyl'!$K$6-'PK kalkyl'!$AE$32)*'PK kalkyl'!$AE$33),1)) ->  | AA134: =IF((Y134<W134),Y134-W134,0)*-'PK kalkyl'!$AE$15 ->  | AB134: =IF((Z134<X134),Z134-X134,0)*-'PK kalkyl'!$AE$35 ->  | AC134: =+AA134*Växtföljd!$G$18+AB134*Växtföljd!$G$18 -> 
A135: =IF(Import!A135="","",Import!A135) ->  | B135: =IF(Import!B135="","",Import!B135) ->  | C135: =IF(Import!C135="","",Import!C135) ->  | D135: =IF(Import!D135="","",Import!D135) ->  | E135: =IF(Import!E135="","",Import!E135) ->  | F135: =IF(Import!F135="","",Import!F135) ->  | G135: =IF(Import!G135="","",Import!G135) ->  | H135: =IF(Import!H135="","",Import!H135) ->  | I135: =IF(Import!J135="","",Import!J135) ->  | J135: =IF(Import!K135="","",Import!K135) ->  | K135: =IF(Import!L135="","",Import!L135) ->  | L135: =IF(Import!M135="","",Import!M135) ->  | M135: =IF(Import!P135="","",Import!P135) ->  | N135: =IF(Import!Q135="","",Import!Q135) ->  | O135: =IF(Import!R135="","",Import!R135) ->  | P135: 505.295553 | Q135: 2.438540468 | R135: 40.37816434 | S135: 40.37816434 | T135: =IF(Q135="","",(-0.00011*POWER(S135,2))+(0.01417*S135)+((0.00057*POWER(Q135,2))-(0.0529*Q135)+6.2018)+Kalkkalkyl!$AJ$2) -> 6.969005714 | W135: =IF(('PK kalkyl'!$AE$17*H135)+'PK kalkyl'!$AE$18+(('PK kalkyl'!$K$6-'PK kalkyl'!$AE$12)*'PK kalkyl'!$AE$13)<1,0,ROUND(('PK kalkyl'!$AE$17*H135)+'PK kalkyl'!$AE$18+(('PK kalkyl'!$K$6-'PK kalkyl'!$AE$12)*'PK kalkyl'!$AE$13),1)) ->  | X135: =IF(('PK kalkyl'!$AE$37*I135)+'PK kalkyl'!$AE$38+(('PK kalkyl'!$K$6-'PK kalkyl'!$AE$32)*'PK kalkyl'!$AE$33)<1,0,ROUND(('PK kalkyl'!$AE$37*I135)+'PK kalkyl'!$AE$38+(('PK kalkyl'!$K$6-'PK kalkyl'!$AE$32)*'PK kalkyl'!$AE$33),1)) ->  | AA135: =IF((Y135<W135),Y135-W135,0)*-'PK kalkyl'!$AE$15 ->  | AB135: =IF((Z135<X135),Z135-X135,0)*-'PK kalkyl'!$AE$35 ->  | AC135: =+AA135*Växtföljd!$G$18+AB135*Växtföljd!$G$18 -> 
A136: =IF(Import!A136="","",Import!A136) ->  | B136: =IF(Import!B136="","",Import!B136) ->  | C136: =IF(Import!C136="","",Import!C136) ->  | D136: =IF(Import!D136="","",Import!D136) ->  | E136: =IF(Import!E136="","",Import!E136) ->  | F136: =IF(Import!F136="","",Import!F136) ->  | G136: =IF(Import!G136="","",Import!G136) ->  | H136: =IF(Import!H136="","",Import!H136) ->  | I136: =IF(Import!J136="","",Import!J136) ->  | J136: =IF(Import!K136="","",Import!K136) ->  | K136: =IF(Import!L136="","",Import!L136) ->  | L136: =IF(Import!M136="","",Import!M136) ->  | M136: =IF(Import!P136="","",Import!P136) ->  | N136: =IF(Import!Q136="","",Import!Q136) ->  | O136: =IF(Import!R136="","",Import!R136) ->  | P136: 540 | Q136: 2.1 | R136: 42 | S136: 42 | T136: =IF(Q136="","",(-0.00011*POWER(S136,2))+(0.01417*S136)+((0.00057*POWER(Q136,2))-(0.0529*Q136)+6.2018)+Kalkkalkyl!$AJ$2) -> 6.9943237 | W136: =IF(('PK kalkyl'!$AE$17*H136)+'PK kalkyl'!$AE$18+(('PK kalkyl'!$K$6-'PK kalkyl'!$AE$12)*'PK kalkyl'!$AE$13)<1,0,ROUND(('PK kalkyl'!$AE$17*H136)+'PK kalkyl'!$AE$18+(('PK kalkyl'!$K$6-'PK kalkyl'!$AE$12)*'PK kalkyl'!$AE$13),1)) ->  | X136: =IF(('PK kalkyl'!$AE$37*I136)+'PK kalkyl'!$AE$38+(('PK kalkyl'!$K$6-'PK kalkyl'!$AE$32)*'PK kalkyl'!$AE$33)<1,0,ROUND(('PK kalkyl'!$AE$37*I136)+'PK kalkyl'!$AE$38+(('PK kalkyl'!$K$6-'PK kalkyl'!$AE$32)*'PK kalkyl'!$AE$33),1)) ->  | AA136: =IF((Y136<W136),Y136-W136,0)*-'PK kalkyl'!$AE$15 ->  | AB136: =IF((Z136<X136),Z136-X136,0)*-'PK kalkyl'!$AE$35 ->  | AC136: =+AA136*Växtföljd!$G$18+AB136*Växtföljd!$G$18 -> 
A137: =IF(Import!A137="","",Import!A137) ->  | B137: =IF(Import!B137="","",Import!B137) ->  | C137: =IF(Import!C137="","",Import!C137) ->  | D137: =IF(Import!D137="","",Import!D137) ->  | E137: =IF(Import!E137="","",Import!E137) ->  | F137: =IF(Import!F137="","",Import!F137) ->  | G137: =IF(Import!G137="","",Import!G137) ->  | H137: =IF(Import!H137="","",Import!H137) ->  | I137: =IF(Import!J137="","",Import!J137) ->  | J137: =IF(Import!K137="","",Import!K137) ->  | K137: =IF(Import!L137="","",Import!L137) ->  | L137: =IF(Import!M137="","",Import!M137) ->  | M137: =IF(Import!P137="","",Import!P137) ->  | N137: =IF(Import!Q137="","",Import!Q137) ->  | O137: =IF(Import!R137="","",Import!R137) ->  | P137: 260 | Q137: 3.7 | R137: 30 | S137: 30 | T137: =IF(Q137="","",(-0.00011*POWER(S137,2))+(0.01417*S137)+((0.00057*POWER(Q137,2))-(0.0529*Q137)+6.2018)+Kalkkalkyl!$AJ$2) -> 6.8399733 | W137: =IF(('PK kalkyl'!$AE$17*H137)+'PK kalkyl'!$AE$18+(('PK kalkyl'!$K$6-'PK kalkyl'!$AE$12)*'PK kalkyl'!$AE$13)<1,0,ROUND(('PK kalkyl'!$AE$17*H137)+'PK kalkyl'!$AE$18+(('PK kalkyl'!$K$6-'PK kalkyl'!$AE$12)*'PK kalkyl'!$AE$13),1)) ->  | X137: =IF(('PK kalkyl'!$AE$37*I137)+'PK kalkyl'!$AE$38+(('PK kalkyl'!$K$6-'PK kalkyl'!$AE$32)*'PK kalkyl'!$AE$33)<1,0,ROUND(('PK kalkyl'!$AE$37*I137)+'PK kalkyl'!$AE$38+(('PK kalkyl'!$K$6-'PK kalkyl'!$AE$32)*'PK kalkyl'!$AE$33),1)) ->  | AA137: =IF((Y137<W137),Y137-W137,0)*-'PK kalkyl'!$AE$15 ->  | AB137: =IF((Z137<X137),Z137-X137,0)*-'PK kalkyl'!$AE$35 ->  | AC137: =+AA137*Växtföljd!$G$18+AB137*Växtföljd!$G$18 -> 
A138: =IF(Import!A138="","",Import!A138) ->  | B138: =IF(Import!B138="","",Import!B138) ->  | C138: =IF(Import!C138="","",Import!C138) ->  | D138: =IF(Import!D138="","",Import!D138) ->  | E138: =IF(Import!E138="","",Import!E138) ->  | F138: =IF(Import!F138="","",Import!F138) ->  | G138: =IF(Import!G138="","",Import!G138) ->  | H138: =IF(Import!H138="","",Import!H138) ->  | I138: =IF(Import!J138="","",Import!J138) ->  | J138: =IF(Import!K138="","",Import!K138) ->  | K138: =IF(Import!L138="","",Import!L138) ->  | L138: =IF(Import!M138="","",Import!M138) ->  | M138: =IF(Import!P138="","",Import!P138) ->  | N138: =IF(Import!Q138="","",Import!Q138) ->  | O138: =IF(Import!R138="","",Import!R138) ->  | P138: 260 | Q138: 3.7 | R138: 30 | S138: 30 | T138: =IF(Q138="","",(-0.00011*POWER(S138,2))+(0.01417*S138)+((0.00057*POWER(Q138,2))-(0.0529*Q138)+6.2018)+Kalkkalkyl!$AJ$2) -> 6.8399733 | W138: =IF(('PK kalkyl'!$AE$17*H138)+'PK kalkyl'!$AE$18+(('PK kalkyl'!$K$6-'PK kalkyl'!$AE$12)*'PK kalkyl'!$AE$13)<1,0,ROUND(('PK kalkyl'!$AE$17*H138)+'PK kalkyl'!$AE$18+(('PK kalkyl'!$K$6-'PK kalkyl'!$AE$12)*'PK kalkyl'!$AE$13),1)) ->  | X138: =IF(('PK kalkyl'!$AE$37*I138)+'PK kalkyl'!$AE$38+(('PK kalkyl'!$K$6-'PK kalkyl'!$AE$32)*'PK kalkyl'!$AE$33)<1,0,ROUND(('PK kalkyl'!$AE$37*I138)+'PK kalkyl'!$AE$38+(('PK kalkyl'!$K$6-'PK kalkyl'!$AE$32)*'PK kalkyl'!$AE$33),1)) ->  | AA138: =IF((Y138<W138),Y138-W138,0)*-'PK kalkyl'!$AE$15 ->  | AB138: =IF((Z138<X138),Z138-X138,0)*-'PK kalkyl'!$AE$35 ->  | AC138: =+AA138*Växtföljd!$G$18+AB138*Växtföljd!$G$18 -> 
A139: =IF(Import!A139="","",Import!A139) ->  | B139: =IF(Import!B139="","",Import!B139) ->  | C139: =IF(Import!C139="","",Import!C139) ->  | D139: =IF(Import!D139="","",Import!D139) ->  | E139: =IF(Import!E139="","",Import!E139) ->  | F139: =IF(Import!F139="","",Import!F139) ->  | G139: =IF(Import!G139="","",Import!G139) ->  | H139: =IF(Import!H139="","",Import!H139) ->  | I139: =IF(Import!J139="","",Import!J139) ->  | J139: =IF(Import!K139="","",Import!K139) ->  | K139: =IF(Import!L139="","",Import!L139) ->  | L139: =IF(Import!M139="","",Import!M139) ->  | M139: =IF(Import!P139="","",Import!P139) ->  | N139: =IF(Import!Q139="","",Import!Q139) ->  | O139: =IF(Import!R139="","",Import!R139) ->  | P139: 304.431694 | Q139: 3.422301913 | R139: 32.2215847 | S139: 32.2215847 | T139: =IF(Q139="","",(-0.00011*POWER(S139,2))+(0.01417*S139)+((0.00057*POWER(Q139,2))-(0.0529*Q139)+6.2018)+Kalkkalkyl!$AJ$2) -> 6.869810652 | W139: =IF(('PK kalkyl'!$AE$17*H139)+'PK kalkyl'!$AE$18+(('PK kalkyl'!$K$6-'PK kalkyl'!$AE$12)*'PK kalkyl'!$AE$13)<1,0,ROUND(('PK kalkyl'!$AE$17*H139)+'PK kalkyl'!$AE$18+(('PK kalkyl'!$K$6-'PK kalkyl'!$AE$12)*'PK kalkyl'!$AE$13),1)) ->  | X139: =IF(('PK kalkyl'!$AE$37*I139)+'PK kalkyl'!$AE$38+(('PK kalkyl'!$K$6-'PK kalkyl'!$AE$32)*'PK kalkyl'!$AE$33)<1,0,ROUND(('PK kalkyl'!$AE$37*I139)+'PK kalkyl'!$AE$38+(('PK kalkyl'!$K$6-'PK kalkyl'!$AE$32)*'PK kalkyl'!$AE$33),1)) ->  | AA139: =IF((Y139<W139),Y139-W139,0)*-'PK kalkyl'!$AE$15 ->  | AB139: =IF((Z139<X139),Z139-X139,0)*-'PK kalkyl'!$AE$35 ->  | AC139: =+AA139*Växtföljd!$G$18+AB139*Växtföljd!$G$18 -> 
A140: =IF(Import!A140="","",Import!A140) ->  | B140: =IF(Import!B140="","",Import!B140) ->  | C140: =IF(Import!C140="","",Import!C140) ->  | D140: =IF(Import!D140="","",Import!D140) ->  | E140: =IF(Import!E140="","",Import!E140) ->  | F140: =IF(Import!F140="","",Import!F140) ->  | G140: =IF(Import!G140="","",Import!G140) ->  | H140: =IF(Import!H140="","",Import!H140) ->  | I140: =IF(Import!J140="","",Import!J140) ->  | J140: =IF(Import!K140="","",Import!K140) ->  | K140: =IF(Import!L140="","",Import!L140) ->  | L140: =IF(Import!M140="","",Import!M140) ->  | M140: =IF(Import!P140="","",Import!P140) ->  | N140: =IF(Import!Q140="","",Import!Q140) ->  | O140: =IF(Import!R140="","",Import!R140) ->  | P140: 340 | Q140: 3.2 | R140: 34 | S140: 34 | T140: =IF(Q140="","",(-0.00011*POWER(S140,2))+(0.01417*S140)+((0.00057*POWER(Q140,2))-(0.0529*Q140)+6.2018)+Kalkkalkyl!$AJ$2) -> 6.8929768 | W140: =IF(('PK kalkyl'!$AE$17*H140)+'PK kalkyl'!$AE$18+(('PK kalkyl'!$K$6-'PK kalkyl'!$AE$12)*'PK kalkyl'!$AE$13)<1,0,ROUND(('PK kalkyl'!$AE$17*H140)+'PK kalkyl'!$AE$18+(('PK kalkyl'!$K$6-'PK kalkyl'!$AE$12)*'PK kalkyl'!$AE$13),1)) ->  | X140: =IF(('PK kalkyl'!$AE$37*I140)+'PK kalkyl'!$AE$38+(('PK kalkyl'!$K$6-'PK kalkyl'!$AE$32)*'PK kalkyl'!$AE$33)<1,0,ROUND(('PK kalkyl'!$AE$37*I140)+'PK kalkyl'!$AE$38+(('PK kalkyl'!$K$6-'PK kalkyl'!$AE$32)*'PK kalkyl'!$AE$33),1)) ->  | AA140: =IF((Y140<W140),Y140-W140,0)*-'PK kalkyl'!$AE$15 ->  | AB140: =IF((Z140<X140),Z140-X140,0)*-'PK kalkyl'!$AE$35 ->  | AC140: =+AA140*Växtföljd!$G$18+AB140*Växtföljd!$G$18 -> 
A141: =IF(Import!A141="","",Import!A141) ->  | B141: =IF(Import!B141="","",Import!B141) ->  | C141: =IF(Import!C141="","",Import!C141) ->  | D141: =IF(Import!D141="","",Import!D141) ->  | E141: =IF(Import!E141="","",Import!E141) ->  | F141: =IF(Import!F141="","",Import!F141) ->  | G141: =IF(Import!G141="","",Import!G141) ->  | H141: =IF(Import!H141="","",Import!H141) ->  | I141: =IF(Import!J141="","",Import!J141) ->  | J141: =IF(Import!K141="","",Import!K141) ->  | K141: =IF(Import!L141="","",Import!L141) ->  | L141: =IF(Import!M141="","",Import!M141) ->  | M141: =IF(Import!P141="","",Import!P141) ->  | N141: =IF(Import!Q141="","",Import!Q141) ->  | O141: =IF(Import!R141="","",Import!R141) ->  | P141: 366.9772231 | Q141: 3.2 | R141: 38.04658347 | S141: 38.04658347 | T141: =IF(Q141="","",(-0.00011*POWER(S141,2))+(0.01417*S141)+((0.00057*POWER(Q141,2))-(0.0529*Q141)+6.2018)+Kalkkalkyl!$AJ$2) -> 6.918247211 | W141: =IF(('PK kalkyl'!$AE$17*H141)+'PK kalkyl'!$AE$18+(('PK kalkyl'!$K$6-'PK kalkyl'!$AE$12)*'PK kalkyl'!$AE$13)<1,0,ROUND(('PK kalkyl'!$AE$17*H141)+'PK kalkyl'!$AE$18+(('PK kalkyl'!$K$6-'PK kalkyl'!$AE$12)*'PK kalkyl'!$AE$13),1)) ->  | X141: =IF(('PK kalkyl'!$AE$37*I141)+'PK kalkyl'!$AE$38+(('PK kalkyl'!$K$6-'PK kalkyl'!$AE$32)*'PK kalkyl'!$AE$33)<1,0,ROUND(('PK kalkyl'!$AE$37*I141)+'PK kalkyl'!$AE$38+(('PK kalkyl'!$K$6-'PK kalkyl'!$AE$32)*'PK kalkyl'!$AE$33),1)) ->  | AA141: =IF((Y141<W141),Y141-W141,0)*-'PK kalkyl'!$AE$15 ->  | AB141: =IF((Z141<X141),Z141-X141,0)*-'PK kalkyl'!$AE$35 ->  | AC141: =+AA141*Växtföljd!$G$18+AB141*Växtföljd!$G$18 -> 
A142: =IF(Import!A142="","",Import!A142) ->  | B142: =IF(Import!B142="","",Import!B142) ->  | C142: =IF(Import!C142="","",Import!C142) ->  | D142: =IF(Import!D142="","",Import!D142) ->  | E142: =IF(Import!E142="","",Import!E142) ->  | F142: =IF(Import!F142="","",Import!F142) ->  | G142: =IF(Import!G142="","",Import!G142) ->  | H142: =IF(Import!H142="","",Import!H142) ->  | I142: =IF(Import!J142="","",Import!J142) ->  | J142: =IF(Import!K142="","",Import!K142) ->  | K142: =IF(Import!L142="","",Import!L142) ->  | L142: =IF(Import!M142="","",Import!M142) ->  | M142: =IF(Import!P142="","",Import!P142) ->  | N142: =IF(Import!Q142="","",Import!Q142) ->  | O142: =IF(Import!R142="","",Import!R142) ->  | P142: 380 | Q142: 3.2 | R142: 40 | S142: 40 | T142: =IF(Q142="","",(-0.00011*POWER(S142,2))+(0.01417*S142)+((0.00057*POWER(Q142,2))-(0.0529*Q142)+6.2018)+Kalkkalkyl!$AJ$2) -> 6.9291568 | W142: =IF(('PK kalkyl'!$AE$17*H142)+'PK kalkyl'!$AE$18+(('PK kalkyl'!$K$6-'PK kalkyl'!$AE$12)*'PK kalkyl'!$AE$13)<1,0,ROUND(('PK kalkyl'!$AE$17*H142)+'PK kalkyl'!$AE$18+(('PK kalkyl'!$K$6-'PK kalkyl'!$AE$12)*'PK kalkyl'!$AE$13),1)) ->  | X142: =IF(('PK kalkyl'!$AE$37*I142)+'PK kalkyl'!$AE$38+(('PK kalkyl'!$K$6-'PK kalkyl'!$AE$32)*'PK kalkyl'!$AE$33)<1,0,ROUND(('PK kalkyl'!$AE$37*I142)+'PK kalkyl'!$AE$38+(('PK kalkyl'!$K$6-'PK kalkyl'!$AE$32)*'PK kalkyl'!$AE$33),1)) ->  | AA142: =IF((Y142<W142),Y142-W142,0)*-'PK kalkyl'!$AE$15 ->  | AB142: =IF((Z142<X142),Z142-X142,0)*-'PK kalkyl'!$AE$35 ->  | AC142: =+AA142*Växtföljd!$G$18+AB142*Växtföljd!$G$18 -> 
A143: =IF(Import!A143="","",Import!A143) ->  | B143: =IF(Import!B143="","",Import!B143) ->  | C143: =IF(Import!C143="","",Import!C143) ->  | D143: =IF(Import!D143="","",Import!D143) ->  | E143: =IF(Import!E143="","",Import!E143) ->  | F143: =IF(Import!F143="","",Import!F143) ->  | G143: =IF(Import!G143="","",Import!G143) ->  | H143: =IF(Import!H143="","",Import!H143) ->  | I143: =IF(Import!J143="","",Import!J143) ->  | J143: =IF(Import!K143="","",Import!K143) ->  | K143: =IF(Import!L143="","",Import!L143) ->  | L143: =IF(Import!M143="","",Import!M143) ->  | M143: =IF(Import!P143="","",Import!P143) ->  | N143: =IF(Import!Q143="","",Import!Q143) ->  | O143: =IF(Import!R143="","",Import!R143) ->  | P143: 387.9632962 | Q143: 4.951925167 | R143: 43.98164811 | S143: 43.98164811 | T143: =IF(Q143="","",(-0.00011*POWER(S143,2))+(0.01417*S143)+((0.00057*POWER(Q143,2))-(0.0529*Q143)+6.2018)+Kalkkalkyl!$AJ$2) -> 6.864258012 | W143: =IF(('PK kalkyl'!$AE$17*H143)+'PK kalkyl'!$AE$18+(('PK kalkyl'!$K$6-'PK kalkyl'!$AE$12)*'PK kalkyl'!$AE$13)<1,0,ROUND(('PK kalkyl'!$AE$17*H143)+'PK kalkyl'!$AE$18+(('PK kalkyl'!$K$6-'PK kalkyl'!$AE$12)*'PK kalkyl'!$AE$13),1)) ->  | X143: =IF(('PK kalkyl'!$AE$37*I143)+'PK kalkyl'!$AE$38+(('PK kalkyl'!$K$6-'PK kalkyl'!$AE$32)*'PK kalkyl'!$AE$33)<1,0,ROUND(('PK kalkyl'!$AE$37*I143)+'PK kalkyl'!$AE$38+(('PK kalkyl'!$K$6-'PK kalkyl'!$AE$32)*'PK kalkyl'!$AE$33),1)) ->  | AA143: =IF((Y143<W143),Y143-W143,0)*-'PK kalkyl'!$AE$15 ->  | AB143: =IF((Z143<X143),Z143-X143,0)*-'PK kalkyl'!$AE$35 ->  | AC143: =+AA143*Växtföljd!$G$18+AB143*Växtföljd!$G$18 -> 
A144: =IF(Import!A144="","",Import!A144) ->  | B144: =IF(Import!B144="","",Import!B144) ->  | C144: =IF(Import!C144="","",Import!C144) ->  | D144: =IF(Import!D144="","",Import!D144) ->  | E144: =IF(Import!E144="","",Import!E144) ->  | F144: =IF(Import!F144="","",Import!F144) ->  | G144: =IF(Import!G144="","",Import!G144) ->  | H144: =IF(Import!H144="","",Import!H144) ->  | I144: =IF(Import!J144="","",Import!J144) ->  | J144: =IF(Import!K144="","",Import!K144) ->  | K144: =IF(Import!L144="","",Import!L144) ->  | L144: =IF(Import!M144="","",Import!M144) ->  | M144: =IF(Import!P144="","",Import!P144) ->  | N144: =IF(Import!Q144="","",Import!Q144) ->  | O144: =IF(Import!R144="","",Import!R144) ->  | P144: 390 | Q144: 5.4 | R144: 45 | S144: 45 | T144: =IF(Q144="","",(-0.00011*POWER(S144,2))+(0.01417*S144)+((0.00057*POWER(Q144,2))-(0.0529*Q144)+6.2018)+Kalkkalkyl!$AJ$2) -> 6.8476612 | W144: =IF(('PK kalkyl'!$AE$17*H144)+'PK kalkyl'!$AE$18+(('PK kalkyl'!$K$6-'PK kalkyl'!$AE$12)*'PK kalkyl'!$AE$13)<1,0,ROUND(('PK kalkyl'!$AE$17*H144)+'PK kalkyl'!$AE$18+(('PK kalkyl'!$K$6-'PK kalkyl'!$AE$12)*'PK kalkyl'!$AE$13),1)) ->  | X144: =IF(('PK kalkyl'!$AE$37*I144)+'PK kalkyl'!$AE$38+(('PK kalkyl'!$K$6-'PK kalkyl'!$AE$32)*'PK kalkyl'!$AE$33)<1,0,ROUND(('PK kalkyl'!$AE$37*I144)+'PK kalkyl'!$AE$38+(('PK kalkyl'!$K$6-'PK kalkyl'!$AE$32)*'PK kalkyl'!$AE$33),1)) ->  | AA144: =IF((Y144<W144),Y144-W144,0)*-'PK kalkyl'!$AE$15 ->  | AB144: =IF((Z144<X144),Z144-X144,0)*-'PK kalkyl'!$AE$35 ->  | AC144: =+AA144*Växtföljd!$G$18+AB144*Växtföljd!$G$18 -> 
A145: =IF(Import!A145="","",Import!A145) ->  | B145: =IF(Import!B145="","",Import!B145) ->  | C145: =IF(Import!C145="","",Import!C145) ->  | D145: =IF(Import!D145="","",Import!D145) ->  | E145: =IF(Import!E145="","",Import!E145) ->  | F145: =IF(Import!F145="","",Import!F145) ->  | G145: =IF(Import!G145="","",Import!G145) ->  | H145: =IF(Import!H145="","",Import!H145) ->  | I145: =IF(Import!J145="","",Import!J145) ->  | J145: =IF(Import!K145="","",Import!K145) ->  | K145: =IF(Import!L145="","",Import!L145) ->  | L145: =IF(Import!M145="","",Import!M145) ->  | M145: =IF(Import!P145="","",Import!P145) ->  | N145: =IF(Import!Q145="","",Import!Q145) ->  | O145: =IF(Import!R145="","",Import!R145) ->  | P145: 330 | Q145: 2.8 | R145: 34 | S145: 34 | T145: =IF(Q145="","",(-0.00011*POWER(S145,2))+(0.01417*S145)+((0.00057*POWER(Q145,2))-(0.0529*Q145)+6.2018)+Kalkkalkyl!$AJ$2) -> 6.9127688 | W145: =IF(('PK kalkyl'!$AE$17*H145)+'PK kalkyl'!$AE$18+(('PK kalkyl'!$K$6-'PK kalkyl'!$AE$12)*'PK kalkyl'!$AE$13)<1,0,ROUND(('PK kalkyl'!$AE$17*H145)+'PK kalkyl'!$AE$18+(('PK kalkyl'!$K$6-'PK kalkyl'!$AE$12)*'PK kalkyl'!$AE$13),1)) ->  | X145: =IF(('PK kalkyl'!$AE$37*I145)+'PK kalkyl'!$AE$38+(('PK kalkyl'!$K$6-'PK kalkyl'!$AE$32)*'PK kalkyl'!$AE$33)<1,0,ROUND(('PK kalkyl'!$AE$37*I145)+'PK kalkyl'!$AE$38+(('PK kalkyl'!$K$6-'PK kalkyl'!$AE$32)*'PK kalkyl'!$AE$33),1)) ->  | AA145: =IF((Y145<W145),Y145-W145,0)*-'PK kalkyl'!$AE$15 ->  | AB145: =IF((Z145<X145),Z145-X145,0)*-'PK kalkyl'!$AE$35 ->  | AC145: =+AA145*Växtföljd!$G$18+AB145*Växtföljd!$G$18 -> 
A146: =IF(Import!A146="","",Import!A146) ->  | B146: =IF(Import!B146="","",Import!B146) ->  | C146: =IF(Import!C146="","",Import!C146) ->  | D146: =IF(Import!D146="","",Import!D146) ->  | E146: =IF(Import!E146="","",Import!E146) ->  | F146: =IF(Import!F146="","",Import!F146) ->  | G146: =IF(Import!G146="","",Import!G146) ->  | H146: =IF(Import!H146="","",Import!H146) ->  | I146: =IF(Import!J146="","",Import!J146) ->  | J146: =IF(Import!K146="","",Import!K146) ->  | K146: =IF(Import!L146="","",Import!L146) ->  | L146: =IF(Import!M146="","",Import!M146) ->  | M146: =IF(Import!P146="","",Import!P146) ->  | N146: =IF(Import!Q146="","",Import!Q146) ->  | O146: =IF(Import!R146="","",Import!R146) ->  | P146: 330 | Q146: 2.8 | R146: 34 | S146: 34 | T146: =IF(Q146="","",(-0.00011*POWER(S146,2))+(0.01417*S146)+((0.00057*POWER(Q146,2))-(0.0529*Q146)+6.2018)+Kalkkalkyl!$AJ$2) -> 6.9127688 | W146: =IF(('PK kalkyl'!$AE$17*H146)+'PK kalkyl'!$AE$18+(('PK kalkyl'!$K$6-'PK kalkyl'!$AE$12)*'PK kalkyl'!$AE$13)<1,0,ROUND(('PK kalkyl'!$AE$17*H146)+'PK kalkyl'!$AE$18+(('PK kalkyl'!$K$6-'PK kalkyl'!$AE$12)*'PK kalkyl'!$AE$13),1)) ->  | X146: =IF(('PK kalkyl'!$AE$37*I146)+'PK kalkyl'!$AE$38+(('PK kalkyl'!$K$6-'PK kalkyl'!$AE$32)*'PK kalkyl'!$AE$33)<1,0,ROUND(('PK kalkyl'!$AE$37*I146)+'PK kalkyl'!$AE$38+(('PK kalkyl'!$K$6-'PK kalkyl'!$AE$32)*'PK kalkyl'!$AE$33),1)) ->  | AA146: =IF((Y146<W146),Y146-W146,0)*-'PK kalkyl'!$AE$15 ->  | AB146: =IF((Z146<X146),Z146-X146,0)*-'PK kalkyl'!$AE$35 ->  | AC146: =+AA146*Växtföljd!$G$18+AB146*Växtföljd!$G$18 -> 
A147: =IF(Import!A147="","",Import!A147) ->  | B147: =IF(Import!B147="","",Import!B147) ->  | C147: =IF(Import!C147="","",Import!C147) ->  | D147: =IF(Import!D147="","",Import!D147) ->  | E147: =IF(Import!E147="","",Import!E147) ->  | F147: =IF(Import!F147="","",Import!F147) ->  | G147: =IF(Import!G147="","",Import!G147) ->  | H147: =IF(Import!H147="","",Import!H147) ->  | I147: =IF(Import!J147="","",Import!J147) ->  | J147: =IF(Import!K147="","",Import!K147) ->  | K147: =IF(Import!L147="","",Import!L147) ->  | L147: =IF(Import!M147="","",Import!M147) ->  | M147: =IF(Import!P147="","",Import!P147) ->  | N147: =IF(Import!Q147="","",Import!Q147) ->  | O147: =IF(Import!R147="","",Import!R147) ->  | P147: 254.562949 | Q147: 3.742963138 | R147: 30.22814745 | S147: 30.22814745 | T147: =IF(Q147="","",(-0.00011*POWER(S147,2))+(0.01417*S147)+((0.00057*POWER(Q147,2))-(0.0529*Q147)+6.2018)+Kalkkalkyl!$AJ$2) -> 6.839604171 | W147: =IF(('PK kalkyl'!$AE$17*H147)+'PK kalkyl'!$AE$18+(('PK kalkyl'!$K$6-'PK kalkyl'!$AE$12)*'PK kalkyl'!$AE$13)<1,0,ROUND(('PK kalkyl'!$AE$17*H147)+'PK kalkyl'!$AE$18+(('PK kalkyl'!$K$6-'PK kalkyl'!$AE$12)*'PK kalkyl'!$AE$13),1)) ->  | X147: =IF(('PK kalkyl'!$AE$37*I147)+'PK kalkyl'!$AE$38+(('PK kalkyl'!$K$6-'PK kalkyl'!$AE$32)*'PK kalkyl'!$AE$33)<1,0,ROUND(('PK kalkyl'!$AE$37*I147)+'PK kalkyl'!$AE$38+(('PK kalkyl'!$K$6-'PK kalkyl'!$AE$32)*'PK kalkyl'!$AE$33),1)) ->  | AA147: =IF((Y147<W147),Y147-W147,0)*-'PK kalkyl'!$AE$15 ->  | AB147: =IF((Z147<X147),Z147-X147,0)*-'PK kalkyl'!$AE$35 ->  | AC147: =+AA147*Växtföljd!$G$18+AB147*Växtföljd!$G$18 -> 
A148: =IF(Import!A148="","",Import!A148) ->  | B148: =IF(Import!B148="","",Import!B148) ->  | C148: =IF(Import!C148="","",Import!C148) ->  | D148: =IF(Import!D148="","",Import!D148) ->  | E148: =IF(Import!E148="","",Import!E148) ->  | F148: =IF(Import!F148="","",Import!F148) ->  | G148: =IF(Import!G148="","",Import!G148) ->  | H148: =IF(Import!H148="","",Import!H148) ->  | I148: =IF(Import!J148="","",Import!J148) ->  | J148: =IF(Import!K148="","",Import!K148) ->  | K148: =IF(Import!L148="","",Import!L148) ->  | L148: =IF(Import!M148="","",Import!M148) ->  | M148: =IF(Import!P148="","",Import!P148) ->  | N148: =IF(Import!Q148="","",Import!Q148) ->  | O148: =IF(Import!R148="","",Import!R148) ->  | P148: 250 | Q148: 3.8 | R148: 30 | S148: 30 | T148: =IF(Q148="","",(-0.00011*POWER(S148,2))+(0.01417*S148)+((0.00057*POWER(Q148,2))-(0.0529*Q148)+6.2018)+Kalkkalkyl!$AJ$2) -> 6.8351108 | W148: =IF(('PK kalkyl'!$AE$17*H148)+'PK kalkyl'!$AE$18+(('PK kalkyl'!$K$6-'PK kalkyl'!$AE$12)*'PK kalkyl'!$AE$13)<1,0,ROUND(('PK kalkyl'!$AE$17*H148)+'PK kalkyl'!$AE$18+(('PK kalkyl'!$K$6-'PK kalkyl'!$AE$12)*'PK kalkyl'!$AE$13),1)) ->  | X148: =IF(('PK kalkyl'!$AE$37*I148)+'PK kalkyl'!$AE$38+(('PK kalkyl'!$K$6-'PK kalkyl'!$AE$32)*'PK kalkyl'!$AE$33)<1,0,ROUND(('PK kalkyl'!$AE$37*I148)+'PK kalkyl'!$AE$38+(('PK kalkyl'!$K$6-'PK kalkyl'!$AE$32)*'PK kalkyl'!$AE$33),1)) ->  | AA148: =IF((Y148<W148),Y148-W148,0)*-'PK kalkyl'!$AE$15 ->  | AB148: =IF((Z148<X148),Z148-X148,0)*-'PK kalkyl'!$AE$35 ->  | AC148: =+AA148*Växtföljd!$G$18+AB148*Växtföljd!$G$18 -> 
A149: =IF(Import!A149="","",Import!A149) ->  | B149: =IF(Import!B149="","",Import!B149) ->  | C149: =IF(Import!C149="","",Import!C149) ->  | D149: =IF(Import!D149="","",Import!D149) ->  | E149: =IF(Import!E149="","",Import!E149) ->  | F149: =IF(Import!F149="","",Import!F149) ->  | G149: =IF(Import!G149="","",Import!G149) ->  | H149: =IF(Import!H149="","",Import!H149) ->  | I149: =IF(Import!J149="","",Import!J149) ->  | J149: =IF(Import!K149="","",Import!K149) ->  | K149: =IF(Import!L149="","",Import!L149) ->  | L149: =IF(Import!M149="","",Import!M149) ->  | M149: =IF(Import!P149="","",Import!P149) ->  | N149: =IF(Import!Q149="","",Import!Q149) ->  | O149: =IF(Import!R149="","",Import!R149) ->  | P149: 441.4282966 | Q149: 4.151486395 | R149: 33.93638028 | S149: 33.93638028 | T149: =IF(Q149="","",(-0.00011*POWER(S149,2))+(0.01417*S149)+((0.00057*POWER(Q149,2))-(0.0529*Q149)+6.2018)+Kalkkalkyl!$AJ$2) -> 6.846204167 | W149: =IF(('PK kalkyl'!$AE$17*H149)+'PK kalkyl'!$AE$18+(('PK kalkyl'!$K$6-'PK kalkyl'!$AE$12)*'PK kalkyl'!$AE$13)<1,0,ROUND(('PK kalkyl'!$AE$17*H149)+'PK kalkyl'!$AE$18+(('PK kalkyl'!$K$6-'PK kalkyl'!$AE$12)*'PK kalkyl'!$AE$13),1)) ->  | X149: =IF(('PK kalkyl'!$AE$37*I149)+'PK kalkyl'!$AE$38+(('PK kalkyl'!$K$6-'PK kalkyl'!$AE$32)*'PK kalkyl'!$AE$33)<1,0,ROUND(('PK kalkyl'!$AE$37*I149)+'PK kalkyl'!$AE$38+(('PK kalkyl'!$K$6-'PK kalkyl'!$AE$32)*'PK kalkyl'!$AE$33),1)) ->  | AA149: =IF((Y149<W149),Y149-W149,0)*-'PK kalkyl'!$AE$15 ->  | AB149: =IF((Z149<X149),Z149-X149,0)*-'PK kalkyl'!$AE$35 ->  | AC149: =+AA149*Växtföljd!$G$18+AB149*Växtföljd!$G$18 -> 
A150: =IF(Import!A150="","",Import!A150) ->  | B150: =IF(Import!B150="","",Import!B150) ->  | C150: =IF(Import!C150="","",Import!C150) ->  | D150: =IF(Import!D150="","",Import!D150) ->  | E150: =IF(Import!E150="","",Import!E150) ->  | F150: =IF(Import!F150="","",Import!F150) ->  | G150: =IF(Import!G150="","",Import!G150) ->  | H150: =IF(Import!H150="","",Import!H150) ->  | I150: =IF(Import!J150="","",Import!J150) ->  | J150: =IF(Import!K150="","",Import!K150) ->  | K150: =IF(Import!L150="","",Import!L150) ->  | L150: =IF(Import!M150="","",Import!M150) ->  | M150: =IF(Import!P150="","",Import!P150) ->  | N150: =IF(Import!Q150="","",Import!Q150) ->  | O150: =IF(Import!R150="","",Import!R150) ->  | P150: 460 | Q150: 4.8 | R150: 33 | S150: 33 | T150: =IF(Q150="","",(-0.00011*POWER(S150,2))+(0.01417*S150)+((0.00057*POWER(Q150,2))-(0.0529*Q150)+6.2018)+Kalkkalkyl!$AJ$2) -> 6.8088328 | W150: =IF(('PK kalkyl'!$AE$17*H150)+'PK kalkyl'!$AE$18+(('PK kalkyl'!$K$6-'PK kalkyl'!$AE$12)*'PK kalkyl'!$AE$13)<1,0,ROUND(('PK kalkyl'!$AE$17*H150)+'PK kalkyl'!$AE$18+(('PK kalkyl'!$K$6-'PK kalkyl'!$AE$12)*'PK kalkyl'!$AE$13),1)) ->  | X150: =IF(('PK kalkyl'!$AE$37*I150)+'PK kalkyl'!$AE$38+(('PK kalkyl'!$K$6-'PK kalkyl'!$AE$32)*'PK kalkyl'!$AE$33)<1,0,ROUND(('PK kalkyl'!$AE$37*I150)+'PK kalkyl'!$AE$38+(('PK kalkyl'!$K$6-'PK kalkyl'!$AE$32)*'PK kalkyl'!$AE$33),1)) ->  | AA150: =IF((Y150<W150),Y150-W150,0)*-'PK kalkyl'!$AE$15 ->  | AB150: =IF((Z150<X150),Z150-X150,0)*-'PK kalkyl'!$AE$35 ->  | AC150: =+AA150*Växtföljd!$G$18+AB150*Växtföljd!$G$18 -> 
A151: =IF(Import!A151="","",Import!A151) ->  | B151: =IF(Import!B151="","",Import!B151) ->  | C151: =IF(Import!C151="","",Import!C151) ->  | D151: =IF(Import!D151="","",Import!D151) ->  | E151: =IF(Import!E151="","",Import!E151) ->  | F151: =IF(Import!F151="","",Import!F151) ->  | G151: =IF(Import!G151="","",Import!G151) ->  | H151: =IF(Import!H151="","",Import!H151) ->  | I151: =IF(Import!J151="","",Import!J151) ->  | J151: =IF(Import!K151="","",Import!K151) ->  | K151: =IF(Import!L151="","",Import!L151) ->  | L151: =IF(Import!M151="","",Import!M151) ->  | M151: =IF(Import!P151="","",Import!P151) ->  | N151: =IF(Import!Q151="","",Import!Q151) ->  | O151: =IF(Import!R151="","",Import!R151) ->  | P151: 346.8432452 | Q151: 3.257447826 | R151: 32.70602606 | S151: 32.70602606 | T151: =IF(Q151="","",(-0.00011*POWER(S151,2))+(0.01417*S151)+((0.00057*POWER(Q151,2))-(0.0529*Q151)+6.2018)+Kalkkalkyl!$AJ$2) -> 6.881308395 | W151: =IF(('PK kalkyl'!$AE$17*H151)+'PK kalkyl'!$AE$18+(('PK kalkyl'!$K$6-'PK kalkyl'!$AE$12)*'PK kalkyl'!$AE$13)<1,0,ROUND(('PK kalkyl'!$AE$17*H151)+'PK kalkyl'!$AE$18+(('PK kalkyl'!$K$6-'PK kalkyl'!$AE$12)*'PK kalkyl'!$AE$13),1)) ->  | X151: =IF(('PK kalkyl'!$AE$37*I151)+'PK kalkyl'!$AE$38+(('PK kalkyl'!$K$6-'PK kalkyl'!$AE$32)*'PK kalkyl'!$AE$33)<1,0,ROUND(('PK kalkyl'!$AE$37*I151)+'PK kalkyl'!$AE$38+(('PK kalkyl'!$K$6-'PK kalkyl'!$AE$32)*'PK kalkyl'!$AE$33),1)) ->  | AA151: =IF((Y151<W151),Y151-W151,0)*-'PK kalkyl'!$AE$15 ->  | AB151: =IF((Z151<X151),Z151-X151,0)*-'PK kalkyl'!$AE$35 ->  | AC151: =+AA151*Växtföljd!$G$18+AB151*Växtföljd!$G$18 -> 
A152: =IF(Import!A152="","",Import!A152) ->  | B152: =IF(Import!B152="","",Import!B152) ->  | C152: =IF(Import!C152="","",Import!C152) ->  | D152: =IF(Import!D152="","",Import!D152) ->  | E152: =IF(Import!E152="","",Import!E152) ->  | F152: =IF(Import!F152="","",Import!F152) ->  | G152: =IF(Import!G152="","",Import!G152) ->  | H152: =IF(Import!H152="","",Import!H152) ->  | I152: =IF(Import!J152="","",Import!J152) ->  | J152: =IF(Import!K152="","",Import!K152) ->  | K152: =IF(Import!L152="","",Import!L152) ->  | L152: =IF(Import!M152="","",Import!M152) ->  | M152: =IF(Import!P152="","",Import!P152) ->  | N152: =IF(Import!Q152="","",Import!Q152) ->  | O152: =IF(Import!R152="","",Import!R152) ->  | P152: 330 | Q152: 3.3 | R152: 34 | S152: 34 | T152: =IF(Q152="","",(-0.00011*POWER(S152,2))+(0.01417*S152)+((0.00057*POWER(Q152,2))-(0.0529*Q152)+6.2018)+Kalkkalkyl!$AJ$2) -> 6.8880573 | W152: =IF(('PK kalkyl'!$AE$17*H152)+'PK kalkyl'!$AE$18+(('PK kalkyl'!$K$6-'PK kalkyl'!$AE$12)*'PK kalkyl'!$AE$13)<1,0,ROUND(('PK kalkyl'!$AE$17*H152)+'PK kalkyl'!$AE$18+(('PK kalkyl'!$K$6-'PK kalkyl'!$AE$12)*'PK kalkyl'!$AE$13),1)) ->  | X152: =IF(('PK kalkyl'!$AE$37*I152)+'PK kalkyl'!$AE$38+(('PK kalkyl'!$K$6-'PK kalkyl'!$AE$32)*'PK kalkyl'!$AE$33)<1,0,ROUND(('PK kalkyl'!$AE$37*I152)+'PK kalkyl'!$AE$38+(('PK kalkyl'!$K$6-'PK kalkyl'!$AE$32)*'PK kalkyl'!$AE$33),1)) ->  | AA152: =IF((Y152<W152),Y152-W152,0)*-'PK kalkyl'!$AE$15 ->  | AB152: =IF((Z152<X152),Z152-X152,0)*-'PK kalkyl'!$AE$35 ->  | AC152: =+AA152*Växtföljd!$G$18+AB152*Växtföljd!$G$18 -> 
A153: =IF(Import!A153="","",Import!A153) ->  | B153: =IF(Import!B153="","",Import!B153) ->  | C153: =IF(Import!C153="","",Import!C153) ->  | D153: =IF(Import!D153="","",Import!D153) ->  | E153: =IF(Import!E153="","",Import!E153) ->  | F153: =IF(Import!F153="","",Import!F153) ->  | G153: =IF(Import!G153="","",Import!G153) ->  | H153: =IF(Import!H153="","",Import!H153) ->  | I153: =IF(Import!J153="","",Import!J153) ->  | J153: =IF(Import!K153="","",Import!K153) ->  | K153: =IF(Import!L153="","",Import!L153) ->  | L153: =IF(Import!M153="","",Import!M153) ->  | M153: =IF(Import!P153="","",Import!P153) ->  | N153: =IF(Import!Q153="","",Import!Q153) ->  | O153: =IF(Import!R153="","",Import!R153) ->  | P153: 322.9390925 | Q153: 3.000636415 | R153: 32.96835212 | S153: 32.96835212 | T153: =IF(Q153="","",(-0.00011*POWER(S153,2))+(0.01417*S153)+((0.00057*POWER(Q153,2))-(0.0529*Q153)+6.2018)+Kalkkalkyl!$AJ$2) -> 6.895799713 | W153: =IF(('PK kalkyl'!$AE$17*H153)+'PK kalkyl'!$AE$18+(('PK kalkyl'!$K$6-'PK kalkyl'!$AE$12)*'PK kalkyl'!$AE$13)<1,0,ROUND(('PK kalkyl'!$AE$17*H153)+'PK kalkyl'!$AE$18+(('PK kalkyl'!$K$6-'PK kalkyl'!$AE$12)*'PK kalkyl'!$AE$13),1)) ->  | X153: =IF(('PK kalkyl'!$AE$37*I153)+'PK kalkyl'!$AE$38+(('PK kalkyl'!$K$6-'PK kalkyl'!$AE$32)*'PK kalkyl'!$AE$33)<1,0,ROUND(('PK kalkyl'!$AE$37*I153)+'PK kalkyl'!$AE$38+(('PK kalkyl'!$K$6-'PK kalkyl'!$AE$32)*'PK kalkyl'!$AE$33),1)) ->  | AA153: =IF((Y153<W153),Y153-W153,0)*-'PK kalkyl'!$AE$15 ->  | AB153: =IF((Z153<X153),Z153-X153,0)*-'PK kalkyl'!$AE$35 ->  | AC153: =+AA153*Växtföljd!$G$18+AB153*Växtföljd!$G$18 -> 
A154: =IF(Import!A154="","",Import!A154) ->  | B154: =IF(Import!B154="","",Import!B154) ->  | C154: =IF(Import!C154="","",Import!C154) ->  | D154: =IF(Import!D154="","",Import!D154) ->  | E154: =IF(Import!E154="","",Import!E154) ->  | F154: =IF(Import!F154="","",Import!F154) ->  | G154: =IF(Import!G154="","",Import!G154) ->  | H154: =IF(Import!H154="","",Import!H154) ->  | I154: =IF(Import!J154="","",Import!J154) ->  | J154: =IF(Import!K154="","",Import!K154) ->  | K154: =IF(Import!L154="","",Import!L154) ->  | L154: =IF(Import!M154="","",Import!M154) ->  | M154: =IF(Import!P154="","",Import!P154) ->  | N154: =IF(Import!Q154="","",Import!Q154) ->  | O154: =IF(Import!R154="","",Import!R154) ->  | P154: 320 | Q154: 2.7 | R154: 32 | S154: 32 | T154: =IF(Q154="","",(-0.00011*POWER(S154,2))+(0.01417*S154)+((0.00057*POWER(Q154,2))-(0.0529*Q154)+6.2018)+Kalkkalkyl!$AJ$2) -> 6.9039253 | W154: =IF(('PK kalkyl'!$AE$17*H154)+'PK kalkyl'!$AE$18+(('PK kalkyl'!$K$6-'PK kalkyl'!$AE$12)*'PK kalkyl'!$AE$13)<1,0,ROUND(('PK kalkyl'!$AE$17*H154)+'PK kalkyl'!$AE$18+(('PK kalkyl'!$K$6-'PK kalkyl'!$AE$12)*'PK kalkyl'!$AE$13),1)) ->  | X154: =IF(('PK kalkyl'!$AE$37*I154)+'PK kalkyl'!$AE$38+(('PK kalkyl'!$K$6-'PK kalkyl'!$AE$32)*'PK kalkyl'!$AE$33)<1,0,ROUND(('PK kalkyl'!$AE$37*I154)+'PK kalkyl'!$AE$38+(('PK kalkyl'!$K$6-'PK kalkyl'!$AE$32)*'PK kalkyl'!$AE$33),1)) ->  | AA154: =IF((Y154<W154),Y154-W154,0)*-'PK kalkyl'!$AE$15 ->  | AB154: =IF((Z154<X154),Z154-X154,0)*-'PK kalkyl'!$AE$35 ->  | AC154: =+AA154*Växtföljd!$G$18+AB154*Växtföljd!$G$18 -> 
A155: =IF(Import!A155="","",Import!A155) ->  | B155: =IF(Import!B155="","",Import!B155) ->  | C155: =IF(Import!C155="","",Import!C155) ->  | D155: =IF(Import!D155="","",Import!D155) ->  | E155: =IF(Import!E155="","",Import!E155) ->  | F155: =IF(Import!F155="","",Import!F155) ->  | G155: =IF(Import!G155="","",Import!G155) ->  | H155: =IF(Import!H155="","",Import!H155) ->  | I155: =IF(Import!J155="","",Import!J155) ->  | J155: =IF(Import!K155="","",Import!K155) ->  | K155: =IF(Import!L155="","",Import!L155) ->  | L155: =IF(Import!M155="","",Import!M155) ->  | M155: =IF(Import!P155="","",Import!P155) ->  | N155: =IF(Import!Q155="","",Import!Q155) ->  | O155: =IF(Import!R155="","",Import!R155) ->  | P155: 411.8686901 | Q155: 2.733678942 | R155: 36.52607662 | S155: 36.52607662 | T155: =IF(Q155="","",(-0.00011*POWER(S155,2))+(0.01417*S155)+((0.00057*POWER(Q155,2))-(0.0529*Q155)+6.2018)+Kalkkalkyl!$AJ$2) -> 6.93226553 | W155: =IF(('PK kalkyl'!$AE$17*H155)+'PK kalkyl'!$AE$18+(('PK kalkyl'!$K$6-'PK kalkyl'!$AE$12)*'PK kalkyl'!$AE$13)<1,0,ROUND(('PK kalkyl'!$AE$17*H155)+'PK kalkyl'!$AE$18+(('PK kalkyl'!$K$6-'PK kalkyl'!$AE$12)*'PK kalkyl'!$AE$13),1)) ->  | X155: =IF(('PK kalkyl'!$AE$37*I155)+'PK kalkyl'!$AE$38+(('PK kalkyl'!$K$6-'PK kalkyl'!$AE$32)*'PK kalkyl'!$AE$33)<1,0,ROUND(('PK kalkyl'!$AE$37*I155)+'PK kalkyl'!$AE$38+(('PK kalkyl'!$K$6-'PK kalkyl'!$AE$32)*'PK kalkyl'!$AE$33),1)) ->  | AA155: =IF((Y155<W155),Y155-W155,0)*-'PK kalkyl'!$AE$15 ->  | AB155: =IF((Z155<X155),Z155-X155,0)*-'PK kalkyl'!$AE$35 ->  | AC155: =+AA155*Växtföljd!$G$18+AB155*Växtföljd!$G$18 -> 
A156: =IF(Import!A156="","",Import!A156) ->  | B156: =IF(Import!B156="","",Import!B156) ->  | C156: =IF(Import!C156="","",Import!C156) ->  | D156: =IF(Import!D156="","",Import!D156) ->  | E156: =IF(Import!E156="","",Import!E156) ->  | F156: =IF(Import!F156="","",Import!F156) ->  | G156: =IF(Import!G156="","",Import!G156) ->  | H156: =IF(Import!H156="","",Import!H156) ->  | I156: =IF(Import!J156="","",Import!J156) ->  | J156: =IF(Import!K156="","",Import!K156) ->  | K156: =IF(Import!L156="","",Import!L156) ->  | L156: =IF(Import!M156="","",Import!M156) ->  | M156: =IF(Import!P156="","",Import!P156) ->  | N156: =IF(Import!Q156="","",Import!Q156) ->  | O156: =IF(Import!R156="","",Import!R156) ->  | P156: 460 | Q156: 2.7 | R156: 39 | S156: 39 | T156: =IF(Q156="","",(-0.00011*POWER(S156,2))+(0.01417*S156)+((0.00057*POWER(Q156,2))-(0.0529*Q156)+6.2018)+Kalkkalkyl!$AJ$2) -> 6.9484453 | W156: =IF(('PK kalkyl'!$AE$17*H156)+'PK kalkyl'!$AE$18+(('PK kalkyl'!$K$6-'PK kalkyl'!$AE$12)*'PK kalkyl'!$AE$13)<1,0,ROUND(('PK kalkyl'!$AE$17*H156)+'PK kalkyl'!$AE$18+(('PK kalkyl'!$K$6-'PK kalkyl'!$AE$12)*'PK kalkyl'!$AE$13),1)) ->  | X156: =IF(('PK kalkyl'!$AE$37*I156)+'PK kalkyl'!$AE$38+(('PK kalkyl'!$K$6-'PK kalkyl'!$AE$32)*'PK kalkyl'!$AE$33)<1,0,ROUND(('PK kalkyl'!$AE$37*I156)+'PK kalkyl'!$AE$38+(('PK kalkyl'!$K$6-'PK kalkyl'!$AE$32)*'PK kalkyl'!$AE$33),1)) ->  | AA156: =IF((Y156<W156),Y156-W156,0)*-'PK kalkyl'!$AE$15 ->  | AB156: =IF((Z156<X156),Z156-X156,0)*-'PK kalkyl'!$AE$35 ->  | AC156: =+AA156*Växtföljd!$G$18+AB156*Växtföljd!$G$18 -> 
A157: =IF(Import!A157="","",Import!A157) ->  | B157: =IF(Import!B157="","",Import!B157) ->  | C157: =IF(Import!C157="","",Import!C157) ->  | D157: =IF(Import!D157="","",Import!D157) ->  | E157: =IF(Import!E157="","",Import!E157) ->  | F157: =IF(Import!F157="","",Import!F157) ->  | G157: =IF(Import!G157="","",Import!G157) ->  | H157: =IF(Import!H157="","",Import!H157) ->  | I157: =IF(Import!J157="","",Import!J157) ->  | J157: =IF(Import!K157="","",Import!K157) ->  | K157: =IF(Import!L157="","",Import!L157) ->  | L157: =IF(Import!M157="","",Import!M157) ->  | M157: =IF(Import!P157="","",Import!P157) ->  | N157: =IF(Import!Q157="","",Import!Q157) ->  | O157: =IF(Import!R157="","",Import!R157) ->  | P157: 404.2063299 | Q157: 2.93047479 | R157: 35.5364448 | S157: 35.5364448 | T157: =IF(Q157="","",(-0.00011*POWER(S157,2))+(0.01417*S157)+((0.00057*POWER(Q157,2))-(0.0529*Q157)+6.2018)+Kalkkalkyl!$AJ$2) -> 6.916312005 | W157: =IF(('PK kalkyl'!$AE$17*H157)+'PK kalkyl'!$AE$18+(('PK kalkyl'!$K$6-'PK kalkyl'!$AE$12)*'PK kalkyl'!$AE$13)<1,0,ROUND(('PK kalkyl'!$AE$17*H157)+'PK kalkyl'!$AE$18+(('PK kalkyl'!$K$6-'PK kalkyl'!$AE$12)*'PK kalkyl'!$AE$13),1)) ->  | X157: =IF(('PK kalkyl'!$AE$37*I157)+'PK kalkyl'!$AE$38+(('PK kalkyl'!$K$6-'PK kalkyl'!$AE$32)*'PK kalkyl'!$AE$33)<1,0,ROUND(('PK kalkyl'!$AE$37*I157)+'PK kalkyl'!$AE$38+(('PK kalkyl'!$K$6-'PK kalkyl'!$AE$32)*'PK kalkyl'!$AE$33),1)) ->  | AA157: =IF((Y157<W157),Y157-W157,0)*-'PK kalkyl'!$AE$15 ->  | AB157: =IF((Z157<X157),Z157-X157,0)*-'PK kalkyl'!$AE$35 ->  | AC157: =+AA157*Växtföljd!$G$18+AB157*Växtföljd!$G$18 -> 
A158: =IF(Import!A158="","",Import!A158) ->  | B158: =IF(Import!B158="","",Import!B158) ->  | C158: =IF(Import!C158="","",Import!C158) ->  | D158: =IF(Import!D158="","",Import!D158) ->  | E158: =IF(Import!E158="","",Import!E158) ->  | F158: =IF(Import!F158="","",Import!F158) ->  | G158: =IF(Import!G158="","",Import!G158) ->  | H158: =IF(Import!H158="","",Import!H158) ->  | I158: =IF(Import!J158="","",Import!J158) ->  | J158: =IF(Import!K158="","",Import!K158) ->  | K158: =IF(Import!L158="","",Import!L158) ->  | L158: =IF(Import!M158="","",Import!M158) ->  | M158: =IF(Import!P158="","",Import!P158) ->  | N158: =IF(Import!Q158="","",Import!Q158) ->  | O158: =IF(Import!R158="","",Import!R158) ->  | P158: 340 | Q158: 3.2 | R158: 32 | S158: 32 | T158: =IF(Q158="","",(-0.00011*POWER(S158,2))+(0.01417*S158)+((0.00057*POWER(Q158,2))-(0.0529*Q158)+6.2018)+Kalkkalkyl!$AJ$2) -> 6.8791568 | W158: =IF(('PK kalkyl'!$AE$17*H158)+'PK kalkyl'!$AE$18+(('PK kalkyl'!$K$6-'PK kalkyl'!$AE$12)*'PK kalkyl'!$AE$13)<1,0,ROUND(('PK kalkyl'!$AE$17*H158)+'PK kalkyl'!$AE$18+(('PK kalkyl'!$K$6-'PK kalkyl'!$AE$12)*'PK kalkyl'!$AE$13),1)) ->  | X158: =IF(('PK kalkyl'!$AE$37*I158)+'PK kalkyl'!$AE$38+(('PK kalkyl'!$K$6-'PK kalkyl'!$AE$32)*'PK kalkyl'!$AE$33)<1,0,ROUND(('PK kalkyl'!$AE$37*I158)+'PK kalkyl'!$AE$38+(('PK kalkyl'!$K$6-'PK kalkyl'!$AE$32)*'PK kalkyl'!$AE$33),1)) ->  | AA158: =IF((Y158<W158),Y158-W158,0)*-'PK kalkyl'!$AE$15 ->  | AB158: =IF((Z158<X158),Z158-X158,0)*-'PK kalkyl'!$AE$35 ->  | AC158: =+AA158*Växtföljd!$G$18+AB158*Växtföljd!$G$18 -> 
A159: =IF(Import!A159="","",Import!A159) ->  | B159: =IF(Import!B159="","",Import!B159) ->  | C159: =IF(Import!C159="","",Import!C159) ->  | D159: =IF(Import!D159="","",Import!D159) ->  | E159: =IF(Import!E159="","",Import!E159) ->  | F159: =IF(Import!F159="","",Import!F159) ->  | G159: =IF(Import!G159="","",Import!G159) ->  | H159: =IF(Import!H159="","",Import!H159) ->  | I159: =IF(Import!J159="","",Import!J159) ->  | J159: =IF(Import!K159="","",Import!K159) ->  | K159: =IF(Import!L159="","",Import!L159) ->  | L159: =IF(Import!M159="","",Import!M159) ->  | M159: =IF(Import!P159="","",Import!P159) ->  | N159: =IF(Import!Q159="","",Import!Q159) ->  | O159: =IF(Import!R159="","",Import!R159) ->  | P159: 352.8872313 | Q159: 2.953751015 | R159: 33.11555878 | S159: 33.11555878 | T159: =IF(Q159="","",(-0.00011*POWER(S159,2))+(0.01417*S159)+((0.00057*POWER(Q159,2))-(0.0529*Q159)+6.2018)+Kalkkalkyl!$AJ$2) -> 6.899136661 | W159: =IF(('PK kalkyl'!$AE$17*H159)+'PK kalkyl'!$AE$18+(('PK kalkyl'!$K$6-'PK kalkyl'!$AE$12)*'PK kalkyl'!$AE$13)<1,0,ROUND(('PK kalkyl'!$AE$17*H159)+'PK kalkyl'!$AE$18+(('PK kalkyl'!$K$6-'PK kalkyl'!$AE$12)*'PK kalkyl'!$AE$13),1)) ->  | X159: =IF(('PK kalkyl'!$AE$37*I159)+'PK kalkyl'!$AE$38+(('PK kalkyl'!$K$6-'PK kalkyl'!$AE$32)*'PK kalkyl'!$AE$33)<1,0,ROUND(('PK kalkyl'!$AE$37*I159)+'PK kalkyl'!$AE$38+(('PK kalkyl'!$K$6-'PK kalkyl'!$AE$32)*'PK kalkyl'!$AE$33),1)) ->  | AA159: =IF((Y159<W159),Y159-W159,0)*-'PK kalkyl'!$AE$15 ->  | AB159: =IF((Z159<X159),Z159-X159,0)*-'PK kalkyl'!$AE$35 ->  | AC159: =+AA159*Växtföljd!$G$18+AB159*Växtföljd!$G$18 -> 
A160: =IF(Import!A160="","",Import!A160) ->  | B160: =IF(Import!B160="","",Import!B160) ->  | C160: =IF(Import!C160="","",Import!C160) ->  | D160: =IF(Import!D160="","",Import!D160) ->  | E160: =IF(Import!E160="","",Import!E160) ->  | F160: =IF(Import!F160="","",Import!F160) ->  | G160: =IF(Import!G160="","",Import!G160) ->  | H160: =IF(Import!H160="","",Import!H160) ->  | I160: =IF(Import!J160="","",Import!J160) ->  | J160: =IF(Import!K160="","",Import!K160) ->  | K160: =IF(Import!L160="","",Import!L160) ->  | L160: =IF(Import!M160="","",Import!M160) ->  | M160: =IF(Import!P160="","",Import!P160) ->  | N160: =IF(Import!Q160="","",Import!Q160) ->  | O160: =IF(Import!R160="","",Import!R160) ->  | P160: 470 | Q160: 2.8 | R160: 37 | S160: 37 | T160: =IF(Q160="","",(-0.00011*POWER(S160,2))+(0.01417*S160)+((0.00057*POWER(Q160,2))-(0.0529*Q160)+6.2018)+Kalkkalkyl!$AJ$2) -> 6.9318488 | W160: =IF(('PK kalkyl'!$AE$17*H160)+'PK kalkyl'!$AE$18+(('PK kalkyl'!$K$6-'PK kalkyl'!$AE$12)*'PK kalkyl'!$AE$13)<1,0,ROUND(('PK kalkyl'!$AE$17*H160)+'PK kalkyl'!$AE$18+(('PK kalkyl'!$K$6-'PK kalkyl'!$AE$12)*'PK kalkyl'!$AE$13),1)) ->  | X160: =IF(('PK kalkyl'!$AE$37*I160)+'PK kalkyl'!$AE$38+(('PK kalkyl'!$K$6-'PK kalkyl'!$AE$32)*'PK kalkyl'!$AE$33)<1,0,ROUND(('PK kalkyl'!$AE$37*I160)+'PK kalkyl'!$AE$38+(('PK kalkyl'!$K$6-'PK kalkyl'!$AE$32)*'PK kalkyl'!$AE$33),1)) ->  | AA160: =IF((Y160<W160),Y160-W160,0)*-'PK kalkyl'!$AE$15 ->  | AB160: =IF((Z160<X160),Z160-X160,0)*-'PK kalkyl'!$AE$35 ->  | AC160: =+AA160*Växtföljd!$G$18+AB160*Växtföljd!$G$18 -> 
A161: =IF(Import!A161="","",Import!A161) ->  | B161: =IF(Import!B161="","",Import!B161) ->  | C161: =IF(Import!C161="","",Import!C161) ->  | D161: =IF(Import!D161="","",Import!D161) ->  | E161: =IF(Import!E161="","",Import!E161) ->  | F161: =IF(Import!F161="","",Import!F161) ->  | G161: =IF(Import!G161="","",Import!G161) ->  | H161: =IF(Import!H161="","",Import!H161) ->  | I161: =IF(Import!J161="","",Import!J161) ->  | J161: =IF(Import!K161="","",Import!K161) ->  | K161: =IF(Import!L161="","",Import!L161) ->  | L161: =IF(Import!M161="","",Import!M161) ->  | M161: =IF(Import!P161="","",Import!P161) ->  | N161: =IF(Import!Q161="","",Import!Q161) ->  | O161: =IF(Import!R161="","",Import!R161) ->  | P161: 428.7916613 | Q161: 2.825755212 | R161: 35.4546873 | S161: 35.4546873 | T161: =IF(Q161="","",(-0.00011*POWER(S161,2))+(0.01417*S161)+((0.00057*POWER(Q161,2))-(0.0529*Q161)+6.2018)+Kalkkalkyl!$AJ$2) -> 6.920988023 | W161: =IF(('PK kalkyl'!$AE$17*H161)+'PK kalkyl'!$AE$18+(('PK kalkyl'!$K$6-'PK kalkyl'!$AE$12)*'PK kalkyl'!$AE$13)<1,0,ROUND(('PK kalkyl'!$AE$17*H161)+'PK kalkyl'!$AE$18+(('PK kalkyl'!$K$6-'PK kalkyl'!$AE$12)*'PK kalkyl'!$AE$13),1)) ->  | X161: =IF(('PK kalkyl'!$AE$37*I161)+'PK kalkyl'!$AE$38+(('PK kalkyl'!$K$6-'PK kalkyl'!$AE$32)*'PK kalkyl'!$AE$33)<1,0,ROUND(('PK kalkyl'!$AE$37*I161)+'PK kalkyl'!$AE$38+(('PK kalkyl'!$K$6-'PK kalkyl'!$AE$32)*'PK kalkyl'!$AE$33),1)) ->  | AA161: =IF((Y161<W161),Y161-W161,0)*-'PK kalkyl'!$AE$15 ->  | AB161: =IF((Z161<X161),Z161-X161,0)*-'PK kalkyl'!$AE$35 ->  | AC161: =+AA161*Växtföljd!$G$18+AB161*Växtföljd!$G$18 -> 
A162: =IF(Import!A162="","",Import!A162) ->  | B162: =IF(Import!B162="","",Import!B162) ->  | C162: =IF(Import!C162="","",Import!C162) ->  | D162: =IF(Import!D162="","",Import!D162) ->  | E162: =IF(Import!E162="","",Import!E162) ->  | F162: =IF(Import!F162="","",Import!F162) ->  | G162: =IF(Import!G162="","",Import!G162) ->  | H162: =IF(Import!H162="","",Import!H162) ->  | I162: =IF(Import!J162="","",Import!J162) ->  | J162: =IF(Import!K162="","",Import!K162) ->  | K162: =IF(Import!L162="","",Import!L162) ->  | L162: =IF(Import!M162="","",Import!M162) ->  | M162: =IF(Import!P162="","",Import!P162) ->  | N162: =IF(Import!Q162="","",Import!Q162) ->  | O162: =IF(Import!R162="","",Import!R162) ->  | P162: 310 | Q162: 2.9 | R162: 31 | S162: 31 | T162: =IF(Q162="","",(-0.00011*POWER(S162,2))+(0.01417*S162)+((0.00057*POWER(Q162,2))-(0.0529*Q162)+6.2018)+Kalkkalkyl!$AJ$2) -> 6.8867437 | W162: =IF(('PK kalkyl'!$AE$17*H162)+'PK kalkyl'!$AE$18+(('PK kalkyl'!$K$6-'PK kalkyl'!$AE$12)*'PK kalkyl'!$AE$13)<1,0,ROUND(('PK kalkyl'!$AE$17*H162)+'PK kalkyl'!$AE$18+(('PK kalkyl'!$K$6-'PK kalkyl'!$AE$12)*'PK kalkyl'!$AE$13),1)) ->  | X162: =IF(('PK kalkyl'!$AE$37*I162)+'PK kalkyl'!$AE$38+(('PK kalkyl'!$K$6-'PK kalkyl'!$AE$32)*'PK kalkyl'!$AE$33)<1,0,ROUND(('PK kalkyl'!$AE$37*I162)+'PK kalkyl'!$AE$38+(('PK kalkyl'!$K$6-'PK kalkyl'!$AE$32)*'PK kalkyl'!$AE$33),1)) ->  | AA162: =IF((Y162<W162),Y162-W162,0)*-'PK kalkyl'!$AE$15 ->  | AB162: =IF((Z162<X162),Z162-X162,0)*-'PK kalkyl'!$AE$35 ->  | AC162: =+AA162*Växtföljd!$G$18+AB162*Växtföljd!$G$18 -> 
A163: =IF(Import!A163="","",Import!A163) ->  | B163: =IF(Import!B163="","",Import!B163) ->  | C163: =IF(Import!C163="","",Import!C163) ->  | D163: =IF(Import!D163="","",Import!D163) ->  | E163: =IF(Import!E163="","",Import!E163) ->  | F163: =IF(Import!F163="","",Import!F163) ->  | G163: =IF(Import!G163="","",Import!G163) ->  | H163: =IF(Import!H163="","",Import!H163) ->  | I163: =IF(Import!J163="","",Import!J163) ->  | J163: =IF(Import!K163="","",Import!K163) ->  | K163: =IF(Import!L163="","",Import!L163) ->  | L163: =IF(Import!M163="","",Import!M163) ->  | M163: =IF(Import!P163="","",Import!P163) ->  | N163: =IF(Import!Q163="","",Import!Q163) ->  | O163: =IF(Import!R163="","",Import!R163) ->  | P163: 356.3049111 | Q163: 2.871059431 | R163: 32.73643417 | S163: 32.73643417 | T163: =IF(Q163="","",(-0.00011*POWER(S163,2))+(0.01417*S163)+((0.00057*POWER(Q163,2))-(0.0529*Q163)+6.2018)+Kalkkalkyl!$AJ$2) -> 6.900610575 | W163: =IF(('PK kalkyl'!$AE$17*H163)+'PK kalkyl'!$AE$18+(('PK kalkyl'!$K$6-'PK kalkyl'!$AE$12)*'PK kalkyl'!$AE$13)<1,0,ROUND(('PK kalkyl'!$AE$17*H163)+'PK kalkyl'!$AE$18+(('PK kalkyl'!$K$6-'PK kalkyl'!$AE$12)*'PK kalkyl'!$AE$13),1)) ->  | X163: =IF(('PK kalkyl'!$AE$37*I163)+'PK kalkyl'!$AE$38+(('PK kalkyl'!$K$6-'PK kalkyl'!$AE$32)*'PK kalkyl'!$AE$33)<1,0,ROUND(('PK kalkyl'!$AE$37*I163)+'PK kalkyl'!$AE$38+(('PK kalkyl'!$K$6-'PK kalkyl'!$AE$32)*'PK kalkyl'!$AE$33),1)) ->  | AA163: =IF((Y163<W163),Y163-W163,0)*-'PK kalkyl'!$AE$15 ->  | AB163: =IF((Z163<X163),Z163-X163,0)*-'PK kalkyl'!$AE$35 ->  | AC163: =+AA163*Växtföljd!$G$18+AB163*Växtföljd!$G$18 -> 
A164: =IF(Import!A164="","",Import!A164) ->  | B164: =IF(Import!B164="","",Import!B164) ->  | C164: =IF(Import!C164="","",Import!C164) ->  | D164: =IF(Import!D164="","",Import!D164) ->  | E164: =IF(Import!E164="","",Import!E164) ->  | F164: =IF(Import!F164="","",Import!F164) ->  | G164: =IF(Import!G164="","",Import!G164) ->  | H164: =IF(Import!H164="","",Import!H164) ->  | I164: =IF(Import!J164="","",Import!J164) ->  | J164: =IF(Import!K164="","",Import!K164) ->  | K164: =IF(Import!L164="","",Import!L164) ->  | L164: =IF(Import!M164="","",Import!M164) ->  | M164: =IF(Import!P164="","",Import!P164) ->  | N164: =IF(Import!Q164="","",Import!Q164) ->  | O164: =IF(Import!R164="","",Import!R164) ->  | P164: 300 | Q164: 3.2 | R164: 33 | S164: 33 | T164: =IF(Q164="","",(-0.00011*POWER(S164,2))+(0.01417*S164)+((0.00057*POWER(Q164,2))-(0.0529*Q164)+6.2018)+Kalkkalkyl!$AJ$2) -> 6.8861768 | W164: =IF(('PK kalkyl'!$AE$17*H164)+'PK kalkyl'!$AE$18+(('PK kalkyl'!$K$6-'PK kalkyl'!$AE$12)*'PK kalkyl'!$AE$13)<1,0,ROUND(('PK kalkyl'!$AE$17*H164)+'PK kalkyl'!$AE$18+(('PK kalkyl'!$K$6-'PK kalkyl'!$AE$12)*'PK kalkyl'!$AE$13),1)) ->  | X164: =IF(('PK kalkyl'!$AE$37*I164)+'PK kalkyl'!$AE$38+(('PK kalkyl'!$K$6-'PK kalkyl'!$AE$32)*'PK kalkyl'!$AE$33)<1,0,ROUND(('PK kalkyl'!$AE$37*I164)+'PK kalkyl'!$AE$38+(('PK kalkyl'!$K$6-'PK kalkyl'!$AE$32)*'PK kalkyl'!$AE$33),1)) ->  | AA164: =IF((Y164<W164),Y164-W164,0)*-'PK kalkyl'!$AE$15 ->  | AB164: =IF((Z164<X164),Z164-X164,0)*-'PK kalkyl'!$AE$35 ->  | AC164: =+AA164*Växtföljd!$G$18+AB164*Växtföljd!$G$18 -> 
A165: =IF(Import!A165="","",Import!A165) ->  | B165: =IF(Import!B165="","",Import!B165) ->  | C165: =IF(Import!C165="","",Import!C165) ->  | D165: =IF(Import!D165="","",Import!D165) ->  | E165: =IF(Import!E165="","",Import!E165) ->  | F165: =IF(Import!F165="","",Import!F165) ->  | G165: =IF(Import!G165="","",Import!G165) ->  | H165: =IF(Import!H165="","",Import!H165) ->  | I165: =IF(Import!J165="","",Import!J165) ->  | J165: =IF(Import!K165="","",Import!K165) ->  | K165: =IF(Import!L165="","",Import!L165) ->  | L165: =IF(Import!M165="","",Import!M165) ->  | M165: =IF(Import!P165="","",Import!P165) ->  | N165: =IF(Import!Q165="","",Import!Q165) ->  | O165: =IF(Import!R165="","",Import!R165) ->  | P165: 301.1523446 | Q165: 3.081255049 | R165: 33.04616807 | S165: 33.04616807 | T165: =IF(Q165="","",(-0.00011*POWER(S165,2))+(0.01417*S165)+((0.00057*POWER(Q165,2))-(0.0529*Q165)+6.2018)+Kalkkalkyl!$AJ$2) -> 6.89235205 | W165: =IF(('PK kalkyl'!$AE$17*H165)+'PK kalkyl'!$AE$18+(('PK kalkyl'!$K$6-'PK kalkyl'!$AE$12)*'PK kalkyl'!$AE$13)<1,0,ROUND(('PK kalkyl'!$AE$17*H165)+'PK kalkyl'!$AE$18+(('PK kalkyl'!$K$6-'PK kalkyl'!$AE$12)*'PK kalkyl'!$AE$13),1)) ->  | X165: =IF(('PK kalkyl'!$AE$37*I165)+'PK kalkyl'!$AE$38+(('PK kalkyl'!$K$6-'PK kalkyl'!$AE$32)*'PK kalkyl'!$AE$33)<1,0,ROUND(('PK kalkyl'!$AE$37*I165)+'PK kalkyl'!$AE$38+(('PK kalkyl'!$K$6-'PK kalkyl'!$AE$32)*'PK kalkyl'!$AE$33),1)) ->  | AA165: =IF((Y165<W165),Y165-W165,0)*-'PK kalkyl'!$AE$15 ->  | AB165: =IF((Z165<X165),Z165-X165,0)*-'PK kalkyl'!$AE$35 ->  | AC165: =+AA165*Växtföljd!$G$18+AB165*Växtföljd!$G$18 -> 
A166: =IF(Import!A166="","",Import!A166) ->  | B166: =IF(Import!B166="","",Import!B166) ->  | C166: =IF(Import!C166="","",Import!C166) ->  | D166: =IF(Import!D166="","",Import!D166) ->  | E166: =IF(Import!E166="","",Import!E166) ->  | F166: =IF(Import!F166="","",Import!F166) ->  | G166: =IF(Import!G166="","",Import!G166) ->  | H166: =IF(Import!H166="","",Import!H166) ->  | I166: =IF(Import!J166="","",Import!J166) ->  | J166: =IF(Import!K166="","",Import!K166) ->  | K166: =IF(Import!L166="","",Import!L166) ->  | L166: =IF(Import!M166="","",Import!M166) ->  | M166: =IF(Import!P166="","",Import!P166) ->  | N166: =IF(Import!Q166="","",Import!Q166) ->  | O166: =IF(Import!R166="","",Import!R166) ->  | P166: 250 | Q166: 3.5 | R166: 29 | S166: 29 | T166: =IF(Q166="","",(-0.00011*POWER(S166,2))+(0.01417*S166)+((0.00057*POWER(Q166,2))-(0.0529*Q166)+6.2018)+Kalkkalkyl!$AJ$2) -> 6.8420525 | W166: =IF(('PK kalkyl'!$AE$17*H166)+'PK kalkyl'!$AE$18+(('PK kalkyl'!$K$6-'PK kalkyl'!$AE$12)*'PK kalkyl'!$AE$13)<1,0,ROUND(('PK kalkyl'!$AE$17*H166)+'PK kalkyl'!$AE$18+(('PK kalkyl'!$K$6-'PK kalkyl'!$AE$12)*'PK kalkyl'!$AE$13),1)) ->  | X166: =IF(('PK kalkyl'!$AE$37*I166)+'PK kalkyl'!$AE$38+(('PK kalkyl'!$K$6-'PK kalkyl'!$AE$32)*'PK kalkyl'!$AE$33)<1,0,ROUND(('PK kalkyl'!$AE$37*I166)+'PK kalkyl'!$AE$38+(('PK kalkyl'!$K$6-'PK kalkyl'!$AE$32)*'PK kalkyl'!$AE$33),1)) ->  | AA166: =IF((Y166<W166),Y166-W166,0)*-'PK kalkyl'!$AE$15 ->  | AB166: =IF((Z166<X166),Z166-X166,0)*-'PK kalkyl'!$AE$35 ->  | AC166: =+AA166*Växtföljd!$G$18+AB166*Växtföljd!$G$18 -> 
A167: =IF(Import!A167="","",Import!A167) ->  | B167: =IF(Import!B167="","",Import!B167) ->  | C167: =IF(Import!C167="","",Import!C167) ->  | D167: =IF(Import!D167="","",Import!D167) ->  | E167: =IF(Import!E167="","",Import!E167) ->  | F167: =IF(Import!F167="","",Import!F167) ->  | G167: =IF(Import!G167="","",Import!G167) ->  | H167: =IF(Import!H167="","",Import!H167) ->  | I167: =IF(Import!J167="","",Import!J167) ->  | J167: =IF(Import!K167="","",Import!K167) ->  | K167: =IF(Import!L167="","",Import!L167) ->  | L167: =IF(Import!M167="","",Import!M167) ->  | M167: =IF(Import!P167="","",Import!P167) ->  | N167: =IF(Import!Q167="","",Import!Q167) ->  | O167: =IF(Import!R167="","",Import!R167) ->  | P167: 271.404396 | Q167: 3.216479806 | R167: 30.89044978 | S167: 30.89044978 | T167: =IF(Q167="","",(-0.00011*POWER(S167,2))+(0.01417*S167)+((0.00057*POWER(Q167,2))-(0.0529*Q167)+6.2018)+Kalkkalkyl!$AJ$2) -> 6.870298777 | W167: =IF(('PK kalkyl'!$AE$17*H167)+'PK kalkyl'!$AE$18+(('PK kalkyl'!$K$6-'PK kalkyl'!$AE$12)*'PK kalkyl'!$AE$13)<1,0,ROUND(('PK kalkyl'!$AE$17*H167)+'PK kalkyl'!$AE$18+(('PK kalkyl'!$K$6-'PK kalkyl'!$AE$12)*'PK kalkyl'!$AE$13),1)) ->  | X167: =IF(('PK kalkyl'!$AE$37*I167)+'PK kalkyl'!$AE$38+(('PK kalkyl'!$K$6-'PK kalkyl'!$AE$32)*'PK kalkyl'!$AE$33)<1,0,ROUND(('PK kalkyl'!$AE$37*I167)+'PK kalkyl'!$AE$38+(('PK kalkyl'!$K$6-'PK kalkyl'!$AE$32)*'PK kalkyl'!$AE$33),1)) ->  | AA167: =IF((Y167<W167),Y167-W167,0)*-'PK kalkyl'!$AE$15 ->  | AB167: =IF((Z167<X167),Z167-X167,0)*-'PK kalkyl'!$AE$35 ->  | AC167: =+AA167*Växtföljd!$G$18+AB167*Växtföljd!$G$18 -> 
A168: =IF(Import!A168="","",Import!A168) ->  | B168: =IF(Import!B168="","",Import!B168) ->  | C168: =IF(Import!C168="","",Import!C168) ->  | D168: =IF(Import!D168="","",Import!D168) ->  | E168: =IF(Import!E168="","",Import!E168) ->  | F168: =IF(Import!F168="","",Import!F168) ->  | G168: =IF(Import!G168="","",Import!G168) ->  | H168: =IF(Import!H168="","",Import!H168) ->  | I168: =IF(Import!J168="","",Import!J168) ->  | J168: =IF(Import!K168="","",Import!K168) ->  | K168: =IF(Import!L168="","",Import!L168) ->  | L168: =IF(Import!M168="","",Import!M168) ->  | M168: =IF(Import!P168="","",Import!P168) ->  | N168: =IF(Import!Q168="","",Import!Q168) ->  | O168: =IF(Import!R168="","",Import!R168) ->  | P168: 280 | Q168: 3 | R168: 32 | S168: 32 | T168: =IF(Q168="","",(-0.00011*POWER(S168,2))+(0.01417*S168)+((0.00057*POWER(Q168,2))-(0.0529*Q168)+6.2018)+Kalkkalkyl!$AJ$2) -> 6.88903 | W168: =IF(('PK kalkyl'!$AE$17*H168)+'PK kalkyl'!$AE$18+(('PK kalkyl'!$K$6-'PK kalkyl'!$AE$12)*'PK kalkyl'!$AE$13)<1,0,ROUND(('PK kalkyl'!$AE$17*H168)+'PK kalkyl'!$AE$18+(('PK kalkyl'!$K$6-'PK kalkyl'!$AE$12)*'PK kalkyl'!$AE$13),1)) ->  | X168: =IF(('PK kalkyl'!$AE$37*I168)+'PK kalkyl'!$AE$38+(('PK kalkyl'!$K$6-'PK kalkyl'!$AE$32)*'PK kalkyl'!$AE$33)<1,0,ROUND(('PK kalkyl'!$AE$37*I168)+'PK kalkyl'!$AE$38+(('PK kalkyl'!$K$6-'PK kalkyl'!$AE$32)*'PK kalkyl'!$AE$33),1)) ->  | AA168: =IF((Y168<W168),Y168-W168,0)*-'PK kalkyl'!$AE$15 ->  | AB168: =IF((Z168<X168),Z168-X168,0)*-'PK kalkyl'!$AE$35 ->  | AC168: =+AA168*Växtföljd!$G$18+AB168*Växtföljd!$G$18 -> 
A169: =IF(Import!A169="","",Import!A169) ->  | B169: =IF(Import!B169="","",Import!B169) ->  | C169: =IF(Import!C169="","",Import!C169) ->  | D169: =IF(Import!D169="","",Import!D169) ->  | E169: =IF(Import!E169="","",Import!E169) ->  | F169: =IF(Import!F169="","",Import!F169) ->  | G169: =IF(Import!G169="","",Import!G169) ->  | H169: =IF(Import!H169="","",Import!H169) ->  | I169: =IF(Import!J169="","",Import!J169) ->  | J169: =IF(Import!K169="","",Import!K169) ->  | K169: =IF(Import!L169="","",Import!L169) ->  | L169: =IF(Import!M169="","",Import!M169) ->  | M169: =IF(Import!P169="","",Import!P169) ->  | N169: =IF(Import!Q169="","",Import!Q169) ->  | O169: =IF(Import!R169="","",Import!R169) ->  | P169: 300.3294471 | Q169: 2.974723061 | R169: 32.99756221 | S169: 32.99756221 | T169: =IF(Q169="","",(-0.00011*POWER(S169,2))+(0.01417*S169)+((0.00057*POWER(Q169,2))-(0.0529*Q169)+6.2018)+Kalkkalkyl!$AJ$2) -> 6.897284221 | W169: =IF(('PK kalkyl'!$AE$17*H169)+'PK kalkyl'!$AE$18+(('PK kalkyl'!$K$6-'PK kalkyl'!$AE$12)*'PK kalkyl'!$AE$13)<1,0,ROUND(('PK kalkyl'!$AE$17*H169)+'PK kalkyl'!$AE$18+(('PK kalkyl'!$K$6-'PK kalkyl'!$AE$12)*'PK kalkyl'!$AE$13),1)) ->  | X169: =IF(('PK kalkyl'!$AE$37*I169)+'PK kalkyl'!$AE$38+(('PK kalkyl'!$K$6-'PK kalkyl'!$AE$32)*'PK kalkyl'!$AE$33)<1,0,ROUND(('PK kalkyl'!$AE$37*I169)+'PK kalkyl'!$AE$38+(('PK kalkyl'!$K$6-'PK kalkyl'!$AE$32)*'PK kalkyl'!$AE$33),1)) ->  | AA169: =IF((Y169<W169),Y169-W169,0)*-'PK kalkyl'!$AE$15 ->  | AB169: =IF((Z169<X169),Z169-X169,0)*-'PK kalkyl'!$AE$35 ->  | AC169: =+AA169*Växtföljd!$G$18+AB169*Växtföljd!$G$18 -> 
A170: =IF(Import!A170="","",Import!A170) ->  | B170: =IF(Import!B170="","",Import!B170) ->  | C170: =IF(Import!C170="","",Import!C170) ->  | D170: =IF(Import!D170="","",Import!D170) ->  | E170: =IF(Import!E170="","",Import!E170) ->  | F170: =IF(Import!F170="","",Import!F170) ->  | G170: =IF(Import!G170="","",Import!G170) ->  | H170: =IF(Import!H170="","",Import!H170) ->  | I170: =IF(Import!J170="","",Import!J170) ->  | J170: =IF(Import!K170="","",Import!K170) ->  | K170: =IF(Import!L170="","",Import!L170) ->  | L170: =IF(Import!M170="","",Import!M170) ->  | M170: =IF(Import!P170="","",Import!P170) ->  | N170: =IF(Import!Q170="","",Import!Q170) ->  | O170: =IF(Import!R170="","",Import!R170) ->  | P170: 370 | Q170: 2.4 | R170: 38 | S170: 38 | T170: =IF(Q170="","",(-0.00011*POWER(S170,2))+(0.01417*S170)+((0.00057*POWER(Q170,2))-(0.0529*Q170)+6.2018)+Kalkkalkyl!$AJ$2) -> 6.9577432 | W170: =IF(('PK kalkyl'!$AE$17*H170)+'PK kalkyl'!$AE$18+(('PK kalkyl'!$K$6-'PK kalkyl'!$AE$12)*'PK kalkyl'!$AE$13)<1,0,ROUND(('PK kalkyl'!$AE$17*H170)+'PK kalkyl'!$AE$18+(('PK kalkyl'!$K$6-'PK kalkyl'!$AE$12)*'PK kalkyl'!$AE$13),1)) ->  | X170: =IF(('PK kalkyl'!$AE$37*I170)+'PK kalkyl'!$AE$38+(('PK kalkyl'!$K$6-'PK kalkyl'!$AE$32)*'PK kalkyl'!$AE$33)<1,0,ROUND(('PK kalkyl'!$AE$37*I170)+'PK kalkyl'!$AE$38+(('PK kalkyl'!$K$6-'PK kalkyl'!$AE$32)*'PK kalkyl'!$AE$33),1)) ->  | AA170: =IF((Y170<W170),Y170-W170,0)*-'PK kalkyl'!$AE$15 ->  | AB170: =IF((Z170<X170),Z170-X170,0)*-'PK kalkyl'!$AE$35 ->  | AC170: =+AA170*Växtföljd!$G$18+AB170*Växtföljd!$G$18 -> 
A171: =IF(Import!A171="","",Import!A171) ->  | B171: =IF(Import!B171="","",Import!B171) ->  | C171: =IF(Import!C171="","",Import!C171) ->  | D171: =IF(Import!D171="","",Import!D171) ->  | E171: =IF(Import!E171="","",Import!E171) ->  | F171: =IF(Import!F171="","",Import!F171) ->  | G171: =IF(Import!G171="","",Import!G171) ->  | H171: =IF(Import!H171="","",Import!H171) ->  | I171: =IF(Import!J171="","",Import!J171) ->  | J171: =IF(Import!K171="","",Import!K171) ->  | K171: =IF(Import!L171="","",Import!L171) ->  | L171: =IF(Import!M171="","",Import!M171) ->  | M171: =IF(Import!P171="","",Import!P171) ->  | N171: =IF(Import!Q171="","",Import!Q171) ->  | O171: =IF(Import!R171="","",Import!R171) ->  | P171: 293.7181148 | Q171: 3.290061945 | R171: 32.91243963 | S171: 32.91243963 | T171: =IF(Q171="","",(-0.00011*POWER(S171,2))+(0.01417*S171)+((0.00057*POWER(Q171,2))-(0.0529*Q171)+6.2018)+Kalkkalkyl!$AJ$2) -> 6.881139807 | W171: =IF(('PK kalkyl'!$AE$17*H171)+'PK kalkyl'!$AE$18+(('PK kalkyl'!$K$6-'PK kalkyl'!$AE$12)*'PK kalkyl'!$AE$13)<1,0,ROUND(('PK kalkyl'!$AE$17*H171)+'PK kalkyl'!$AE$18+(('PK kalkyl'!$K$6-'PK kalkyl'!$AE$12)*'PK kalkyl'!$AE$13),1)) ->  | X171: =IF(('PK kalkyl'!$AE$37*I171)+'PK kalkyl'!$AE$38+(('PK kalkyl'!$K$6-'PK kalkyl'!$AE$32)*'PK kalkyl'!$AE$33)<1,0,ROUND(('PK kalkyl'!$AE$37*I171)+'PK kalkyl'!$AE$38+(('PK kalkyl'!$K$6-'PK kalkyl'!$AE$32)*'PK kalkyl'!$AE$33),1)) ->  | AA171: =IF((Y171<W171),Y171-W171,0)*-'PK kalkyl'!$AE$15 ->  | AB171: =IF((Z171<X171),Z171-X171,0)*-'PK kalkyl'!$AE$35 ->  | AC171: =+AA171*Växtföljd!$G$18+AB171*Växtföljd!$G$18 -> 
A172: =IF(Import!A172="","",Import!A172) ->  | B172: =IF(Import!B172="","",Import!B172) ->  | C172: =IF(Import!C172="","",Import!C172) ->  | D172: =IF(Import!D172="","",Import!D172) ->  | E172: =IF(Import!E172="","",Import!E172) ->  | F172: =IF(Import!F172="","",Import!F172) ->  | G172: =IF(Import!G172="","",Import!G172) ->  | H172: =IF(Import!H172="","",Import!H172) ->  | I172: =IF(Import!J172="","",Import!J172) ->  | J172: =IF(Import!K172="","",Import!K172) ->  | K172: =IF(Import!L172="","",Import!L172) ->  | L172: =IF(Import!M172="","",Import!M172) ->  | M172: =IF(Import!P172="","",Import!P172) ->  | N172: =IF(Import!Q172="","",Import!Q172) ->  | O172: =IF(Import!R172="","",Import!R172) ->  | P172: 280 | Q172: 3.5 | R172: 33 | S172: 33 | T172: =IF(Q172="","",(-0.00011*POWER(S172,2))+(0.01417*S172)+((0.00057*POWER(Q172,2))-(0.0529*Q172)+6.2018)+Kalkkalkyl!$AJ$2) -> 6.8714525 | W172: =IF(('PK kalkyl'!$AE$17*H172)+'PK kalkyl'!$AE$18+(('PK kalkyl'!$K$6-'PK kalkyl'!$AE$12)*'PK kalkyl'!$AE$13)<1,0,ROUND(('PK kalkyl'!$AE$17*H172)+'PK kalkyl'!$AE$18+(('PK kalkyl'!$K$6-'PK kalkyl'!$AE$12)*'PK kalkyl'!$AE$13),1)) ->  | X172: =IF(('PK kalkyl'!$AE$37*I172)+'PK kalkyl'!$AE$38+(('PK kalkyl'!$K$6-'PK kalkyl'!$AE$32)*'PK kalkyl'!$AE$33)<1,0,ROUND(('PK kalkyl'!$AE$37*I172)+'PK kalkyl'!$AE$38+(('PK kalkyl'!$K$6-'PK kalkyl'!$AE$32)*'PK kalkyl'!$AE$33),1)) ->  | AA172: =IF((Y172<W172),Y172-W172,0)*-'PK kalkyl'!$AE$15 ->  | AB172: =IF((Z172<X172),Z172-X172,0)*-'PK kalkyl'!$AE$35 ->  | AC172: =+AA172*Växtföljd!$G$18+AB172*Växtföljd!$G$18 -> 
A173: =IF(Import!A173="","",Import!A173) ->  | B173: =IF(Import!B173="","",Import!B173) ->  | C173: =IF(Import!C173="","",Import!C173) ->  | D173: =IF(Import!D173="","",Import!D173) ->  | E173: =IF(Import!E173="","",Import!E173) ->  | F173: =IF(Import!F173="","",Import!F173) ->  | G173: =IF(Import!G173="","",Import!G173) ->  | H173: =IF(Import!H173="","",Import!H173) ->  | I173: =IF(Import!J173="","",Import!J173) ->  | J173: =IF(Import!K173="","",Import!K173) ->  | K173: =IF(Import!L173="","",Import!L173) ->  | L173: =IF(Import!M173="","",Import!M173) ->  | M173: =IF(Import!P173="","",Import!P173) ->  | N173: =IF(Import!Q173="","",Import!Q173) ->  | O173: =IF(Import!R173="","",Import!R173) ->  | P173: 297.651935 | Q173: 3.131306276 | R173: 33.0023788 | S173: 33.0023788 | T173: =IF(Q173="","",(-0.00011*POWER(S173,2))+(0.01417*S173)+((0.00057*POWER(Q173,2))-(0.0529*Q173)+6.2018)+Kalkkalkyl!$AJ$2) -> 6.88957923 | W173: =IF(('PK kalkyl'!$AE$17*H173)+'PK kalkyl'!$AE$18+(('PK kalkyl'!$K$6-'PK kalkyl'!$AE$12)*'PK kalkyl'!$AE$13)<1,0,ROUND(('PK kalkyl'!$AE$17*H173)+'PK kalkyl'!$AE$18+(('PK kalkyl'!$K$6-'PK kalkyl'!$AE$12)*'PK kalkyl'!$AE$13),1)) ->  | X173: =IF(('PK kalkyl'!$AE$37*I173)+'PK kalkyl'!$AE$38+(('PK kalkyl'!$K$6-'PK kalkyl'!$AE$32)*'PK kalkyl'!$AE$33)<1,0,ROUND(('PK kalkyl'!$AE$37*I173)+'PK kalkyl'!$AE$38+(('PK kalkyl'!$K$6-'PK kalkyl'!$AE$32)*'PK kalkyl'!$AE$33),1)) ->  | AA173: =IF((Y173<W173),Y173-W173,0)*-'PK kalkyl'!$AE$15 ->  | AB173: =IF((Z173<X173),Z173-X173,0)*-'PK kalkyl'!$AE$35 ->  | AC173: =+AA173*Växtföljd!$G$18+AB173*Växtföljd!$G$18 -> 
A174: =IF(Import!A174="","",Import!A174) ->  | B174: =IF(Import!B174="","",Import!B174) ->  | C174: =IF(Import!C174="","",Import!C174) ->  | D174: =IF(Import!D174="","",Import!D174) ->  | E174: =IF(Import!E174="","",Import!E174) ->  | F174: =IF(Import!F174="","",Import!F174) ->  | G174: =IF(Import!G174="","",Import!G174) ->  | H174: =IF(Import!H174="","",Import!H174) ->  | I174: =IF(Import!J174="","",Import!J174) ->  | J174: =IF(Import!K174="","",Import!K174) ->  | K174: =IF(Import!L174="","",Import!L174) ->  | L174: =IF(Import!M174="","",Import!M174) ->  | M174: =IF(Import!P174="","",Import!P174) ->  | N174: =IF(Import!Q174="","",Import!Q174) ->  | O174: =IF(Import!R174="","",Import!R174) ->  | P174: 310 | Q174: 3 | R174: 34 | S174: 34 | T174: =IF(Q174="","",(-0.00011*POWER(S174,2))+(0.01417*S174)+((0.00057*POWER(Q174,2))-(0.0529*Q174)+6.2018)+Kalkkalkyl!$AJ$2) -> 6.90285 | W174: =IF(('PK kalkyl'!$AE$17*H174)+'PK kalkyl'!$AE$18+(('PK kalkyl'!$K$6-'PK kalkyl'!$AE$12)*'PK kalkyl'!$AE$13)<1,0,ROUND(('PK kalkyl'!$AE$17*H174)+'PK kalkyl'!$AE$18+(('PK kalkyl'!$K$6-'PK kalkyl'!$AE$12)*'PK kalkyl'!$AE$13),1)) ->  | X174: =IF(('PK kalkyl'!$AE$37*I174)+'PK kalkyl'!$AE$38+(('PK kalkyl'!$K$6-'PK kalkyl'!$AE$32)*'PK kalkyl'!$AE$33)<1,0,ROUND(('PK kalkyl'!$AE$37*I174)+'PK kalkyl'!$AE$38+(('PK kalkyl'!$K$6-'PK kalkyl'!$AE$32)*'PK kalkyl'!$AE$33),1)) ->  | AA174: =IF((Y174<W174),Y174-W174,0)*-'PK kalkyl'!$AE$15 ->  | AB174: =IF((Z174<X174),Z174-X174,0)*-'PK kalkyl'!$AE$35 ->  | AC174: =+AA174*Växtföljd!$G$18+AB174*Växtföljd!$G$18 -> 
